Workbook

Sheet Developer (hidden)

Sheet Navigation Panel
C1: Whitsunday Regional Council | G1: Unhide all sheets | H1: Hide all sheets
B2: Navigation Panel
B4: SoW Model
B5: COMPONENT | C5: STEP | D5: SECTION | E5: NOTES | G5: COMMENTS AND GUIDANCE
A6: Yes | B6: Supporting calculators | C6: 1 | D6: Escalation Indices
A7: No
A8: Yes | B8: Model criteria | C8: 2 | D8: Model criteria
A9: Yes | C9: 3 | D9: Development inputs (projections and charge rates)
A10: =IF(COUNTIF(A11:A20,"Yes")>0,"Yes","No") -> Yes | B10: Infrastructure inputs | C10: 4 | D10: Infrastructure Demand
A11: =IF('Model Criteria'!I6="No","No",IF('Model Criteria'!J6="No","No","Yes")) -> Yes | D11: =N1_Name -> Water Supply
A12: =IF('Model Criteria'!I7="No","No",IF('Model Criteria'!J7="No","No","Yes")) -> Yes | D12: =N2_Name -> Sewerage
A13: =IF('Model Criteria'!I8="No","No",IF('Model Criteria'!J8="No","No","Yes")) -> Yes | D13: =N3_Name -> Transport
A14: =IF('Model Criteria'!I9="No","No",IF('Model Criteria'!J9="No","No","Yes")) -> Yes | D14: =N4_Name -> Parks and Community
A15: =IF('Model Criteria'!I10="No","No",IF('Model Criteria'!J10="No","No","Yes")) -> No | D15: =N5_Name -> Network 5
... 17 more rows

Sheet Discount Rate Calculator (hidden)
B2: Discount Rate Calculator
B5: WACC CALCULATOR
B6: Risk Free Rate | C6: rf | D6: 0
B7: Market Risk Premium | C7: rM | D7: 0
B8: Asset Beta | C8: aB | D8: 0
B9: Corporate Tax Rate | C9: MTR | D9: 0
B10: Debt Beta | C10: dB | D10: =IF(rM="","CHECK INPUTS",IFERROR((rD-rf)/(rM-rf),"CHECK INPUTS")) -> CHECK INPUTS
B11: Equity Beta | C11: eB | D11: =IFERROR(aB+(aB-dB)*(1-MTR)*(D/E),"CHECK INPUTS") -> CHECK INPUTS | E11: Conine Formula
B12: Cost of Equity | C12: rE | D12: =IFERROR(rf+(rM*eB),"CHECK INPUTS") -> CHECK INPUTS
B14: AA1 Rated Debt - 10 Year | C14: BBB | D14: 0
B15: Debt Margin | C15: dm | D15: =IF(BBB="","CHECK INPUTS",BBB-rf) -> 0
B16: Cost of Debt | C16: rD | D16: =IFERROR(rf+dm,"CHECK INPUTS") -> 0
B18: Capital Structure (Debt) | C18: D | D18: 0
B19: Capital Structure (Equity) | C19: E | D19: 0
B20: Total Value | C20: V | D20: =IF(SUM(D18:D19)=0,"CHECK INPUTS",SUM(D18:D19)) -> CHECK INPUTS
B22: WACC - post-tax nominal | C22: Off3Wacc_nom | D22: =IFERROR((rE*(E/V))+(rD*(D/V)),"CHECK INPUTS") -> CHECK INPUTS
B23: Annual Inflation | C23: inf | D23: =(('Escalation Calculator'!D17-'Escalation Calculator'!D8)/'Escalation Calculator'!D8)/10 -> 0.01860696517 | E23: 10 year average - CPI
B24: WACC - post-tax real | C24: Off3Wacc_real | D24: =IFERROR(IF(inf="N/A","Choose Inflation Index",(Off3Wacc_nom+1)*(inf+1)-1),"CHECK INPUTS") -> CHECK INPUTS
B26: BOND PLUS PREMIUM | C26: LOOKUP | D26: INPUT/OUTPUT | E26: NOTES
B27: 10 Year Bond Rate | C27: rf | D27: =IF(rf=0,"CHECK INPUTS",rf) -> CHECK INPUTS
B28: Post Tax Nominal Premium | C28: np
B29: Discount Rate - Nominal | C29: BPP_Nom | D29: =IF(np="","CHECK INPUTS",rf+np) -> CHECK INPUTS
B30: Discount Rate - Real | C30: BPP_Real | D30: =IFERROR((BPP_Nom+1)*(inf+1)-1,"CHECK INPUTS") -> CHECK INPUTS

Sheet Escalation Calculator (hidden)
B2: Escalation Indices
V4: 20 | W4: 21 | X4: 22 | Y4: 23 | Z4: 24 | AA4: 25 | AB4: 26 | AC4: 27 | AD4: 28 | AE4: 29 | AF4: 30 | AG4: 31 | AH4: 32 | AI4: 33 | AJ4: 34 | AK4: 35 | AL4: 36 | AM4: 37 | AN4: 38 | AO4: 39 | AP4: 40 | AQ4: 41 | AR4: 42 | AS4: 43 | AT4: 44 | AU4: 45 | AV4: 46 | AW4: 47 | AX4: 48 | AY4: 49 | AZ4: 50 | BA4: 51 | BB4: 52 | BC4: 53 | BD4: 54 | BE4: 55 | BF4: 56 | BG4: 57 | BH4: 58 | BI4: 59
D5: CPI | G5: PPI - Roads and Bridges | J5: No Indexation | M5: Spare 2 | P5: No indexation | V5: Adopted Index Numbers
C6: METHOD | D6: =D5&" - ACTUAL + 10yr AVERAGE" -> CPI - ACTUAL + 10yr AVERAGE | E6: =D5&" - ACTUAL + PROJECTED INDEX" -> CPI - ACTUAL + PROJECTED INDEX | F6: =D5&" - ACTUAL + ADOPTED RATE" -> CPI - ACTUAL + ADOPTED RATE | G6: =G5&" - ACTUAL + 10yr AVERAGE" -> PPI - Roads and Bridges - ACTUAL + 10yr AVERAGE | H6: =G5&" - ACTUAL + PROJECTED INDEX" -> PPI - Roads and Bridges - ACTUAL + PROJECTED INDEX | I6: =G5&" - ACTUAL + ADOPTED RATE" -> PPI - Roads and Bridges - ACTUAL + ADOPTED RATE | J6: =J5&" - ACTUAL + 10yr AVERAGE" -> No Indexation - ACTUAL + 10yr AVERAGE | K6: =J5&" - ACTUAL + PROJECTED INDEX" -> No Indexation - ACTUAL + PROJECTED INDEX | L6: =J5&" - ACTUAL + ADOPTED RATE" -> No Indexation - ACTUAL + ADOPTED RATE | M6: =M5&" - ACTUAL + 10yr AVERAGE" -> Spare 2 - ACTUAL + 10yr AVERAGE | N6: =M5&" - ACTUAL + PROJECTED INDEX" -> Spare 2 - ACTUAL + PROJECTED INDEX | O6: =M5&" - ACTUAL + ADOPTED RATE" -> Spare 2 - ACTUAL + ADOPTED RATE | P6: =P5&" - ACTUAL + 10yr AVERAGE" -> No indexation - ACTUAL + 10yr AVERAGE | Q6: =P5&" - ACTUAL + PROJECTED INDEX" -> No indexation - ACTUAL + PROJECTED INDEX | R6: =P5&" - ACTUAL + ADOPTED RATE" -> No indexation - ACTUAL + ADOPTED RATE | V6: =N1_Name -> Water Supply | Z6: =N2_Name -> Sewerage | AD6: =N3_Name -> Transport | AH6: =N4_Name -> Parks and Community | AL6: =N5_Name -> Network 5 | AP6: =N6_Name -> Network 6 | AT6: =N7_Name -> Network 7 | AX6: =N8_Name -> Network 8 | BB6: =N9_Name -> Network 9 | BF6: =N10_Name -> Network 10
C7: Adopted Rate | D7: N/A | E7: N/A | F7: =(F17/F8)^(1/10)-1 -> 0.01721093307 | G7: N/A | H7: N/A | I7: =(I17/I8)^(1/10)-1 -> 0.01253684455 | J7: N/A | K7: N/A | L7: 0 | M7: N/A | N7: N/A | P7: N/A | Q7: N/A | R7: 0 | U7: LOOKUP ROW | V7: Land Value | W7: Construction Cost | X7: Subsidy | Y7: Servicing Cost | Z7: Land Value | AA7: Construction Cost | AB7: Subsidy | AC7: Servicing Cost | AD7: Land Value | AE7: Construction Cost | AF7: Subsidy | AG7: Servicing Cost | AH7: Land Value | AI7: Construction Cost | AJ7: Subsidy | AK7: Servicing Cost | AL7: Land Value | AM7: Construction Cost | AN7: Subsidy | AO7: Servicing Cost | AP7: Land Value | AQ7: Construction Cost | AR7: Subsidy | AS7: Servicing Cost | AT7: Land Value | AU7: Construction Cost | AV7: Subsidy | AW7: Servicing Cost | AX7: Land Value | AY7: Construction Cost | AZ7: Subsidy | BA7: Servicing Cost | BB7: Land Value | BC7: Construction Cost | BD7: Subsidy | BE7: Servicing Cost | BF7: Land Value | BG7: Construction Cost | BH7: Subsidy | BI7: Servicing Cost
B8: Actual Index Numbers | C8: =C9-1 -> 2012 | D8: 100.5 | E8: 100.5 | F8: 100.5 | G8: 102.5 | H8: 102.5 | I8: 102.5 | J8: 100 | K8: 100 | L8: 100 | P8: 100 | Q8: 100 | R8: 100 | U8: 3 | V8: =IFERROR(HLOOKUP(_xlfn.SINGLE(N1_LVE),$D$6:$R$67,$U8,FALSE),1) -> 100.5 | W8: =IFERROR(HLOOKUP(_xlfn.SINGLE(N1_CAVE),$D$6:$R$67,$U8,FALSE),1) -> 102.5 | X8: =IFERROR(HLOOKUP(_xlfn.SINGLE(N1_SE),$D$6:$R$67,$U8,FALSE),1) -> 102.5 | Y8: =Y9/(1+_xlfn.SINGLE(N1_CE)) -> 100 | Z8: =IFERROR(HLOOKUP(_xlfn.SINGLE(N2_LVE),$D$6:$R$67,$U8,FALSE),1) -> 100.5 | AA8: =IFERROR(HLOOKUP(_xlfn.SINGLE(N2_CAVE),$D$6:$R$67,$U8,FALSE),1) -> 102.5 | AB8: =IFERROR(HLOOKUP(_xlfn.SINGLE(N2_SE),$D$6:$R$67,$U8,FALSE),1) -> 102.5 | AC8: =AC9/(1+_xlfn.SINGLE(N2_CE)) -> 100 | AD8: =IFERROR(HLOOKUP(_xlfn.SINGLE(N3_LVE),$D$6:$R$67,$U8,FALSE),1) -> 100.5 | AE8: =IFERROR(HLOOKUP(_xlfn.SINGLE(N3_CAVE),$D$6:$R$67,$U8,FALSE),1) -> 102.5 | AF8: =IFERROR(HLOOKUP(_xlfn.SINGLE(N3_SE),$D$6:$R$67,$U8,FALSE),1) -> 102.5 | AG8: =AG9/(1+_xlfn.SINGLE(N3_CE)) -> 100 | AH8: =IFERROR(HLOOKUP(_xlfn.SINGLE(N4_LVE),$D$6:$R$67,$U8,FALSE),1) -> 100.5 | AI8: =IFERROR(HLOOKUP(_xlfn.SINGLE(N4_CAVE),$D$6:$R$67,$U8,FALSE),1) -> 102.5 | AJ8: =IFERROR(HLOOKUP(_xlfn.SINGLE(N4_SE),$D$6:$R$67,$U8,FALSE),1) -> 102.5 | AK8: =AK9/(1+_xlfn.SINGLE(N4_CE)) -> 100 | AL8: =IFERROR(HLOOKUP(_xlfn.SINGLE(N5_LVE),$D$6:$R$67,$U8,FALSE),1) -> 1 | AM8: =IFERROR(HLOOKUP(_xlfn.SINGLE(N5_CAVE),$D$6:$R$67,$U8,FALSE),1) -> 1 | AN8: =IFERROR(HLOOKUP(_xlfn.SINGLE(N5_SE),$D$6:$R$67,$U8,FALSE),1) -> 1 | AO8: =AO9/(1+_xlfn.SINGLE(N5_CE)) -> 100 | AP8: =IFERROR(HLOOKUP(_xlfn.SINGLE(N6_LVE),$D$6:$R$67,$U8,FALSE),1) -> 1 | AQ8: =IFERROR(HLOOKUP(_xlfn.SINGLE(N6_CAVE),$D$6:$R$67,$U8,FALSE),1) -> 1 | AR8: =IFERROR(HLOOKUP(_xlfn.SINGLE(N6_SE),$D$6:$R$67,$U8,FALSE),1) -> 1 | AS8: =AS9/(1+_xlfn.SINGLE(N6_CE)) -> 100 | AT8: =IFERROR(HLOOKUP(_xlfn.SINGLE(N7_LVE),$D$6:$R$67,$U8,FALSE),1) -> 1 | AU8: =IFERROR(HLOOKUP(_xlfn.SINGLE(N7_CAVE),$D$6:$R$67,$U8,FALSE),1) -> 1 | AV8: =IFERROR(HLOOKUP(_xlfn.SINGLE(N7_SE),$D$6:$R$67,$U8,FALSE),1) -> 1 | AW8: =AW9/(1+_xlfn.SINGLE(N7_CE)) -> 100 | AX8: =IFERROR(HLOOKUP(_xlfn.SINGLE(N8_LVE),$D$6:$R$67,$U8,FALSE),1) -> 1 | AY8: =IFERROR(HLOOKUP(_xlfn.SINGLE(N8_CAVE),$D$6:$R$67,$U8,FALSE),1) -> 1 | AZ8: =IFERROR(HLOOKUP(_xlfn.SINGLE(N8_SE),$D$6:$R$67,$U8,FALSE),1) -> 1 | BA8: =BA9/(1+_xlfn.SINGLE(N8_CE)) -> 100 | BB8: =IFERROR(HLOOKUP(_xlfn.SINGLE(N9_LVE),$D$6:$R$67,$U8,FALSE),1) -> 1 | BC8: =IFERROR(HLOOKUP(_xlfn.SINGLE(N9_CAVE),$D$6:$R$67,$U8,FALSE),1) -> 1 | BD8: =IFERROR(HLOOKUP(_xlfn.SINGLE(N9_SE),$D$6:$R$67,$U8,FALSE),1) -> 1 | BE8: =BE9/(1+_xlfn.SINGLE(N9_CE)) -> 100 | BF8: =IFERROR(HLOOKUP(_xlfn.SINGLE(N10_LVE),$D$6:$R$67,$U8,FALSE),1) -> 1 | BG8: =IFERROR(HLOOKUP(_xlfn.SINGLE(N10_CAVE),$D$6:$R$67,$U8,FALSE),1) -> 1 | BH8: =IFERROR(HLOOKUP(_xlfn.SINGLE(N10_SE),$D$6:$R$67,$U8,FALSE),1) -> 1 | BI8: =BI9/(1+_xlfn.SINGLE(N10_CE)) -> 100
C9: 2013 | D9: 102.5 | E9: 102.5 | F9: 102.5 | G9: 104.5 | H9: 104.5 | I9: 104.5 | J9: 100 | K9: 100 | L9: 100 | P9: 100 | Q9: 100 | R9: 100 | U9: 4 | V9: 102.5 | W9: 104.5 | X9: 104.5 | Y9: 100 | Z9: 102.5 | AA9: 104.5 | AB9: 104.5 | AC9: 100 | AD9: 102.5 | AE9: 104.5 | AF9: 104.5 | AG9: 100 | AH9: 102.5 | AI9: 104.5 | AJ9: 104.5 | AK9: 100 | AL9: 1 | AM9: 1 | AN9: 1 | AO9: 100 | AP9: 1 | AQ9: 1 | AR9: 1 | AS9: 100 | AT9: 1 | AU9: 1 | AV9: 1 | AW9: 100 | AX9: 1 | AY9: 1 | AZ9: 1 | BA9: 100 | BB9: 1 | BC9: 1 | BD9: 1 | BE9: 100 | BF9: 1 | BG9: 1 | BH9: 1 | BI9: 100
C10: 2014 | D10: 105.8 | E10: 105.8 | F10: 105.8 | G10: 107 | H10: 107 | I10: 107 | J10: 100 | K10: 100 | L10: 100 | P10: 100 | Q10: 100 | R10: 100 | U10: 5 | V10: 105.8 | W10: 107 | X10: 107 | Y10: 100 | Z10: 105.8 | AA10: 107 | AB10: 107 | AC10: 100 | AD10: 105.8 | AE10: 107 | AF10: 107 | AG10: 100 | AH10: 105.8 | AI10: 107 | AJ10: 107 | AK10: 100 | AL10: 1 | AM10: 1 | AN10: 1 | AO10: 100 | AP10: 1 | AQ10: 1 | AR10: 1 | AS10: 100 | AT10: 1 | AU10: 1 | AV10: 1 | AW10: 100 | AX10: 1 | AY10: 1 | AZ10: 1 | BA10: 100 | BB10: 1 | BC10: 1 | BD10: 1 | BE10: 100 | BF10: 1 | BG10: 1 | BH10: 1 | BI10: 100
C11: 2015 | D11: 107.4 | E11: 107.4 | F11: 107.4 | G11: 106.3 | H11: 106.3 | I11: 106.3 | J11: 100 | K11: 100 | L11: 100 | P11: 100 | Q11: 100 | R11: 100 | U11: 6 | V11: 107.4 | W11: 106.3 | X11: 106.3 | Y11: 100 | Z11: 107.4 | AA11: 106.3 | AB11: 106.3 | AC11: 100 | AD11: 107.4 | AE11: 106.3 | AF11: 106.3 | AG11: 100 | AH11: 107.4 | AI11: 106.3 | AJ11: 106.3 | AK11: 100 | AL11: 1 | AM11: 1 | AN11: 1 | AO11: 100 | AP11: 1 | AQ11: 1 | AR11: 1 | AS11: 100 | AT11: 1 | AU11: 1 | AV11: 1 | AW11: 100 | AX11: 1 | AY11: 1 | AZ11: 1 | BA11: 100 | BB11: 1 | BC11: 1 | BD11: 1 | BE11: 100 | BF11: 1 | BG11: 1 | BH11: 1 | BI11: 100
C12: 2016 | D12: 109 | E12: 109 | F12: 109 | G12: 104.7 | H12: 104.7 | I12: 104.7 | J12: 100 | K12: 100 | L12: 100 | P12: 100 | Q12: 100 | R12: 100 | U12: 7 | V12: 109 | W12: 104.7 | X12: 104.7 | Y12: 100 | Z12: 109 | AA12: 104.7 | AB12: 104.7 | AC12: 100 | AD12: 109 | AE12: 104.7 | AF12: 104.7 | AG12: 100 | AH12: 109 | AI12: 104.7 | AJ12: 104.7 | AK12: 100 | AL12: 1 | AM12: 1 | AN12: 1 | AO12: 100 | AP12: 1 | AQ12: 1 | AR12: 1 | AS12: 100 | AT12: 1 | AU12: 1 | AV12: 1 | AW12: 100 | AX12: 1 | AY12: 1 | AZ12: 1 | BA12: 100 | BB12: 1 | BC12: 1 | BD12: 1 | BE12: 100 | BF12: 1 | BG12: 1 | BH12: 1 | BI12: 100
C13: 2017 | D13: 111 | E13: 111 | F13: 111 | G13: 108.9 | H13: 108.9 | I13: 108.9 | J13: 100 | K13: 100 | L13: 100 | P13: 100 | Q13: 100 | R13: 100 | U13: 8 | V13: 111 | W13: 108.9 | X13: 108.9 | Y13: 100 | Z13: 111 | AA13: 108.9 | AB13: 108.9 | AC13: 100 | AD13: 111 | AE13: 108.9 | AF13: 108.9 | AG13: 100 | AH13: 111 | AI13: 108.9 | AJ13: 108.9 | AK13: 100 | AL13: 1 | AM13: 1 | AN13: 1 | AO13: 100 | AP13: 1 | AQ13: 1 | AR13: 1 | AS13: 100 | AT13: 1 | AU13: 1 | AV13: 1 | AW13: 100 | AX13: 1 | AY13: 1 | AZ13: 1 | BA13: 100 | BB13: 1 | BC13: 1 | BD13: 1 | BE13: 100 | BF13: 1 | BG13: 1 | BH13: 1 | BI13: 100
C14: 2018 | D14: 112.9 | E14: 112.9 | F14: 112.9 | G14: 112.5 | H14: 112.5 | I14: 112.5 | J14: 100 | K14: 100 | L14: 100 | P14: 100 | Q14: 100 | R14: 100 | U14: 9 | V14: 112.9 | W14: 112.5 | X14: 112.5 | Y14: 100 | Z14: 112.9 | AA14: 112.5 | AB14: 112.5 | AC14: 100 | AD14: 112.9 | AE14: 112.5 | AF14: 112.5 | AG14: 100 | AH14: 112.9 | AI14: 112.5 | AJ14: 112.5 | AK14: 100 | AL14: 1 | AM14: 1 | AN14: 1 | AO14: 100 | AP14: 1 | AQ14: 1 | AR14: 1 | AS14: 100 | AT14: 1 | AU14: 1 | AV14: 1 | AW14: 100 | AX14: 1 | AY14: 1 | AZ14: 1 | BA14: 100 | BB14: 1 | BC14: 1 | BD14: 1 | BE14: 100 | BF14: 1 | BG14: 1 | BH14: 1 | BI14: 100
C15: 2019 | D15: 114.8 | E15: 114.8 | F15: 114.8 | G15: 115.6 | H15: 115.6 | I15: 115.6 | J15: 100 | K15: 100 | L15: 100 | P15: 100 | Q15: 100 | R15: 100 | U15: 10 | V15: 114.8 | W15: 115.6 | X15: 115.6 | Y15: 100 | Z15: 114.8 | AA15: 115.6 | AB15: 115.6 | AC15: 100 | AD15: 114.8 | AE15: 115.6 | AF15: 115.6 | AG15: 100 | AH15: 114.8 | AI15: 115.6 | AJ15: 115.6 | AK15: 100 | AL15: 1 | AM15: 1 | AN15: 1 | AO15: 100 | AP15: 1 | AQ15: 1 | AR15: 1 | AS15: 100 | AT15: 1 | AU15: 1 | AV15: 1 | AW15: 100 | AX15: 1 | AY15: 1 | AZ15: 1 | BA15: 100 | BB15: 1 | BC15: 1 | BD15: 1 | BE15: 100 | BF15: 1 | BG15: 1 | BH15: 1 | BI15: 100
... 18 more rows

Sheet Model Criteria (hidden)
B2: Model Inputs
B4: Shared Model Inputs | F4: Networks included in model
B5: SHARED MODEL CRITERA | C5: LOOKUP | D5: INPUT | F5: Network | G5: LOOKUP | H5: Network Name | I5: In use? | J5: Calculate servicing cost?
B6: Adopted Discount Rate | C6: ADR | D6: 0 | F6: Network 1 | G6: N1_Name | H6: Water Supply | I6: Yes | J6: Yes
B7: Growth Projection Model Base Year | C7: MSY | D7: 2021 | F7: Network 2 | G7: N2_Name | H7: Sewerage | I7: Yes | J7: Yes
B8: Growth Projection Model End Year | C8: MEY | D8: 2036 | F8: Network 3 | G8: N3_Name | H8: Transport | I8: Yes | J8: Yes
B9: Modelling Period (years) | C9: MP | D9: =MEY-MSY -> 15 | F9: Network 4 | G9: N4_Name | H9: Parks and Community | I9: Yes | J9: Yes
B10: Adopted Revenue Approach | C10: RevApproach | D10: Alternative | F10: Network 5 | G10: N5_Name | H10: Network 5 | I10: No | J10: No
B11: Escalations | F11: Network 6 | G11: N6_Name | H11: Network 6 | I11: No | J11: No
B12: Charge Escalation | C12: Total_CE_MAC | D12: ='Escalation Calculator'!I7 -> 0.01253684455 | F12: Network 7 | G12: N7_Name | H12: Network 7 | I12: No | J12: No
B13: RESOLUTION CHARGE AREA | C13: LOOKUP | D13: NAME | F13: Network 8 | G13: N8_Name | H13: Network 8 | I13: No | J13: No
B14: Charge Area 1 | C14: PIP_CA1 | D14: Balance | F14: Network 9 | G14: N9_Name | H14: Network 9 | I14: No | J14: No
B15: Charge Area 2 | C15: PIP_CA2 | D15: Greater Airlie Beach | F15: Network 10 | G15: N10_Name | H15: Network 10 | I15: No | J15: No
... 17 more rows

Sheet Development Projections (hidden)
C2: Development Projections
C4: Input as total development by year | H4: Help
C5: CHARGE AREA | D5: DEVELOPMENT TYPE | E5: In use | F5: UNIT OF DEMAND | G5: CHARGE RATE | H5: =MSY -> 2021 | I5: =H5+1 -> 2022 | J5: 2023 | K5: 2024 | L5: 2025 | M5: 2026 | N5: 2027 | O5: 2028 | P5: 2029 | Q5: =P5+1 -> 2030 | R5: 2031 | S5: 2032 | T5: 2033 | U5: 2034 | V5: 2035 | W5: 2036 | X5: 2037 | Y5: 2038 | Z5: 2039 | AA5: 2040 | AB5: 2041 | AC5: 2042 | AD5: 2043 | AE5: 2044 | AF5: 2045 | AG5: 2046 | AH5: 2047 | AI5: 2048 | AJ5: 2049 | AK5: 2050 | AL5: 2051 | AM5: 2052 | AN5: 2053 | AO5: 2054 | AP5: 2055 | AQ5: 2056 | AR5: 2057 | AS5: 2058 | AT5: 2059 | AU5: 2060 | AV5: =AU5+1 -> 2061 | AW5: 2062 | AX5: 2063 | AY5: 2064 | AZ5: 2065 | BA5: 2066 | BB5: 2067 | BC5: 2068 | BD5: 2069 | BE5: 2070 | BF5: 2071
C6: =IF(PIP_CA1=0,"NOT IN USE",PIP_CA1) -> Balance | D6: Single | E6: Yes | F6: Dwellings | G6: 12997.481 | H6: 4438.678 | I6: 4501.79 | J6: 4564.902 | K6: 4628.014 | L6: 4691.126 | M6: 4754.238 | N6: 4811.838 | O6: 4869.438 | P6: 4927.038 | Q6: 4984.638 | R6: 5042.238 | S6: 5099.238 | T6: 5156.238 | U6: 5213.238 | V6: 5270.238 | W6: 5327.238
C7: Balance | D7: Multiple dwelling | E7: No | F7: Dwellings | G7: 12997.911 | H7: 0 | I7: 0 | J7: 0 | K7: 0 | L7: 0 | M7: 0 | N7: 0 | O7: 0 | P7: 0 | Q7: 0 | R7: 0 | S7: 0 | T7: 0 | U7: 0 | V7: 0 | W7: 0
C8: Balance | D8: Short-term accommodation - Multiple dwelling | E8: Yes | F8: Dwellings | G8: 6498.719 | H8: 420.94 | I8: 422.228 | J8: 423.516 | K8: 424.804 | L8: 426.092 | M8: 427.38 | N8: 429.18 | O8: 430.98 | P8: 432.78 | Q8: 434.58 | R8: 436.38 | S8: 438.78 | T8: 441.18 | U8: 443.58 | V8: 445.98 | W8: 448.38
C9: Balance | D9: Other | E9: Yes | F9: Dwellings | G9: 4641.936 | H9: 88.382 | I9: 88.382 | J9: 88.382 | K9: 88.382 | L9: 88.382 | M9: 88.382 | N9: 88.982 | O9: 89.582 | P9: 90.182 | Q9: 90.782 | R9: 91.382 | S9: 91.982 | T9: 92.582 | U9: 93.182 | V9: 93.782 | W9: 94.382
C10: Balance | D10: Retail | E10: Yes | F10: GFA | G10: 83.549 | H10: 25329.92 | I10: 25630.528 | J10: 25931.136 | K10: 26231.744 | L10: 26532.352 | M10: 26832.96 | N10: 27157.504 | O10: 27482.048 | P10: 27806.592 | Q10: 28131.136 | R10: 28455.68 | S10: 28702.784 | T10: 28949.888 | U10: 29196.992 | V10: 29444.096 | W10: 29691.2
C11: Balance | D11: Commercial | E11: Yes | F11: GFA | G11: 64.9945 | H11: 34540.8 | I11: 34645.8 | J11: 34750.8 | K11: 34855.8 | L11: 34960.8 | M11: 35065.8 | N11: 35489.92 | O11: 35914.04 | P11: 36338.16 | Q11: 36762.28 | R11: 37186.4 | S11: 37509.32 | T11: 37832.24 | U11: 38155.16 | V11: 38478.08 | W11: 38801
C12: Balance | D12: Community | E12: Yes | F12: GFA | G12: 64.9945 | H12: 45334.8 | I12: 45872.82 | J12: 46410.84 | K12: 46948.86 | L12: 47486.88 | M12: 48024.9 | N12: 48605.76 | O12: 49186.62 | P12: 49767.48 | Q12: 50348.34 | R12: 50929.2 | S12: 51371.46 | T12: 51813.72 | U12: 52255.98 | V12: 52698.24 | W12: 53140.5
C13: Balance | D13: Industry | E13: Yes | F13: GFA | G13: 23.22 | H13: 233150.4 | I13: 235917.36 | J13: 238684.32 | K13: 241451.28 | L13: 244218.24 | M13: 246985.2 | N13: 249972.48 | O13: 252959.76 | P13: 255947.04 | Q13: 258934.32 | R13: 261921.6 | S13: 264196.08 | T13: 266470.56 | U13: 268745.04 | V13: 271019.52 | W13: 273294
C14: Balance
C15: Balance
... 18 more rows

Sheet Notes page (hidden)
B2: Notes
B4: FINANCIAL INPUTS | C4: METHODOLOGY (IF APPLICABLE) | D4: SOURCE
B5: Discount rate | D5: -
B6: Charge rates | D6: -
D7: -
D8: -
D9: -
D10: -
D11: -
D12: -
B14: EXISTING INFRASTRUCTURE | C14: METHODOLOGY (IF APPLICABLE) | D14: SOURCE
B15: Water Supply Network | D15: -
B16: Sewer Network | D16: -
B17: Stormwater Network | D17: -
B18: Transport Network | D18: -
B19: Parks and Open Spaces | D19: -
B21: FUTURE INFRASTRUCTURE | C21: METHODOLOGY (IF APPLICABLE) | D21: NUMBER OF ITEMS
B22: Water Supply Network | D22: -
B23: Sewer Network | D23: -
B24: Stormwater Network | D24: -
B25: Transport Network | D25: -
B26: Parks and Open Spaces | D26: -
B28: PROJECTIONS | C28: METHODOLOGY (IF APPLICABLE) | D28: SOURCE
B29: Population Projections | D29: -
B30: Employmnent Projections | D30: -
B32: MISCELANEOUS INPUTS | C32: METHODOLOGY (IF APPLICABLE) | D32: SOURCE
B33: Charge areas

Sheet Water Supply - Demand (hidden)
E1: =N1_Name -> Water Supply
B2: ="Demand - "&N1_Name -> Demand - Water Supply
B4: ="Annual Demand - Total "&N1_DU -> Annual Demand - Total EP
B5: COST MODELLING AREA | E5: =N1_MSY -> 2021 | F5: =E5+1 -> 2022 | G5: =F5+1 -> 2023 | H5: =G5+1 -> 2024 | I5: =H5+1 -> 2025 | J5: =I5+1 -> 2026 | K5: =J5+1 -> 2027 | L5: =K5+1 -> 2028 | M5: =L5+1 -> 2029 | N5: =M5+1 -> 2030 | O5: =N5+1 -> 2031 | P5: =O5+1 -> 2032 | Q5: =P5+1 -> 2033 | R5: =Q5+1 -> 2034 | S5: =R5+1 -> 2035 | T5: =S5+1 -> 2036 | U5: =T5+1 -> 2037 | V5: =U5+1 -> 2038 | W5: =V5+1 -> 2039 | X5: =W5+1 -> 2040 | Y5: =X5+1 -> 2041 | Z5: =Y5+1 -> 2042 | AA5: =Z5+1 -> 2043 | AB5: =AA5+1 -> 2044 | AC5: =AB5+1 -> 2045 | AD5: =AC5+1 -> 2046 | AE5: =AD5+1 -> 2047 | AF5: =AE5+1 -> 2048 | AG5: =AF5+1 -> 2049 | AH5: =AG5+1 -> 2050 | AI5: =AH5+1 -> 2051 | AJ5: =AI5+1 -> 2052 | AK5: =AJ5+1 -> 2053 | AL5: =AK5+1 -> 2054 | AM5: =AL5+1 -> 2055 | AN5: =AM5+1 -> 2056 | AO5: =AN5+1 -> 2057 | AP5: =AO5+1 -> 2058 | AQ5: =AP5+1 -> 2059 | AR5: =AQ5+1 -> 2060 | AS5: =AR5+1 -> 2061 | AT5: =AS5+1 -> 2062 | AU5: =AT5+1 -> 2063 | AV5: =AU5+1 -> 2064 | AW5: =AV5+1 -> 2065 | AX5: =AW5+1 -> 2066 | AY5: =AX5+1 -> 2067 | AZ5: =AY5+1 -> 2068 | BA5: =AZ5+1 -> 2069 | BB5: =BA5+1 -> 2070 | BC5: =BB5+1 -> 2071 | BD5: 2072 | BE5: 2073 | BF5: 2074 | BG5: 2075 | BH5: 2076
B6: =IF(N1_CA1=0,"NOT IN USE",N1_CA1) -> Balance | E6: 0 | F6: 0 | G6: 0 | H6: 0 | I6: 0 | J6: 0 | K6: 0 | L6: 0 | M6: 0 | N6: 0 | O6: 0 | P6: 0 | Q6: 0 | R6: 0 | S6: 0 | T6: 0
B7: =IF(N1_CA2=0,"NOT IN USE",N1_CA2) -> Greater Airlie Beach | E7: 13606.96968 | F7: 13967.82401 | G7: 14338.24813 | H7: 14718.49582 | I7: 15108.82762 | J7: 15411.24132 | K7: 15817.77612 | L7: 16235.03494 | M7: 16663.30067 | N7: 17102.86368 | O7: 17443.9153 | P7: 17843.6517 | Q7: 18252.54826 | R7: 18670.81491 | S7: 19098.66635 | T7: 19442.59729
B8: =IF(N1_CA3=0,"NOT IN USE",N1_CA3) -> Bowen | E8: 12060.6894 | F8: 12121.07563 | G8: 12181.76421 | H8: 12242.75665 | I8: 12304.05446 | J8: 12362.62056 | K8: 12453.29575 | L8: 12544.636 | M8: 12636.64621 | N8: 12729.33127 | O8: 12815.9965 | P8: 12906.62252 | Q8: 12997.88939 | R8: 13089.80163 | S8: 13182.36381 | T8: 13269.1266
B9: =IF(N1_CA4=0,"NOT IN USE",N1_CA4) -> Proserpine | E9: 5208.65678 | F9: 5237.101488 | G9: 5265.701534 | H9: 5294.457766 | I9: 5323.371037 | J9: 5350.88032 | K9: 5401.622468 | L9: 5452.845801 | M9: 5504.554883 | N9: 5556.75432 | O9: 5604.59106 | P9: 5655.045208 | Q9: 5705.953559 | R9: 5757.320201 | S9: 5809.149261 | T9: 5856.8618
B10: =IF(N1_CA5=0,"NOT IN USE",N1_CA5) -> Collinsville | E10: 1959.1266 | F10: 1950.7266 | G10: 1942.362616 | H10: 1934.034494 | I10: 1925.742079 | J10: 1917.1266 | K10: 1911.378068 | L10: 1905.646773 | M10: 1899.932663 | N10: 1894.235688 | O10: 1888.38394 | P10: 1882.486876 | Q10: 1876.608227 | R10: 1870.747937 | S10: 1864.905947 | T10: 1858.89862
B11: =IF(N1_CA6=0,"NOT IN USE",N1_CA6) -> NOT IN USE
B12: =IF(N1_CA7=0,"NOT IN USE",N1_CA7) -> NOT IN USE
B13: =IF(N1_CA8=0,"NOT IN USE",N1_CA8) -> NOT IN USE
B14: =IF(N1_CA9=0,"NOT IN USE",N1_CA9) -> NOT IN USE
B15: =IF(N1_CA10=0,"NOT IN USE",N1_CA10) -> NOT IN USE
... 16 more rows

Sheet Water Supply - Existing (hidden)
E1: =N1_Name -> Water Supply
B2: ="Existing Infrastructure - "&N1_Name -> Existing Infrastructure - Water Supply | G2: Invalid data will be circled
B4: ASSET INFORMATION | H4: ASSET SPECIFICATION | L4: ASSET VALUATION | O4: ITEM CAPACITY SPECIFICATION | R4: FINANCIAL CALCULATIONS
B5: Item ID | C5: Map Sheet Number | D5: Infrastructure Type | E5: Project Name | F5: Description | G5: Cost modelling area | H5: Length (m) | I5: Land Area (m²) | J5: Asset Size (value) | K5: Asset Size (measurement) | L5: Year of Valuation | M5: Total Land Value | N5: Construction Value | O5: Spare Capacity at Model Start | P5: Spare Capacity at Model End | R5: Land Value - Model Start | S5: Construction Value - Model Start | T5: Total Asset Value - Model Start | U5: PV Total Asset Value - Average | V5: Confirm valid Cost Modelling Area
B6: WM_B_1014 | D6: Water Main | F6: Trunk water main | G6: Bowen | H6: 25 | J6: 5819.260748 | K6: 200 | L6: 2020 | N6: 12160.59412 | R6: =IF(B6="","",M6*(1+((VLOOKUP(N1_MSY,'Escalation Calculator'!$C$8:$AO$67,20,FALSE)-VLOOKUP(L6,'Escalation Calculator'!$C$8:$AO$67,20,FALSE))/VLOOKUP(N1_MSY,'Escalation Calculator'!$C$8:$AO$67,20,FALSE)))) -> 0 | S6: =IF(B6="","",N6*(1+((VLOOKUP(N1_MSY,'Escalation Calculator'!$C$8:$AO$67,21,FALSE)-VLOOKUP(L6,'Escalation Calculator'!$C$8:$AO$67,21,FALSE))/VLOOKUP(N1_MSY,'Escalation Calculator'!$C$8:$AO$67,21,FALSE)))) -> 12296.75926 | T6: =IF(B6="","",R6+S6) -> 12296.75926 | U6: =IF(B6="","",T6*(1-P6)) -> 12296.75926 | V6: =IF(B6="","",IF(COUNTIF(N1_ChargeArea,G6)=1,"Valid","Invalid")) -> Valid
B7: WM_B_1015 | D7: Water Main | F7: Trunk water main | G7: Bowen | H7: 195 | J7: 45390.23383 | K7: 200 | L7: 2020 | N7: 94852.63417 | R7: =IF(B7="","",M7*(1+((VLOOKUP(N1_MSY,'Escalation Calculator'!$C$8:$AO$67,20,FALSE)-VLOOKUP(L7,'Escalation Calculator'!$C$8:$AO$67,20,FALSE))/VLOOKUP(N1_MSY,'Escalation Calculator'!$C$8:$AO$67,20,FALSE)))) -> 0 | S7: =IF(B7="","",N7*(1+((VLOOKUP(N1_MSY,'Escalation Calculator'!$C$8:$AO$67,21,FALSE)-VLOOKUP(L7,'Escalation Calculator'!$C$8:$AO$67,21,FALSE))/VLOOKUP(N1_MSY,'Escalation Calculator'!$C$8:$AO$67,21,FALSE)))) -> 95914.72224 | T7: =IF(B7="","",R7+S7) -> 95914.72224 | U7: =IF(B7="","",T7*(1-P7)) -> 95914.72224 | V7: =IF(B7="","",IF(COUNTIF(N1_ChargeArea,G7)=1,"Valid","Invalid")) -> Valid
B8: WM_B_1016 | D8: Water Main | F8: Trunk water main | G8: Bowen | H8: 25 | J8: 5819.260748 | K8: 200 | L8: 2020 | N8: 12160.59412 | R8: =IF(B8="","",M8*(1+((VLOOKUP(N1_MSY,'Escalation Calculator'!$C$8:$AO$67,20,FALSE)-VLOOKUP(L8,'Escalation Calculator'!$C$8:$AO$67,20,FALSE))/VLOOKUP(N1_MSY,'Escalation Calculator'!$C$8:$AO$67,20,FALSE)))) -> 0 | S8: =IF(B8="","",N8*(1+((VLOOKUP(N1_MSY,'Escalation Calculator'!$C$8:$AO$67,21,FALSE)-VLOOKUP(L8,'Escalation Calculator'!$C$8:$AO$67,21,FALSE))/VLOOKUP(N1_MSY,'Escalation Calculator'!$C$8:$AO$67,21,FALSE)))) -> 12296.75926 | T8: 12296.75926 | U8: 12296.75926 | V8: =IF(B8="","",IF(COUNTIF(N1_ChargeArea,G8)=1,"Valid","Invalid")) -> Valid
B9: WM_B_1031 | D9: Water Main | F9: Trunk water main | G9: Bowen | H9: 222 | J9: 41293.85663 | K9: 200 | L9: 2020 | N9: 74036.04318 | R9: =IF(B9="","",M9*(1+((VLOOKUP(N1_MSY,'Escalation Calculator'!$C$8:$AO$67,20,FALSE)-VLOOKUP(L9,'Escalation Calculator'!$C$8:$AO$67,20,FALSE))/VLOOKUP(N1_MSY,'Escalation Calculator'!$C$8:$AO$67,20,FALSE)))) -> 0 | S9: =IF(B9="","",N9*(1+((VLOOKUP(N1_MSY,'Escalation Calculator'!$C$8:$AO$67,21,FALSE)-VLOOKUP(L9,'Escalation Calculator'!$C$8:$AO$67,21,FALSE))/VLOOKUP(N1_MSY,'Escalation Calculator'!$C$8:$AO$67,21,FALSE)))) -> 74865.0428 | T9: 74865.0428 | U9: 74865.0428 | V9: =IF(B9="","",IF(COUNTIF(N1_ChargeArea,G9)=1,"Valid","Invalid")) -> Valid
B10: WM_B_1033 | D10: Water Main | F10: Trunk water main | G10: Bowen | H10: 166 | J10: 30877.38829 | K10: 200 | L10: 2020 | N10: 55360.28454 | R10: =IF(B10="","",M10*(1+((VLOOKUP(N1_MSY,'Escalation Calculator'!$C$8:$AO$67,20,FALSE)-VLOOKUP(L10,'Escalation Calculator'!$C$8:$AO$67,20,FALSE))/VLOOKUP(N1_MSY,'Escalation Calculator'!$C$8:$AO$67,20,FALSE)))) -> 0 | S10: =IF(B10="","",N10*(1+((VLOOKUP(N1_MSY,'Escalation Calculator'!$C$8:$AO$67,21,FALSE)-VLOOKUP(L10,'Escalation Calculator'!$C$8:$AO$67,21,FALSE))/VLOOKUP(N1_MSY,'Escalation Calculator'!$C$8:$AO$67,21,FALSE)))) -> 55980.16714 | T10: 55980.16714 | U10: 55980.16714 | V10: =IF(B10="","",IF(COUNTIF(N1_ChargeArea,G10)=1,"Valid","Invalid")) -> Valid
B11: WM_B_1034 | D11: Water Main | F11: Trunk water main | G11: Bowen | H11: 630 | J11: 117185.2688 | K11: 200 | L11: 2020 | N11: 210102.2847 | R11: =IF(B11="","",M11*(1+((VLOOKUP(N1_MSY,'Escalation Calculator'!$C$8:$AO$67,20,FALSE)-VLOOKUP(L11,'Escalation Calculator'!$C$8:$AO$67,20,FALSE))/VLOOKUP(N1_MSY,'Escalation Calculator'!$C$8:$AO$67,20,FALSE)))) -> 0 | S11: =IF(B11="","",N11*(1+((VLOOKUP(N1_MSY,'Escalation Calculator'!$C$8:$AO$67,21,FALSE)-VLOOKUP(L11,'Escalation Calculator'!$C$8:$AO$67,21,FALSE))/VLOOKUP(N1_MSY,'Escalation Calculator'!$C$8:$AO$67,21,FALSE)))) -> 212454.8512 | T11: 212454.8512 | U11: 212454.8512 | V11: =IF(B11="","",IF(COUNTIF(N1_ChargeArea,G11)=1,"Valid","Invalid")) -> Valid
B12: WM_B_1037 | D12: Water Main | F12: Trunk water main | G12: Bowen | H12: 100 | J12: 18600.83632 | K12: 200 | L12: 2020 | N12: 33349.569 | R12: =IF(B12="","",M12*(1+((VLOOKUP(N1_MSY,'Escalation Calculator'!$C$8:$AO$67,20,FALSE)-VLOOKUP(L12,'Escalation Calculator'!$C$8:$AO$67,20,FALSE))/VLOOKUP(N1_MSY,'Escalation Calculator'!$C$8:$AO$67,20,FALSE)))) -> 0 | S12: =IF(B12="","",N12*(1+((VLOOKUP(N1_MSY,'Escalation Calculator'!$C$8:$AO$67,21,FALSE)-VLOOKUP(L12,'Escalation Calculator'!$C$8:$AO$67,21,FALSE))/VLOOKUP(N1_MSY,'Escalation Calculator'!$C$8:$AO$67,21,FALSE)))) -> 33722.99225 | T12: 33722.99225 | U12: 33722.99225 | V12: =IF(B12="","",IF(COUNTIF(N1_ChargeArea,G12)=1,"Valid","Invalid")) -> Valid
B13: WM_B_1038 | D13: Water Main | F13: Trunk water main | G13: Bowen | H13: 270 | J13: 50222.25807 | K13: 200 | L13: 2020 | N13: 90043.8363 | R13: =IF(B13="","",M13*(1+((VLOOKUP(N1_MSY,'Escalation Calculator'!$C$8:$AO$67,20,FALSE)-VLOOKUP(L13,'Escalation Calculator'!$C$8:$AO$67,20,FALSE))/VLOOKUP(N1_MSY,'Escalation Calculator'!$C$8:$AO$67,20,FALSE)))) -> 0 | S13: =IF(B13="","",N13*(1+((VLOOKUP(N1_MSY,'Escalation Calculator'!$C$8:$AO$67,21,FALSE)-VLOOKUP(L13,'Escalation Calculator'!$C$8:$AO$67,21,FALSE))/VLOOKUP(N1_MSY,'Escalation Calculator'!$C$8:$AO$67,21,FALSE)))) -> 91052.07908 | T13: 91052.07908 | U13: 91052.07908 | V13: =IF(B13="","",IF(COUNTIF(N1_ChargeArea,G13)=1,"Valid","Invalid")) -> Valid
B14: WM_B_1039 | D14: Water Main | F14: Trunk water main | G14: Bowen | H14: 307 | J14: 57104.5675 | K14: 200 | L14: 2020 | N14: 102383.1768 | R14: =IF(B14="","",M14*(1+((VLOOKUP(N1_MSY,'Escalation Calculator'!$C$8:$AO$67,20,FALSE)-VLOOKUP(L14,'Escalation Calculator'!$C$8:$AO$67,20,FALSE))/VLOOKUP(N1_MSY,'Escalation Calculator'!$C$8:$AO$67,20,FALSE)))) -> 0 | S14: =IF(B14="","",N14*(1+((VLOOKUP(N1_MSY,'Escalation Calculator'!$C$8:$AO$67,21,FALSE)-VLOOKUP(L14,'Escalation Calculator'!$C$8:$AO$67,21,FALSE))/VLOOKUP(N1_MSY,'Escalation Calculator'!$C$8:$AO$67,21,FALSE)))) -> 103529.5862 | T14: 103529.5862 | U14: 103529.5862 | V14: =IF(B14="","",IF(COUNTIF(N1_ChargeArea,G14)=1,"Valid","Invalid")) -> Valid
B15: WM_B_1040 | D15: Water Main | F15: Trunk water main | G15: Bowen | H15: 84 | J15: 15624.70251 | K15: 200 | L15: 2020 | N15: 28013.63796 | R15: =IF(B15="","",M15*(1+((VLOOKUP(N1_MSY,'Escalation Calculator'!$C$8:$AO$67,20,FALSE)-VLOOKUP(L15,'Escalation Calculator'!$C$8:$AO$67,20,FALSE))/VLOOKUP(N1_MSY,'Escalation Calculator'!$C$8:$AO$67,20,FALSE)))) -> 0 | S15: =IF(B15="","",N15*(1+((VLOOKUP(N1_MSY,'Escalation Calculator'!$C$8:$AO$67,21,FALSE)-VLOOKUP(L15,'Escalation Calculator'!$C$8:$AO$67,21,FALSE))/VLOOKUP(N1_MSY,'Escalation Calculator'!$C$8:$AO$67,21,FALSE)))) -> 28327.31349 | T15: 28327.31349 | U15: 28327.31349 | V15: =IF(B15="","",IF(COUNTIF(N1_ChargeArea,G15)=1,"Valid","Invalid")) -> Valid
... 18 more rows

Sheet Water Supply - Future (hidden)
E1: =N1_Name -> Water Supply
B2: ="Future Infrastructure - "&N1_Name -> Future Infrastructure - Water Supply | H2: Invalid data will be circled | Y2: Note: The model has been configured to not adopt a DCF approach. As a result, all values in the below rows will match the base valuation added in preceding columns.
B4: ASSET DESCRIPTION | H4: DELIVERY | I4: TIMING | M4: VALUATIONS | V4: ITEM CAPACITY SPECIFICATION | Y4: VALUES AT MODEL START | AD4: ESTIMATED VALUES AT ACQUISITION/CONSTRUCTION | AI4: PRESENT VALUE | AN4: AVERAGE/MARGINAL COSTS
B5: LGIP ID | C5: Segment ID | D5: Infrastructure Type | E5: Project Name | F5: Description | G5: Cost modelling area | H5: How delivered | I5: Acquisition Year | J5: Construction Start Year | K5: Construction End Year | L5: Year Subsidy Received | M5: Year of Valuation | N5: Cost type | O5: Land - Total cost | P5: Works - Direct cost | Q5: Works - On Cost (%) | R5: Works - Contingencies (%) | S5: Works - Total cost | T5: Total cost | U5: Subsidy | V5: Spare Capacity at Model Start | W5: Spare Capacity at Model End | Y5: Land Value - Model Start | Z5: Construction Value - Model Start | AA5: Total Asset Value - Model Start | AB5: Subsidy Value - Model Start | AC5: Total Asset Value (LG expense) - Model Start | AD5: Land Value - At Acquisition | AE5: Construction Value - At Construction | AF5: Total Asset Value - At Acquisition | AG5: Subsidy Value - At Acquisition | AH5: Total Asset Value (LG expense) - Subsidy | AI5: Land Value - Present Value | AJ5: Construction Value - Present Value | AK5: Total Asset Value - Present Value | AL5: Subsidy Value - Present Value | AM5: Total Asset Value (LG expense) - PV | AN5: Average Establishment Cost - PV | AO5: Marginal Establishment Cost - PV | AP5: Confirm valid Cost Modelling Area
B6: W1-LW | C6: W1 | D6: Water reservoir | E6: Cannonvale Water Reservoir | F6: Two new 12ML (operational storage volume) Reservoir including two new DN500 Mains 790m long each from new Reservoir to existing trunk Main at Shute Harbour Road and 64mx100m Land (6,515m²) on 1SP313409 Cannonvale. Includes network reconfiguration of Mt Julian, Island Drive, Cannonvale and Coyne Road Reservoirs. | G6: Greater Airlie Beach | H6: Infrastructure provider | I6: 2020 | J6: 2022 | K6: 2024 | L6: 2022 | M6: 2021 | N6: Detailed estimate | O6: 0 | P6: 992450 | Q6: 0 | R6: 99245 | S6: =IF(B6="","",SUM(P6,Q6,R6)) -> 1091695 | T6: =IF(B6="","",SUM(O6,S6)) -> 1091695 | U6: 417054 | Y6: =IFERROR(O6*(1+((VLOOKUP(N1_MSY,'Escalation Calculator'!$C$8:$AO$67,20,FALSE)-VLOOKUP(M6,'Escalation Calculator'!$C$8:$AO$67,20,FALSE))/VLOOKUP(M6,'Escalation Calculator'!$C$8:$AO$67,20,FALSE))),0) -> 0 | Z6: =IFERROR(S6*(1+((VLOOKUP(N1_MSY,'Escalation Calculator'!$C$8:$AO$67,21,FALSE)-VLOOKUP(M6,'Escalation Calculator'!$C$8:$AO$67,21,FALSE))/VLOOKUP(M6,'Escalation Calculator'!$C$8:$AO$67,21,FALSE))),0) -> 1091695 | AA6: =SUM(Y6:Z6) -> 1091695 | AB6: =IFERROR(U6*(1+((VLOOKUP(N1_MSY,'Escalation Calculator'!$C$8:$AO$67,22,FALSE)-VLOOKUP(M6,'Escalation Calculator'!$C$8:$AO$67,22,FALSE))/VLOOKUP(M6,'Escalation Calculator'!$C$8:$AO$67,22,FALSE))),0) -> 417054 | AC6: =IFERROR(AA6-AB6,"") -> 674641 | AD6: =IFERROR((Y6*(1+(VLOOKUP(I6,'Escalation Calculator'!$C$8:$AO$67,20,FALSE)-VLOOKUP(N1_MSY,'Escalation Calculator'!$C$8:$AO$67,20,FALSE))/VLOOKUP(N1_MSY,'Escalation Calculator'!$C$8:$AO$67,20,FALSE))),0) -> 0 | AE6: =SUM('N1 - Construction'!I5:VJ5) -> 1120921.961 | AF6: =SUM(AD6:AE6) -> 1120921.961 | AG6: =IFERROR((AB6*(1+(VLOOKUP(L6,'Escalation Calculator'!$C$8:$AO$67,22,FALSE)-VLOOKUP(N1_MSY,'Escalation Calculator'!$C$8:$AO$67,22,FALSE))/VLOOKUP(N1_MSY,'Escalation Calculator'!$C$8:$AO$67,22,FALSE))),0) -> 422587.5945 | AH6: =IFERROR(AF6-AG6,"") -> 698334.3667 | AI6: =IFERROR(AD6*((1+N1_ADR)^(N1_MSY-I6)),0) -> 0 | AJ6: ='N1 - Construction'!H5 -> 1120921.961 | AK6: =SUM(AI6:AJ6) -> 1120921.961 | AL6: =IFERROR(AG6*((1+N1_ADR)^(N1_MSY*1-L6*1)),0) -> 422587.5945 | AM6: =IFERROR(AK6-AL6,"") -> 698334.3667 | AN6: =AM6*(1-W6) -> 698334.3667 | AO6: =AM6*(1-W6+V6) -> 698334.3667 | AP6: =IF(B6="","",IF(COUNTIF(N1_ChargeArea,G6)=1,"Valid","Invalid")) -> Valid
B7: W2-D | C7: W2 | D7: Trunk water main | E7: Jubilee Pocket Road Trunk water main | F7: 1270m long DN300 main augmentation in Jubilee Pocket Rd, Jubilee Pocket. | G7: Greater Airlie Beach | H7: Infrastructure provider | J7: 2022 | K7: 2022 | M7: 2021 | N7: Detailed estimate | Q7: 79205 | S7: =IF(B7="","",SUM(P7,Q7,R7)) -> 79205 | T7: =IF(B7="","",SUM(O7,S7)) -> 79205 | Y7: =IFERROR(O7*(1+((VLOOKUP(N1_MSY,'Escalation Calculator'!$C$8:$AO$67,20,FALSE)-VLOOKUP(M7,'Escalation Calculator'!$C$8:$AO$67,20,FALSE))/VLOOKUP(M7,'Escalation Calculator'!$C$8:$AO$67,20,FALSE))),0) -> 0 | Z7: =IFERROR(S7*(1+((VLOOKUP(N1_MSY,'Escalation Calculator'!$C$8:$AO$67,21,FALSE)-VLOOKUP(M7,'Escalation Calculator'!$C$8:$AO$67,21,FALSE))/VLOOKUP(M7,'Escalation Calculator'!$C$8:$AO$67,21,FALSE))),0) -> 79205 | AA7: =SUM(Y7:Z7) -> 79205 | AB7: =IFERROR(U7*(1+((VLOOKUP(N1_MSY,'Escalation Calculator'!$C$8:$AO$67,22,FALSE)-VLOOKUP(M7,'Escalation Calculator'!$C$8:$AO$67,22,FALSE))/VLOOKUP(M7,'Escalation Calculator'!$C$8:$AO$67,22,FALSE))),0) -> 0 | AC7: =IFERROR(AA7-AB7,"") -> 79205 | AD7: =IFERROR((Y7*(1+(VLOOKUP(I7,'Escalation Calculator'!$C$8:$AO$67,20,FALSE)-VLOOKUP(N1_MSY,'Escalation Calculator'!$C$8:$AO$67,20,FALSE))/VLOOKUP(N1_MSY,'Escalation Calculator'!$C$8:$AO$67,20,FALSE))),0) -> 0 | AE7: =SUM('N1 - Construction'!I6:VJ6) -> 80255.91512 | AF7: =SUM(AD7:AE7) -> 80255.91512 | AG7: =IFERROR((AB7*(1+(VLOOKUP(L7,'Escalation Calculator'!$C$8:$AO$67,22,FALSE)-VLOOKUP(N1_MSY,'Escalation Calculator'!$C$8:$AO$67,22,FALSE))/VLOOKUP(N1_MSY,'Escalation Calculator'!$C$8:$AO$67,22,FALSE))),0) -> 0 | AH7: =IFERROR(AF7-AG7,"") -> 80255.91512 | AI7: =IFERROR(AD7*((1+N1_ADR)^(N1_MSY-I7)),0) -> 0 | AJ7: ='N1 - Construction'!H6 -> 80255.91512 | AK7: =SUM(AI7:AJ7) -> 80255.91512 | AL7: =IFERROR(AG7*((1+N1_ADR)^(N1_MSY*1-L7*1)),0) -> 0 | AM7: =IFERROR(AK7-AL7,"") -> 80255.91512 | AN7: =AM7*(1-W7) -> 80255.91512 | AO7: =AM7*(1-W7+V7) -> 80255.91512 | AP7: =IF(B7="","",IF(COUNTIF(N1_ChargeArea,G7)=1,"Valid","Invalid")) -> Valid
B8: W2-LW | C8: W2 | D8: Trunk water main | E8: Jubilee Pocket Road Trunk water main | F8: 1270m long DN300 main augmentation in Jubilee Pocket Rd, Jubilee Pocket. | G8: Greater Airlie Beach | H8: Infrastructure provider | J8: 2022 | K8: 2024 | M8: 2021 | N8: Detailed estimate | O8: 0 | P8: 792050 | Q8: 0 | R8: 79205 | S8: =IF(B8="","",SUM(P8,Q8,R8)) -> 871255 | T8: 871255 | Y8: =IFERROR(O8*(1+((VLOOKUP(N1_MSY,'Escalation Calculator'!$C$8:$AO$67,20,FALSE)-VLOOKUP(M8,'Escalation Calculator'!$C$8:$AO$67,20,FALSE))/VLOOKUP(M8,'Escalation Calculator'!$C$8:$AO$67,20,FALSE))),0) -> 0 | Z8: =IFERROR(S8*(1+((VLOOKUP(N1_MSY,'Escalation Calculator'!$C$8:$AO$67,21,FALSE)-VLOOKUP(M8,'Escalation Calculator'!$C$8:$AO$67,21,FALSE))/VLOOKUP(M8,'Escalation Calculator'!$C$8:$AO$67,21,FALSE))),0) -> 871255 | AA8: 871255 | AB8: =IFERROR(U8*(1+((VLOOKUP(N1_MSY,'Escalation Calculator'!$C$8:$AO$67,22,FALSE)-VLOOKUP(M8,'Escalation Calculator'!$C$8:$AO$67,22,FALSE))/VLOOKUP(M8,'Escalation Calculator'!$C$8:$AO$67,22,FALSE))),0) -> 0 | AC8: 871255 | AD8: =IFERROR((Y8*(1+(VLOOKUP(I8,'Escalation Calculator'!$C$8:$AO$67,20,FALSE)-VLOOKUP(N1_MSY,'Escalation Calculator'!$C$8:$AO$67,20,FALSE))/VLOOKUP(N1_MSY,'Escalation Calculator'!$C$8:$AO$67,20,FALSE))),0) -> 0 | AE8: =SUM('N1 - Construction'!I7:VJ7) -> 894580.3208 | AF8: 894580.3208 | AG8: =IFERROR((AB8*(1+(VLOOKUP(L8,'Escalation Calculator'!$C$8:$AO$67,22,FALSE)-VLOOKUP(N1_MSY,'Escalation Calculator'!$C$8:$AO$67,22,FALSE))/VLOOKUP(N1_MSY,'Escalation Calculator'!$C$8:$AO$67,22,FALSE))),0) -> 0 | AH8: 894580.3208 | AI8: 0 | AJ8: ='N1 - Construction'!H7 -> 894580.3208 | AK8: 894580.3208 | AL8: 0 | AM8: 894580.3208 | AN8: 894580.3208 | AO8: 894580.3208 | AP8: =IF(B8="","",IF(COUNTIF(N1_ChargeArea,G8)=1,"Valid","Invalid")) -> Valid
B9: W3-D | C9: W3 | D9: Trunk water main | E9: Shute Harbour Road to Kingfisher Terrace trunk water main | F9: New 648m DN300 pipe from Shute Harbour Road to Kingfisher Terrace trunk watermain. Acquire a 289m long, 7m wide easement approximately 2,018m2 through 4RP726949. | G9: Greater Airlie Beach | H9: Infrastructure provider | J9: 2022 | K9: 2022 | M9: 2021 | N9: Detailed estimate | Q9: 40361.69231 | S9: =IF(B9="","",SUM(P9,Q9,R9)) -> 40361.69231 | T9: 40361.69231 | Y9: =IFERROR(O9*(1+((VLOOKUP(N1_MSY,'Escalation Calculator'!$C$8:$AO$67,20,FALSE)-VLOOKUP(M9,'Escalation Calculator'!$C$8:$AO$67,20,FALSE))/VLOOKUP(M9,'Escalation Calculator'!$C$8:$AO$67,20,FALSE))),0) -> 0 | Z9: =IFERROR(S9*(1+((VLOOKUP(N1_MSY,'Escalation Calculator'!$C$8:$AO$67,21,FALSE)-VLOOKUP(M9,'Escalation Calculator'!$C$8:$AO$67,21,FALSE))/VLOOKUP(M9,'Escalation Calculator'!$C$8:$AO$67,21,FALSE))),0) -> 40361.69231 | AA9: 40361.69231 | AB9: =IFERROR(U9*(1+((VLOOKUP(N1_MSY,'Escalation Calculator'!$C$8:$AO$67,22,FALSE)-VLOOKUP(M9,'Escalation Calculator'!$C$8:$AO$67,22,FALSE))/VLOOKUP(M9,'Escalation Calculator'!$C$8:$AO$67,22,FALSE))),0) -> 0 | AC9: 40361.69231 | AD9: =IFERROR((Y9*(1+(VLOOKUP(I9,'Escalation Calculator'!$C$8:$AO$67,20,FALSE)-VLOOKUP(N1_MSY,'Escalation Calculator'!$C$8:$AO$67,20,FALSE))/VLOOKUP(N1_MSY,'Escalation Calculator'!$C$8:$AO$67,20,FALSE))),0) -> 0 | AE9: =SUM('N1 - Construction'!I8:VJ8) -> 40897.22305 | AF9: 40897.22305 | AG9: =IFERROR((AB9*(1+(VLOOKUP(L9,'Escalation Calculator'!$C$8:$AO$67,22,FALSE)-VLOOKUP(N1_MSY,'Escalation Calculator'!$C$8:$AO$67,22,FALSE))/VLOOKUP(N1_MSY,'Escalation Calculator'!$C$8:$AO$67,22,FALSE))),0) -> 0 | AH9: 40897.22305 | AI9: 0 | AJ9: ='N1 - Construction'!H8 -> 40897.22305 | AK9: 40897.22305 | AL9: 0 | AM9: 40897.22305 | AN9: 40897.22305 | AO9: 40897.22305 | AP9: =IF(B9="","",IF(COUNTIF(N1_ChargeArea,G9)=1,"Valid","Invalid")) -> Valid
B10: W3-LW | C10: W3 | D10: Trunk water main | E10: Shute Harbour Road to Kingfisher Terrace trunk water main | F10: New 648m DN300 pipe from Shute Harbour Road to Kingfisher Terrace trunk watermain. Acquire a 289m long, 7m wide easement approximately 2,018m2 through 4RP726949. | G10: Greater Airlie Beach | H10: Infrastructure provider | I10: 2022 | J10: 2022 | K10: 2024 | M10: 2021 | N10: Detailed estimate | O10: 40000 | P10: 403616.9231 | Q10: 0 | R10: 40362 | S10: 443978.9231 | T10: 483978.9231 | Y10: =IFERROR(O10*(1+((VLOOKUP(N1_MSY,'Escalation Calculator'!$C$8:$AO$67,20,FALSE)-VLOOKUP(M10,'Escalation Calculator'!$C$8:$AO$67,20,FALSE))/VLOOKUP(M10,'Escalation Calculator'!$C$8:$AO$67,20,FALSE))),0) -> 40000 | Z10: =IFERROR(S10*(1+((VLOOKUP(N1_MSY,'Escalation Calculator'!$C$8:$AO$67,21,FALSE)-VLOOKUP(M10,'Escalation Calculator'!$C$8:$AO$67,21,FALSE))/VLOOKUP(M10,'Escalation Calculator'!$C$8:$AO$67,21,FALSE))),0) -> 443978.9231 | AA10: 483978.9231 | AB10: =IFERROR(U10*(1+((VLOOKUP(N1_MSY,'Escalation Calculator'!$C$8:$AO$67,22,FALSE)-VLOOKUP(M10,'Escalation Calculator'!$C$8:$AO$67,22,FALSE))/VLOOKUP(M10,'Escalation Calculator'!$C$8:$AO$67,22,FALSE))),0) -> 0 | AC10: 483978.9231 | AD10: =IFERROR((Y10*(1+(VLOOKUP(I10,'Escalation Calculator'!$C$8:$AO$67,20,FALSE)-VLOOKUP(N1_MSY,'Escalation Calculator'!$C$8:$AO$67,20,FALSE))/VLOOKUP(N1_MSY,'Escalation Calculator'!$C$8:$AO$67,20,FALSE))),0) -> 40744.27861 | AE10: =SUM('N1 - Construction'!I9:VJ9) -> 455865.1686 | AF10: 496609.4472 | AG10: =IFERROR((AB10*(1+(VLOOKUP(L10,'Escalation Calculator'!$C$8:$AO$67,22,FALSE)-VLOOKUP(N1_MSY,'Escalation Calculator'!$C$8:$AO$67,22,FALSE))/VLOOKUP(N1_MSY,'Escalation Calculator'!$C$8:$AO$67,22,FALSE))),0) -> 0 | AH10: 496609.4472 | AI10: 40744.27861 | AJ10: ='N1 - Construction'!H9 -> 455865.1686 | AK10: 496609.4472 | AL10: 0 | AM10: 496609.4472 | AN10: 496609.4472 | AO10: 496609.4472 | AP10: =IF(B10="","",IF(COUNTIF(N1_ChargeArea,G10)=1,"Valid","Invalid")) -> Valid
B11: W4-D | C11: W4 | D11: Water supply | E11: Proserpine River bores | F11: 3 new Proserpine river bores supplied from Proserpine Water treatment plant electricity supply | G11: Proserpine | H11: Infrastructure provider | J11: 2022 | K11: 2022 | M11: 2021 | N11: Detailed estimate | Q11: 115384.6154 | S11: 115384.6154 | T11: 115384.6154 | Y11: =IFERROR(O11*(1+((VLOOKUP(N1_MSY,'Escalation Calculator'!$C$8:$AO$67,20,FALSE)-VLOOKUP(M11,'Escalation Calculator'!$C$8:$AO$67,20,FALSE))/VLOOKUP(M11,'Escalation Calculator'!$C$8:$AO$67,20,FALSE))),0) -> 0 | Z11: =IFERROR(S11*(1+((VLOOKUP(N1_MSY,'Escalation Calculator'!$C$8:$AO$67,21,FALSE)-VLOOKUP(M11,'Escalation Calculator'!$C$8:$AO$67,21,FALSE))/VLOOKUP(M11,'Escalation Calculator'!$C$8:$AO$67,21,FALSE))),0) -> 115384.6154 | AA11: 115384.6154 | AB11: =IFERROR(U11*(1+((VLOOKUP(N1_MSY,'Escalation Calculator'!$C$8:$AO$67,22,FALSE)-VLOOKUP(M11,'Escalation Calculator'!$C$8:$AO$67,22,FALSE))/VLOOKUP(M11,'Escalation Calculator'!$C$8:$AO$67,22,FALSE))),0) -> 0 | AC11: 115384.6154 | AD11: =IFERROR((Y11*(1+(VLOOKUP(I11,'Escalation Calculator'!$C$8:$AO$67,20,FALSE)-VLOOKUP(N1_MSY,'Escalation Calculator'!$C$8:$AO$67,20,FALSE))/VLOOKUP(N1_MSY,'Escalation Calculator'!$C$8:$AO$67,20,FALSE))),0) -> 0 | AE11: =SUM('N1 - Construction'!I10:VJ10) -> 116915.5722 | AF11: 116915.5722 | AG11: =IFERROR((AB11*(1+(VLOOKUP(L11,'Escalation Calculator'!$C$8:$AO$67,22,FALSE)-VLOOKUP(N1_MSY,'Escalation Calculator'!$C$8:$AO$67,22,FALSE))/VLOOKUP(N1_MSY,'Escalation Calculator'!$C$8:$AO$67,22,FALSE))),0) -> 0 | AH11: 116915.5722 | AI11: 0 | AJ11: ='N1 - Construction'!H10 -> 116915.5722 | AK11: 116915.5722 | AL11: 0 | AM11: 116915.5722 | AN11: 116915.5722 | AO11: 116915.5722 | AP11: =IF(B11="","",IF(COUNTIF(N1_ChargeArea,G11)=1,"Valid","Invalid")) -> Valid
B12: W4-LW | C12: W4 | D12: Water supply | E12: Proserpine River bores | F12: 3 new Proserpine river bores supplied from Proserpine Water treatment plant electricity supply | G12: Proserpine | H12: Infrastructure provider | J12: 2023 | K12: 2023 | M12: 2021 | N12: Detailed estimate | O12: 0 | P12: 1153846.154 | Q12: 0 | R12: 115384.6154 | S12: 1269230.769 | T12: 1269230.769 | Y12: =IFERROR(O12*(1+((VLOOKUP(N1_MSY,'Escalation Calculator'!$C$8:$AO$67,20,FALSE)-VLOOKUP(M12,'Escalation Calculator'!$C$8:$AO$67,20,FALSE))/VLOOKUP(M12,'Escalation Calculator'!$C$8:$AO$67,20,FALSE))),0) -> 0 | Z12: =IFERROR(S12*(1+((VLOOKUP(N1_MSY,'Escalation Calculator'!$C$8:$AO$67,21,FALSE)-VLOOKUP(M12,'Escalation Calculator'!$C$8:$AO$67,21,FALSE))/VLOOKUP(M12,'Escalation Calculator'!$C$8:$AO$67,21,FALSE))),0) -> 1269230.769 | AA12: 1269230.769 | AB12: =IFERROR(U12*(1+((VLOOKUP(N1_MSY,'Escalation Calculator'!$C$8:$AO$67,22,FALSE)-VLOOKUP(M12,'Escalation Calculator'!$C$8:$AO$67,22,FALSE))/VLOOKUP(M12,'Escalation Calculator'!$C$8:$AO$67,22,FALSE))),0) -> 0 | AC12: 1269230.769 | AD12: =IFERROR((Y12*(1+(VLOOKUP(I12,'Escalation Calculator'!$C$8:$AO$67,20,FALSE)-VLOOKUP(N1_MSY,'Escalation Calculator'!$C$8:$AO$67,20,FALSE))/VLOOKUP(N1_MSY,'Escalation Calculator'!$C$8:$AO$67,20,FALSE))),0) -> 0 | AE12: =SUM('N1 - Construction'!I11:VJ11) -> 1303135.265 | AF12: 1303135.265 | AG12: =IFERROR((AB12*(1+(VLOOKUP(L12,'Escalation Calculator'!$C$8:$AO$67,22,FALSE)-VLOOKUP(N1_MSY,'Escalation Calculator'!$C$8:$AO$67,22,FALSE))/VLOOKUP(N1_MSY,'Escalation Calculator'!$C$8:$AO$67,22,FALSE))),0) -> 0 | AH12: 1303135.265 | AI12: 0 | AJ12: ='N1 - Construction'!H11 -> 1303135.265 | AK12: 1303135.265 | AL12: 0 | AM12: 1303135.265 | AN12: 1303135.265 | AO12: 1303135.265 | AP12: =IF(B12="","",IF(COUNTIF(N1_ChargeArea,G12)=1,"Valid","Invalid")) -> Valid
B13: W5-D | C13: W5 | D13: Trunk water main | E13: Hamilton Avenue to Parker Road trunk water main | F13: New 457m DN300 pipe and pressure reducing valve from Cannon Valley Reservoir to Parker Road, off Abel Rd. Acquire a 367m long, 7m wide easement approximately 2,571m2 through 9SP313409. | G13: Greater Airlie Beach | H13: Infrastructure provider | J13: 2022 | K13: 2022 | M13: 2021 | N13: Detailed estimate | Q13: 42269.23077 | S13: 42269.23077 | T13: 42269.23077 | Y13: =IFERROR(O13*(1+((VLOOKUP(N1_MSY,'Escalation Calculator'!$C$8:$AO$67,20,FALSE)-VLOOKUP(M13,'Escalation Calculator'!$C$8:$AO$67,20,FALSE))/VLOOKUP(M13,'Escalation Calculator'!$C$8:$AO$67,20,FALSE))),0) -> 0 | Z13: =IFERROR(S13*(1+((VLOOKUP(N1_MSY,'Escalation Calculator'!$C$8:$AO$67,21,FALSE)-VLOOKUP(M13,'Escalation Calculator'!$C$8:$AO$67,21,FALSE))/VLOOKUP(M13,'Escalation Calculator'!$C$8:$AO$67,21,FALSE))),0) -> 42269.23077 | AA13: 42269.23077 | AB13: =IFERROR(U13*(1+((VLOOKUP(N1_MSY,'Escalation Calculator'!$C$8:$AO$67,22,FALSE)-VLOOKUP(M13,'Escalation Calculator'!$C$8:$AO$67,22,FALSE))/VLOOKUP(M13,'Escalation Calculator'!$C$8:$AO$67,22,FALSE))),0) -> 0 | AC13: 42269.23077 | AD13: =IFERROR((Y13*(1+(VLOOKUP(I13,'Escalation Calculator'!$C$8:$AO$67,20,FALSE)-VLOOKUP(N1_MSY,'Escalation Calculator'!$C$8:$AO$67,20,FALSE))/VLOOKUP(N1_MSY,'Escalation Calculator'!$C$8:$AO$67,20,FALSE))),0) -> 0 | AE13: =SUM('N1 - Construction'!I12:VJ12) -> 42830.07129 | AF13: 42830.07129 | AG13: =IFERROR((AB13*(1+(VLOOKUP(L13,'Escalation Calculator'!$C$8:$AO$67,22,FALSE)-VLOOKUP(N1_MSY,'Escalation Calculator'!$C$8:$AO$67,22,FALSE))/VLOOKUP(N1_MSY,'Escalation Calculator'!$C$8:$AO$67,22,FALSE))),0) -> 0 | AH13: 42830.07129 | AI13: 0 | AJ13: ='N1 - Construction'!H12 -> 42830.07129 | AK13: 42830.07129 | AL13: 0 | AM13: 42830.07129 | AN13: 42830.07129 | AO13: 42830.07129 | AP13: =IF(B13="","",IF(COUNTIF(N1_ChargeArea,G13)=1,"Valid","Invalid")) -> Valid
B14: W5-LW | C14: W5 | D14: Trunk water main | E14: Hamilton Avenue to Parker Road trunk water main | F14: New 457m DN300 pipe and pressure reducing valve from Cannon Valley Reservoir to Parker Road, off Abel Rd. Acquire a 367m long, 7m wide easement approximately 2,571m2 through 9SP313409. | G14: Greater Airlie Beach | H14: Infrastructure provider | I14: 2022 | J14: 2023 | K14: 2023 | L14: 2022 | M14: 2021 | N14: Detailed estimate | O14: 50000 | P14: 422692.3077 | Q14: 0 | R14: 42269 | S14: 464961.3077 | T14: 514961.3077 | Y14: =IFERROR(O14*(1+((VLOOKUP(N1_MSY,'Escalation Calculator'!$C$8:$AO$67,20,FALSE)-VLOOKUP(M14,'Escalation Calculator'!$C$8:$AO$67,20,FALSE))/VLOOKUP(M14,'Escalation Calculator'!$C$8:$AO$67,20,FALSE))),0) -> 50000 | Z14: =IFERROR(S14*(1+((VLOOKUP(N1_MSY,'Escalation Calculator'!$C$8:$AO$67,21,FALSE)-VLOOKUP(M14,'Escalation Calculator'!$C$8:$AO$67,21,FALSE))/VLOOKUP(M14,'Escalation Calculator'!$C$8:$AO$67,21,FALSE))),0) -> 464961.3077 | AA14: 514961.3077 | AB14: =IFERROR(U14*(1+((VLOOKUP(N1_MSY,'Escalation Calculator'!$C$8:$AO$67,22,FALSE)-VLOOKUP(M14,'Escalation Calculator'!$C$8:$AO$67,22,FALSE))/VLOOKUP(M14,'Escalation Calculator'!$C$8:$AO$67,22,FALSE))),0) -> 0 | AC14: 514961.3077 | AD14: =IFERROR((Y14*(1+(VLOOKUP(I14,'Escalation Calculator'!$C$8:$AO$67,20,FALSE)-VLOOKUP(N1_MSY,'Escalation Calculator'!$C$8:$AO$67,20,FALSE))/VLOOKUP(N1_MSY,'Escalation Calculator'!$C$8:$AO$67,20,FALSE))),0) -> 50930.34826 | AE14: =SUM('N1 - Construction'!I13:VJ13) -> 477381.6484 | AF14: 528311.9967 | AG14: =IFERROR((AB14*(1+(VLOOKUP(L14,'Escalation Calculator'!$C$8:$AO$67,22,FALSE)-VLOOKUP(N1_MSY,'Escalation Calculator'!$C$8:$AO$67,22,FALSE))/VLOOKUP(N1_MSY,'Escalation Calculator'!$C$8:$AO$67,22,FALSE))),0) -> 0 | AH14: 528311.9967 | AI14: 50930.34826 | AJ14: ='N1 - Construction'!H13 -> 477381.6484 | AK14: 528311.9967 | AL14: 0 | AM14: 528311.9967 | AN14: 528311.9967 | AO14: 528311.9967 | AP14: =IF(B14="","",IF(COUNTIF(N1_ChargeArea,G14)=1,"Valid","Invalid")) -> Valid
B15: W6-D | C15: W6 | D15: Trunk water main | E15: Bowen Small Reservoir Network Augmentations | F15: Bowen Small Reservoir Network Augmentations to add a discrete demand zone to the Bowen small Reservoir (3.5ML tank) | G15: Bowen | H15: Infrastructure provider | J15: 2022 | K15: 2022 | M15: 2021 | N15: Detailed estimate | Q15: 14897.69231 | S15: 14897.69231 | T15: 14897.69231 | Y15: =IFERROR(O15*(1+((VLOOKUP(N1_MSY,'Escalation Calculator'!$C$8:$AO$67,20,FALSE)-VLOOKUP(M15,'Escalation Calculator'!$C$8:$AO$67,20,FALSE))/VLOOKUP(M15,'Escalation Calculator'!$C$8:$AO$67,20,FALSE))),0) -> 0 | Z15: =IFERROR(S15*(1+((VLOOKUP(N1_MSY,'Escalation Calculator'!$C$8:$AO$67,21,FALSE)-VLOOKUP(M15,'Escalation Calculator'!$C$8:$AO$67,21,FALSE))/VLOOKUP(M15,'Escalation Calculator'!$C$8:$AO$67,21,FALSE))),0) -> 14897.69231 | AA15: 14897.69231 | AB15: =IFERROR(U15*(1+((VLOOKUP(N1_MSY,'Escalation Calculator'!$C$8:$AO$67,22,FALSE)-VLOOKUP(M15,'Escalation Calculator'!$C$8:$AO$67,22,FALSE))/VLOOKUP(M15,'Escalation Calculator'!$C$8:$AO$67,22,FALSE))),0) -> 0 | AC15: 14897.69231 | AD15: =IFERROR((Y15*(1+(VLOOKUP(I15,'Escalation Calculator'!$C$8:$AO$67,20,FALSE)-VLOOKUP(N1_MSY,'Escalation Calculator'!$C$8:$AO$67,20,FALSE))/VLOOKUP(N1_MSY,'Escalation Calculator'!$C$8:$AO$67,20,FALSE))),0) -> 0 | AE15: =SUM('N1 - Construction'!I14:VJ14) -> 15095.35925 | AF15: 15095.35925 | AG15: =IFERROR((AB15*(1+(VLOOKUP(L15,'Escalation Calculator'!$C$8:$AO$67,22,FALSE)-VLOOKUP(N1_MSY,'Escalation Calculator'!$C$8:$AO$67,22,FALSE))/VLOOKUP(N1_MSY,'Escalation Calculator'!$C$8:$AO$67,22,FALSE))),0) -> 0 | AH15: 15095.35925 | AI15: 0 | AJ15: ='N1 - Construction'!H14 -> 15095.35925 | AK15: 15095.35925 | AL15: 0 | AM15: 15095.35925 | AN15: 15095.35925 | AO15: 15095.35925 | AP15: =IF(B15="","",IF(COUNTIF(N1_ChargeArea,G15)=1,"Valid","Invalid")) -> Valid
... 18 more rows

Sheet N1 - Construction (hidden)
B2: ="Construction Cost NPV Calculations - "&N1_Name -> Construction Cost NPV Calculations - Water Supply
B4: ITEM ID | C4: HOW DELIVERED | D4: Cost modelling area | E4: CONSTRUCTION START YEAR | F4: CONSTRUCTION END YEAR | G4: CONSTRUCTION VALUE - MODEL START | H4: NPV CONSTRUCTION | I4: =N1_MSY -> 2021 | J4: =I4+1 -> 2022 | K4: =J4+1 -> 2023 | L4: 2024 | M4: 2025 | N4: 2026 | O4: 2027 | P4: 2028 | Q4: 2029 | R4: 2030 | S4: 2031 | T4: 2032 | U4: =T4+1 -> 2033 | V4: 2034 | W4: 2035 | X4: 2036 | Y4: =X4+1 -> 2037 | Z4: =Y4+1 -> 2038 | AA4: =Z4+1 -> 2039 | AB4: =AA4+1 -> 2040 | AC4: =AB4+1 -> 2041 | AD4: =AC4+1 -> 2042 | AE4: =AD4+1 -> 2043 | AF4: =AE4+1 -> 2044 | AG4: =AF4+1 -> 2045 | AH4: =AG4+1 -> 2046 | AI4: =AH4+1 -> 2047 | AJ4: =AI4+1 -> 2048 | AK4: =AJ4+1 -> 2049 | AL4: =AK4+1 -> 2050 | AM4: =AL4+1 -> 2051 | AN4: =AM4+1 -> 2052 | AO4: =AN4+1 -> 2053 | AP4: =AO4+1 -> 2054 | AQ4: =AP4+1 -> 2055 | AR4: =AQ4+1 -> 2056 | AS4: =AR4+1 -> 2057 | AT4: =AS4+1 -> 2058 | AU4: =AT4+1 -> 2059 | AV4: =AU4+1 -> 2060 | AW4: 2061 | AX4: =AW4+1 -> 2062 | AY4: =AX4+1 -> 2063 | AZ4: =AY4+1 -> 2064 | BA4: =AZ4+1 -> 2065 | BB4: =BA4+1 -> 2066 | BC4: =BB4+1 -> 2067 | BD4: =BC4+1 -> 2068 | BE4: =BD4+1 -> 2069 | BF4: =BE4+1 -> 2070 | BG4: =BF4+1 -> 2071
B5: ='Water Supply - Future'!B6 -> W1-LW | C5: =IF('Water Supply - Future'!H6=0,"",'Water Supply - Future'!H6) -> Infrastructure provider | D5: ='Water Supply - Future'!G6 -> Greater Airlie Beach | E5: ='Water Supply - Future'!J6 -> 2022 | F5: ='Water Supply - Future'!K6 -> 2024 | G5: ='Water Supply - Future'!Z6 -> 1091695 | H5: =NPV(N1_ADR,J5:VJ5)+I5 -> 1120921.961 | I5: =IF($F5<>"",IFERROR(IF(AND(I$4>=$E5,I$4<=$F5),$G5/($F5+1-$E5),0)*(1+((VLOOKUP(I$4,'Escalation Calculator'!$C$8:$BI$67,21,FALSE)-VLOOKUP(N1_MSY,'Escalation Calculator'!$C$8:$BI$67,21,FALSE))/VLOOKUP(N1_MSY,'Escalation Calculator'!$C$8:$BI$67,21,FALSE))),0),IF(I$4=$E5,$G5*(1+((VLOOKUP(I$4,'Escalation Calculator'!$C$8:$BI$67,21,FALSE)-VLOOKUP(N1_MSY,'Escalation Calculator'!$C$8:$BI$67,21,FALSE))/VLOOKUP(N1_MSY,'Escalation Calculator'!$C$8:$BI$67,21,FALSE))),0)) -> 0 | J5: =IF($F5<>"",IFERROR(IF(AND(J$4>=$E5,J$4<=$F5),$G5/($F5+1-$E5),0)*(1+((VLOOKUP(J$4,'Escalation Calculator'!$C$8:$BI$67,21,FALSE)-VLOOKUP(N1_MSY,'Escalation Calculator'!$C$8:$BI$67,21,FALSE))/VLOOKUP(N1_MSY,'Escalation Calculator'!$C$8:$BI$67,21,FALSE))),0),IF(J$4=$E5,$G5*(1+((VLOOKUP(J$4,'Escalation Calculator'!$C$8:$BI$67,21,FALSE)-VLOOKUP(N1_MSY,'Escalation Calculator'!$C$8:$BI$67,21,FALSE))/VLOOKUP(N1_MSY,'Escalation Calculator'!$C$8:$BI$67,21,FALSE))),0)) -> 368726.6429 | K5: =IF($F5<>"",IFERROR(IF(AND(K$4>=$E5,K$4<=$F5),$G5/($F5+1-$E5),0)*(1+((VLOOKUP(K$4,'Escalation Calculator'!$C$8:$BI$67,21,FALSE)-VLOOKUP(N1_MSY,'Escalation Calculator'!$C$8:$BI$67,21,FALSE))/VLOOKUP(N1_MSY,'Escalation Calculator'!$C$8:$BI$67,21,FALSE))),0),IF(K$4=$E5,$G5*(1+((VLOOKUP(K$4,'Escalation Calculator'!$C$8:$BI$67,21,FALSE)-VLOOKUP(N1_MSY,'Escalation Calculator'!$C$8:$BI$67,21,FALSE))/VLOOKUP(N1_MSY,'Escalation Calculator'!$C$8:$BI$67,21,FALSE))),0)) -> 373619.0159 | L5: =IF($F5<>"",IFERROR(IF(AND(L$4>=$E5,L$4<=$F5),$G5/($F5+1-$E5),0)*(1+((VLOOKUP(L$4,'Escalation Calculator'!$C$8:$BI$67,21,FALSE)-VLOOKUP(N1_MSY,'Escalation Calculator'!$C$8:$BI$67,21,FALSE))/VLOOKUP(N1_MSY,'Escalation Calculator'!$C$8:$BI$67,21,FALSE))),0),IF(L$4=$E5,$G5*(1+((VLOOKUP(L$4,'Escalation Calculator'!$C$8:$BI$67,21,FALSE)-VLOOKUP(N1_MSY,'Escalation Calculator'!$C$8:$BI$67,21,FALSE))/VLOOKUP(N1_MSY,'Escalation Calculator'!$C$8:$BI$67,21,FALSE))),0)) -> 378576.3024 | M5: =IF($F5<>"",IFERROR(IF(AND(M$4>=$E5,M$4<=$F5),$G5/($F5+1-$E5),0)*(1+((VLOOKUP(M$4,'Escalation Calculator'!$C$8:$BI$67,21,FALSE)-VLOOKUP(N1_MSY,'Escalation Calculator'!$C$8:$BI$67,21,FALSE))/VLOOKUP(N1_MSY,'Escalation Calculator'!$C$8:$BI$67,21,FALSE))),0),IF(M$4=$E5,$G5*(1+((VLOOKUP(M$4,'Escalation Calculator'!$C$8:$BI$67,21,FALSE)-VLOOKUP(N1_MSY,'Escalation Calculator'!$C$8:$BI$67,21,FALSE))/VLOOKUP(N1_MSY,'Escalation Calculator'!$C$8:$BI$67,21,FALSE))),0)) -> 0 | N5: =IF($F5<>"",IFERROR(IF(AND(N$4>=$E5,N$4<=$F5),$G5/($F5+1-$E5),0)*(1+((VLOOKUP(N$4,'Escalation Calculator'!$C$8:$BI$67,21,FALSE)-VLOOKUP(N1_MSY,'Escalation Calculator'!$C$8:$BI$67,21,FALSE))/VLOOKUP(N1_MSY,'Escalation Calculator'!$C$8:$BI$67,21,FALSE))),0),IF(N$4=$E5,$G5*(1+((VLOOKUP(N$4,'Escalation Calculator'!$C$8:$BI$67,21,FALSE)-VLOOKUP(N1_MSY,'Escalation Calculator'!$C$8:$BI$67,21,FALSE))/VLOOKUP(N1_MSY,'Escalation Calculator'!$C$8:$BI$67,21,FALSE))),0)) -> 0 | O5: =IF($F5<>"",IFERROR(IF(AND(O$4>=$E5,O$4<=$F5),$G5/($F5+1-$E5),0)*(1+((VLOOKUP(O$4,'Escalation Calculator'!$C$8:$BI$67,21,FALSE)-VLOOKUP(N1_MSY,'Escalation Calculator'!$C$8:$BI$67,21,FALSE))/VLOOKUP(N1_MSY,'Escalation Calculator'!$C$8:$BI$67,21,FALSE))),0),IF(O$4=$E5,$G5*(1+((VLOOKUP(O$4,'Escalation Calculator'!$C$8:$BI$67,21,FALSE)-VLOOKUP(N1_MSY,'Escalation Calculator'!$C$8:$BI$67,21,FALSE))/VLOOKUP(N1_MSY,'Escalation Calculator'!$C$8:$BI$67,21,FALSE))),0)) -> 0 | P5: =IF($F5<>"",IFERROR(IF(AND(P$4>=$E5,P$4<=$F5),$G5/($F5+1-$E5),0)*(1+((VLOOKUP(P$4,'Escalation Calculator'!$C$8:$BI$67,21,FALSE)-VLOOKUP(N1_MSY,'Escalation Calculator'!$C$8:$BI$67,21,FALSE))/VLOOKUP(N1_MSY,'Escalation Calculator'!$C$8:$BI$67,21,FALSE))),0),IF(P$4=$E5,$G5*(1+((VLOOKUP(P$4,'Escalation Calculator'!$C$8:$BI$67,21,FALSE)-VLOOKUP(N1_MSY,'Escalation Calculator'!$C$8:$BI$67,21,FALSE))/VLOOKUP(N1_MSY,'Escalation Calculator'!$C$8:$BI$67,21,FALSE))),0)) -> 0 | Q5: =IF($F5<>"",IFERROR(IF(AND(Q$4>=$E5,Q$4<=$F5),$G5/($F5+1-$E5),0)*(1+((VLOOKUP(Q$4,'Escalation Calculator'!$C$8:$BI$67,21,FALSE)-VLOOKUP(N1_MSY,'Escalation Calculator'!$C$8:$BI$67,21,FALSE))/VLOOKUP(N1_MSY,'Escalation Calculator'!$C$8:$BI$67,21,FALSE))),0),IF(Q$4=$E5,$G5*(1+((VLOOKUP(Q$4,'Escalation Calculator'!$C$8:$BI$67,21,FALSE)-VLOOKUP(N1_MSY,'Escalation Calculator'!$C$8:$BI$67,21,FALSE))/VLOOKUP(N1_MSY,'Escalation Calculator'!$C$8:$BI$67,21,FALSE))),0)) -> 0 | R5: =IF($F5<>"",IFERROR(IF(AND(R$4>=$E5,R$4<=$F5),$G5/($F5+1-$E5),0)*(1+((VLOOKUP(R$4,'Escalation Calculator'!$C$8:$BI$67,21,FALSE)-VLOOKUP(N1_MSY,'Escalation Calculator'!$C$8:$BI$67,21,FALSE))/VLOOKUP(N1_MSY,'Escalation Calculator'!$C$8:$BI$67,21,FALSE))),0),IF(R$4=$E5,$G5*(1+((VLOOKUP(R$4,'Escalation Calculator'!$C$8:$BI$67,21,FALSE)-VLOOKUP(N1_MSY,'Escalation Calculator'!$C$8:$BI$67,21,FALSE))/VLOOKUP(N1_MSY,'Escalation Calculator'!$C$8:$BI$67,21,FALSE))),0)) -> 0 | S5: =IF($F5<>"",IFERROR(IF(AND(S$4>=$E5,S$4<=$F5),$G5/($F5+1-$E5),0)*(1+((VLOOKUP(S$4,'Escalation Calculator'!$C$8:$BI$67,21,FALSE)-VLOOKUP(N1_MSY,'Escalation Calculator'!$C$8:$BI$67,21,FALSE))/VLOOKUP(N1_MSY,'Escalation Calculator'!$C$8:$BI$67,21,FALSE))),0),IF(S$4=$E5,$G5*(1+((VLOOKUP(S$4,'Escalation Calculator'!$C$8:$BI$67,21,FALSE)-VLOOKUP(N1_MSY,'Escalation Calculator'!$C$8:$BI$67,21,FALSE))/VLOOKUP(N1_MSY,'Escalation Calculator'!$C$8:$BI$67,21,FALSE))),0)) -> 0 | T5: =IF($F5<>"",IFERROR(IF(AND(T$4>=$E5,T$4<=$F5),$G5/($F5+1-$E5),0)*(1+((VLOOKUP(T$4,'Escalation Calculator'!$C$8:$BI$67,21,FALSE)-VLOOKUP(N1_MSY,'Escalation Calculator'!$C$8:$BI$67,21,FALSE))/VLOOKUP(N1_MSY,'Escalation Calculator'!$C$8:$BI$67,21,FALSE))),0),IF(T$4=$E5,$G5*(1+((VLOOKUP(T$4,'Escalation Calculator'!$C$8:$BI$67,21,FALSE)-VLOOKUP(N1_MSY,'Escalation Calculator'!$C$8:$BI$67,21,FALSE))/VLOOKUP(N1_MSY,'Escalation Calculator'!$C$8:$BI$67,21,FALSE))),0)) -> 0 | U5: =IF($F5<>"",IFERROR(IF(AND(U$4>=$E5,U$4<=$F5),$G5/($F5+1-$E5),0)*(1+((VLOOKUP(U$4,'Escalation Calculator'!$C$8:$BI$67,21,FALSE)-VLOOKUP(N1_MSY,'Escalation Calculator'!$C$8:$BI$67,21,FALSE))/VLOOKUP(N1_MSY,'Escalation Calculator'!$C$8:$BI$67,21,FALSE))),0),IF(U$4=$E5,$G5*(1+((VLOOKUP(U$4,'Escalation Calculator'!$C$8:$BI$67,21,FALSE)-VLOOKUP(N1_MSY,'Escalation Calculator'!$C$8:$BI$67,21,FALSE))/VLOOKUP(N1_MSY,'Escalation Calculator'!$C$8:$BI$67,21,FALSE))),0)) -> 0 | V5: =IF($F5<>"",IFERROR(IF(AND(V$4>=$E5,V$4<=$F5),$G5/($F5+1-$E5),0)*(1+((VLOOKUP(V$4,'Escalation Calculator'!$C$8:$BI$67,21,FALSE)-VLOOKUP(N1_MSY,'Escalation Calculator'!$C$8:$BI$67,21,FALSE))/VLOOKUP(N1_MSY,'Escalation Calculator'!$C$8:$BI$67,21,FALSE))),0),IF(V$4=$E5,$G5*(1+((VLOOKUP(V$4,'Escalation Calculator'!$C$8:$BI$67,21,FALSE)-VLOOKUP(N1_MSY,'Escalation Calculator'!$C$8:$BI$67,21,FALSE))/VLOOKUP(N1_MSY,'Escalation Calculator'!$C$8:$BI$67,21,FALSE))),0)) -> 0 | W5: =IF($F5<>"",IFERROR(IF(AND(W$4>=$E5,W$4<=$F5),$G5/($F5+1-$E5),0)*(1+((VLOOKUP(W$4,'Escalation Calculator'!$C$8:$BI$67,21,FALSE)-VLOOKUP(N1_MSY,'Escalation Calculator'!$C$8:$BI$67,21,FALSE))/VLOOKUP(N1_MSY,'Escalation Calculator'!$C$8:$BI$67,21,FALSE))),0),IF(W$4=$E5,$G5*(1+((VLOOKUP(W$4,'Escalation Calculator'!$C$8:$BI$67,21,FALSE)-VLOOKUP(N1_MSY,'Escalation Calculator'!$C$8:$BI$67,21,FALSE))/VLOOKUP(N1_MSY,'Escalation Calculator'!$C$8:$BI$67,21,FALSE))),0)) -> 0 | X5: =IF($F5<>"",IFERROR(IF(AND(X$4>=$E5,X$4<=$F5),$G5/($F5+1-$E5),0)*(1+((VLOOKUP(X$4,'Escalation Calculator'!$C$8:$BI$67,21,FALSE)-VLOOKUP(N1_MSY,'Escalation Calculator'!$C$8:$BI$67,21,FALSE))/VLOOKUP(N1_MSY,'Escalation Calculator'!$C$8:$BI$67,21,FALSE))),0),IF(X$4=$E5,$G5*(1+((VLOOKUP(X$4,'Escalation Calculator'!$C$8:$BI$67,21,FALSE)-VLOOKUP(N1_MSY,'Escalation Calculator'!$C$8:$BI$67,21,FALSE))/VLOOKUP(N1_MSY,'Escalation Calculator'!$C$8:$BI$67,21,FALSE))),0)) -> 0 | Y5: =IF($F5<>"",IFERROR(IF(AND(Y$4>=$E5,Y$4<=$F5),$G5/($F5+1-$E5),0)*(1+((VLOOKUP(Y$4,'Escalation Calculator'!$C$8:$BI$67,21,FALSE)-VLOOKUP(N1_MSY,'Escalation Calculator'!$C$8:$BI$67,21,FALSE))/VLOOKUP(N1_MSY,'Escalation Calculator'!$C$8:$BI$67,21,FALSE))),0),IF(Y$4=$E5,$G5*(1+((VLOOKUP(Y$4,'Escalation Calculator'!$C$8:$BI$67,21,FALSE)-VLOOKUP(N1_MSY,'Escalation Calculator'!$C$8:$BI$67,21,FALSE))/VLOOKUP(N1_MSY,'Escalation Calculator'!$C$8:$BI$67,21,FALSE))),0)) -> 0 | Z5: =IF($F5<>"",IFERROR(IF(AND(Z$4>=$E5,Z$4<=$F5),$G5/($F5+1-$E5),0)*(1+((VLOOKUP(Z$4,'Escalation Calculator'!$C$8:$BI$67,21,FALSE)-VLOOKUP(N1_MSY,'Escalation Calculator'!$C$8:$BI$67,21,FALSE))/VLOOKUP(N1_MSY,'Escalation Calculator'!$C$8:$BI$67,21,FALSE))),0),IF(Z$4=$E5,$G5*(1+((VLOOKUP(Z$4,'Escalation Calculator'!$C$8:$BI$67,21,FALSE)-VLOOKUP(N1_MSY,'Escalation Calculator'!$C$8:$BI$67,21,FALSE))/VLOOKUP(N1_MSY,'Escalation Calculator'!$C$8:$BI$67,21,FALSE))),0)) -> 0 | AA5: =IF($F5<>"",IFERROR(IF(AND(AA$4>=$E5,AA$4<=$F5),$G5/($F5+1-$E5),0)*(1+((VLOOKUP(AA$4,'Escalation Calculator'!$C$8:$BI$67,21,FALSE)-VLOOKUP(N1_MSY,'Escalation Calculator'!$C$8:$BI$67,21,FALSE))/VLOOKUP(N1_MSY,'Escalation Calculator'!$C$8:$BI$67,21,FALSE))),0),IF(AA$4=$E5,$G5*(1+((VLOOKUP(AA$4,'Escalation Calculator'!$C$8:$BI$67,21,FALSE)-VLOOKUP(N1_MSY,'Escalation Calculator'!$C$8:$BI$67,21,FALSE))/VLOOKUP(N1_MSY,'Escalation Calculator'!$C$8:$BI$67,21,FALSE))),0)) -> 0 | AB5: =IF($F5<>"",IFERROR(IF(AND(AB$4>=$E5,AB$4<=$F5),$G5/($F5+1-$E5),0)*(1+((VLOOKUP(AB$4,'Escalation Calculator'!$C$8:$BI$67,21,FALSE)-VLOOKUP(N1_MSY,'Escalation Calculator'!$C$8:$BI$67,21,FALSE))/VLOOKUP(N1_MSY,'Escalation Calculator'!$C$8:$BI$67,21,FALSE))),0),IF(AB$4=$E5,$G5*(1+((VLOOKUP(AB$4,'Escalation Calculator'!$C$8:$BI$67,21,FALSE)-VLOOKUP(N1_MSY,'Escalation Calculator'!$C$8:$BI$67,21,FALSE))/VLOOKUP(N1_MSY,'Escalation Calculator'!$C$8:$BI$67,21,FALSE))),0)) -> 0 | AC5: =IF($F5<>"",IFERROR(IF(AND(AC$4>=$E5,AC$4<=$F5),$G5/($F5+1-$E5),0)*(1+((VLOOKUP(AC$4,'Escalation Calculator'!$C$8:$BI$67,21,FALSE)-VLOOKUP(N1_MSY,'Escalation Calculator'!$C$8:$BI$67,21,FALSE))/VLOOKUP(N1_MSY,'Escalation Calculator'!$C$8:$BI$67,21,FALSE))),0),IF(AC$4=$E5,$G5*(1+((VLOOKUP(AC$4,'Escalation Calculator'!$C$8:$BI$67,21,FALSE)-VLOOKUP(N1_MSY,'Escalation Calculator'!$C$8:$BI$67,21,FALSE))/VLOOKUP(N1_MSY,'Escalation Calculator'!$C$8:$BI$67,21,FALSE))),0)) -> 0 | AD5: =IF($F5<>"",IFERROR(IF(AND(AD$4>=$E5,AD$4<=$F5),$G5/($F5+1-$E5),0)*(1+((VLOOKUP(AD$4,'Escalation Calculator'!$C$8:$BI$67,21,FALSE)-VLOOKUP(N1_MSY,'Escalation Calculator'!$C$8:$BI$67,21,FALSE))/VLOOKUP(N1_MSY,'Escalation Calculator'!$C$8:$BI$67,21,FALSE))),0),IF(AD$4=$E5,$G5*(1+((VLOOKUP(AD$4,'Escalation Calculator'!$C$8:$BI$67,21,FALSE)-VLOOKUP(N1_MSY,'Escalation Calculator'!$C$8:$BI$67,21,FALSE))/VLOOKUP(N1_MSY,'Escalation Calculator'!$C$8:$BI$67,21,FALSE))),0)) -> 0 | AE5: =IF($F5<>"",IFERROR(IF(AND(AE$4>=$E5,AE$4<=$F5),$G5/($F5+1-$E5),0)*(1+((VLOOKUP(AE$4,'Escalation Calculator'!$C$8:$BI$67,21,FALSE)-VLOOKUP(N1_MSY,'Escalation Calculator'!$C$8:$BI$67,21,FALSE))/VLOOKUP(N1_MSY,'Escalation Calculator'!$C$8:$BI$67,21,FALSE))),0),IF(AE$4=$E5,$G5*(1+((VLOOKUP(AE$4,'Escalation Calculator'!$C$8:$BI$67,21,FALSE)-VLOOKUP(N1_MSY,'Escalation Calculator'!$C$8:$BI$67,21,FALSE))/VLOOKUP(N1_MSY,'Escalation Calculator'!$C$8:$BI$67,21,FALSE))),0)) -> 0 | AF5: =IF($F5<>"",IFERROR(IF(AND(AF$4>=$E5,AF$4<=$F5),$G5/($F5+1-$E5),0)*(1+((VLOOKUP(AF$4,'Escalation Calculator'!$C$8:$BI$67,21,FALSE)-VLOOKUP(N1_MSY,'Escalation Calculator'!$C$8:$BI$67,21,FALSE))/VLOOKUP(N1_MSY,'Escalation Calculator'!$C$8:$BI$67,21,FALSE))),0),IF(AF$4=$E5,$G5*(1+((VLOOKUP(AF$4,'Escalation Calculator'!$C$8:$BI$67,21,FALSE)-VLOOKUP(N1_MSY,'Escalation Calculator'!$C$8:$BI$67,21,FALSE))/VLOOKUP(N1_MSY,'Escalation Calculator'!$C$8:$BI$67,21,FALSE))),0)) -> 0 | AG5: =IF($F5<>"",IFERROR(IF(AND(AG$4>=$E5,AG$4<=$F5),$G5/($F5+1-$E5),0)*(1+((VLOOKUP(AG$4,'Escalation Calculator'!$C$8:$BI$67,21,FALSE)-VLOOKUP(N1_MSY,'Escalation Calculator'!$C$8:$BI$67,21,FALSE))/VLOOKUP(N1_MSY,'Escalation Calculator'!$C$8:$BI$67,21,FALSE))),0),IF(AG$4=$E5,$G5*(1+((VLOOKUP(AG$4,'Escalation Calculator'!$C$8:$BI$67,21,FALSE)-VLOOKUP(N1_MSY,'Escalation Calculator'!$C$8:$BI$67,21,FALSE))/VLOOKUP(N1_MSY,'Escalation Calculator'!$C$8:$BI$67,21,FALSE))),0)) -> 0 | AH5: =IF($F5<>"",IFERROR(IF(AND(AH$4>=$E5,AH$4<=$F5),$G5/($F5+1-$E5),0)*(1+((VLOOKUP(AH$4,'Escalation Calculator'!$C$8:$BI$67,21,FALSE)-VLOOKUP(N1_MSY,'Escalation Calculator'!$C$8:$BI$67,21,FALSE))/VLOOKUP(N1_MSY,'Escalation Calculator'!$C$8:$BI$67,21,FALSE))),0),IF(AH$4=$E5,$G5*(1+((VLOOKUP(AH$4,'Escalation Calculator'!$C$8:$BI$67,21,FALSE)-VLOOKUP(N1_MSY,'Escalation Calculator'!$C$8:$BI$67,21,FALSE))/VLOOKUP(N1_MSY,'Escalation Calculator'!$C$8:$BI$67,21,FALSE))),0)) -> 0 | AI5: =IF($F5<>"",IFERROR(IF(AND(AI$4>=$E5,AI$4<=$F5),$G5/($F5+1-$E5),0)*(1+((VLOOKUP(AI$4,'Escalation Calculator'!$C$8:$BI$67,21,FALSE)-VLOOKUP(N1_MSY,'Escalation Calculator'!$C$8:$BI$67,21,FALSE))/VLOOKUP(N1_MSY,'Escalation Calculator'!$C$8:$BI$67,21,FALSE))),0),IF(AI$4=$E5,$G5*(1+((VLOOKUP(AI$4,'Escalation Calculator'!$C$8:$BI$67,21,FALSE)-VLOOKUP(N1_MSY,'Escalation Calculator'!$C$8:$BI$67,21,FALSE))/VLOOKUP(N1_MSY,'Escalation Calculator'!$C$8:$BI$67,21,FALSE))),0)) -> 0 | AJ5: =IF($F5<>"",IFERROR(IF(AND(AJ$4>=$E5,AJ$4<=$F5),$G5/($F5+1-$E5),0)*(1+((VLOOKUP(AJ$4,'Escalation Calculator'!$C$8:$BI$67,21,FALSE)-VLOOKUP(N1_MSY,'Escalation Calculator'!$C$8:$BI$67,21,FALSE))/VLOOKUP(N1_MSY,'Escalation Calculator'!$C$8:$BI$67,21,FALSE))),0),IF(AJ$4=$E5,$G5*(1+((VLOOKUP(AJ$4,'Escalation Calculator'!$C$8:$BI$67,21,FALSE)-VLOOKUP(N1_MSY,'Escalation Calculator'!$C$8:$BI$67,21,FALSE))/VLOOKUP(N1_MSY,'Escalation Calculator'!$C$8:$BI$67,21,FALSE))),0)) -> 0 | AK5: =IF($F5<>"",IFERROR(IF(AND(AK$4>=$E5,AK$4<=$F5),$G5/($F5+1-$E5),0)*(1+((VLOOKUP(AK$4,'Escalation Calculator'!$C$8:$BI$67,21,FALSE)-VLOOKUP(N1_MSY,'Escalation Calculator'!$C$8:$BI$67,21,FALSE))/VLOOKUP(N1_MSY,'Escalation Calculator'!$C$8:$BI$67,21,FALSE))),0),IF(AK$4=$E5,$G5*(1+((VLOOKUP(AK$4,'Escalation Calculator'!$C$8:$BI$67,21,FALSE)-VLOOKUP(N1_MSY,'Escalation Calculator'!$C$8:$BI$67,21,FALSE))/VLOOKUP(N1_MSY,'Escalation Calculator'!$C$8:$BI$67,21,FALSE))),0)) -> 0 | AL5: =IF($F5<>"",IFERROR(IF(AND(AL$4>=$E5,AL$4<=$F5),$G5/($F5+1-$E5),0)*(1+((VLOOKUP(AL$4,'Escalation Calculator'!$C$8:$BI$67,21,FALSE)-VLOOKUP(N1_MSY,'Escalation Calculator'!$C$8:$BI$67,21,FALSE))/VLOOKUP(N1_MSY,'Escalation Calculator'!$C$8:$BI$67,21,FALSE))),0),IF(AL$4=$E5,$G5*(1+((VLOOKUP(AL$4,'Escalation Calculator'!$C$8:$BI$67,21,FALSE)-VLOOKUP(N1_MSY,'Escalation Calculator'!$C$8:$BI$67,21,FALSE))/VLOOKUP(N1_MSY,'Escalation Calculator'!$C$8:$BI$67,21,FALSE))),0)) -> 0 | AM5: =IF($F5<>"",IFERROR(IF(AND(AM$4>=$E5,AM$4<=$F5),$G5/($F5+1-$E5),0)*(1+((VLOOKUP(AM$4,'Escalation Calculator'!$C$8:$BI$67,21,FALSE)-VLOOKUP(N1_MSY,'Escalation Calculator'!$C$8:$BI$67,21,FALSE))/VLOOKUP(N1_MSY,'Escalation Calculator'!$C$8:$BI$67,21,FALSE))),0),IF(AM$4=$E5,$G5*(1+((VLOOKUP(AM$4,'Escalation Calculator'!$C$8:$BI$67,21,FALSE)-VLOOKUP(N1_MSY,'Escalation Calculator'!$C$8:$BI$67,21,FALSE))/VLOOKUP(N1_MSY,'Escalation Calculator'!$C$8:$BI$67,21,FALSE))),0)) -> 0 | AN5: =IF($F5<>"",IFERROR(IF(AND(AN$4>=$E5,AN$4<=$F5),$G5/($F5+1-$E5),0)*(1+((VLOOKUP(AN$4,'Escalation Calculator'!$C$8:$BI$67,21,FALSE)-VLOOKUP(N1_MSY,'Escalation Calculator'!$C$8:$BI$67,21,FALSE))/VLOOKUP(N1_MSY,'Escalation Calculator'!$C$8:$BI$67,21,FALSE))),0),IF(AN$4=$E5,$G5*(1+((VLOOKUP(AN$4,'Escalation Calculator'!$C$8:$BI$67,21,FALSE)-VLOOKUP(N1_MSY,'Escalation Calculator'!$C$8:$BI$67,21,FALSE))/VLOOKUP(N1_MSY,'Escalation Calculator'!$C$8:$BI$67,21,FALSE))),0)) -> 0 | AO5: =IF($F5<>"",IFERROR(IF(AND(AO$4>=$E5,AO$4<=$F5),$G5/($F5+1-$E5),0)*(1+((VLOOKUP(AO$4,'Escalation Calculator'!$C$8:$BI$67,21,FALSE)-VLOOKUP(N1_MSY,'Escalation Calculator'!$C$8:$BI$67,21,FALSE))/VLOOKUP(N1_MSY,'Escalation Calculator'!$C$8:$BI$67,21,FALSE))),0),IF(AO$4=$E5,$G5*(1+((VLOOKUP(AO$4,'Escalation Calculator'!$C$8:$BI$67,21,FALSE)-VLOOKUP(N1_MSY,'Escalation Calculator'!$C$8:$BI$67,21,FALSE))/VLOOKUP(N1_MSY,'Escalation Calculator'!$C$8:$BI$67,21,FALSE))),0)) -> 0 | AP5: =IF($F5<>"",IFERROR(IF(AND(AP$4>=$E5,AP$4<=$F5),$G5/($F5+1-$E5),0)*(1+((VLOOKUP(AP$4,'Escalation Calculator'!$C$8:$BI$67,21,FALSE)-VLOOKUP(N1_MSY,'Escalation Calculator'!$C$8:$BI$67,21,FALSE))/VLOOKUP(N1_MSY,'Escalation Calculator'!$C$8:$BI$67,21,FALSE))),0),IF(AP$4=$E5,$G5*(1+((VLOOKUP(AP$4,'Escalation Calculator'!$C$8:$BI$67,21,FALSE)-VLOOKUP(N1_MSY,'Escalation Calculator'!$C$8:$BI$67,21,FALSE))/VLOOKUP(N1_MSY,'Escalation Calculator'!$C$8:$BI$67,21,FALSE))),0)) -> 0 | AQ5: =IF($F5<>"",IFERROR(IF(AND(AQ$4>=$E5,AQ$4<=$F5),$G5/($F5+1-$E5),0)*(1+((VLOOKUP(AQ$4,'Escalation Calculator'!$C$8:$BI$67,21,FALSE)-VLOOKUP(N1_MSY,'Escalation Calculator'!$C$8:$BI$67,21,FALSE))/VLOOKUP(N1_MSY,'Escalation Calculator'!$C$8:$BI$67,21,FALSE))),0),IF(AQ$4=$E5,$G5*(1+((VLOOKUP(AQ$4,'Escalation Calculator'!$C$8:$BI$67,21,FALSE)-VLOOKUP(N1_MSY,'Escalation Calculator'!$C$8:$BI$67,21,FALSE))/VLOOKUP(N1_MSY,'Escalation Calculator'!$C$8:$BI$67,21,FALSE))),0)) -> 0 | AR5: =IF($F5<>"",IFERROR(IF(AND(AR$4>=$E5,AR$4<=$F5),$G5/($F5+1-$E5),0)*(1+((VLOOKUP(AR$4,'Escalation Calculator'!$C$8:$BI$67,21,FALSE)-VLOOKUP(N1_MSY,'Escalation Calculator'!$C$8:$BI$67,21,FALSE))/VLOOKUP(N1_MSY,'Escalation Calculator'!$C$8:$BI$67,21,FALSE))),0),IF(AR$4=$E5,$G5*(1+((VLOOKUP(AR$4,'Escalation Calculator'!$C$8:$BI$67,21,FALSE)-VLOOKUP(N1_MSY,'Escalation Calculator'!$C$8:$BI$67,21,FALSE))/VLOOKUP(N1_MSY,'Escalation Calculator'!$C$8:$BI$67,21,FALSE))),0)) -> 0 | AS5: =IF($F5<>"",IFERROR(IF(AND(AS$4>=$E5,AS$4<=$F5),$G5/($F5+1-$E5),0)*(1+((VLOOKUP(AS$4,'Escalation Calculator'!$C$8:$BI$67,21,FALSE)-VLOOKUP(N1_MSY,'Escalation Calculator'!$C$8:$BI$67,21,FALSE))/VLOOKUP(N1_MSY,'Escalation Calculator'!$C$8:$BI$67,21,FALSE))),0),IF(AS$4=$E5,$G5*(1+((VLOOKUP(AS$4,'Escalation Calculator'!$C$8:$BI$67,21,FALSE)-VLOOKUP(N1_MSY,'Escalation Calculator'!$C$8:$BI$67,21,FALSE))/VLOOKUP(N1_MSY,'Escalation Calculator'!$C$8:$BI$67,21,FALSE))),0)) -> 0 | AT5: =IF($F5<>"",IFERROR(IF(AND(AT$4>=$E5,AT$4<=$F5),$G5/($F5+1-$E5),0)*(1+((VLOOKUP(AT$4,'Escalation Calculator'!$C$8:$BI$67,21,FALSE)-VLOOKUP(N1_MSY,'Escalation Calculator'!$C$8:$BI$67,21,FALSE))/VLOOKUP(N1_MSY,'Escalation Calculator'!$C$8:$BI$67,21,FALSE))),0),IF(AT$4=$E5,$G5*(1+((VLOOKUP(AT$4,'Escalation Calculator'!$C$8:$BI$67,21,FALSE)-VLOOKUP(N1_MSY,'Escalation Calculator'!$C$8:$BI$67,21,FALSE))/VLOOKUP(N1_MSY,'Escalation Calculator'!$C$8:$BI$67,21,FALSE))),0)) -> 0 | AU5: =IF($F5<>"",IFERROR(IF(AND(AU$4>=$E5,AU$4<=$F5),$G5/($F5+1-$E5),0)*(1+((VLOOKUP(AU$4,'Escalation Calculator'!$C$8:$BI$67,21,FALSE)-VLOOKUP(N1_MSY,'Escalation Calculator'!$C$8:$BI$67,21,FALSE))/VLOOKUP(N1_MSY,'Escalation Calculator'!$C$8:$BI$67,21,FALSE))),0),IF(AU$4=$E5,$G5*(1+((VLOOKUP(AU$4,'Escalation Calculator'!$C$8:$BI$67,21,FALSE)-VLOOKUP(N1_MSY,'Escalation Calculator'!$C$8:$BI$67,21,FALSE))/VLOOKUP(N1_MSY,'Escalation Calculator'!$C$8:$BI$67,21,FALSE))),0)) -> 0 | AV5: =IF($F5<>"",IFERROR(IF(AND(AV$4>=$E5,AV$4<=$F5),$G5/($F5+1-$E5),0)*(1+((VLOOKUP(AV$4,'Escalation Calculator'!$C$8:$BI$67,21,FALSE)-VLOOKUP(N1_MSY,'Escalation Calculator'!$C$8:$BI$67,21,FALSE))/VLOOKUP(N1_MSY,'Escalation Calculator'!$C$8:$BI$67,21,FALSE))),0),IF(AV$4=$E5,$G5*(1+((VLOOKUP(AV$4,'Escalation Calculator'!$C$8:$BI$67,21,FALSE)-VLOOKUP(N1_MSY,'Escalation Calculator'!$C$8:$BI$67,21,FALSE))/VLOOKUP(N1_MSY,'Escalation Calculator'!$C$8:$BI$67,21,FALSE))),0)) -> 0 | AW5: =IF($F5<>"",IFERROR(IF(AND(AW$4>=$E5,AW$4<=$F5),$G5/($F5+1-$E5),0)*(1+((VLOOKUP(AW$4,'Escalation Calculator'!$C$8:$BI$67,21,FALSE)-VLOOKUP(N1_MSY,'Escalation Calculator'!$C$8:$BI$67,21,FALSE))/VLOOKUP(N1_MSY,'Escalation Calculator'!$C$8:$BI$67,21,FALSE))),0),IF(AW$4=$E5,$G5*(1+((VLOOKUP(AW$4,'Escalation Calculator'!$C$8:$BI$67,21,FALSE)-VLOOKUP(N1_MSY,'Escalation Calculator'!$C$8:$BI$67,21,FALSE))/VLOOKUP(N1_MSY,'Escalation Calculator'!$C$8:$BI$67,21,FALSE))),0)) -> 0 | AX5: =IF($F5<>"",IFERROR(IF(AND(AX$4>=$E5,AX$4<=$F5),$G5/($F5+1-$E5),0)*(1+((VLOOKUP(AX$4,'Escalation Calculator'!$C$8:$BI$67,21,FALSE)-VLOOKUP(N1_MSY,'Escalation Calculator'!$C$8:$BI$67,21,FALSE))/VLOOKUP(N1_MSY,'Escalation Calculator'!$C$8:$BI$67,21,FALSE))),0),IF(AX$4=$E5,$G5*(1+((VLOOKUP(AX$4,'Escalation Calculator'!$C$8:$BI$67,21,FALSE)-VLOOKUP(N1_MSY,'Escalation Calculator'!$C$8:$BI$67,21,FALSE))/VLOOKUP(N1_MSY,'Escalation Calculator'!$C$8:$BI$67,21,FALSE))),0)) -> 0 | AY5: =IF($F5<>"",IFERROR(IF(AND(AY$4>=$E5,AY$4<=$F5),$G5/($F5+1-$E5),0)*(1+((VLOOKUP(AY$4,'Escalation Calculator'!$C$8:$BI$67,21,FALSE)-VLOOKUP(N1_MSY,'Escalation Calculator'!$C$8:$BI$67,21,FALSE))/VLOOKUP(N1_MSY,'Escalation Calculator'!$C$8:$BI$67,21,FALSE))),0),IF(AY$4=$E5,$G5*(1+((VLOOKUP(AY$4,'Escalation Calculator'!$C$8:$BI$67,21,FALSE)-VLOOKUP(N1_MSY,'Escalation Calculator'!$C$8:$BI$67,21,FALSE))/VLOOKUP(N1_MSY,'Escalation Calculator'!$C$8:$BI$67,21,FALSE))),0)) -> 0 | AZ5: =IF($F5<>"",IFERROR(IF(AND(AZ$4>=$E5,AZ$4<=$F5),$G5/($F5+1-$E5),0)*(1+((VLOOKUP(AZ$4,'Escalation Calculator'!$C$8:$BI$67,21,FALSE)-VLOOKUP(N1_MSY,'Escalation Calculator'!$C$8:$BI$67,21,FALSE))/VLOOKUP(N1_MSY,'Escalation Calculator'!$C$8:$BI$67,21,FALSE))),0),IF(AZ$4=$E5,$G5*(1+((VLOOKUP(AZ$4,'Escalation Calculator'!$C$8:$BI$67,21,FALSE)-VLOOKUP(N1_MSY,'Escalation Calculator'!$C$8:$BI$67,21,FALSE))/VLOOKUP(N1_MSY,'Escalation Calculator'!$C$8:$BI$67,21,FALSE))),0)) -> 0 | BA5: =IF($F5<>"",IFERROR(IF(AND(BA$4>=$E5,BA$4<=$F5),$G5/($F5+1-$E5),0)*(1+((VLOOKUP(BA$4,'Escalation Calculator'!$C$8:$BI$67,21,FALSE)-VLOOKUP(N1_MSY,'Escalation Calculator'!$C$8:$BI$67,21,FALSE))/VLOOKUP(N1_MSY,'Escalation Calculator'!$C$8:$BI$67,21,FALSE))),0),IF(BA$4=$E5,$G5*(1+((VLOOKUP(BA$4,'Escalation Calculator'!$C$8:$BI$67,21,FALSE)-VLOOKUP(N1_MSY,'Escalation Calculator'!$C$8:$BI$67,21,FALSE))/VLOOKUP(N1_MSY,'Escalation Calculator'!$C$8:$BI$67,21,FALSE))),0)) -> 0 | BB5: =IF($F5<>"",IFERROR(IF(AND(BB$4>=$E5,BB$4<=$F5),$G5/($F5+1-$E5),0)*(1+((VLOOKUP(BB$4,'Escalation Calculator'!$C$8:$BI$67,21,FALSE)-VLOOKUP(N1_MSY,'Escalation Calculator'!$C$8:$BI$67,21,FALSE))/VLOOKUP(N1_MSY,'Escalation Calculator'!$C$8:$BI$67,21,FALSE))),0),IF(BB$4=$E5,$G5*(1+((VLOOKUP(BB$4,'Escalation Calculator'!$C$8:$BI$67,21,FALSE)-VLOOKUP(N1_MSY,'Escalation Calculator'!$C$8:$BI$67,21,FALSE))/VLOOKUP(N1_MSY,'Escalation Calculator'!$C$8:$BI$67,21,FALSE))),0)) -> 0 | BC5: =IF($F5<>"",IFERROR(IF(AND(BC$4>=$E5,BC$4<=$F5),$G5/($F5+1-$E5),0)*(1+((VLOOKUP(BC$4,'Escalation Calculator'!$C$8:$BI$67,21,FALSE)-VLOOKUP(N1_MSY,'Escalation Calculator'!$C$8:$BI$67,21,FALSE))/VLOOKUP(N1_MSY,'Escalation Calculator'!$C$8:$BI$67,21,FALSE))),0),IF(BC$4=$E5,$G5*(1+((VLOOKUP(BC$4,'Escalation Calculator'!$C$8:$BI$67,21,FALSE)-VLOOKUP(N1_MSY,'Escalation Calculator'!$C$8:$BI$67,21,FALSE))/VLOOKUP(N1_MSY,'Escalation Calculator'!$C$8:$BI$67,21,FALSE))),0)) -> 0 | BD5: =IF($F5<>"",IFERROR(IF(AND(BD$4>=$E5,BD$4<=$F5),$G5/($F5+1-$E5),0)*(1+((VLOOKUP(BD$4,'Escalation Calculator'!$C$8:$BI$67,21,FALSE)-VLOOKUP(N1_MSY,'Escalation Calculator'!$C$8:$BI$67,21,FALSE))/VLOOKUP(N1_MSY,'Escalation Calculator'!$C$8:$BI$67,21,FALSE))),0),IF(BD$4=$E5,$G5*(1+((VLOOKUP(BD$4,'Escalation Calculator'!$C$8:$BI$67,21,FALSE)-VLOOKUP(N1_MSY,'Escalation Calculator'!$C$8:$BI$67,21,FALSE))/VLOOKUP(N1_MSY,'Escalation Calculator'!$C$8:$BI$67,21,FALSE))),0)) -> 0 | BE5: =IF($F5<>"",IFERROR(IF(AND(BE$4>=$E5,BE$4<=$F5),$G5/($F5+1-$E5),0)*(1+((VLOOKUP(BE$4,'Escalation Calculator'!$C$8:$BI$67,21,FALSE)-VLOOKUP(N1_MSY,'Escalation Calculator'!$C$8:$BI$67,21,FALSE))/VLOOKUP(N1_MSY,'Escalation Calculator'!$C$8:$BI$67,21,FALSE))),0),IF(BE$4=$E5,$G5*(1+((VLOOKUP(BE$4,'Escalation Calculator'!$C$8:$BI$67,21,FALSE)-VLOOKUP(N1_MSY,'Escalation Calculator'!$C$8:$BI$67,21,FALSE))/VLOOKUP(N1_MSY,'Escalation Calculator'!$C$8:$BI$67,21,FALSE))),0)) -> 0 | BF5: =IF($F5<>"",IFERROR(IF(AND(BF$4>=$E5,BF$4<=$F5),$G5/($F5+1-$E5),0)*(1+((VLOOKUP(BF$4,'Escalation Calculator'!$C$8:$BI$67,21,FALSE)-VLOOKUP(N1_MSY,'Escalation Calculator'!$C$8:$BI$67,21,FALSE))/VLOOKUP(N1_MSY,'Escalation Calculator'!$C$8:$BI$67,21,FALSE))),0),IF(BF$4=$E5,$G5*(1+((VLOOKUP(BF$4,'Escalation Calculator'!$C$8:$BI$67,21,FALSE)-VLOOKUP(N1_MSY,'Escalation Calculator'!$C$8:$BI$67,21,FALSE))/VLOOKUP(N1_MSY,'Escalation Calculator'!$C$8:$BI$67,21,FALSE))),0)) -> 0 | BG5: =IF($F5<>"",IFERROR(IF(AND(BG$4>=$E5,BG$4<=$F5),$G5/($F5+1-$E5),0)*(1+((VLOOKUP(BG$4,'Escalation Calculator'!$C$8:$BI$67,21,FALSE)-VLOOKUP(N1_MSY,'Escalation Calculator'!$C$8:$BI$67,21,FALSE))/VLOOKUP(N1_MSY,'Escalation Calculator'!$C$8:$BI$67,21,FALSE))),0),IF(BG$4=$E5,$G5*(1+((VLOOKUP(BG$4,'Escalation Calculator'!$C$8:$BI$67,21,FALSE)-VLOOKUP(N1_MSY,'Escalation Calculator'!$C$8:$BI$67,21,FALSE))/VLOOKUP(N1_MSY,'Escalation Calculator'!$C$8:$BI$67,21,FALSE))),0)) -> 0
B6: ='Water Supply - Future'!B7 -> W2-D | C6: =IF('Water Supply - Future'!H7=0,"",'Water Supply - Future'!H7) -> Infrastructure provider | D6: ='Water Supply - Future'!G7 -> Greater Airlie Beach | E6: ='Water Supply - Future'!J7 -> 2022 | F6: ='Water Supply - Future'!K7 -> 2022 | G6: ='Water Supply - Future'!Z7 -> 79205 | H6: 80255.91512 | I6: =IF($F6<>"",IFERROR(IF(AND(I$4>=$E6,I$4<=$F6),$G6/($F6+1-$E6),0)*(1+((VLOOKUP(I$4,'Escalation Calculator'!$C$8:$BI$67,21,FALSE)-VLOOKUP(N1_MSY,'Escalation Calculator'!$C$8:$BI$67,21,FALSE))/VLOOKUP(N1_MSY,'Escalation Calculator'!$C$8:$BI$67,21,FALSE))),0),IF(I$4=$E6,$G6*(1+((VLOOKUP(I$4,'Escalation Calculator'!$C$8:$BI$67,21,FALSE)-VLOOKUP(N1_MSY,'Escalation Calculator'!$C$8:$BI$67,21,FALSE))/VLOOKUP(N1_MSY,'Escalation Calculator'!$C$8:$BI$67,21,FALSE))),0)) -> 0 | J6: =IF($F6<>"",IFERROR(IF(AND(J$4>=$E6,J$4<=$F6),$G6/($F6+1-$E6),0)*(1+((VLOOKUP(J$4,'Escalation Calculator'!$C$8:$BI$67,21,FALSE)-VLOOKUP(N1_MSY,'Escalation Calculator'!$C$8:$BI$67,21,FALSE))/VLOOKUP(N1_MSY,'Escalation Calculator'!$C$8:$BI$67,21,FALSE))),0),IF(J$4=$E6,$G6*(1+((VLOOKUP(J$4,'Escalation Calculator'!$C$8:$BI$67,21,FALSE)-VLOOKUP(N1_MSY,'Escalation Calculator'!$C$8:$BI$67,21,FALSE))/VLOOKUP(N1_MSY,'Escalation Calculator'!$C$8:$BI$67,21,FALSE))),0)) -> 80255.91512 | K6: =IF($F6<>"",IFERROR(IF(AND(K$4>=$E6,K$4<=$F6),$G6/($F6+1-$E6),0)*(1+((VLOOKUP(K$4,'Escalation Calculator'!$C$8:$BI$67,21,FALSE)-VLOOKUP(N1_MSY,'Escalation Calculator'!$C$8:$BI$67,21,FALSE))/VLOOKUP(N1_MSY,'Escalation Calculator'!$C$8:$BI$67,21,FALSE))),0),IF(K$4=$E6,$G6*(1+((VLOOKUP(K$4,'Escalation Calculator'!$C$8:$BI$67,21,FALSE)-VLOOKUP(N1_MSY,'Escalation Calculator'!$C$8:$BI$67,21,FALSE))/VLOOKUP(N1_MSY,'Escalation Calculator'!$C$8:$BI$67,21,FALSE))),0)) -> 0 | L6: =IF($F6<>"",IFERROR(IF(AND(L$4>=$E6,L$4<=$F6),$G6/($F6+1-$E6),0)*(1+((VLOOKUP(L$4,'Escalation Calculator'!$C$8:$BI$67,21,FALSE)-VLOOKUP(N1_MSY,'Escalation Calculator'!$C$8:$BI$67,21,FALSE))/VLOOKUP(N1_MSY,'Escalation Calculator'!$C$8:$BI$67,21,FALSE))),0),IF(L$4=$E6,$G6*(1+((VLOOKUP(L$4,'Escalation Calculator'!$C$8:$BI$67,21,FALSE)-VLOOKUP(N1_MSY,'Escalation Calculator'!$C$8:$BI$67,21,FALSE))/VLOOKUP(N1_MSY,'Escalation Calculator'!$C$8:$BI$67,21,FALSE))),0)) -> 0 | M6: =IF($F6<>"",IFERROR(IF(AND(M$4>=$E6,M$4<=$F6),$G6/($F6+1-$E6),0)*(1+((VLOOKUP(M$4,'Escalation Calculator'!$C$8:$BI$67,21,FALSE)-VLOOKUP(N1_MSY,'Escalation Calculator'!$C$8:$BI$67,21,FALSE))/VLOOKUP(N1_MSY,'Escalation Calculator'!$C$8:$BI$67,21,FALSE))),0),IF(M$4=$E6,$G6*(1+((VLOOKUP(M$4,'Escalation Calculator'!$C$8:$BI$67,21,FALSE)-VLOOKUP(N1_MSY,'Escalation Calculator'!$C$8:$BI$67,21,FALSE))/VLOOKUP(N1_MSY,'Escalation Calculator'!$C$8:$BI$67,21,FALSE))),0)) -> 0 | N6: =IF($F6<>"",IFERROR(IF(AND(N$4>=$E6,N$4<=$F6),$G6/($F6+1-$E6),0)*(1+((VLOOKUP(N$4,'Escalation Calculator'!$C$8:$BI$67,21,FALSE)-VLOOKUP(N1_MSY,'Escalation Calculator'!$C$8:$BI$67,21,FALSE))/VLOOKUP(N1_MSY,'Escalation Calculator'!$C$8:$BI$67,21,FALSE))),0),IF(N$4=$E6,$G6*(1+((VLOOKUP(N$4,'Escalation Calculator'!$C$8:$BI$67,21,FALSE)-VLOOKUP(N1_MSY,'Escalation Calculator'!$C$8:$BI$67,21,FALSE))/VLOOKUP(N1_MSY,'Escalation Calculator'!$C$8:$BI$67,21,FALSE))),0)) -> 0 | O6: =IF($F6<>"",IFERROR(IF(AND(O$4>=$E6,O$4<=$F6),$G6/($F6+1-$E6),0)*(1+((VLOOKUP(O$4,'Escalation Calculator'!$C$8:$BI$67,21,FALSE)-VLOOKUP(N1_MSY,'Escalation Calculator'!$C$8:$BI$67,21,FALSE))/VLOOKUP(N1_MSY,'Escalation Calculator'!$C$8:$BI$67,21,FALSE))),0),IF(O$4=$E6,$G6*(1+((VLOOKUP(O$4,'Escalation Calculator'!$C$8:$BI$67,21,FALSE)-VLOOKUP(N1_MSY,'Escalation Calculator'!$C$8:$BI$67,21,FALSE))/VLOOKUP(N1_MSY,'Escalation Calculator'!$C$8:$BI$67,21,FALSE))),0)) -> 0 | P6: =IF($F6<>"",IFERROR(IF(AND(P$4>=$E6,P$4<=$F6),$G6/($F6+1-$E6),0)*(1+((VLOOKUP(P$4,'Escalation Calculator'!$C$8:$BI$67,21,FALSE)-VLOOKUP(N1_MSY,'Escalation Calculator'!$C$8:$BI$67,21,FALSE))/VLOOKUP(N1_MSY,'Escalation Calculator'!$C$8:$BI$67,21,FALSE))),0),IF(P$4=$E6,$G6*(1+((VLOOKUP(P$4,'Escalation Calculator'!$C$8:$BI$67,21,FALSE)-VLOOKUP(N1_MSY,'Escalation Calculator'!$C$8:$BI$67,21,FALSE))/VLOOKUP(N1_MSY,'Escalation Calculator'!$C$8:$BI$67,21,FALSE))),0)) -> 0 | Q6: =IF($F6<>"",IFERROR(IF(AND(Q$4>=$E6,Q$4<=$F6),$G6/($F6+1-$E6),0)*(1+((VLOOKUP(Q$4,'Escalation Calculator'!$C$8:$BI$67,21,FALSE)-VLOOKUP(N1_MSY,'Escalation Calculator'!$C$8:$BI$67,21,FALSE))/VLOOKUP(N1_MSY,'Escalation Calculator'!$C$8:$BI$67,21,FALSE))),0),IF(Q$4=$E6,$G6*(1+((VLOOKUP(Q$4,'Escalation Calculator'!$C$8:$BI$67,21,FALSE)-VLOOKUP(N1_MSY,'Escalation Calculator'!$C$8:$BI$67,21,FALSE))/VLOOKUP(N1_MSY,'Escalation Calculator'!$C$8:$BI$67,21,FALSE))),0)) -> 0 | R6: =IF($F6<>"",IFERROR(IF(AND(R$4>=$E6,R$4<=$F6),$G6/($F6+1-$E6),0)*(1+((VLOOKUP(R$4,'Escalation Calculator'!$C$8:$BI$67,21,FALSE)-VLOOKUP(N1_MSY,'Escalation Calculator'!$C$8:$BI$67,21,FALSE))/VLOOKUP(N1_MSY,'Escalation Calculator'!$C$8:$BI$67,21,FALSE))),0),IF(R$4=$E6,$G6*(1+((VLOOKUP(R$4,'Escalation Calculator'!$C$8:$BI$67,21,FALSE)-VLOOKUP(N1_MSY,'Escalation Calculator'!$C$8:$BI$67,21,FALSE))/VLOOKUP(N1_MSY,'Escalation Calculator'!$C$8:$BI$67,21,FALSE))),0)) -> 0 | S6: =IF($F6<>"",IFERROR(IF(AND(S$4>=$E6,S$4<=$F6),$G6/($F6+1-$E6),0)*(1+((VLOOKUP(S$4,'Escalation Calculator'!$C$8:$BI$67,21,FALSE)-VLOOKUP(N1_MSY,'Escalation Calculator'!$C$8:$BI$67,21,FALSE))/VLOOKUP(N1_MSY,'Escalation Calculator'!$C$8:$BI$67,21,FALSE))),0),IF(S$4=$E6,$G6*(1+((VLOOKUP(S$4,'Escalation Calculator'!$C$8:$BI$67,21,FALSE)-VLOOKUP(N1_MSY,'Escalation Calculator'!$C$8:$BI$67,21,FALSE))/VLOOKUP(N1_MSY,'Escalation Calculator'!$C$8:$BI$67,21,FALSE))),0)) -> 0 | T6: =IF($F6<>"",IFERROR(IF(AND(T$4>=$E6,T$4<=$F6),$G6/($F6+1-$E6),0)*(1+((VLOOKUP(T$4,'Escalation Calculator'!$C$8:$BI$67,21,FALSE)-VLOOKUP(N1_MSY,'Escalation Calculator'!$C$8:$BI$67,21,FALSE))/VLOOKUP(N1_MSY,'Escalation Calculator'!$C$8:$BI$67,21,FALSE))),0),IF(T$4=$E6,$G6*(1+((VLOOKUP(T$4,'Escalation Calculator'!$C$8:$BI$67,21,FALSE)-VLOOKUP(N1_MSY,'Escalation Calculator'!$C$8:$BI$67,21,FALSE))/VLOOKUP(N1_MSY,'Escalation Calculator'!$C$8:$BI$67,21,FALSE))),0)) -> 0 | U6: =IF($F6<>"",IFERROR(IF(AND(U$4>=$E6,U$4<=$F6),$G6/($F6+1-$E6),0)*(1+((VLOOKUP(U$4,'Escalation Calculator'!$C$8:$BI$67,21,FALSE)-VLOOKUP(N1_MSY,'Escalation Calculator'!$C$8:$BI$67,21,FALSE))/VLOOKUP(N1_MSY,'Escalation Calculator'!$C$8:$BI$67,21,FALSE))),0),IF(U$4=$E6,$G6*(1+((VLOOKUP(U$4,'Escalation Calculator'!$C$8:$BI$67,21,FALSE)-VLOOKUP(N1_MSY,'Escalation Calculator'!$C$8:$BI$67,21,FALSE))/VLOOKUP(N1_MSY,'Escalation Calculator'!$C$8:$BI$67,21,FALSE))),0)) -> 0 | V6: =IF($F6<>"",IFERROR(IF(AND(V$4>=$E6,V$4<=$F6),$G6/($F6+1-$E6),0)*(1+((VLOOKUP(V$4,'Escalation Calculator'!$C$8:$BI$67,21,FALSE)-VLOOKUP(N1_MSY,'Escalation Calculator'!$C$8:$BI$67,21,FALSE))/VLOOKUP(N1_MSY,'Escalation Calculator'!$C$8:$BI$67,21,FALSE))),0),IF(V$4=$E6,$G6*(1+((VLOOKUP(V$4,'Escalation Calculator'!$C$8:$BI$67,21,FALSE)-VLOOKUP(N1_MSY,'Escalation Calculator'!$C$8:$BI$67,21,FALSE))/VLOOKUP(N1_MSY,'Escalation Calculator'!$C$8:$BI$67,21,FALSE))),0)) -> 0 | W6: =IF($F6<>"",IFERROR(IF(AND(W$4>=$E6,W$4<=$F6),$G6/($F6+1-$E6),0)*(1+((VLOOKUP(W$4,'Escalation Calculator'!$C$8:$BI$67,21,FALSE)-VLOOKUP(N1_MSY,'Escalation Calculator'!$C$8:$BI$67,21,FALSE))/VLOOKUP(N1_MSY,'Escalation Calculator'!$C$8:$BI$67,21,FALSE))),0),IF(W$4=$E6,$G6*(1+((VLOOKUP(W$4,'Escalation Calculator'!$C$8:$BI$67,21,FALSE)-VLOOKUP(N1_MSY,'Escalation Calculator'!$C$8:$BI$67,21,FALSE))/VLOOKUP(N1_MSY,'Escalation Calculator'!$C$8:$BI$67,21,FALSE))),0)) -> 0 | X6: =IF($F6<>"",IFERROR(IF(AND(X$4>=$E6,X$4<=$F6),$G6/($F6+1-$E6),0)*(1+((VLOOKUP(X$4,'Escalation Calculator'!$C$8:$BI$67,21,FALSE)-VLOOKUP(N1_MSY,'Escalation Calculator'!$C$8:$BI$67,21,FALSE))/VLOOKUP(N1_MSY,'Escalation Calculator'!$C$8:$BI$67,21,FALSE))),0),IF(X$4=$E6,$G6*(1+((VLOOKUP(X$4,'Escalation Calculator'!$C$8:$BI$67,21,FALSE)-VLOOKUP(N1_MSY,'Escalation Calculator'!$C$8:$BI$67,21,FALSE))/VLOOKUP(N1_MSY,'Escalation Calculator'!$C$8:$BI$67,21,FALSE))),0)) -> 0 | Y6: =IF($F6<>"",IFERROR(IF(AND(Y$4>=$E6,Y$4<=$F6),$G6/($F6+1-$E6),0)*(1+((VLOOKUP(Y$4,'Escalation Calculator'!$C$8:$BI$67,21,FALSE)-VLOOKUP(N1_MSY,'Escalation Calculator'!$C$8:$BI$67,21,FALSE))/VLOOKUP(N1_MSY,'Escalation Calculator'!$C$8:$BI$67,21,FALSE))),0),IF(Y$4=$E6,$G6*(1+((VLOOKUP(Y$4,'Escalation Calculator'!$C$8:$BI$67,21,FALSE)-VLOOKUP(N1_MSY,'Escalation Calculator'!$C$8:$BI$67,21,FALSE))/VLOOKUP(N1_MSY,'Escalation Calculator'!$C$8:$BI$67,21,FALSE))),0)) -> 0 | Z6: =IF($F6<>"",IFERROR(IF(AND(Z$4>=$E6,Z$4<=$F6),$G6/($F6+1-$E6),0)*(1+((VLOOKUP(Z$4,'Escalation Calculator'!$C$8:$BI$67,21,FALSE)-VLOOKUP(N1_MSY,'Escalation Calculator'!$C$8:$BI$67,21,FALSE))/VLOOKUP(N1_MSY,'Escalation Calculator'!$C$8:$BI$67,21,FALSE))),0),IF(Z$4=$E6,$G6*(1+((VLOOKUP(Z$4,'Escalation Calculator'!$C$8:$BI$67,21,FALSE)-VLOOKUP(N1_MSY,'Escalation Calculator'!$C$8:$BI$67,21,FALSE))/VLOOKUP(N1_MSY,'Escalation Calculator'!$C$8:$BI$67,21,FALSE))),0)) -> 0 | AA6: =IF($F6<>"",IFERROR(IF(AND(AA$4>=$E6,AA$4<=$F6),$G6/($F6+1-$E6),0)*(1+((VLOOKUP(AA$4,'Escalation Calculator'!$C$8:$BI$67,21,FALSE)-VLOOKUP(N1_MSY,'Escalation Calculator'!$C$8:$BI$67,21,FALSE))/VLOOKUP(N1_MSY,'Escalation Calculator'!$C$8:$BI$67,21,FALSE))),0),IF(AA$4=$E6,$G6*(1+((VLOOKUP(AA$4,'Escalation Calculator'!$C$8:$BI$67,21,FALSE)-VLOOKUP(N1_MSY,'Escalation Calculator'!$C$8:$BI$67,21,FALSE))/VLOOKUP(N1_MSY,'Escalation Calculator'!$C$8:$BI$67,21,FALSE))),0)) -> 0 | AB6: =IF($F6<>"",IFERROR(IF(AND(AB$4>=$E6,AB$4<=$F6),$G6/($F6+1-$E6),0)*(1+((VLOOKUP(AB$4,'Escalation Calculator'!$C$8:$BI$67,21,FALSE)-VLOOKUP(N1_MSY,'Escalation Calculator'!$C$8:$BI$67,21,FALSE))/VLOOKUP(N1_MSY,'Escalation Calculator'!$C$8:$BI$67,21,FALSE))),0),IF(AB$4=$E6,$G6*(1+((VLOOKUP(AB$4,'Escalation Calculator'!$C$8:$BI$67,21,FALSE)-VLOOKUP(N1_MSY,'Escalation Calculator'!$C$8:$BI$67,21,FALSE))/VLOOKUP(N1_MSY,'Escalation Calculator'!$C$8:$BI$67,21,FALSE))),0)) -> 0 | AC6: =IF($F6<>"",IFERROR(IF(AND(AC$4>=$E6,AC$4<=$F6),$G6/($F6+1-$E6),0)*(1+((VLOOKUP(AC$4,'Escalation Calculator'!$C$8:$BI$67,21,FALSE)-VLOOKUP(N1_MSY,'Escalation Calculator'!$C$8:$BI$67,21,FALSE))/VLOOKUP(N1_MSY,'Escalation Calculator'!$C$8:$BI$67,21,FALSE))),0),IF(AC$4=$E6,$G6*(1+((VLOOKUP(AC$4,'Escalation Calculator'!$C$8:$BI$67,21,FALSE)-VLOOKUP(N1_MSY,'Escalation Calculator'!$C$8:$BI$67,21,FALSE))/VLOOKUP(N1_MSY,'Escalation Calculator'!$C$8:$BI$67,21,FALSE))),0)) -> 0 | AD6: =IF($F6<>"",IFERROR(IF(AND(AD$4>=$E6,AD$4<=$F6),$G6/($F6+1-$E6),0)*(1+((VLOOKUP(AD$4,'Escalation Calculator'!$C$8:$BI$67,21,FALSE)-VLOOKUP(N1_MSY,'Escalation Calculator'!$C$8:$BI$67,21,FALSE))/VLOOKUP(N1_MSY,'Escalation Calculator'!$C$8:$BI$67,21,FALSE))),0),IF(AD$4=$E6,$G6*(1+((VLOOKUP(AD$4,'Escalation Calculator'!$C$8:$BI$67,21,FALSE)-VLOOKUP(N1_MSY,'Escalation Calculator'!$C$8:$BI$67,21,FALSE))/VLOOKUP(N1_MSY,'Escalation Calculator'!$C$8:$BI$67,21,FALSE))),0)) -> 0 | AE6: =IF($F6<>"",IFERROR(IF(AND(AE$4>=$E6,AE$4<=$F6),$G6/($F6+1-$E6),0)*(1+((VLOOKUP(AE$4,'Escalation Calculator'!$C$8:$BI$67,21,FALSE)-VLOOKUP(N1_MSY,'Escalation Calculator'!$C$8:$BI$67,21,FALSE))/VLOOKUP(N1_MSY,'Escalation Calculator'!$C$8:$BI$67,21,FALSE))),0),IF(AE$4=$E6,$G6*(1+((VLOOKUP(AE$4,'Escalation Calculator'!$C$8:$BI$67,21,FALSE)-VLOOKUP(N1_MSY,'Escalation Calculator'!$C$8:$BI$67,21,FALSE))/VLOOKUP(N1_MSY,'Escalation Calculator'!$C$8:$BI$67,21,FALSE))),0)) -> 0 | AF6: =IF($F6<>"",IFERROR(IF(AND(AF$4>=$E6,AF$4<=$F6),$G6/($F6+1-$E6),0)*(1+((VLOOKUP(AF$4,'Escalation Calculator'!$C$8:$BI$67,21,FALSE)-VLOOKUP(N1_MSY,'Escalation Calculator'!$C$8:$BI$67,21,FALSE))/VLOOKUP(N1_MSY,'Escalation Calculator'!$C$8:$BI$67,21,FALSE))),0),IF(AF$4=$E6,$G6*(1+((VLOOKUP(AF$4,'Escalation Calculator'!$C$8:$BI$67,21,FALSE)-VLOOKUP(N1_MSY,'Escalation Calculator'!$C$8:$BI$67,21,FALSE))/VLOOKUP(N1_MSY,'Escalation Calculator'!$C$8:$BI$67,21,FALSE))),0)) -> 0 | AG6: =IF($F6<>"",IFERROR(IF(AND(AG$4>=$E6,AG$4<=$F6),$G6/($F6+1-$E6),0)*(1+((VLOOKUP(AG$4,'Escalation Calculator'!$C$8:$BI$67,21,FALSE)-VLOOKUP(N1_MSY,'Escalation Calculator'!$C$8:$BI$67,21,FALSE))/VLOOKUP(N1_MSY,'Escalation Calculator'!$C$8:$BI$67,21,FALSE))),0),IF(AG$4=$E6,$G6*(1+((VLOOKUP(AG$4,'Escalation Calculator'!$C$8:$BI$67,21,FALSE)-VLOOKUP(N1_MSY,'Escalation Calculator'!$C$8:$BI$67,21,FALSE))/VLOOKUP(N1_MSY,'Escalation Calculator'!$C$8:$BI$67,21,FALSE))),0)) -> 0 | AH6: =IF($F6<>"",IFERROR(IF(AND(AH$4>=$E6,AH$4<=$F6),$G6/($F6+1-$E6),0)*(1+((VLOOKUP(AH$4,'Escalation Calculator'!$C$8:$BI$67,21,FALSE)-VLOOKUP(N1_MSY,'Escalation Calculator'!$C$8:$BI$67,21,FALSE))/VLOOKUP(N1_MSY,'Escalation Calculator'!$C$8:$BI$67,21,FALSE))),0),IF(AH$4=$E6,$G6*(1+((VLOOKUP(AH$4,'Escalation Calculator'!$C$8:$BI$67,21,FALSE)-VLOOKUP(N1_MSY,'Escalation Calculator'!$C$8:$BI$67,21,FALSE))/VLOOKUP(N1_MSY,'Escalation Calculator'!$C$8:$BI$67,21,FALSE))),0)) -> 0 | AI6: =IF($F6<>"",IFERROR(IF(AND(AI$4>=$E6,AI$4<=$F6),$G6/($F6+1-$E6),0)*(1+((VLOOKUP(AI$4,'Escalation Calculator'!$C$8:$BI$67,21,FALSE)-VLOOKUP(N1_MSY,'Escalation Calculator'!$C$8:$BI$67,21,FALSE))/VLOOKUP(N1_MSY,'Escalation Calculator'!$C$8:$BI$67,21,FALSE))),0),IF(AI$4=$E6,$G6*(1+((VLOOKUP(AI$4,'Escalation Calculator'!$C$8:$BI$67,21,FALSE)-VLOOKUP(N1_MSY,'Escalation Calculator'!$C$8:$BI$67,21,FALSE))/VLOOKUP(N1_MSY,'Escalation Calculator'!$C$8:$BI$67,21,FALSE))),0)) -> 0 | AJ6: =IF($F6<>"",IFERROR(IF(AND(AJ$4>=$E6,AJ$4<=$F6),$G6/($F6+1-$E6),0)*(1+((VLOOKUP(AJ$4,'Escalation Calculator'!$C$8:$BI$67,21,FALSE)-VLOOKUP(N1_MSY,'Escalation Calculator'!$C$8:$BI$67,21,FALSE))/VLOOKUP(N1_MSY,'Escalation Calculator'!$C$8:$BI$67,21,FALSE))),0),IF(AJ$4=$E6,$G6*(1+((VLOOKUP(AJ$4,'Escalation Calculator'!$C$8:$BI$67,21,FALSE)-VLOOKUP(N1_MSY,'Escalation Calculator'!$C$8:$BI$67,21,FALSE))/VLOOKUP(N1_MSY,'Escalation Calculator'!$C$8:$BI$67,21,FALSE))),0)) -> 0 | AK6: =IF($F6<>"",IFERROR(IF(AND(AK$4>=$E6,AK$4<=$F6),$G6/($F6+1-$E6),0)*(1+((VLOOKUP(AK$4,'Escalation Calculator'!$C$8:$BI$67,21,FALSE)-VLOOKUP(N1_MSY,'Escalation Calculator'!$C$8:$BI$67,21,FALSE))/VLOOKUP(N1_MSY,'Escalation Calculator'!$C$8:$BI$67,21,FALSE))),0),IF(AK$4=$E6,$G6*(1+((VLOOKUP(AK$4,'Escalation Calculator'!$C$8:$BI$67,21,FALSE)-VLOOKUP(N1_MSY,'Escalation Calculator'!$C$8:$BI$67,21,FALSE))/VLOOKUP(N1_MSY,'Escalation Calculator'!$C$8:$BI$67,21,FALSE))),0)) -> 0 | AL6: =IF($F6<>"",IFERROR(IF(AND(AL$4>=$E6,AL$4<=$F6),$G6/($F6+1-$E6),0)*(1+((VLOOKUP(AL$4,'Escalation Calculator'!$C$8:$BI$67,21,FALSE)-VLOOKUP(N1_MSY,'Escalation Calculator'!$C$8:$BI$67,21,FALSE))/VLOOKUP(N1_MSY,'Escalation Calculator'!$C$8:$BI$67,21,FALSE))),0),IF(AL$4=$E6,$G6*(1+((VLOOKUP(AL$4,'Escalation Calculator'!$C$8:$BI$67,21,FALSE)-VLOOKUP(N1_MSY,'Escalation Calculator'!$C$8:$BI$67,21,FALSE))/VLOOKUP(N1_MSY,'Escalation Calculator'!$C$8:$BI$67,21,FALSE))),0)) -> 0 | AM6: =IF($F6<>"",IFERROR(IF(AND(AM$4>=$E6,AM$4<=$F6),$G6/($F6+1-$E6),0)*(1+((VLOOKUP(AM$4,'Escalation Calculator'!$C$8:$BI$67,21,FALSE)-VLOOKUP(N1_MSY,'Escalation Calculator'!$C$8:$BI$67,21,FALSE))/VLOOKUP(N1_MSY,'Escalation Calculator'!$C$8:$BI$67,21,FALSE))),0),IF(AM$4=$E6,$G6*(1+((VLOOKUP(AM$4,'Escalation Calculator'!$C$8:$BI$67,21,FALSE)-VLOOKUP(N1_MSY,'Escalation Calculator'!$C$8:$BI$67,21,FALSE))/VLOOKUP(N1_MSY,'Escalation Calculator'!$C$8:$BI$67,21,FALSE))),0)) -> 0 | AN6: =IF($F6<>"",IFERROR(IF(AND(AN$4>=$E6,AN$4<=$F6),$G6/($F6+1-$E6),0)*(1+((VLOOKUP(AN$4,'Escalation Calculator'!$C$8:$BI$67,21,FALSE)-VLOOKUP(N1_MSY,'Escalation Calculator'!$C$8:$BI$67,21,FALSE))/VLOOKUP(N1_MSY,'Escalation Calculator'!$C$8:$BI$67,21,FALSE))),0),IF(AN$4=$E6,$G6*(1+((VLOOKUP(AN$4,'Escalation Calculator'!$C$8:$BI$67,21,FALSE)-VLOOKUP(N1_MSY,'Escalation Calculator'!$C$8:$BI$67,21,FALSE))/VLOOKUP(N1_MSY,'Escalation Calculator'!$C$8:$BI$67,21,FALSE))),0)) -> 0 | AO6: =IF($F6<>"",IFERROR(IF(AND(AO$4>=$E6,AO$4<=$F6),$G6/($F6+1-$E6),0)*(1+((VLOOKUP(AO$4,'Escalation Calculator'!$C$8:$BI$67,21,FALSE)-VLOOKUP(N1_MSY,'Escalation Calculator'!$C$8:$BI$67,21,FALSE))/VLOOKUP(N1_MSY,'Escalation Calculator'!$C$8:$BI$67,21,FALSE))),0),IF(AO$4=$E6,$G6*(1+((VLOOKUP(AO$4,'Escalation Calculator'!$C$8:$BI$67,21,FALSE)-VLOOKUP(N1_MSY,'Escalation Calculator'!$C$8:$BI$67,21,FALSE))/VLOOKUP(N1_MSY,'Escalation Calculator'!$C$8:$BI$67,21,FALSE))),0)) -> 0 | AP6: =IF($F6<>"",IFERROR(IF(AND(AP$4>=$E6,AP$4<=$F6),$G6/($F6+1-$E6),0)*(1+((VLOOKUP(AP$4,'Escalation Calculator'!$C$8:$BI$67,21,FALSE)-VLOOKUP(N1_MSY,'Escalation Calculator'!$C$8:$BI$67,21,FALSE))/VLOOKUP(N1_MSY,'Escalation Calculator'!$C$8:$BI$67,21,FALSE))),0),IF(AP$4=$E6,$G6*(1+((VLOOKUP(AP$4,'Escalation Calculator'!$C$8:$BI$67,21,FALSE)-VLOOKUP(N1_MSY,'Escalation Calculator'!$C$8:$BI$67,21,FALSE))/VLOOKUP(N1_MSY,'Escalation Calculator'!$C$8:$BI$67,21,FALSE))),0)) -> 0 | AQ6: =IF($F6<>"",IFERROR(IF(AND(AQ$4>=$E6,AQ$4<=$F6),$G6/($F6+1-$E6),0)*(1+((VLOOKUP(AQ$4,'Escalation Calculator'!$C$8:$BI$67,21,FALSE)-VLOOKUP(N1_MSY,'Escalation Calculator'!$C$8:$BI$67,21,FALSE))/VLOOKUP(N1_MSY,'Escalation Calculator'!$C$8:$BI$67,21,FALSE))),0),IF(AQ$4=$E6,$G6*(1+((VLOOKUP(AQ$4,'Escalation Calculator'!$C$8:$BI$67,21,FALSE)-VLOOKUP(N1_MSY,'Escalation Calculator'!$C$8:$BI$67,21,FALSE))/VLOOKUP(N1_MSY,'Escalation Calculator'!$C$8:$BI$67,21,FALSE))),0)) -> 0 | AR6: =IF($F6<>"",IFERROR(IF(AND(AR$4>=$E6,AR$4<=$F6),$G6/($F6+1-$E6),0)*(1+((VLOOKUP(AR$4,'Escalation Calculator'!$C$8:$BI$67,21,FALSE)-VLOOKUP(N1_MSY,'Escalation Calculator'!$C$8:$BI$67,21,FALSE))/VLOOKUP(N1_MSY,'Escalation Calculator'!$C$8:$BI$67,21,FALSE))),0),IF(AR$4=$E6,$G6*(1+((VLOOKUP(AR$4,'Escalation Calculator'!$C$8:$BI$67,21,FALSE)-VLOOKUP(N1_MSY,'Escalation Calculator'!$C$8:$BI$67,21,FALSE))/VLOOKUP(N1_MSY,'Escalation Calculator'!$C$8:$BI$67,21,FALSE))),0)) -> 0 | AS6: =IF($F6<>"",IFERROR(IF(AND(AS$4>=$E6,AS$4<=$F6),$G6/($F6+1-$E6),0)*(1+((VLOOKUP(AS$4,'Escalation Calculator'!$C$8:$BI$67,21,FALSE)-VLOOKUP(N1_MSY,'Escalation Calculator'!$C$8:$BI$67,21,FALSE))/VLOOKUP(N1_MSY,'Escalation Calculator'!$C$8:$BI$67,21,FALSE))),0),IF(AS$4=$E6,$G6*(1+((VLOOKUP(AS$4,'Escalation Calculator'!$C$8:$BI$67,21,FALSE)-VLOOKUP(N1_MSY,'Escalation Calculator'!$C$8:$BI$67,21,FALSE))/VLOOKUP(N1_MSY,'Escalation Calculator'!$C$8:$BI$67,21,FALSE))),0)) -> 0 | AT6: =IF($F6<>"",IFERROR(IF(AND(AT$4>=$E6,AT$4<=$F6),$G6/($F6+1-$E6),0)*(1+((VLOOKUP(AT$4,'Escalation Calculator'!$C$8:$BI$67,21,FALSE)-VLOOKUP(N1_MSY,'Escalation Calculator'!$C$8:$BI$67,21,FALSE))/VLOOKUP(N1_MSY,'Escalation Calculator'!$C$8:$BI$67,21,FALSE))),0),IF(AT$4=$E6,$G6*(1+((VLOOKUP(AT$4,'Escalation Calculator'!$C$8:$BI$67,21,FALSE)-VLOOKUP(N1_MSY,'Escalation Calculator'!$C$8:$BI$67,21,FALSE))/VLOOKUP(N1_MSY,'Escalation Calculator'!$C$8:$BI$67,21,FALSE))),0)) -> 0 | AU6: =IF($F6<>"",IFERROR(IF(AND(AU$4>=$E6,AU$4<=$F6),$G6/($F6+1-$E6),0)*(1+((VLOOKUP(AU$4,'Escalation Calculator'!$C$8:$BI$67,21,FALSE)-VLOOKUP(N1_MSY,'Escalation Calculator'!$C$8:$BI$67,21,FALSE))/VLOOKUP(N1_MSY,'Escalation Calculator'!$C$8:$BI$67,21,FALSE))),0),IF(AU$4=$E6,$G6*(1+((VLOOKUP(AU$4,'Escalation Calculator'!$C$8:$BI$67,21,FALSE)-VLOOKUP(N1_MSY,'Escalation Calculator'!$C$8:$BI$67,21,FALSE))/VLOOKUP(N1_MSY,'Escalation Calculator'!$C$8:$BI$67,21,FALSE))),0)) -> 0 | AV6: =IF($F6<>"",IFERROR(IF(AND(AV$4>=$E6,AV$4<=$F6),$G6/($F6+1-$E6),0)*(1+((VLOOKUP(AV$4,'Escalation Calculator'!$C$8:$BI$67,21,FALSE)-VLOOKUP(N1_MSY,'Escalation Calculator'!$C$8:$BI$67,21,FALSE))/VLOOKUP(N1_MSY,'Escalation Calculator'!$C$8:$BI$67,21,FALSE))),0),IF(AV$4=$E6,$G6*(1+((VLOOKUP(AV$4,'Escalation Calculator'!$C$8:$BI$67,21,FALSE)-VLOOKUP(N1_MSY,'Escalation Calculator'!$C$8:$BI$67,21,FALSE))/VLOOKUP(N1_MSY,'Escalation Calculator'!$C$8:$BI$67,21,FALSE))),0)) -> 0 | AW6: =IF($F6<>"",IFERROR(IF(AND(AW$4>=$E6,AW$4<=$F6),$G6/($F6+1-$E6),0)*(1+((VLOOKUP(AW$4,'Escalation Calculator'!$C$8:$BI$67,21,FALSE)-VLOOKUP(N1_MSY,'Escalation Calculator'!$C$8:$BI$67,21,FALSE))/VLOOKUP(N1_MSY,'Escalation Calculator'!$C$8:$BI$67,21,FALSE))),0),IF(AW$4=$E6,$G6*(1+((VLOOKUP(AW$4,'Escalation Calculator'!$C$8:$BI$67,21,FALSE)-VLOOKUP(N1_MSY,'Escalation Calculator'!$C$8:$BI$67,21,FALSE))/VLOOKUP(N1_MSY,'Escalation Calculator'!$C$8:$BI$67,21,FALSE))),0)) -> 0 | AX6: =IF($F6<>"",IFERROR(IF(AND(AX$4>=$E6,AX$4<=$F6),$G6/($F6+1-$E6),0)*(1+((VLOOKUP(AX$4,'Escalation Calculator'!$C$8:$BI$67,21,FALSE)-VLOOKUP(N1_MSY,'Escalation Calculator'!$C$8:$BI$67,21,FALSE))/VLOOKUP(N1_MSY,'Escalation Calculator'!$C$8:$BI$67,21,FALSE))),0),IF(AX$4=$E6,$G6*(1+((VLOOKUP(AX$4,'Escalation Calculator'!$C$8:$BI$67,21,FALSE)-VLOOKUP(N1_MSY,'Escalation Calculator'!$C$8:$BI$67,21,FALSE))/VLOOKUP(N1_MSY,'Escalation Calculator'!$C$8:$BI$67,21,FALSE))),0)) -> 0 | AY6: =IF($F6<>"",IFERROR(IF(AND(AY$4>=$E6,AY$4<=$F6),$G6/($F6+1-$E6),0)*(1+((VLOOKUP(AY$4,'Escalation Calculator'!$C$8:$BI$67,21,FALSE)-VLOOKUP(N1_MSY,'Escalation Calculator'!$C$8:$BI$67,21,FALSE))/VLOOKUP(N1_MSY,'Escalation Calculator'!$C$8:$BI$67,21,FALSE))),0),IF(AY$4=$E6,$G6*(1+((VLOOKUP(AY$4,'Escalation Calculator'!$C$8:$BI$67,21,FALSE)-VLOOKUP(N1_MSY,'Escalation Calculator'!$C$8:$BI$67,21,FALSE))/VLOOKUP(N1_MSY,'Escalation Calculator'!$C$8:$BI$67,21,FALSE))),0)) -> 0 | AZ6: =IF($F6<>"",IFERROR(IF(AND(AZ$4>=$E6,AZ$4<=$F6),$G6/($F6+1-$E6),0)*(1+((VLOOKUP(AZ$4,'Escalation Calculator'!$C$8:$BI$67,21,FALSE)-VLOOKUP(N1_MSY,'Escalation Calculator'!$C$8:$BI$67,21,FALSE))/VLOOKUP(N1_MSY,'Escalation Calculator'!$C$8:$BI$67,21,FALSE))),0),IF(AZ$4=$E6,$G6*(1+((VLOOKUP(AZ$4,'Escalation Calculator'!$C$8:$BI$67,21,FALSE)-VLOOKUP(N1_MSY,'Escalation Calculator'!$C$8:$BI$67,21,FALSE))/VLOOKUP(N1_MSY,'Escalation Calculator'!$C$8:$BI$67,21,FALSE))),0)) -> 0 | BA6: =IF($F6<>"",IFERROR(IF(AND(BA$4>=$E6,BA$4<=$F6),$G6/($F6+1-$E6),0)*(1+((VLOOKUP(BA$4,'Escalation Calculator'!$C$8:$BI$67,21,FALSE)-VLOOKUP(N1_MSY,'Escalation Calculator'!$C$8:$BI$67,21,FALSE))/VLOOKUP(N1_MSY,'Escalation Calculator'!$C$8:$BI$67,21,FALSE))),0),IF(BA$4=$E6,$G6*(1+((VLOOKUP(BA$4,'Escalation Calculator'!$C$8:$BI$67,21,FALSE)-VLOOKUP(N1_MSY,'Escalation Calculator'!$C$8:$BI$67,21,FALSE))/VLOOKUP(N1_MSY,'Escalation Calculator'!$C$8:$BI$67,21,FALSE))),0)) -> 0 | BB6: =IF($F6<>"",IFERROR(IF(AND(BB$4>=$E6,BB$4<=$F6),$G6/($F6+1-$E6),0)*(1+((VLOOKUP(BB$4,'Escalation Calculator'!$C$8:$BI$67,21,FALSE)-VLOOKUP(N1_MSY,'Escalation Calculator'!$C$8:$BI$67,21,FALSE))/VLOOKUP(N1_MSY,'Escalation Calculator'!$C$8:$BI$67,21,FALSE))),0),IF(BB$4=$E6,$G6*(1+((VLOOKUP(BB$4,'Escalation Calculator'!$C$8:$BI$67,21,FALSE)-VLOOKUP(N1_MSY,'Escalation Calculator'!$C$8:$BI$67,21,FALSE))/VLOOKUP(N1_MSY,'Escalation Calculator'!$C$8:$BI$67,21,FALSE))),0)) -> 0 | BC6: =IF($F6<>"",IFERROR(IF(AND(BC$4>=$E6,BC$4<=$F6),$G6/($F6+1-$E6),0)*(1+((VLOOKUP(BC$4,'Escalation Calculator'!$C$8:$BI$67,21,FALSE)-VLOOKUP(N1_MSY,'Escalation Calculator'!$C$8:$BI$67,21,FALSE))/VLOOKUP(N1_MSY,'Escalation Calculator'!$C$8:$BI$67,21,FALSE))),0),IF(BC$4=$E6,$G6*(1+((VLOOKUP(BC$4,'Escalation Calculator'!$C$8:$BI$67,21,FALSE)-VLOOKUP(N1_MSY,'Escalation Calculator'!$C$8:$BI$67,21,FALSE))/VLOOKUP(N1_MSY,'Escalation Calculator'!$C$8:$BI$67,21,FALSE))),0)) -> 0 | BD6: =IF($F6<>"",IFERROR(IF(AND(BD$4>=$E6,BD$4<=$F6),$G6/($F6+1-$E6),0)*(1+((VLOOKUP(BD$4,'Escalation Calculator'!$C$8:$BI$67,21,FALSE)-VLOOKUP(N1_MSY,'Escalation Calculator'!$C$8:$BI$67,21,FALSE))/VLOOKUP(N1_MSY,'Escalation Calculator'!$C$8:$BI$67,21,FALSE))),0),IF(BD$4=$E6,$G6*(1+((VLOOKUP(BD$4,'Escalation Calculator'!$C$8:$BI$67,21,FALSE)-VLOOKUP(N1_MSY,'Escalation Calculator'!$C$8:$BI$67,21,FALSE))/VLOOKUP(N1_MSY,'Escalation Calculator'!$C$8:$BI$67,21,FALSE))),0)) -> 0 | BE6: =IF($F6<>"",IFERROR(IF(AND(BE$4>=$E6,BE$4<=$F6),$G6/($F6+1-$E6),0)*(1+((VLOOKUP(BE$4,'Escalation Calculator'!$C$8:$BI$67,21,FALSE)-VLOOKUP(N1_MSY,'Escalation Calculator'!$C$8:$BI$67,21,FALSE))/VLOOKUP(N1_MSY,'Escalation Calculator'!$C$8:$BI$67,21,FALSE))),0),IF(BE$4=$E6,$G6*(1+((VLOOKUP(BE$4,'Escalation Calculator'!$C$8:$BI$67,21,FALSE)-VLOOKUP(N1_MSY,'Escalation Calculator'!$C$8:$BI$67,21,FALSE))/VLOOKUP(N1_MSY,'Escalation Calculator'!$C$8:$BI$67,21,FALSE))),0)) -> 0 | BF6: =IF($F6<>"",IFERROR(IF(AND(BF$4>=$E6,BF$4<=$F6),$G6/($F6+1-$E6),0)*(1+((VLOOKUP(BF$4,'Escalation Calculator'!$C$8:$BI$67,21,FALSE)-VLOOKUP(N1_MSY,'Escalation Calculator'!$C$8:$BI$67,21,FALSE))/VLOOKUP(N1_MSY,'Escalation Calculator'!$C$8:$BI$67,21,FALSE))),0),IF(BF$4=$E6,$G6*(1+((VLOOKUP(BF$4,'Escalation Calculator'!$C$8:$BI$67,21,FALSE)-VLOOKUP(N1_MSY,'Escalation Calculator'!$C$8:$BI$67,21,FALSE))/VLOOKUP(N1_MSY,'Escalation Calculator'!$C$8:$BI$67,21,FALSE))),0)) -> 0 | BG6: =IF($F6<>"",IFERROR(IF(AND(BG$4>=$E6,BG$4<=$F6),$G6/($F6+1-$E6),0)*(1+((VLOOKUP(BG$4,'Escalation Calculator'!$C$8:$BI$67,21,FALSE)-VLOOKUP(N1_MSY,'Escalation Calculator'!$C$8:$BI$67,21,FALSE))/VLOOKUP(N1_MSY,'Escalation Calculator'!$C$8:$BI$67,21,FALSE))),0),IF(BG$4=$E6,$G6*(1+((VLOOKUP(BG$4,'Escalation Calculator'!$C$8:$BI$67,21,FALSE)-VLOOKUP(N1_MSY,'Escalation Calculator'!$C$8:$BI$67,21,FALSE))/VLOOKUP(N1_MSY,'Escalation Calculator'!$C$8:$BI$67,21,FALSE))),0)) -> 0
B7: ='Water Supply - Future'!B8 -> W2-LW | C7: =IF('Water Supply - Future'!H8=0,"",'Water Supply - Future'!H8) -> Infrastructure provider | D7: ='Water Supply - Future'!G8 -> Greater Airlie Beach | E7: ='Water Supply - Future'!J8 -> 2022 | F7: ='Water Supply - Future'!K8 -> 2024 | G7: ='Water Supply - Future'!Z8 -> 871255 | H7: 894580.3208 | I7: =IF($F7<>"",IFERROR(IF(AND(I$4>=$E7,I$4<=$F7),$G7/($F7+1-$E7),0)*(1+((VLOOKUP(I$4,'Escalation Calculator'!$C$8:$BI$67,21,FALSE)-VLOOKUP(N1_MSY,'Escalation Calculator'!$C$8:$BI$67,21,FALSE))/VLOOKUP(N1_MSY,'Escalation Calculator'!$C$8:$BI$67,21,FALSE))),0),IF(I$4=$E7,$G7*(1+((VLOOKUP(I$4,'Escalation Calculator'!$C$8:$BI$67,21,FALSE)-VLOOKUP(N1_MSY,'Escalation Calculator'!$C$8:$BI$67,21,FALSE))/VLOOKUP(N1_MSY,'Escalation Calculator'!$C$8:$BI$67,21,FALSE))),0)) -> 0 | J7: =IF($F7<>"",IFERROR(IF(AND(J$4>=$E7,J$4<=$F7),$G7/($F7+1-$E7),0)*(1+((VLOOKUP(J$4,'Escalation Calculator'!$C$8:$BI$67,21,FALSE)-VLOOKUP(N1_MSY,'Escalation Calculator'!$C$8:$BI$67,21,FALSE))/VLOOKUP(N1_MSY,'Escalation Calculator'!$C$8:$BI$67,21,FALSE))),0),IF(J$4=$E7,$G7*(1+((VLOOKUP(J$4,'Escalation Calculator'!$C$8:$BI$67,21,FALSE)-VLOOKUP(N1_MSY,'Escalation Calculator'!$C$8:$BI$67,21,FALSE))/VLOOKUP(N1_MSY,'Escalation Calculator'!$C$8:$BI$67,21,FALSE))),0)) -> 294271.6888 | K7: =IF($F7<>"",IFERROR(IF(AND(K$4>=$E7,K$4<=$F7),$G7/($F7+1-$E7),0)*(1+((VLOOKUP(K$4,'Escalation Calculator'!$C$8:$BI$67,21,FALSE)-VLOOKUP(N1_MSY,'Escalation Calculator'!$C$8:$BI$67,21,FALSE))/VLOOKUP(N1_MSY,'Escalation Calculator'!$C$8:$BI$67,21,FALSE))),0),IF(K$4=$E7,$G7*(1+((VLOOKUP(K$4,'Escalation Calculator'!$C$8:$BI$67,21,FALSE)-VLOOKUP(N1_MSY,'Escalation Calculator'!$C$8:$BI$67,21,FALSE))/VLOOKUP(N1_MSY,'Escalation Calculator'!$C$8:$BI$67,21,FALSE))),0)) -> 298176.1717 | L7: =IF($F7<>"",IFERROR(IF(AND(L$4>=$E7,L$4<=$F7),$G7/($F7+1-$E7),0)*(1+((VLOOKUP(L$4,'Escalation Calculator'!$C$8:$BI$67,21,FALSE)-VLOOKUP(N1_MSY,'Escalation Calculator'!$C$8:$BI$67,21,FALSE))/VLOOKUP(N1_MSY,'Escalation Calculator'!$C$8:$BI$67,21,FALSE))),0),IF(L$4=$E7,$G7*(1+((VLOOKUP(L$4,'Escalation Calculator'!$C$8:$BI$67,21,FALSE)-VLOOKUP(N1_MSY,'Escalation Calculator'!$C$8:$BI$67,21,FALSE))/VLOOKUP(N1_MSY,'Escalation Calculator'!$C$8:$BI$67,21,FALSE))),0)) -> 302132.4604 | M7: =IF($F7<>"",IFERROR(IF(AND(M$4>=$E7,M$4<=$F7),$G7/($F7+1-$E7),0)*(1+((VLOOKUP(M$4,'Escalation Calculator'!$C$8:$BI$67,21,FALSE)-VLOOKUP(N1_MSY,'Escalation Calculator'!$C$8:$BI$67,21,FALSE))/VLOOKUP(N1_MSY,'Escalation Calculator'!$C$8:$BI$67,21,FALSE))),0),IF(M$4=$E7,$G7*(1+((VLOOKUP(M$4,'Escalation Calculator'!$C$8:$BI$67,21,FALSE)-VLOOKUP(N1_MSY,'Escalation Calculator'!$C$8:$BI$67,21,FALSE))/VLOOKUP(N1_MSY,'Escalation Calculator'!$C$8:$BI$67,21,FALSE))),0)) -> 0 | N7: =IF($F7<>"",IFERROR(IF(AND(N$4>=$E7,N$4<=$F7),$G7/($F7+1-$E7),0)*(1+((VLOOKUP(N$4,'Escalation Calculator'!$C$8:$BI$67,21,FALSE)-VLOOKUP(N1_MSY,'Escalation Calculator'!$C$8:$BI$67,21,FALSE))/VLOOKUP(N1_MSY,'Escalation Calculator'!$C$8:$BI$67,21,FALSE))),0),IF(N$4=$E7,$G7*(1+((VLOOKUP(N$4,'Escalation Calculator'!$C$8:$BI$67,21,FALSE)-VLOOKUP(N1_MSY,'Escalation Calculator'!$C$8:$BI$67,21,FALSE))/VLOOKUP(N1_MSY,'Escalation Calculator'!$C$8:$BI$67,21,FALSE))),0)) -> 0 | O7: =IF($F7<>"",IFERROR(IF(AND(O$4>=$E7,O$4<=$F7),$G7/($F7+1-$E7),0)*(1+((VLOOKUP(O$4,'Escalation Calculator'!$C$8:$BI$67,21,FALSE)-VLOOKUP(N1_MSY,'Escalation Calculator'!$C$8:$BI$67,21,FALSE))/VLOOKUP(N1_MSY,'Escalation Calculator'!$C$8:$BI$67,21,FALSE))),0),IF(O$4=$E7,$G7*(1+((VLOOKUP(O$4,'Escalation Calculator'!$C$8:$BI$67,21,FALSE)-VLOOKUP(N1_MSY,'Escalation Calculator'!$C$8:$BI$67,21,FALSE))/VLOOKUP(N1_MSY,'Escalation Calculator'!$C$8:$BI$67,21,FALSE))),0)) -> 0 | P7: =IF($F7<>"",IFERROR(IF(AND(P$4>=$E7,P$4<=$F7),$G7/($F7+1-$E7),0)*(1+((VLOOKUP(P$4,'Escalation Calculator'!$C$8:$BI$67,21,FALSE)-VLOOKUP(N1_MSY,'Escalation Calculator'!$C$8:$BI$67,21,FALSE))/VLOOKUP(N1_MSY,'Escalation Calculator'!$C$8:$BI$67,21,FALSE))),0),IF(P$4=$E7,$G7*(1+((VLOOKUP(P$4,'Escalation Calculator'!$C$8:$BI$67,21,FALSE)-VLOOKUP(N1_MSY,'Escalation Calculator'!$C$8:$BI$67,21,FALSE))/VLOOKUP(N1_MSY,'Escalation Calculator'!$C$8:$BI$67,21,FALSE))),0)) -> 0 | Q7: =IF($F7<>"",IFERROR(IF(AND(Q$4>=$E7,Q$4<=$F7),$G7/($F7+1-$E7),0)*(1+((VLOOKUP(Q$4,'Escalation Calculator'!$C$8:$BI$67,21,FALSE)-VLOOKUP(N1_MSY,'Escalation Calculator'!$C$8:$BI$67,21,FALSE))/VLOOKUP(N1_MSY,'Escalation Calculator'!$C$8:$BI$67,21,FALSE))),0),IF(Q$4=$E7,$G7*(1+((VLOOKUP(Q$4,'Escalation Calculator'!$C$8:$BI$67,21,FALSE)-VLOOKUP(N1_MSY,'Escalation Calculator'!$C$8:$BI$67,21,FALSE))/VLOOKUP(N1_MSY,'Escalation Calculator'!$C$8:$BI$67,21,FALSE))),0)) -> 0 | R7: =IF($F7<>"",IFERROR(IF(AND(R$4>=$E7,R$4<=$F7),$G7/($F7+1-$E7),0)*(1+((VLOOKUP(R$4,'Escalation Calculator'!$C$8:$BI$67,21,FALSE)-VLOOKUP(N1_MSY,'Escalation Calculator'!$C$8:$BI$67,21,FALSE))/VLOOKUP(N1_MSY,'Escalation Calculator'!$C$8:$BI$67,21,FALSE))),0),IF(R$4=$E7,$G7*(1+((VLOOKUP(R$4,'Escalation Calculator'!$C$8:$BI$67,21,FALSE)-VLOOKUP(N1_MSY,'Escalation Calculator'!$C$8:$BI$67,21,FALSE))/VLOOKUP(N1_MSY,'Escalation Calculator'!$C$8:$BI$67,21,FALSE))),0)) -> 0 | S7: =IF($F7<>"",IFERROR(IF(AND(S$4>=$E7,S$4<=$F7),$G7/($F7+1-$E7),0)*(1+((VLOOKUP(S$4,'Escalation Calculator'!$C$8:$BI$67,21,FALSE)-VLOOKUP(N1_MSY,'Escalation Calculator'!$C$8:$BI$67,21,FALSE))/VLOOKUP(N1_MSY,'Escalation Calculator'!$C$8:$BI$67,21,FALSE))),0),IF(S$4=$E7,$G7*(1+((VLOOKUP(S$4,'Escalation Calculator'!$C$8:$BI$67,21,FALSE)-VLOOKUP(N1_MSY,'Escalation Calculator'!$C$8:$BI$67,21,FALSE))/VLOOKUP(N1_MSY,'Escalation Calculator'!$C$8:$BI$67,21,FALSE))),0)) -> 0 | T7: =IF($F7<>"",IFERROR(IF(AND(T$4>=$E7,T$4<=$F7),$G7/($F7+1-$E7),0)*(1+((VLOOKUP(T$4,'Escalation Calculator'!$C$8:$BI$67,21,FALSE)-VLOOKUP(N1_MSY,'Escalation Calculator'!$C$8:$BI$67,21,FALSE))/VLOOKUP(N1_MSY,'Escalation Calculator'!$C$8:$BI$67,21,FALSE))),0),IF(T$4=$E7,$G7*(1+((VLOOKUP(T$4,'Escalation Calculator'!$C$8:$BI$67,21,FALSE)-VLOOKUP(N1_MSY,'Escalation Calculator'!$C$8:$BI$67,21,FALSE))/VLOOKUP(N1_MSY,'Escalation Calculator'!$C$8:$BI$67,21,FALSE))),0)) -> 0 | U7: =IF($F7<>"",IFERROR(IF(AND(U$4>=$E7,U$4<=$F7),$G7/($F7+1-$E7),0)*(1+((VLOOKUP(U$4,'Escalation Calculator'!$C$8:$BI$67,21,FALSE)-VLOOKUP(N1_MSY,'Escalation Calculator'!$C$8:$BI$67,21,FALSE))/VLOOKUP(N1_MSY,'Escalation Calculator'!$C$8:$BI$67,21,FALSE))),0),IF(U$4=$E7,$G7*(1+((VLOOKUP(U$4,'Escalation Calculator'!$C$8:$BI$67,21,FALSE)-VLOOKUP(N1_MSY,'Escalation Calculator'!$C$8:$BI$67,21,FALSE))/VLOOKUP(N1_MSY,'Escalation Calculator'!$C$8:$BI$67,21,FALSE))),0)) -> 0 | V7: =IF($F7<>"",IFERROR(IF(AND(V$4>=$E7,V$4<=$F7),$G7/($F7+1-$E7),0)*(1+((VLOOKUP(V$4,'Escalation Calculator'!$C$8:$BI$67,21,FALSE)-VLOOKUP(N1_MSY,'Escalation Calculator'!$C$8:$BI$67,21,FALSE))/VLOOKUP(N1_MSY,'Escalation Calculator'!$C$8:$BI$67,21,FALSE))),0),IF(V$4=$E7,$G7*(1+((VLOOKUP(V$4,'Escalation Calculator'!$C$8:$BI$67,21,FALSE)-VLOOKUP(N1_MSY,'Escalation Calculator'!$C$8:$BI$67,21,FALSE))/VLOOKUP(N1_MSY,'Escalation Calculator'!$C$8:$BI$67,21,FALSE))),0)) -> 0 | W7: =IF($F7<>"",IFERROR(IF(AND(W$4>=$E7,W$4<=$F7),$G7/($F7+1-$E7),0)*(1+((VLOOKUP(W$4,'Escalation Calculator'!$C$8:$BI$67,21,FALSE)-VLOOKUP(N1_MSY,'Escalation Calculator'!$C$8:$BI$67,21,FALSE))/VLOOKUP(N1_MSY,'Escalation Calculator'!$C$8:$BI$67,21,FALSE))),0),IF(W$4=$E7,$G7*(1+((VLOOKUP(W$4,'Escalation Calculator'!$C$8:$BI$67,21,FALSE)-VLOOKUP(N1_MSY,'Escalation Calculator'!$C$8:$BI$67,21,FALSE))/VLOOKUP(N1_MSY,'Escalation Calculator'!$C$8:$BI$67,21,FALSE))),0)) -> 0 | X7: =IF($F7<>"",IFERROR(IF(AND(X$4>=$E7,X$4<=$F7),$G7/($F7+1-$E7),0)*(1+((VLOOKUP(X$4,'Escalation Calculator'!$C$8:$BI$67,21,FALSE)-VLOOKUP(N1_MSY,'Escalation Calculator'!$C$8:$BI$67,21,FALSE))/VLOOKUP(N1_MSY,'Escalation Calculator'!$C$8:$BI$67,21,FALSE))),0),IF(X$4=$E7,$G7*(1+((VLOOKUP(X$4,'Escalation Calculator'!$C$8:$BI$67,21,FALSE)-VLOOKUP(N1_MSY,'Escalation Calculator'!$C$8:$BI$67,21,FALSE))/VLOOKUP(N1_MSY,'Escalation Calculator'!$C$8:$BI$67,21,FALSE))),0)) -> 0 | Y7: =IF($F7<>"",IFERROR(IF(AND(Y$4>=$E7,Y$4<=$F7),$G7/($F7+1-$E7),0)*(1+((VLOOKUP(Y$4,'Escalation Calculator'!$C$8:$BI$67,21,FALSE)-VLOOKUP(N1_MSY,'Escalation Calculator'!$C$8:$BI$67,21,FALSE))/VLOOKUP(N1_MSY,'Escalation Calculator'!$C$8:$BI$67,21,FALSE))),0),IF(Y$4=$E7,$G7*(1+((VLOOKUP(Y$4,'Escalation Calculator'!$C$8:$BI$67,21,FALSE)-VLOOKUP(N1_MSY,'Escalation Calculator'!$C$8:$BI$67,21,FALSE))/VLOOKUP(N1_MSY,'Escalation Calculator'!$C$8:$BI$67,21,FALSE))),0)) -> 0 | Z7: =IF($F7<>"",IFERROR(IF(AND(Z$4>=$E7,Z$4<=$F7),$G7/($F7+1-$E7),0)*(1+((VLOOKUP(Z$4,'Escalation Calculator'!$C$8:$BI$67,21,FALSE)-VLOOKUP(N1_MSY,'Escalation Calculator'!$C$8:$BI$67,21,FALSE))/VLOOKUP(N1_MSY,'Escalation Calculator'!$C$8:$BI$67,21,FALSE))),0),IF(Z$4=$E7,$G7*(1+((VLOOKUP(Z$4,'Escalation Calculator'!$C$8:$BI$67,21,FALSE)-VLOOKUP(N1_MSY,'Escalation Calculator'!$C$8:$BI$67,21,FALSE))/VLOOKUP(N1_MSY,'Escalation Calculator'!$C$8:$BI$67,21,FALSE))),0)) -> 0 | AA7: =IF($F7<>"",IFERROR(IF(AND(AA$4>=$E7,AA$4<=$F7),$G7/($F7+1-$E7),0)*(1+((VLOOKUP(AA$4,'Escalation Calculator'!$C$8:$BI$67,21,FALSE)-VLOOKUP(N1_MSY,'Escalation Calculator'!$C$8:$BI$67,21,FALSE))/VLOOKUP(N1_MSY,'Escalation Calculator'!$C$8:$BI$67,21,FALSE))),0),IF(AA$4=$E7,$G7*(1+((VLOOKUP(AA$4,'Escalation Calculator'!$C$8:$BI$67,21,FALSE)-VLOOKUP(N1_MSY,'Escalation Calculator'!$C$8:$BI$67,21,FALSE))/VLOOKUP(N1_MSY,'Escalation Calculator'!$C$8:$BI$67,21,FALSE))),0)) -> 0 | AB7: =IF($F7<>"",IFERROR(IF(AND(AB$4>=$E7,AB$4<=$F7),$G7/($F7+1-$E7),0)*(1+((VLOOKUP(AB$4,'Escalation Calculator'!$C$8:$BI$67,21,FALSE)-VLOOKUP(N1_MSY,'Escalation Calculator'!$C$8:$BI$67,21,FALSE))/VLOOKUP(N1_MSY,'Escalation Calculator'!$C$8:$BI$67,21,FALSE))),0),IF(AB$4=$E7,$G7*(1+((VLOOKUP(AB$4,'Escalation Calculator'!$C$8:$BI$67,21,FALSE)-VLOOKUP(N1_MSY,'Escalation Calculator'!$C$8:$BI$67,21,FALSE))/VLOOKUP(N1_MSY,'Escalation Calculator'!$C$8:$BI$67,21,FALSE))),0)) -> 0 | AC7: =IF($F7<>"",IFERROR(IF(AND(AC$4>=$E7,AC$4<=$F7),$G7/($F7+1-$E7),0)*(1+((VLOOKUP(AC$4,'Escalation Calculator'!$C$8:$BI$67,21,FALSE)-VLOOKUP(N1_MSY,'Escalation Calculator'!$C$8:$BI$67,21,FALSE))/VLOOKUP(N1_MSY,'Escalation Calculator'!$C$8:$BI$67,21,FALSE))),0),IF(AC$4=$E7,$G7*(1+((VLOOKUP(AC$4,'Escalation Calculator'!$C$8:$BI$67,21,FALSE)-VLOOKUP(N1_MSY,'Escalation Calculator'!$C$8:$BI$67,21,FALSE))/VLOOKUP(N1_MSY,'Escalation Calculator'!$C$8:$BI$67,21,FALSE))),0)) -> 0 | AD7: =IF($F7<>"",IFERROR(IF(AND(AD$4>=$E7,AD$4<=$F7),$G7/($F7+1-$E7),0)*(1+((VLOOKUP(AD$4,'Escalation Calculator'!$C$8:$BI$67,21,FALSE)-VLOOKUP(N1_MSY,'Escalation Calculator'!$C$8:$BI$67,21,FALSE))/VLOOKUP(N1_MSY,'Escalation Calculator'!$C$8:$BI$67,21,FALSE))),0),IF(AD$4=$E7,$G7*(1+((VLOOKUP(AD$4,'Escalation Calculator'!$C$8:$BI$67,21,FALSE)-VLOOKUP(N1_MSY,'Escalation Calculator'!$C$8:$BI$67,21,FALSE))/VLOOKUP(N1_MSY,'Escalation Calculator'!$C$8:$BI$67,21,FALSE))),0)) -> 0 | AE7: =IF($F7<>"",IFERROR(IF(AND(AE$4>=$E7,AE$4<=$F7),$G7/($F7+1-$E7),0)*(1+((VLOOKUP(AE$4,'Escalation Calculator'!$C$8:$BI$67,21,FALSE)-VLOOKUP(N1_MSY,'Escalation Calculator'!$C$8:$BI$67,21,FALSE))/VLOOKUP(N1_MSY,'Escalation Calculator'!$C$8:$BI$67,21,FALSE))),0),IF(AE$4=$E7,$G7*(1+((VLOOKUP(AE$4,'Escalation Calculator'!$C$8:$BI$67,21,FALSE)-VLOOKUP(N1_MSY,'Escalation Calculator'!$C$8:$BI$67,21,FALSE))/VLOOKUP(N1_MSY,'Escalation Calculator'!$C$8:$BI$67,21,FALSE))),0)) -> 0 | AF7: =IF($F7<>"",IFERROR(IF(AND(AF$4>=$E7,AF$4<=$F7),$G7/($F7+1-$E7),0)*(1+((VLOOKUP(AF$4,'Escalation Calculator'!$C$8:$BI$67,21,FALSE)-VLOOKUP(N1_MSY,'Escalation Calculator'!$C$8:$BI$67,21,FALSE))/VLOOKUP(N1_MSY,'Escalation Calculator'!$C$8:$BI$67,21,FALSE))),0),IF(AF$4=$E7,$G7*(1+((VLOOKUP(AF$4,'Escalation Calculator'!$C$8:$BI$67,21,FALSE)-VLOOKUP(N1_MSY,'Escalation Calculator'!$C$8:$BI$67,21,FALSE))/VLOOKUP(N1_MSY,'Escalation Calculator'!$C$8:$BI$67,21,FALSE))),0)) -> 0 | AG7: =IF($F7<>"",IFERROR(IF(AND(AG$4>=$E7,AG$4<=$F7),$G7/($F7+1-$E7),0)*(1+((VLOOKUP(AG$4,'Escalation Calculator'!$C$8:$BI$67,21,FALSE)-VLOOKUP(N1_MSY,'Escalation Calculator'!$C$8:$BI$67,21,FALSE))/VLOOKUP(N1_MSY,'Escalation Calculator'!$C$8:$BI$67,21,FALSE))),0),IF(AG$4=$E7,$G7*(1+((VLOOKUP(AG$4,'Escalation Calculator'!$C$8:$BI$67,21,FALSE)-VLOOKUP(N1_MSY,'Escalation Calculator'!$C$8:$BI$67,21,FALSE))/VLOOKUP(N1_MSY,'Escalation Calculator'!$C$8:$BI$67,21,FALSE))),0)) -> 0 | AH7: =IF($F7<>"",IFERROR(IF(AND(AH$4>=$E7,AH$4<=$F7),$G7/($F7+1-$E7),0)*(1+((VLOOKUP(AH$4,'Escalation Calculator'!$C$8:$BI$67,21,FALSE)-VLOOKUP(N1_MSY,'Escalation Calculator'!$C$8:$BI$67,21,FALSE))/VLOOKUP(N1_MSY,'Escalation Calculator'!$C$8:$BI$67,21,FALSE))),0),IF(AH$4=$E7,$G7*(1+((VLOOKUP(AH$4,'Escalation Calculator'!$C$8:$BI$67,21,FALSE)-VLOOKUP(N1_MSY,'Escalation Calculator'!$C$8:$BI$67,21,FALSE))/VLOOKUP(N1_MSY,'Escalation Calculator'!$C$8:$BI$67,21,FALSE))),0)) -> 0 | AI7: =IF($F7<>"",IFERROR(IF(AND(AI$4>=$E7,AI$4<=$F7),$G7/($F7+1-$E7),0)*(1+((VLOOKUP(AI$4,'Escalation Calculator'!$C$8:$BI$67,21,FALSE)-VLOOKUP(N1_MSY,'Escalation Calculator'!$C$8:$BI$67,21,FALSE))/VLOOKUP(N1_MSY,'Escalation Calculator'!$C$8:$BI$67,21,FALSE))),0),IF(AI$4=$E7,$G7*(1+((VLOOKUP(AI$4,'Escalation Calculator'!$C$8:$BI$67,21,FALSE)-VLOOKUP(N1_MSY,'Escalation Calculator'!$C$8:$BI$67,21,FALSE))/VLOOKUP(N1_MSY,'Escalation Calculator'!$C$8:$BI$67,21,FALSE))),0)) -> 0 | AJ7: =IF($F7<>"",IFERROR(IF(AND(AJ$4>=$E7,AJ$4<=$F7),$G7/($F7+1-$E7),0)*(1+((VLOOKUP(AJ$4,'Escalation Calculator'!$C$8:$BI$67,21,FALSE)-VLOOKUP(N1_MSY,'Escalation Calculator'!$C$8:$BI$67,21,FALSE))/VLOOKUP(N1_MSY,'Escalation Calculator'!$C$8:$BI$67,21,FALSE))),0),IF(AJ$4=$E7,$G7*(1+((VLOOKUP(AJ$4,'Escalation Calculator'!$C$8:$BI$67,21,FALSE)-VLOOKUP(N1_MSY,'Escalation Calculator'!$C$8:$BI$67,21,FALSE))/VLOOKUP(N1_MSY,'Escalation Calculator'!$C$8:$BI$67,21,FALSE))),0)) -> 0 | AK7: =IF($F7<>"",IFERROR(IF(AND(AK$4>=$E7,AK$4<=$F7),$G7/($F7+1-$E7),0)*(1+((VLOOKUP(AK$4,'Escalation Calculator'!$C$8:$BI$67,21,FALSE)-VLOOKUP(N1_MSY,'Escalation Calculator'!$C$8:$BI$67,21,FALSE))/VLOOKUP(N1_MSY,'Escalation Calculator'!$C$8:$BI$67,21,FALSE))),0),IF(AK$4=$E7,$G7*(1+((VLOOKUP(AK$4,'Escalation Calculator'!$C$8:$BI$67,21,FALSE)-VLOOKUP(N1_MSY,'Escalation Calculator'!$C$8:$BI$67,21,FALSE))/VLOOKUP(N1_MSY,'Escalation Calculator'!$C$8:$BI$67,21,FALSE))),0)) -> 0 | AL7: =IF($F7<>"",IFERROR(IF(AND(AL$4>=$E7,AL$4<=$F7),$G7/($F7+1-$E7),0)*(1+((VLOOKUP(AL$4,'Escalation Calculator'!$C$8:$BI$67,21,FALSE)-VLOOKUP(N1_MSY,'Escalation Calculator'!$C$8:$BI$67,21,FALSE))/VLOOKUP(N1_MSY,'Escalation Calculator'!$C$8:$BI$67,21,FALSE))),0),IF(AL$4=$E7,$G7*(1+((VLOOKUP(AL$4,'Escalation Calculator'!$C$8:$BI$67,21,FALSE)-VLOOKUP(N1_MSY,'Escalation Calculator'!$C$8:$BI$67,21,FALSE))/VLOOKUP(N1_MSY,'Escalation Calculator'!$C$8:$BI$67,21,FALSE))),0)) -> 0 | AM7: =IF($F7<>"",IFERROR(IF(AND(AM$4>=$E7,AM$4<=$F7),$G7/($F7+1-$E7),0)*(1+((VLOOKUP(AM$4,'Escalation Calculator'!$C$8:$BI$67,21,FALSE)-VLOOKUP(N1_MSY,'Escalation Calculator'!$C$8:$BI$67,21,FALSE))/VLOOKUP(N1_MSY,'Escalation Calculator'!$C$8:$BI$67,21,FALSE))),0),IF(AM$4=$E7,$G7*(1+((VLOOKUP(AM$4,'Escalation Calculator'!$C$8:$BI$67,21,FALSE)-VLOOKUP(N1_MSY,'Escalation Calculator'!$C$8:$BI$67,21,FALSE))/VLOOKUP(N1_MSY,'Escalation Calculator'!$C$8:$BI$67,21,FALSE))),0)) -> 0 | AN7: =IF($F7<>"",IFERROR(IF(AND(AN$4>=$E7,AN$4<=$F7),$G7/($F7+1-$E7),0)*(1+((VLOOKUP(AN$4,'Escalation Calculator'!$C$8:$BI$67,21,FALSE)-VLOOKUP(N1_MSY,'Escalation Calculator'!$C$8:$BI$67,21,FALSE))/VLOOKUP(N1_MSY,'Escalation Calculator'!$C$8:$BI$67,21,FALSE))),0),IF(AN$4=$E7,$G7*(1+((VLOOKUP(AN$4,'Escalation Calculator'!$C$8:$BI$67,21,FALSE)-VLOOKUP(N1_MSY,'Escalation Calculator'!$C$8:$BI$67,21,FALSE))/VLOOKUP(N1_MSY,'Escalation Calculator'!$C$8:$BI$67,21,FALSE))),0)) -> 0 | AO7: =IF($F7<>"",IFERROR(IF(AND(AO$4>=$E7,AO$4<=$F7),$G7/($F7+1-$E7),0)*(1+((VLOOKUP(AO$4,'Escalation Calculator'!$C$8:$BI$67,21,FALSE)-VLOOKUP(N1_MSY,'Escalation Calculator'!$C$8:$BI$67,21,FALSE))/VLOOKUP(N1_MSY,'Escalation Calculator'!$C$8:$BI$67,21,FALSE))),0),IF(AO$4=$E7,$G7*(1+((VLOOKUP(AO$4,'Escalation Calculator'!$C$8:$BI$67,21,FALSE)-VLOOKUP(N1_MSY,'Escalation Calculator'!$C$8:$BI$67,21,FALSE))/VLOOKUP(N1_MSY,'Escalation Calculator'!$C$8:$BI$67,21,FALSE))),0)) -> 0 | AP7: =IF($F7<>"",IFERROR(IF(AND(AP$4>=$E7,AP$4<=$F7),$G7/($F7+1-$E7),0)*(1+((VLOOKUP(AP$4,'Escalation Calculator'!$C$8:$BI$67,21,FALSE)-VLOOKUP(N1_MSY,'Escalation Calculator'!$C$8:$BI$67,21,FALSE))/VLOOKUP(N1_MSY,'Escalation Calculator'!$C$8:$BI$67,21,FALSE))),0),IF(AP$4=$E7,$G7*(1+((VLOOKUP(AP$4,'Escalation Calculator'!$C$8:$BI$67,21,FALSE)-VLOOKUP(N1_MSY,'Escalation Calculator'!$C$8:$BI$67,21,FALSE))/VLOOKUP(N1_MSY,'Escalation Calculator'!$C$8:$BI$67,21,FALSE))),0)) -> 0 | AQ7: =IF($F7<>"",IFERROR(IF(AND(AQ$4>=$E7,AQ$4<=$F7),$G7/($F7+1-$E7),0)*(1+((VLOOKUP(AQ$4,'Escalation Calculator'!$C$8:$BI$67,21,FALSE)-VLOOKUP(N1_MSY,'Escalation Calculator'!$C$8:$BI$67,21,FALSE))/VLOOKUP(N1_MSY,'Escalation Calculator'!$C$8:$BI$67,21,FALSE))),0),IF(AQ$4=$E7,$G7*(1+((VLOOKUP(AQ$4,'Escalation Calculator'!$C$8:$BI$67,21,FALSE)-VLOOKUP(N1_MSY,'Escalation Calculator'!$C$8:$BI$67,21,FALSE))/VLOOKUP(N1_MSY,'Escalation Calculator'!$C$8:$BI$67,21,FALSE))),0)) -> 0 | AR7: =IF($F7<>"",IFERROR(IF(AND(AR$4>=$E7,AR$4<=$F7),$G7/($F7+1-$E7),0)*(1+((VLOOKUP(AR$4,'Escalation Calculator'!$C$8:$BI$67,21,FALSE)-VLOOKUP(N1_MSY,'Escalation Calculator'!$C$8:$BI$67,21,FALSE))/VLOOKUP(N1_MSY,'Escalation Calculator'!$C$8:$BI$67,21,FALSE))),0),IF(AR$4=$E7,$G7*(1+((VLOOKUP(AR$4,'Escalation Calculator'!$C$8:$BI$67,21,FALSE)-VLOOKUP(N1_MSY,'Escalation Calculator'!$C$8:$BI$67,21,FALSE))/VLOOKUP(N1_MSY,'Escalation Calculator'!$C$8:$BI$67,21,FALSE))),0)) -> 0 | AS7: =IF($F7<>"",IFERROR(IF(AND(AS$4>=$E7,AS$4<=$F7),$G7/($F7+1-$E7),0)*(1+((VLOOKUP(AS$4,'Escalation Calculator'!$C$8:$BI$67,21,FALSE)-VLOOKUP(N1_MSY,'Escalation Calculator'!$C$8:$BI$67,21,FALSE))/VLOOKUP(N1_MSY,'Escalation Calculator'!$C$8:$BI$67,21,FALSE))),0),IF(AS$4=$E7,$G7*(1+((VLOOKUP(AS$4,'Escalation Calculator'!$C$8:$BI$67,21,FALSE)-VLOOKUP(N1_MSY,'Escalation Calculator'!$C$8:$BI$67,21,FALSE))/VLOOKUP(N1_MSY,'Escalation Calculator'!$C$8:$BI$67,21,FALSE))),0)) -> 0 | AT7: =IF($F7<>"",IFERROR(IF(AND(AT$4>=$E7,AT$4<=$F7),$G7/($F7+1-$E7),0)*(1+((VLOOKUP(AT$4,'Escalation Calculator'!$C$8:$BI$67,21,FALSE)-VLOOKUP(N1_MSY,'Escalation Calculator'!$C$8:$BI$67,21,FALSE))/VLOOKUP(N1_MSY,'Escalation Calculator'!$C$8:$BI$67,21,FALSE))),0),IF(AT$4=$E7,$G7*(1+((VLOOKUP(AT$4,'Escalation Calculator'!$C$8:$BI$67,21,FALSE)-VLOOKUP(N1_MSY,'Escalation Calculator'!$C$8:$BI$67,21,FALSE))/VLOOKUP(N1_MSY,'Escalation Calculator'!$C$8:$BI$67,21,FALSE))),0)) -> 0 | AU7: =IF($F7<>"",IFERROR(IF(AND(AU$4>=$E7,AU$4<=$F7),$G7/($F7+1-$E7),0)*(1+((VLOOKUP(AU$4,'Escalation Calculator'!$C$8:$BI$67,21,FALSE)-VLOOKUP(N1_MSY,'Escalation Calculator'!$C$8:$BI$67,21,FALSE))/VLOOKUP(N1_MSY,'Escalation Calculator'!$C$8:$BI$67,21,FALSE))),0),IF(AU$4=$E7,$G7*(1+((VLOOKUP(AU$4,'Escalation Calculator'!$C$8:$BI$67,21,FALSE)-VLOOKUP(N1_MSY,'Escalation Calculator'!$C$8:$BI$67,21,FALSE))/VLOOKUP(N1_MSY,'Escalation Calculator'!$C$8:$BI$67,21,FALSE))),0)) -> 0 | AV7: =IF($F7<>"",IFERROR(IF(AND(AV$4>=$E7,AV$4<=$F7),$G7/($F7+1-$E7),0)*(1+((VLOOKUP(AV$4,'Escalation Calculator'!$C$8:$BI$67,21,FALSE)-VLOOKUP(N1_MSY,'Escalation Calculator'!$C$8:$BI$67,21,FALSE))/VLOOKUP(N1_MSY,'Escalation Calculator'!$C$8:$BI$67,21,FALSE))),0),IF(AV$4=$E7,$G7*(1+((VLOOKUP(AV$4,'Escalation Calculator'!$C$8:$BI$67,21,FALSE)-VLOOKUP(N1_MSY,'Escalation Calculator'!$C$8:$BI$67,21,FALSE))/VLOOKUP(N1_MSY,'Escalation Calculator'!$C$8:$BI$67,21,FALSE))),0)) -> 0 | AW7: =IF($F7<>"",IFERROR(IF(AND(AW$4>=$E7,AW$4<=$F7),$G7/($F7+1-$E7),0)*(1+((VLOOKUP(AW$4,'Escalation Calculator'!$C$8:$BI$67,21,FALSE)-VLOOKUP(N1_MSY,'Escalation Calculator'!$C$8:$BI$67,21,FALSE))/VLOOKUP(N1_MSY,'Escalation Calculator'!$C$8:$BI$67,21,FALSE))),0),IF(AW$4=$E7,$G7*(1+((VLOOKUP(AW$4,'Escalation Calculator'!$C$8:$BI$67,21,FALSE)-VLOOKUP(N1_MSY,'Escalation Calculator'!$C$8:$BI$67,21,FALSE))/VLOOKUP(N1_MSY,'Escalation Calculator'!$C$8:$BI$67,21,FALSE))),0)) -> 0 | AX7: =IF($F7<>"",IFERROR(IF(AND(AX$4>=$E7,AX$4<=$F7),$G7/($F7+1-$E7),0)*(1+((VLOOKUP(AX$4,'Escalation Calculator'!$C$8:$BI$67,21,FALSE)-VLOOKUP(N1_MSY,'Escalation Calculator'!$C$8:$BI$67,21,FALSE))/VLOOKUP(N1_MSY,'Escalation Calculator'!$C$8:$BI$67,21,FALSE))),0),IF(AX$4=$E7,$G7*(1+((VLOOKUP(AX$4,'Escalation Calculator'!$C$8:$BI$67,21,FALSE)-VLOOKUP(N1_MSY,'Escalation Calculator'!$C$8:$BI$67,21,FALSE))/VLOOKUP(N1_MSY,'Escalation Calculator'!$C$8:$BI$67,21,FALSE))),0)) -> 0 | AY7: =IF($F7<>"",IFERROR(IF(AND(AY$4>=$E7,AY$4<=$F7),$G7/($F7+1-$E7),0)*(1+((VLOOKUP(AY$4,'Escalation Calculator'!$C$8:$BI$67,21,FALSE)-VLOOKUP(N1_MSY,'Escalation Calculator'!$C$8:$BI$67,21,FALSE))/VLOOKUP(N1_MSY,'Escalation Calculator'!$C$8:$BI$67,21,FALSE))),0),IF(AY$4=$E7,$G7*(1+((VLOOKUP(AY$4,'Escalation Calculator'!$C$8:$BI$67,21,FALSE)-VLOOKUP(N1_MSY,'Escalation Calculator'!$C$8:$BI$67,21,FALSE))/VLOOKUP(N1_MSY,'Escalation Calculator'!$C$8:$BI$67,21,FALSE))),0)) -> 0 | AZ7: =IF($F7<>"",IFERROR(IF(AND(AZ$4>=$E7,AZ$4<=$F7),$G7/($F7+1-$E7),0)*(1+((VLOOKUP(AZ$4,'Escalation Calculator'!$C$8:$BI$67,21,FALSE)-VLOOKUP(N1_MSY,'Escalation Calculator'!$C$8:$BI$67,21,FALSE))/VLOOKUP(N1_MSY,'Escalation Calculator'!$C$8:$BI$67,21,FALSE))),0),IF(AZ$4=$E7,$G7*(1+((VLOOKUP(AZ$4,'Escalation Calculator'!$C$8:$BI$67,21,FALSE)-VLOOKUP(N1_MSY,'Escalation Calculator'!$C$8:$BI$67,21,FALSE))/VLOOKUP(N1_MSY,'Escalation Calculator'!$C$8:$BI$67,21,FALSE))),0)) -> 0 | BA7: =IF($F7<>"",IFERROR(IF(AND(BA$4>=$E7,BA$4<=$F7),$G7/($F7+1-$E7),0)*(1+((VLOOKUP(BA$4,'Escalation Calculator'!$C$8:$BI$67,21,FALSE)-VLOOKUP(N1_MSY,'Escalation Calculator'!$C$8:$BI$67,21,FALSE))/VLOOKUP(N1_MSY,'Escalation Calculator'!$C$8:$BI$67,21,FALSE))),0),IF(BA$4=$E7,$G7*(1+((VLOOKUP(BA$4,'Escalation Calculator'!$C$8:$BI$67,21,FALSE)-VLOOKUP(N1_MSY,'Escalation Calculator'!$C$8:$BI$67,21,FALSE))/VLOOKUP(N1_MSY,'Escalation Calculator'!$C$8:$BI$67,21,FALSE))),0)) -> 0 | BB7: =IF($F7<>"",IFERROR(IF(AND(BB$4>=$E7,BB$4<=$F7),$G7/($F7+1-$E7),0)*(1+((VLOOKUP(BB$4,'Escalation Calculator'!$C$8:$BI$67,21,FALSE)-VLOOKUP(N1_MSY,'Escalation Calculator'!$C$8:$BI$67,21,FALSE))/VLOOKUP(N1_MSY,'Escalation Calculator'!$C$8:$BI$67,21,FALSE))),0),IF(BB$4=$E7,$G7*(1+((VLOOKUP(BB$4,'Escalation Calculator'!$C$8:$BI$67,21,FALSE)-VLOOKUP(N1_MSY,'Escalation Calculator'!$C$8:$BI$67,21,FALSE))/VLOOKUP(N1_MSY,'Escalation Calculator'!$C$8:$BI$67,21,FALSE))),0)) -> 0 | BC7: =IF($F7<>"",IFERROR(IF(AND(BC$4>=$E7,BC$4<=$F7),$G7/($F7+1-$E7),0)*(1+((VLOOKUP(BC$4,'Escalation Calculator'!$C$8:$BI$67,21,FALSE)-VLOOKUP(N1_MSY,'Escalation Calculator'!$C$8:$BI$67,21,FALSE))/VLOOKUP(N1_MSY,'Escalation Calculator'!$C$8:$BI$67,21,FALSE))),0),IF(BC$4=$E7,$G7*(1+((VLOOKUP(BC$4,'Escalation Calculator'!$C$8:$BI$67,21,FALSE)-VLOOKUP(N1_MSY,'Escalation Calculator'!$C$8:$BI$67,21,FALSE))/VLOOKUP(N1_MSY,'Escalation Calculator'!$C$8:$BI$67,21,FALSE))),0)) -> 0 | BD7: =IF($F7<>"",IFERROR(IF(AND(BD$4>=$E7,BD$4<=$F7),$G7/($F7+1-$E7),0)*(1+((VLOOKUP(BD$4,'Escalation Calculator'!$C$8:$BI$67,21,FALSE)-VLOOKUP(N1_MSY,'Escalation Calculator'!$C$8:$BI$67,21,FALSE))/VLOOKUP(N1_MSY,'Escalation Calculator'!$C$8:$BI$67,21,FALSE))),0),IF(BD$4=$E7,$G7*(1+((VLOOKUP(BD$4,'Escalation Calculator'!$C$8:$BI$67,21,FALSE)-VLOOKUP(N1_MSY,'Escalation Calculator'!$C$8:$BI$67,21,FALSE))/VLOOKUP(N1_MSY,'Escalation Calculator'!$C$8:$BI$67,21,FALSE))),0)) -> 0 | BE7: =IF($F7<>"",IFERROR(IF(AND(BE$4>=$E7,BE$4<=$F7),$G7/($F7+1-$E7),0)*(1+((VLOOKUP(BE$4,'Escalation Calculator'!$C$8:$BI$67,21,FALSE)-VLOOKUP(N1_MSY,'Escalation Calculator'!$C$8:$BI$67,21,FALSE))/VLOOKUP(N1_MSY,'Escalation Calculator'!$C$8:$BI$67,21,FALSE))),0),IF(BE$4=$E7,$G7*(1+((VLOOKUP(BE$4,'Escalation Calculator'!$C$8:$BI$67,21,FALSE)-VLOOKUP(N1_MSY,'Escalation Calculator'!$C$8:$BI$67,21,FALSE))/VLOOKUP(N1_MSY,'Escalation Calculator'!$C$8:$BI$67,21,FALSE))),0)) -> 0 | BF7: =IF($F7<>"",IFERROR(IF(AND(BF$4>=$E7,BF$4<=$F7),$G7/($F7+1-$E7),0)*(1+((VLOOKUP(BF$4,'Escalation Calculator'!$C$8:$BI$67,21,FALSE)-VLOOKUP(N1_MSY,'Escalation Calculator'!$C$8:$BI$67,21,FALSE))/VLOOKUP(N1_MSY,'Escalation Calculator'!$C$8:$BI$67,21,FALSE))),0),IF(BF$4=$E7,$G7*(1+((VLOOKUP(BF$4,'Escalation Calculator'!$C$8:$BI$67,21,FALSE)-VLOOKUP(N1_MSY,'Escalation Calculator'!$C$8:$BI$67,21,FALSE))/VLOOKUP(N1_MSY,'Escalation Calculator'!$C$8:$BI$67,21,FALSE))),0)) -> 0 | BG7: =IF($F7<>"",IFERROR(IF(AND(BG$4>=$E7,BG$4<=$F7),$G7/($F7+1-$E7),0)*(1+((VLOOKUP(BG$4,'Escalation Calculator'!$C$8:$BI$67,21,FALSE)-VLOOKUP(N1_MSY,'Escalation Calculator'!$C$8:$BI$67,21,FALSE))/VLOOKUP(N1_MSY,'Escalation Calculator'!$C$8:$BI$67,21,FALSE))),0),IF(BG$4=$E7,$G7*(1+((VLOOKUP(BG$4,'Escalation Calculator'!$C$8:$BI$67,21,FALSE)-VLOOKUP(N1_MSY,'Escalation Calculator'!$C$8:$BI$67,21,FALSE))/VLOOKUP(N1_MSY,'Escalation Calculator'!$C$8:$BI$67,21,FALSE))),0)) -> 0
B8: ='Water Supply - Future'!B9 -> W3-D | C8: =IF('Water Supply - Future'!H9=0,"",'Water Supply - Future'!H9) -> Infrastructure provider | D8: ='Water Supply - Future'!G9 -> Greater Airlie Beach | E8: ='Water Supply - Future'!J9 -> 2022 | F8: ='Water Supply - Future'!K9 -> 2022 | G8: ='Water Supply - Future'!Z9 -> 40361.69231 | H8: 40897.22305 | I8: =IF($F8<>"",IFERROR(IF(AND(I$4>=$E8,I$4<=$F8),$G8/($F8+1-$E8),0)*(1+((VLOOKUP(I$4,'Escalation Calculator'!$C$8:$BI$67,21,FALSE)-VLOOKUP(N1_MSY,'Escalation Calculator'!$C$8:$BI$67,21,FALSE))/VLOOKUP(N1_MSY,'Escalation Calculator'!$C$8:$BI$67,21,FALSE))),0),IF(I$4=$E8,$G8*(1+((VLOOKUP(I$4,'Escalation Calculator'!$C$8:$BI$67,21,FALSE)-VLOOKUP(N1_MSY,'Escalation Calculator'!$C$8:$BI$67,21,FALSE))/VLOOKUP(N1_MSY,'Escalation Calculator'!$C$8:$BI$67,21,FALSE))),0)) -> 0 | J8: =IF($F8<>"",IFERROR(IF(AND(J$4>=$E8,J$4<=$F8),$G8/($F8+1-$E8),0)*(1+((VLOOKUP(J$4,'Escalation Calculator'!$C$8:$BI$67,21,FALSE)-VLOOKUP(N1_MSY,'Escalation Calculator'!$C$8:$BI$67,21,FALSE))/VLOOKUP(N1_MSY,'Escalation Calculator'!$C$8:$BI$67,21,FALSE))),0),IF(J$4=$E8,$G8*(1+((VLOOKUP(J$4,'Escalation Calculator'!$C$8:$BI$67,21,FALSE)-VLOOKUP(N1_MSY,'Escalation Calculator'!$C$8:$BI$67,21,FALSE))/VLOOKUP(N1_MSY,'Escalation Calculator'!$C$8:$BI$67,21,FALSE))),0)) -> 40897.22305 | K8: =IF($F8<>"",IFERROR(IF(AND(K$4>=$E8,K$4<=$F8),$G8/($F8+1-$E8),0)*(1+((VLOOKUP(K$4,'Escalation Calculator'!$C$8:$BI$67,21,FALSE)-VLOOKUP(N1_MSY,'Escalation Calculator'!$C$8:$BI$67,21,FALSE))/VLOOKUP(N1_MSY,'Escalation Calculator'!$C$8:$BI$67,21,FALSE))),0),IF(K$4=$E8,$G8*(1+((VLOOKUP(K$4,'Escalation Calculator'!$C$8:$BI$67,21,FALSE)-VLOOKUP(N1_MSY,'Escalation Calculator'!$C$8:$BI$67,21,FALSE))/VLOOKUP(N1_MSY,'Escalation Calculator'!$C$8:$BI$67,21,FALSE))),0)) -> 0 | L8: =IF($F8<>"",IFERROR(IF(AND(L$4>=$E8,L$4<=$F8),$G8/($F8+1-$E8),0)*(1+((VLOOKUP(L$4,'Escalation Calculator'!$C$8:$BI$67,21,FALSE)-VLOOKUP(N1_MSY,'Escalation Calculator'!$C$8:$BI$67,21,FALSE))/VLOOKUP(N1_MSY,'Escalation Calculator'!$C$8:$BI$67,21,FALSE))),0),IF(L$4=$E8,$G8*(1+((VLOOKUP(L$4,'Escalation Calculator'!$C$8:$BI$67,21,FALSE)-VLOOKUP(N1_MSY,'Escalation Calculator'!$C$8:$BI$67,21,FALSE))/VLOOKUP(N1_MSY,'Escalation Calculator'!$C$8:$BI$67,21,FALSE))),0)) -> 0 | M8: =IF($F8<>"",IFERROR(IF(AND(M$4>=$E8,M$4<=$F8),$G8/($F8+1-$E8),0)*(1+((VLOOKUP(M$4,'Escalation Calculator'!$C$8:$BI$67,21,FALSE)-VLOOKUP(N1_MSY,'Escalation Calculator'!$C$8:$BI$67,21,FALSE))/VLOOKUP(N1_MSY,'Escalation Calculator'!$C$8:$BI$67,21,FALSE))),0),IF(M$4=$E8,$G8*(1+((VLOOKUP(M$4,'Escalation Calculator'!$C$8:$BI$67,21,FALSE)-VLOOKUP(N1_MSY,'Escalation Calculator'!$C$8:$BI$67,21,FALSE))/VLOOKUP(N1_MSY,'Escalation Calculator'!$C$8:$BI$67,21,FALSE))),0)) -> 0 | N8: =IF($F8<>"",IFERROR(IF(AND(N$4>=$E8,N$4<=$F8),$G8/($F8+1-$E8),0)*(1+((VLOOKUP(N$4,'Escalation Calculator'!$C$8:$BI$67,21,FALSE)-VLOOKUP(N1_MSY,'Escalation Calculator'!$C$8:$BI$67,21,FALSE))/VLOOKUP(N1_MSY,'Escalation Calculator'!$C$8:$BI$67,21,FALSE))),0),IF(N$4=$E8,$G8*(1+((VLOOKUP(N$4,'Escalation Calculator'!$C$8:$BI$67,21,FALSE)-VLOOKUP(N1_MSY,'Escalation Calculator'!$C$8:$BI$67,21,FALSE))/VLOOKUP(N1_MSY,'Escalation Calculator'!$C$8:$BI$67,21,FALSE))),0)) -> 0 | O8: =IF($F8<>"",IFERROR(IF(AND(O$4>=$E8,O$4<=$F8),$G8/($F8+1-$E8),0)*(1+((VLOOKUP(O$4,'Escalation Calculator'!$C$8:$BI$67,21,FALSE)-VLOOKUP(N1_MSY,'Escalation Calculator'!$C$8:$BI$67,21,FALSE))/VLOOKUP(N1_MSY,'Escalation Calculator'!$C$8:$BI$67,21,FALSE))),0),IF(O$4=$E8,$G8*(1+((VLOOKUP(O$4,'Escalation Calculator'!$C$8:$BI$67,21,FALSE)-VLOOKUP(N1_MSY,'Escalation Calculator'!$C$8:$BI$67,21,FALSE))/VLOOKUP(N1_MSY,'Escalation Calculator'!$C$8:$BI$67,21,FALSE))),0)) -> 0 | P8: =IF($F8<>"",IFERROR(IF(AND(P$4>=$E8,P$4<=$F8),$G8/($F8+1-$E8),0)*(1+((VLOOKUP(P$4,'Escalation Calculator'!$C$8:$BI$67,21,FALSE)-VLOOKUP(N1_MSY,'Escalation Calculator'!$C$8:$BI$67,21,FALSE))/VLOOKUP(N1_MSY,'Escalation Calculator'!$C$8:$BI$67,21,FALSE))),0),IF(P$4=$E8,$G8*(1+((VLOOKUP(P$4,'Escalation Calculator'!$C$8:$BI$67,21,FALSE)-VLOOKUP(N1_MSY,'Escalation Calculator'!$C$8:$BI$67,21,FALSE))/VLOOKUP(N1_MSY,'Escalation Calculator'!$C$8:$BI$67,21,FALSE))),0)) -> 0 | Q8: =IF($F8<>"",IFERROR(IF(AND(Q$4>=$E8,Q$4<=$F8),$G8/($F8+1-$E8),0)*(1+((VLOOKUP(Q$4,'Escalation Calculator'!$C$8:$BI$67,21,FALSE)-VLOOKUP(N1_MSY,'Escalation Calculator'!$C$8:$BI$67,21,FALSE))/VLOOKUP(N1_MSY,'Escalation Calculator'!$C$8:$BI$67,21,FALSE))),0),IF(Q$4=$E8,$G8*(1+((VLOOKUP(Q$4,'Escalation Calculator'!$C$8:$BI$67,21,FALSE)-VLOOKUP(N1_MSY,'Escalation Calculator'!$C$8:$BI$67,21,FALSE))/VLOOKUP(N1_MSY,'Escalation Calculator'!$C$8:$BI$67,21,FALSE))),0)) -> 0 | R8: =IF($F8<>"",IFERROR(IF(AND(R$4>=$E8,R$4<=$F8),$G8/($F8+1-$E8),0)*(1+((VLOOKUP(R$4,'Escalation Calculator'!$C$8:$BI$67,21,FALSE)-VLOOKUP(N1_MSY,'Escalation Calculator'!$C$8:$BI$67,21,FALSE))/VLOOKUP(N1_MSY,'Escalation Calculator'!$C$8:$BI$67,21,FALSE))),0),IF(R$4=$E8,$G8*(1+((VLOOKUP(R$4,'Escalation Calculator'!$C$8:$BI$67,21,FALSE)-VLOOKUP(N1_MSY,'Escalation Calculator'!$C$8:$BI$67,21,FALSE))/VLOOKUP(N1_MSY,'Escalation Calculator'!$C$8:$BI$67,21,FALSE))),0)) -> 0 | S8: =IF($F8<>"",IFERROR(IF(AND(S$4>=$E8,S$4<=$F8),$G8/($F8+1-$E8),0)*(1+((VLOOKUP(S$4,'Escalation Calculator'!$C$8:$BI$67,21,FALSE)-VLOOKUP(N1_MSY,'Escalation Calculator'!$C$8:$BI$67,21,FALSE))/VLOOKUP(N1_MSY,'Escalation Calculator'!$C$8:$BI$67,21,FALSE))),0),IF(S$4=$E8,$G8*(1+((VLOOKUP(S$4,'Escalation Calculator'!$C$8:$BI$67,21,FALSE)-VLOOKUP(N1_MSY,'Escalation Calculator'!$C$8:$BI$67,21,FALSE))/VLOOKUP(N1_MSY,'Escalation Calculator'!$C$8:$BI$67,21,FALSE))),0)) -> 0 | T8: =IF($F8<>"",IFERROR(IF(AND(T$4>=$E8,T$4<=$F8),$G8/($F8+1-$E8),0)*(1+((VLOOKUP(T$4,'Escalation Calculator'!$C$8:$BI$67,21,FALSE)-VLOOKUP(N1_MSY,'Escalation Calculator'!$C$8:$BI$67,21,FALSE))/VLOOKUP(N1_MSY,'Escalation Calculator'!$C$8:$BI$67,21,FALSE))),0),IF(T$4=$E8,$G8*(1+((VLOOKUP(T$4,'Escalation Calculator'!$C$8:$BI$67,21,FALSE)-VLOOKUP(N1_MSY,'Escalation Calculator'!$C$8:$BI$67,21,FALSE))/VLOOKUP(N1_MSY,'Escalation Calculator'!$C$8:$BI$67,21,FALSE))),0)) -> 0 | U8: =IF($F8<>"",IFERROR(IF(AND(U$4>=$E8,U$4<=$F8),$G8/($F8+1-$E8),0)*(1+((VLOOKUP(U$4,'Escalation Calculator'!$C$8:$BI$67,21,FALSE)-VLOOKUP(N1_MSY,'Escalation Calculator'!$C$8:$BI$67,21,FALSE))/VLOOKUP(N1_MSY,'Escalation Calculator'!$C$8:$BI$67,21,FALSE))),0),IF(U$4=$E8,$G8*(1+((VLOOKUP(U$4,'Escalation Calculator'!$C$8:$BI$67,21,FALSE)-VLOOKUP(N1_MSY,'Escalation Calculator'!$C$8:$BI$67,21,FALSE))/VLOOKUP(N1_MSY,'Escalation Calculator'!$C$8:$BI$67,21,FALSE))),0)) -> 0 | V8: =IF($F8<>"",IFERROR(IF(AND(V$4>=$E8,V$4<=$F8),$G8/($F8+1-$E8),0)*(1+((VLOOKUP(V$4,'Escalation Calculator'!$C$8:$BI$67,21,FALSE)-VLOOKUP(N1_MSY,'Escalation Calculator'!$C$8:$BI$67,21,FALSE))/VLOOKUP(N1_MSY,'Escalation Calculator'!$C$8:$BI$67,21,FALSE))),0),IF(V$4=$E8,$G8*(1+((VLOOKUP(V$4,'Escalation Calculator'!$C$8:$BI$67,21,FALSE)-VLOOKUP(N1_MSY,'Escalation Calculator'!$C$8:$BI$67,21,FALSE))/VLOOKUP(N1_MSY,'Escalation Calculator'!$C$8:$BI$67,21,FALSE))),0)) -> 0 | W8: =IF($F8<>"",IFERROR(IF(AND(W$4>=$E8,W$4<=$F8),$G8/($F8+1-$E8),0)*(1+((VLOOKUP(W$4,'Escalation Calculator'!$C$8:$BI$67,21,FALSE)-VLOOKUP(N1_MSY,'Escalation Calculator'!$C$8:$BI$67,21,FALSE))/VLOOKUP(N1_MSY,'Escalation Calculator'!$C$8:$BI$67,21,FALSE))),0),IF(W$4=$E8,$G8*(1+((VLOOKUP(W$4,'Escalation Calculator'!$C$8:$BI$67,21,FALSE)-VLOOKUP(N1_MSY,'Escalation Calculator'!$C$8:$BI$67,21,FALSE))/VLOOKUP(N1_MSY,'Escalation Calculator'!$C$8:$BI$67,21,FALSE))),0)) -> 0 | X8: =IF($F8<>"",IFERROR(IF(AND(X$4>=$E8,X$4<=$F8),$G8/($F8+1-$E8),0)*(1+((VLOOKUP(X$4,'Escalation Calculator'!$C$8:$BI$67,21,FALSE)-VLOOKUP(N1_MSY,'Escalation Calculator'!$C$8:$BI$67,21,FALSE))/VLOOKUP(N1_MSY,'Escalation Calculator'!$C$8:$BI$67,21,FALSE))),0),IF(X$4=$E8,$G8*(1+((VLOOKUP(X$4,'Escalation Calculator'!$C$8:$BI$67,21,FALSE)-VLOOKUP(N1_MSY,'Escalation Calculator'!$C$8:$BI$67,21,FALSE))/VLOOKUP(N1_MSY,'Escalation Calculator'!$C$8:$BI$67,21,FALSE))),0)) -> 0 | Y8: =IF($F8<>"",IFERROR(IF(AND(Y$4>=$E8,Y$4<=$F8),$G8/($F8+1-$E8),0)*(1+((VLOOKUP(Y$4,'Escalation Calculator'!$C$8:$BI$67,21,FALSE)-VLOOKUP(N1_MSY,'Escalation Calculator'!$C$8:$BI$67,21,FALSE))/VLOOKUP(N1_MSY,'Escalation Calculator'!$C$8:$BI$67,21,FALSE))),0),IF(Y$4=$E8,$G8*(1+((VLOOKUP(Y$4,'Escalation Calculator'!$C$8:$BI$67,21,FALSE)-VLOOKUP(N1_MSY,'Escalation Calculator'!$C$8:$BI$67,21,FALSE))/VLOOKUP(N1_MSY,'Escalation Calculator'!$C$8:$BI$67,21,FALSE))),0)) -> 0 | Z8: =IF($F8<>"",IFERROR(IF(AND(Z$4>=$E8,Z$4<=$F8),$G8/($F8+1-$E8),0)*(1+((VLOOKUP(Z$4,'Escalation Calculator'!$C$8:$BI$67,21,FALSE)-VLOOKUP(N1_MSY,'Escalation Calculator'!$C$8:$BI$67,21,FALSE))/VLOOKUP(N1_MSY,'Escalation Calculator'!$C$8:$BI$67,21,FALSE))),0),IF(Z$4=$E8,$G8*(1+((VLOOKUP(Z$4,'Escalation Calculator'!$C$8:$BI$67,21,FALSE)-VLOOKUP(N1_MSY,'Escalation Calculator'!$C$8:$BI$67,21,FALSE))/VLOOKUP(N1_MSY,'Escalation Calculator'!$C$8:$BI$67,21,FALSE))),0)) -> 0 | AA8: =IF($F8<>"",IFERROR(IF(AND(AA$4>=$E8,AA$4<=$F8),$G8/($F8+1-$E8),0)*(1+((VLOOKUP(AA$4,'Escalation Calculator'!$C$8:$BI$67,21,FALSE)-VLOOKUP(N1_MSY,'Escalation Calculator'!$C$8:$BI$67,21,FALSE))/VLOOKUP(N1_MSY,'Escalation Calculator'!$C$8:$BI$67,21,FALSE))),0),IF(AA$4=$E8,$G8*(1+((VLOOKUP(AA$4,'Escalation Calculator'!$C$8:$BI$67,21,FALSE)-VLOOKUP(N1_MSY,'Escalation Calculator'!$C$8:$BI$67,21,FALSE))/VLOOKUP(N1_MSY,'Escalation Calculator'!$C$8:$BI$67,21,FALSE))),0)) -> 0 | AB8: =IF($F8<>"",IFERROR(IF(AND(AB$4>=$E8,AB$4<=$F8),$G8/($F8+1-$E8),0)*(1+((VLOOKUP(AB$4,'Escalation Calculator'!$C$8:$BI$67,21,FALSE)-VLOOKUP(N1_MSY,'Escalation Calculator'!$C$8:$BI$67,21,FALSE))/VLOOKUP(N1_MSY,'Escalation Calculator'!$C$8:$BI$67,21,FALSE))),0),IF(AB$4=$E8,$G8*(1+((VLOOKUP(AB$4,'Escalation Calculator'!$C$8:$BI$67,21,FALSE)-VLOOKUP(N1_MSY,'Escalation Calculator'!$C$8:$BI$67,21,FALSE))/VLOOKUP(N1_MSY,'Escalation Calculator'!$C$8:$BI$67,21,FALSE))),0)) -> 0 | AC8: =IF($F8<>"",IFERROR(IF(AND(AC$4>=$E8,AC$4<=$F8),$G8/($F8+1-$E8),0)*(1+((VLOOKUP(AC$4,'Escalation Calculator'!$C$8:$BI$67,21,FALSE)-VLOOKUP(N1_MSY,'Escalation Calculator'!$C$8:$BI$67,21,FALSE))/VLOOKUP(N1_MSY,'Escalation Calculator'!$C$8:$BI$67,21,FALSE))),0),IF(AC$4=$E8,$G8*(1+((VLOOKUP(AC$4,'Escalation Calculator'!$C$8:$BI$67,21,FALSE)-VLOOKUP(N1_MSY,'Escalation Calculator'!$C$8:$BI$67,21,FALSE))/VLOOKUP(N1_MSY,'Escalation Calculator'!$C$8:$BI$67,21,FALSE))),0)) -> 0 | AD8: =IF($F8<>"",IFERROR(IF(AND(AD$4>=$E8,AD$4<=$F8),$G8/($F8+1-$E8),0)*(1+((VLOOKUP(AD$4,'Escalation Calculator'!$C$8:$BI$67,21,FALSE)-VLOOKUP(N1_MSY,'Escalation Calculator'!$C$8:$BI$67,21,FALSE))/VLOOKUP(N1_MSY,'Escalation Calculator'!$C$8:$BI$67,21,FALSE))),0),IF(AD$4=$E8,$G8*(1+((VLOOKUP(AD$4,'Escalation Calculator'!$C$8:$BI$67,21,FALSE)-VLOOKUP(N1_MSY,'Escalation Calculator'!$C$8:$BI$67,21,FALSE))/VLOOKUP(N1_MSY,'Escalation Calculator'!$C$8:$BI$67,21,FALSE))),0)) -> 0 | AE8: =IF($F8<>"",IFERROR(IF(AND(AE$4>=$E8,AE$4<=$F8),$G8/($F8+1-$E8),0)*(1+((VLOOKUP(AE$4,'Escalation Calculator'!$C$8:$BI$67,21,FALSE)-VLOOKUP(N1_MSY,'Escalation Calculator'!$C$8:$BI$67,21,FALSE))/VLOOKUP(N1_MSY,'Escalation Calculator'!$C$8:$BI$67,21,FALSE))),0),IF(AE$4=$E8,$G8*(1+((VLOOKUP(AE$4,'Escalation Calculator'!$C$8:$BI$67,21,FALSE)-VLOOKUP(N1_MSY,'Escalation Calculator'!$C$8:$BI$67,21,FALSE))/VLOOKUP(N1_MSY,'Escalation Calculator'!$C$8:$BI$67,21,FALSE))),0)) -> 0 | AF8: =IF($F8<>"",IFERROR(IF(AND(AF$4>=$E8,AF$4<=$F8),$G8/($F8+1-$E8),0)*(1+((VLOOKUP(AF$4,'Escalation Calculator'!$C$8:$BI$67,21,FALSE)-VLOOKUP(N1_MSY,'Escalation Calculator'!$C$8:$BI$67,21,FALSE))/VLOOKUP(N1_MSY,'Escalation Calculator'!$C$8:$BI$67,21,FALSE))),0),IF(AF$4=$E8,$G8*(1+((VLOOKUP(AF$4,'Escalation Calculator'!$C$8:$BI$67,21,FALSE)-VLOOKUP(N1_MSY,'Escalation Calculator'!$C$8:$BI$67,21,FALSE))/VLOOKUP(N1_MSY,'Escalation Calculator'!$C$8:$BI$67,21,FALSE))),0)) -> 0 | AG8: =IF($F8<>"",IFERROR(IF(AND(AG$4>=$E8,AG$4<=$F8),$G8/($F8+1-$E8),0)*(1+((VLOOKUP(AG$4,'Escalation Calculator'!$C$8:$BI$67,21,FALSE)-VLOOKUP(N1_MSY,'Escalation Calculator'!$C$8:$BI$67,21,FALSE))/VLOOKUP(N1_MSY,'Escalation Calculator'!$C$8:$BI$67,21,FALSE))),0),IF(AG$4=$E8,$G8*(1+((VLOOKUP(AG$4,'Escalation Calculator'!$C$8:$BI$67,21,FALSE)-VLOOKUP(N1_MSY,'Escalation Calculator'!$C$8:$BI$67,21,FALSE))/VLOOKUP(N1_MSY,'Escalation Calculator'!$C$8:$BI$67,21,FALSE))),0)) -> 0 | AH8: =IF($F8<>"",IFERROR(IF(AND(AH$4>=$E8,AH$4<=$F8),$G8/($F8+1-$E8),0)*(1+((VLOOKUP(AH$4,'Escalation Calculator'!$C$8:$BI$67,21,FALSE)-VLOOKUP(N1_MSY,'Escalation Calculator'!$C$8:$BI$67,21,FALSE))/VLOOKUP(N1_MSY,'Escalation Calculator'!$C$8:$BI$67,21,FALSE))),0),IF(AH$4=$E8,$G8*(1+((VLOOKUP(AH$4,'Escalation Calculator'!$C$8:$BI$67,21,FALSE)-VLOOKUP(N1_MSY,'Escalation Calculator'!$C$8:$BI$67,21,FALSE))/VLOOKUP(N1_MSY,'Escalation Calculator'!$C$8:$BI$67,21,FALSE))),0)) -> 0 | AI8: =IF($F8<>"",IFERROR(IF(AND(AI$4>=$E8,AI$4<=$F8),$G8/($F8+1-$E8),0)*(1+((VLOOKUP(AI$4,'Escalation Calculator'!$C$8:$BI$67,21,FALSE)-VLOOKUP(N1_MSY,'Escalation Calculator'!$C$8:$BI$67,21,FALSE))/VLOOKUP(N1_MSY,'Escalation Calculator'!$C$8:$BI$67,21,FALSE))),0),IF(AI$4=$E8,$G8*(1+((VLOOKUP(AI$4,'Escalation Calculator'!$C$8:$BI$67,21,FALSE)-VLOOKUP(N1_MSY,'Escalation Calculator'!$C$8:$BI$67,21,FALSE))/VLOOKUP(N1_MSY,'Escalation Calculator'!$C$8:$BI$67,21,FALSE))),0)) -> 0 | AJ8: =IF($F8<>"",IFERROR(IF(AND(AJ$4>=$E8,AJ$4<=$F8),$G8/($F8+1-$E8),0)*(1+((VLOOKUP(AJ$4,'Escalation Calculator'!$C$8:$BI$67,21,FALSE)-VLOOKUP(N1_MSY,'Escalation Calculator'!$C$8:$BI$67,21,FALSE))/VLOOKUP(N1_MSY,'Escalation Calculator'!$C$8:$BI$67,21,FALSE))),0),IF(AJ$4=$E8,$G8*(1+((VLOOKUP(AJ$4,'Escalation Calculator'!$C$8:$BI$67,21,FALSE)-VLOOKUP(N1_MSY,'Escalation Calculator'!$C$8:$BI$67,21,FALSE))/VLOOKUP(N1_MSY,'Escalation Calculator'!$C$8:$BI$67,21,FALSE))),0)) -> 0 | AK8: =IF($F8<>"",IFERROR(IF(AND(AK$4>=$E8,AK$4<=$F8),$G8/($F8+1-$E8),0)*(1+((VLOOKUP(AK$4,'Escalation Calculator'!$C$8:$BI$67,21,FALSE)-VLOOKUP(N1_MSY,'Escalation Calculator'!$C$8:$BI$67,21,FALSE))/VLOOKUP(N1_MSY,'Escalation Calculator'!$C$8:$BI$67,21,FALSE))),0),IF(AK$4=$E8,$G8*(1+((VLOOKUP(AK$4,'Escalation Calculator'!$C$8:$BI$67,21,FALSE)-VLOOKUP(N1_MSY,'Escalation Calculator'!$C$8:$BI$67,21,FALSE))/VLOOKUP(N1_MSY,'Escalation Calculator'!$C$8:$BI$67,21,FALSE))),0)) -> 0 | AL8: =IF($F8<>"",IFERROR(IF(AND(AL$4>=$E8,AL$4<=$F8),$G8/($F8+1-$E8),0)*(1+((VLOOKUP(AL$4,'Escalation Calculator'!$C$8:$BI$67,21,FALSE)-VLOOKUP(N1_MSY,'Escalation Calculator'!$C$8:$BI$67,21,FALSE))/VLOOKUP(N1_MSY,'Escalation Calculator'!$C$8:$BI$67,21,FALSE))),0),IF(AL$4=$E8,$G8*(1+((VLOOKUP(AL$4,'Escalation Calculator'!$C$8:$BI$67,21,FALSE)-VLOOKUP(N1_MSY,'Escalation Calculator'!$C$8:$BI$67,21,FALSE))/VLOOKUP(N1_MSY,'Escalation Calculator'!$C$8:$BI$67,21,FALSE))),0)) -> 0 | AM8: =IF($F8<>"",IFERROR(IF(AND(AM$4>=$E8,AM$4<=$F8),$G8/($F8+1-$E8),0)*(1+((VLOOKUP(AM$4,'Escalation Calculator'!$C$8:$BI$67,21,FALSE)-VLOOKUP(N1_MSY,'Escalation Calculator'!$C$8:$BI$67,21,FALSE))/VLOOKUP(N1_MSY,'Escalation Calculator'!$C$8:$BI$67,21,FALSE))),0),IF(AM$4=$E8,$G8*(1+((VLOOKUP(AM$4,'Escalation Calculator'!$C$8:$BI$67,21,FALSE)-VLOOKUP(N1_MSY,'Escalation Calculator'!$C$8:$BI$67,21,FALSE))/VLOOKUP(N1_MSY,'Escalation Calculator'!$C$8:$BI$67,21,FALSE))),0)) -> 0 | AN8: =IF($F8<>"",IFERROR(IF(AND(AN$4>=$E8,AN$4<=$F8),$G8/($F8+1-$E8),0)*(1+((VLOOKUP(AN$4,'Escalation Calculator'!$C$8:$BI$67,21,FALSE)-VLOOKUP(N1_MSY,'Escalation Calculator'!$C$8:$BI$67,21,FALSE))/VLOOKUP(N1_MSY,'Escalation Calculator'!$C$8:$BI$67,21,FALSE))),0),IF(AN$4=$E8,$G8*(1+((VLOOKUP(AN$4,'Escalation Calculator'!$C$8:$BI$67,21,FALSE)-VLOOKUP(N1_MSY,'Escalation Calculator'!$C$8:$BI$67,21,FALSE))/VLOOKUP(N1_MSY,'Escalation Calculator'!$C$8:$BI$67,21,FALSE))),0)) -> 0 | AO8: =IF($F8<>"",IFERROR(IF(AND(AO$4>=$E8,AO$4<=$F8),$G8/($F8+1-$E8),0)*(1+((VLOOKUP(AO$4,'Escalation Calculator'!$C$8:$BI$67,21,FALSE)-VLOOKUP(N1_MSY,'Escalation Calculator'!$C$8:$BI$67,21,FALSE))/VLOOKUP(N1_MSY,'Escalation Calculator'!$C$8:$BI$67,21,FALSE))),0),IF(AO$4=$E8,$G8*(1+((VLOOKUP(AO$4,'Escalation Calculator'!$C$8:$BI$67,21,FALSE)-VLOOKUP(N1_MSY,'Escalation Calculator'!$C$8:$BI$67,21,FALSE))/VLOOKUP(N1_MSY,'Escalation Calculator'!$C$8:$BI$67,21,FALSE))),0)) -> 0 | AP8: =IF($F8<>"",IFERROR(IF(AND(AP$4>=$E8,AP$4<=$F8),$G8/($F8+1-$E8),0)*(1+((VLOOKUP(AP$4,'Escalation Calculator'!$C$8:$BI$67,21,FALSE)-VLOOKUP(N1_MSY,'Escalation Calculator'!$C$8:$BI$67,21,FALSE))/VLOOKUP(N1_MSY,'Escalation Calculator'!$C$8:$BI$67,21,FALSE))),0),IF(AP$4=$E8,$G8*(1+((VLOOKUP(AP$4,'Escalation Calculator'!$C$8:$BI$67,21,FALSE)-VLOOKUP(N1_MSY,'Escalation Calculator'!$C$8:$BI$67,21,FALSE))/VLOOKUP(N1_MSY,'Escalation Calculator'!$C$8:$BI$67,21,FALSE))),0)) -> 0 | AQ8: =IF($F8<>"",IFERROR(IF(AND(AQ$4>=$E8,AQ$4<=$F8),$G8/($F8+1-$E8),0)*(1+((VLOOKUP(AQ$4,'Escalation Calculator'!$C$8:$BI$67,21,FALSE)-VLOOKUP(N1_MSY,'Escalation Calculator'!$C$8:$BI$67,21,FALSE))/VLOOKUP(N1_MSY,'Escalation Calculator'!$C$8:$BI$67,21,FALSE))),0),IF(AQ$4=$E8,$G8*(1+((VLOOKUP(AQ$4,'Escalation Calculator'!$C$8:$BI$67,21,FALSE)-VLOOKUP(N1_MSY,'Escalation Calculator'!$C$8:$BI$67,21,FALSE))/VLOOKUP(N1_MSY,'Escalation Calculator'!$C$8:$BI$67,21,FALSE))),0)) -> 0 | AR8: =IF($F8<>"",IFERROR(IF(AND(AR$4>=$E8,AR$4<=$F8),$G8/($F8+1-$E8),0)*(1+((VLOOKUP(AR$4,'Escalation Calculator'!$C$8:$BI$67,21,FALSE)-VLOOKUP(N1_MSY,'Escalation Calculator'!$C$8:$BI$67,21,FALSE))/VLOOKUP(N1_MSY,'Escalation Calculator'!$C$8:$BI$67,21,FALSE))),0),IF(AR$4=$E8,$G8*(1+((VLOOKUP(AR$4,'Escalation Calculator'!$C$8:$BI$67,21,FALSE)-VLOOKUP(N1_MSY,'Escalation Calculator'!$C$8:$BI$67,21,FALSE))/VLOOKUP(N1_MSY,'Escalation Calculator'!$C$8:$BI$67,21,FALSE))),0)) -> 0 | AS8: =IF($F8<>"",IFERROR(IF(AND(AS$4>=$E8,AS$4<=$F8),$G8/($F8+1-$E8),0)*(1+((VLOOKUP(AS$4,'Escalation Calculator'!$C$8:$BI$67,21,FALSE)-VLOOKUP(N1_MSY,'Escalation Calculator'!$C$8:$BI$67,21,FALSE))/VLOOKUP(N1_MSY,'Escalation Calculator'!$C$8:$BI$67,21,FALSE))),0),IF(AS$4=$E8,$G8*(1+((VLOOKUP(AS$4,'Escalation Calculator'!$C$8:$BI$67,21,FALSE)-VLOOKUP(N1_MSY,'Escalation Calculator'!$C$8:$BI$67,21,FALSE))/VLOOKUP(N1_MSY,'Escalation Calculator'!$C$8:$BI$67,21,FALSE))),0)) -> 0 | AT8: =IF($F8<>"",IFERROR(IF(AND(AT$4>=$E8,AT$4<=$F8),$G8/($F8+1-$E8),0)*(1+((VLOOKUP(AT$4,'Escalation Calculator'!$C$8:$BI$67,21,FALSE)-VLOOKUP(N1_MSY,'Escalation Calculator'!$C$8:$BI$67,21,FALSE))/VLOOKUP(N1_MSY,'Escalation Calculator'!$C$8:$BI$67,21,FALSE))),0),IF(AT$4=$E8,$G8*(1+((VLOOKUP(AT$4,'Escalation Calculator'!$C$8:$BI$67,21,FALSE)-VLOOKUP(N1_MSY,'Escalation Calculator'!$C$8:$BI$67,21,FALSE))/VLOOKUP(N1_MSY,'Escalation Calculator'!$C$8:$BI$67,21,FALSE))),0)) -> 0 | AU8: =IF($F8<>"",IFERROR(IF(AND(AU$4>=$E8,AU$4<=$F8),$G8/($F8+1-$E8),0)*(1+((VLOOKUP(AU$4,'Escalation Calculator'!$C$8:$BI$67,21,FALSE)-VLOOKUP(N1_MSY,'Escalation Calculator'!$C$8:$BI$67,21,FALSE))/VLOOKUP(N1_MSY,'Escalation Calculator'!$C$8:$BI$67,21,FALSE))),0),IF(AU$4=$E8,$G8*(1+((VLOOKUP(AU$4,'Escalation Calculator'!$C$8:$BI$67,21,FALSE)-VLOOKUP(N1_MSY,'Escalation Calculator'!$C$8:$BI$67,21,FALSE))/VLOOKUP(N1_MSY,'Escalation Calculator'!$C$8:$BI$67,21,FALSE))),0)) -> 0 | AV8: =IF($F8<>"",IFERROR(IF(AND(AV$4>=$E8,AV$4<=$F8),$G8/($F8+1-$E8),0)*(1+((VLOOKUP(AV$4,'Escalation Calculator'!$C$8:$BI$67,21,FALSE)-VLOOKUP(N1_MSY,'Escalation Calculator'!$C$8:$BI$67,21,FALSE))/VLOOKUP(N1_MSY,'Escalation Calculator'!$C$8:$BI$67,21,FALSE))),0),IF(AV$4=$E8,$G8*(1+((VLOOKUP(AV$4,'Escalation Calculator'!$C$8:$BI$67,21,FALSE)-VLOOKUP(N1_MSY,'Escalation Calculator'!$C$8:$BI$67,21,FALSE))/VLOOKUP(N1_MSY,'Escalation Calculator'!$C$8:$BI$67,21,FALSE))),0)) -> 0 | AW8: =IF($F8<>"",IFERROR(IF(AND(AW$4>=$E8,AW$4<=$F8),$G8/($F8+1-$E8),0)*(1+((VLOOKUP(AW$4,'Escalation Calculator'!$C$8:$BI$67,21,FALSE)-VLOOKUP(N1_MSY,'Escalation Calculator'!$C$8:$BI$67,21,FALSE))/VLOOKUP(N1_MSY,'Escalation Calculator'!$C$8:$BI$67,21,FALSE))),0),IF(AW$4=$E8,$G8*(1+((VLOOKUP(AW$4,'Escalation Calculator'!$C$8:$BI$67,21,FALSE)-VLOOKUP(N1_MSY,'Escalation Calculator'!$C$8:$BI$67,21,FALSE))/VLOOKUP(N1_MSY,'Escalation Calculator'!$C$8:$BI$67,21,FALSE))),0)) -> 0 | AX8: =IF($F8<>"",IFERROR(IF(AND(AX$4>=$E8,AX$4<=$F8),$G8/($F8+1-$E8),0)*(1+((VLOOKUP(AX$4,'Escalation Calculator'!$C$8:$BI$67,21,FALSE)-VLOOKUP(N1_MSY,'Escalation Calculator'!$C$8:$BI$67,21,FALSE))/VLOOKUP(N1_MSY,'Escalation Calculator'!$C$8:$BI$67,21,FALSE))),0),IF(AX$4=$E8,$G8*(1+((VLOOKUP(AX$4,'Escalation Calculator'!$C$8:$BI$67,21,FALSE)-VLOOKUP(N1_MSY,'Escalation Calculator'!$C$8:$BI$67,21,FALSE))/VLOOKUP(N1_MSY,'Escalation Calculator'!$C$8:$BI$67,21,FALSE))),0)) -> 0 | AY8: =IF($F8<>"",IFERROR(IF(AND(AY$4>=$E8,AY$4<=$F8),$G8/($F8+1-$E8),0)*(1+((VLOOKUP(AY$4,'Escalation Calculator'!$C$8:$BI$67,21,FALSE)-VLOOKUP(N1_MSY,'Escalation Calculator'!$C$8:$BI$67,21,FALSE))/VLOOKUP(N1_MSY,'Escalation Calculator'!$C$8:$BI$67,21,FALSE))),0),IF(AY$4=$E8,$G8*(1+((VLOOKUP(AY$4,'Escalation Calculator'!$C$8:$BI$67,21,FALSE)-VLOOKUP(N1_MSY,'Escalation Calculator'!$C$8:$BI$67,21,FALSE))/VLOOKUP(N1_MSY,'Escalation Calculator'!$C$8:$BI$67,21,FALSE))),0)) -> 0 | AZ8: =IF($F8<>"",IFERROR(IF(AND(AZ$4>=$E8,AZ$4<=$F8),$G8/($F8+1-$E8),0)*(1+((VLOOKUP(AZ$4,'Escalation Calculator'!$C$8:$BI$67,21,FALSE)-VLOOKUP(N1_MSY,'Escalation Calculator'!$C$8:$BI$67,21,FALSE))/VLOOKUP(N1_MSY,'Escalation Calculator'!$C$8:$BI$67,21,FALSE))),0),IF(AZ$4=$E8,$G8*(1+((VLOOKUP(AZ$4,'Escalation Calculator'!$C$8:$BI$67,21,FALSE)-VLOOKUP(N1_MSY,'Escalation Calculator'!$C$8:$BI$67,21,FALSE))/VLOOKUP(N1_MSY,'Escalation Calculator'!$C$8:$BI$67,21,FALSE))),0)) -> 0 | BA8: =IF($F8<>"",IFERROR(IF(AND(BA$4>=$E8,BA$4<=$F8),$G8/($F8+1-$E8),0)*(1+((VLOOKUP(BA$4,'Escalation Calculator'!$C$8:$BI$67,21,FALSE)-VLOOKUP(N1_MSY,'Escalation Calculator'!$C$8:$BI$67,21,FALSE))/VLOOKUP(N1_MSY,'Escalation Calculator'!$C$8:$BI$67,21,FALSE))),0),IF(BA$4=$E8,$G8*(1+((VLOOKUP(BA$4,'Escalation Calculator'!$C$8:$BI$67,21,FALSE)-VLOOKUP(N1_MSY,'Escalation Calculator'!$C$8:$BI$67,21,FALSE))/VLOOKUP(N1_MSY,'Escalation Calculator'!$C$8:$BI$67,21,FALSE))),0)) -> 0 | BB8: =IF($F8<>"",IFERROR(IF(AND(BB$4>=$E8,BB$4<=$F8),$G8/($F8+1-$E8),0)*(1+((VLOOKUP(BB$4,'Escalation Calculator'!$C$8:$BI$67,21,FALSE)-VLOOKUP(N1_MSY,'Escalation Calculator'!$C$8:$BI$67,21,FALSE))/VLOOKUP(N1_MSY,'Escalation Calculator'!$C$8:$BI$67,21,FALSE))),0),IF(BB$4=$E8,$G8*(1+((VLOOKUP(BB$4,'Escalation Calculator'!$C$8:$BI$67,21,FALSE)-VLOOKUP(N1_MSY,'Escalation Calculator'!$C$8:$BI$67,21,FALSE))/VLOOKUP(N1_MSY,'Escalation Calculator'!$C$8:$BI$67,21,FALSE))),0)) -> 0 | BC8: =IF($F8<>"",IFERROR(IF(AND(BC$4>=$E8,BC$4<=$F8),$G8/($F8+1-$E8),0)*(1+((VLOOKUP(BC$4,'Escalation Calculator'!$C$8:$BI$67,21,FALSE)-VLOOKUP(N1_MSY,'Escalation Calculator'!$C$8:$BI$67,21,FALSE))/VLOOKUP(N1_MSY,'Escalation Calculator'!$C$8:$BI$67,21,FALSE))),0),IF(BC$4=$E8,$G8*(1+((VLOOKUP(BC$4,'Escalation Calculator'!$C$8:$BI$67,21,FALSE)-VLOOKUP(N1_MSY,'Escalation Calculator'!$C$8:$BI$67,21,FALSE))/VLOOKUP(N1_MSY,'Escalation Calculator'!$C$8:$BI$67,21,FALSE))),0)) -> 0 | BD8: =IF($F8<>"",IFERROR(IF(AND(BD$4>=$E8,BD$4<=$F8),$G8/($F8+1-$E8),0)*(1+((VLOOKUP(BD$4,'Escalation Calculator'!$C$8:$BI$67,21,FALSE)-VLOOKUP(N1_MSY,'Escalation Calculator'!$C$8:$BI$67,21,FALSE))/VLOOKUP(N1_MSY,'Escalation Calculator'!$C$8:$BI$67,21,FALSE))),0),IF(BD$4=$E8,$G8*(1+((VLOOKUP(BD$4,'Escalation Calculator'!$C$8:$BI$67,21,FALSE)-VLOOKUP(N1_MSY,'Escalation Calculator'!$C$8:$BI$67,21,FALSE))/VLOOKUP(N1_MSY,'Escalation Calculator'!$C$8:$BI$67,21,FALSE))),0)) -> 0 | BE8: =IF($F8<>"",IFERROR(IF(AND(BE$4>=$E8,BE$4<=$F8),$G8/($F8+1-$E8),0)*(1+((VLOOKUP(BE$4,'Escalation Calculator'!$C$8:$BI$67,21,FALSE)-VLOOKUP(N1_MSY,'Escalation Calculator'!$C$8:$BI$67,21,FALSE))/VLOOKUP(N1_MSY,'Escalation Calculator'!$C$8:$BI$67,21,FALSE))),0),IF(BE$4=$E8,$G8*(1+((VLOOKUP(BE$4,'Escalation Calculator'!$C$8:$BI$67,21,FALSE)-VLOOKUP(N1_MSY,'Escalation Calculator'!$C$8:$BI$67,21,FALSE))/VLOOKUP(N1_MSY,'Escalation Calculator'!$C$8:$BI$67,21,FALSE))),0)) -> 0 | BF8: =IF($F8<>"",IFERROR(IF(AND(BF$4>=$E8,BF$4<=$F8),$G8/($F8+1-$E8),0)*(1+((VLOOKUP(BF$4,'Escalation Calculator'!$C$8:$BI$67,21,FALSE)-VLOOKUP(N1_MSY,'Escalation Calculator'!$C$8:$BI$67,21,FALSE))/VLOOKUP(N1_MSY,'Escalation Calculator'!$C$8:$BI$67,21,FALSE))),0),IF(BF$4=$E8,$G8*(1+((VLOOKUP(BF$4,'Escalation Calculator'!$C$8:$BI$67,21,FALSE)-VLOOKUP(N1_MSY,'Escalation Calculator'!$C$8:$BI$67,21,FALSE))/VLOOKUP(N1_MSY,'Escalation Calculator'!$C$8:$BI$67,21,FALSE))),0)) -> 0 | BG8: =IF($F8<>"",IFERROR(IF(AND(BG$4>=$E8,BG$4<=$F8),$G8/($F8+1-$E8),0)*(1+((VLOOKUP(BG$4,'Escalation Calculator'!$C$8:$BI$67,21,FALSE)-VLOOKUP(N1_MSY,'Escalation Calculator'!$C$8:$BI$67,21,FALSE))/VLOOKUP(N1_MSY,'Escalation Calculator'!$C$8:$BI$67,21,FALSE))),0),IF(BG$4=$E8,$G8*(1+((VLOOKUP(BG$4,'Escalation Calculator'!$C$8:$BI$67,21,FALSE)-VLOOKUP(N1_MSY,'Escalation Calculator'!$C$8:$BI$67,21,FALSE))/VLOOKUP(N1_MSY,'Escalation Calculator'!$C$8:$BI$67,21,FALSE))),0)) -> 0
B9: ='Water Supply - Future'!B10 -> W3-LW | C9: =IF('Water Supply - Future'!H10=0,"",'Water Supply - Future'!H10) -> Infrastructure provider | D9: ='Water Supply - Future'!G10 -> Greater Airlie Beach | E9: ='Water Supply - Future'!J10 -> 2022 | F9: ='Water Supply - Future'!K10 -> 2024 | G9: ='Water Supply - Future'!Z10 -> 443978.9231 | H9: 455865.1686 | I9: =IF($F9<>"",IFERROR(IF(AND(I$4>=$E9,I$4<=$F9),$G9/($F9+1-$E9),0)*(1+((VLOOKUP(I$4,'Escalation Calculator'!$C$8:$BI$67,21,FALSE)-VLOOKUP(N1_MSY,'Escalation Calculator'!$C$8:$BI$67,21,FALSE))/VLOOKUP(N1_MSY,'Escalation Calculator'!$C$8:$BI$67,21,FALSE))),0),IF(I$4=$E9,$G9*(1+((VLOOKUP(I$4,'Escalation Calculator'!$C$8:$BI$67,21,FALSE)-VLOOKUP(N1_MSY,'Escalation Calculator'!$C$8:$BI$67,21,FALSE))/VLOOKUP(N1_MSY,'Escalation Calculator'!$C$8:$BI$67,21,FALSE))),0)) -> 0 | J9: =IF($F9<>"",IFERROR(IF(AND(J$4>=$E9,J$4<=$F9),$G9/($F9+1-$E9),0)*(1+((VLOOKUP(J$4,'Escalation Calculator'!$C$8:$BI$67,21,FALSE)-VLOOKUP(N1_MSY,'Escalation Calculator'!$C$8:$BI$67,21,FALSE))/VLOOKUP(N1_MSY,'Escalation Calculator'!$C$8:$BI$67,21,FALSE))),0),IF(J$4=$E9,$G9*(1+((VLOOKUP(J$4,'Escalation Calculator'!$C$8:$BI$67,21,FALSE)-VLOOKUP(N1_MSY,'Escalation Calculator'!$C$8:$BI$67,21,FALSE))/VLOOKUP(N1_MSY,'Escalation Calculator'!$C$8:$BI$67,21,FALSE))),0)) -> 149956.5885 | K9: =IF($F9<>"",IFERROR(IF(AND(K$4>=$E9,K$4<=$F9),$G9/($F9+1-$E9),0)*(1+((VLOOKUP(K$4,'Escalation Calculator'!$C$8:$BI$67,21,FALSE)-VLOOKUP(N1_MSY,'Escalation Calculator'!$C$8:$BI$67,21,FALSE))/VLOOKUP(N1_MSY,'Escalation Calculator'!$C$8:$BI$67,21,FALSE))),0),IF(K$4=$E9,$G9*(1+((VLOOKUP(K$4,'Escalation Calculator'!$C$8:$BI$67,21,FALSE)-VLOOKUP(N1_MSY,'Escalation Calculator'!$C$8:$BI$67,21,FALSE))/VLOOKUP(N1_MSY,'Escalation Calculator'!$C$8:$BI$67,21,FALSE))),0)) -> 151946.2564 | L9: =IF($F9<>"",IFERROR(IF(AND(L$4>=$E9,L$4<=$F9),$G9/($F9+1-$E9),0)*(1+((VLOOKUP(L$4,'Escalation Calculator'!$C$8:$BI$67,21,FALSE)-VLOOKUP(N1_MSY,'Escalation Calculator'!$C$8:$BI$67,21,FALSE))/VLOOKUP(N1_MSY,'Escalation Calculator'!$C$8:$BI$67,21,FALSE))),0),IF(L$4=$E9,$G9*(1+((VLOOKUP(L$4,'Escalation Calculator'!$C$8:$BI$67,21,FALSE)-VLOOKUP(N1_MSY,'Escalation Calculator'!$C$8:$BI$67,21,FALSE))/VLOOKUP(N1_MSY,'Escalation Calculator'!$C$8:$BI$67,21,FALSE))),0)) -> 153962.3238 | M9: =IF($F9<>"",IFERROR(IF(AND(M$4>=$E9,M$4<=$F9),$G9/($F9+1-$E9),0)*(1+((VLOOKUP(M$4,'Escalation Calculator'!$C$8:$BI$67,21,FALSE)-VLOOKUP(N1_MSY,'Escalation Calculator'!$C$8:$BI$67,21,FALSE))/VLOOKUP(N1_MSY,'Escalation Calculator'!$C$8:$BI$67,21,FALSE))),0),IF(M$4=$E9,$G9*(1+((VLOOKUP(M$4,'Escalation Calculator'!$C$8:$BI$67,21,FALSE)-VLOOKUP(N1_MSY,'Escalation Calculator'!$C$8:$BI$67,21,FALSE))/VLOOKUP(N1_MSY,'Escalation Calculator'!$C$8:$BI$67,21,FALSE))),0)) -> 0 | N9: =IF($F9<>"",IFERROR(IF(AND(N$4>=$E9,N$4<=$F9),$G9/($F9+1-$E9),0)*(1+((VLOOKUP(N$4,'Escalation Calculator'!$C$8:$BI$67,21,FALSE)-VLOOKUP(N1_MSY,'Escalation Calculator'!$C$8:$BI$67,21,FALSE))/VLOOKUP(N1_MSY,'Escalation Calculator'!$C$8:$BI$67,21,FALSE))),0),IF(N$4=$E9,$G9*(1+((VLOOKUP(N$4,'Escalation Calculator'!$C$8:$BI$67,21,FALSE)-VLOOKUP(N1_MSY,'Escalation Calculator'!$C$8:$BI$67,21,FALSE))/VLOOKUP(N1_MSY,'Escalation Calculator'!$C$8:$BI$67,21,FALSE))),0)) -> 0 | O9: =IF($F9<>"",IFERROR(IF(AND(O$4>=$E9,O$4<=$F9),$G9/($F9+1-$E9),0)*(1+((VLOOKUP(O$4,'Escalation Calculator'!$C$8:$BI$67,21,FALSE)-VLOOKUP(N1_MSY,'Escalation Calculator'!$C$8:$BI$67,21,FALSE))/VLOOKUP(N1_MSY,'Escalation Calculator'!$C$8:$BI$67,21,FALSE))),0),IF(O$4=$E9,$G9*(1+((VLOOKUP(O$4,'Escalation Calculator'!$C$8:$BI$67,21,FALSE)-VLOOKUP(N1_MSY,'Escalation Calculator'!$C$8:$BI$67,21,FALSE))/VLOOKUP(N1_MSY,'Escalation Calculator'!$C$8:$BI$67,21,FALSE))),0)) -> 0 | P9: =IF($F9<>"",IFERROR(IF(AND(P$4>=$E9,P$4<=$F9),$G9/($F9+1-$E9),0)*(1+((VLOOKUP(P$4,'Escalation Calculator'!$C$8:$BI$67,21,FALSE)-VLOOKUP(N1_MSY,'Escalation Calculator'!$C$8:$BI$67,21,FALSE))/VLOOKUP(N1_MSY,'Escalation Calculator'!$C$8:$BI$67,21,FALSE))),0),IF(P$4=$E9,$G9*(1+((VLOOKUP(P$4,'Escalation Calculator'!$C$8:$BI$67,21,FALSE)-VLOOKUP(N1_MSY,'Escalation Calculator'!$C$8:$BI$67,21,FALSE))/VLOOKUP(N1_MSY,'Escalation Calculator'!$C$8:$BI$67,21,FALSE))),0)) -> 0 | Q9: =IF($F9<>"",IFERROR(IF(AND(Q$4>=$E9,Q$4<=$F9),$G9/($F9+1-$E9),0)*(1+((VLOOKUP(Q$4,'Escalation Calculator'!$C$8:$BI$67,21,FALSE)-VLOOKUP(N1_MSY,'Escalation Calculator'!$C$8:$BI$67,21,FALSE))/VLOOKUP(N1_MSY,'Escalation Calculator'!$C$8:$BI$67,21,FALSE))),0),IF(Q$4=$E9,$G9*(1+((VLOOKUP(Q$4,'Escalation Calculator'!$C$8:$BI$67,21,FALSE)-VLOOKUP(N1_MSY,'Escalation Calculator'!$C$8:$BI$67,21,FALSE))/VLOOKUP(N1_MSY,'Escalation Calculator'!$C$8:$BI$67,21,FALSE))),0)) -> 0 | R9: =IF($F9<>"",IFERROR(IF(AND(R$4>=$E9,R$4<=$F9),$G9/($F9+1-$E9),0)*(1+((VLOOKUP(R$4,'Escalation Calculator'!$C$8:$BI$67,21,FALSE)-VLOOKUP(N1_MSY,'Escalation Calculator'!$C$8:$BI$67,21,FALSE))/VLOOKUP(N1_MSY,'Escalation Calculator'!$C$8:$BI$67,21,FALSE))),0),IF(R$4=$E9,$G9*(1+((VLOOKUP(R$4,'Escalation Calculator'!$C$8:$BI$67,21,FALSE)-VLOOKUP(N1_MSY,'Escalation Calculator'!$C$8:$BI$67,21,FALSE))/VLOOKUP(N1_MSY,'Escalation Calculator'!$C$8:$BI$67,21,FALSE))),0)) -> 0 | S9: =IF($F9<>"",IFERROR(IF(AND(S$4>=$E9,S$4<=$F9),$G9/($F9+1-$E9),0)*(1+((VLOOKUP(S$4,'Escalation Calculator'!$C$8:$BI$67,21,FALSE)-VLOOKUP(N1_MSY,'Escalation Calculator'!$C$8:$BI$67,21,FALSE))/VLOOKUP(N1_MSY,'Escalation Calculator'!$C$8:$BI$67,21,FALSE))),0),IF(S$4=$E9,$G9*(1+((VLOOKUP(S$4,'Escalation Calculator'!$C$8:$BI$67,21,FALSE)-VLOOKUP(N1_MSY,'Escalation Calculator'!$C$8:$BI$67,21,FALSE))/VLOOKUP(N1_MSY,'Escalation Calculator'!$C$8:$BI$67,21,FALSE))),0)) -> 0 | T9: =IF($F9<>"",IFERROR(IF(AND(T$4>=$E9,T$4<=$F9),$G9/($F9+1-$E9),0)*(1+((VLOOKUP(T$4,'Escalation Calculator'!$C$8:$BI$67,21,FALSE)-VLOOKUP(N1_MSY,'Escalation Calculator'!$C$8:$BI$67,21,FALSE))/VLOOKUP(N1_MSY,'Escalation Calculator'!$C$8:$BI$67,21,FALSE))),0),IF(T$4=$E9,$G9*(1+((VLOOKUP(T$4,'Escalation Calculator'!$C$8:$BI$67,21,FALSE)-VLOOKUP(N1_MSY,'Escalation Calculator'!$C$8:$BI$67,21,FALSE))/VLOOKUP(N1_MSY,'Escalation Calculator'!$C$8:$BI$67,21,FALSE))),0)) -> 0 | U9: =IF($F9<>"",IFERROR(IF(AND(U$4>=$E9,U$4<=$F9),$G9/($F9+1-$E9),0)*(1+((VLOOKUP(U$4,'Escalation Calculator'!$C$8:$BI$67,21,FALSE)-VLOOKUP(N1_MSY,'Escalation Calculator'!$C$8:$BI$67,21,FALSE))/VLOOKUP(N1_MSY,'Escalation Calculator'!$C$8:$BI$67,21,FALSE))),0),IF(U$4=$E9,$G9*(1+((VLOOKUP(U$4,'Escalation Calculator'!$C$8:$BI$67,21,FALSE)-VLOOKUP(N1_MSY,'Escalation Calculator'!$C$8:$BI$67,21,FALSE))/VLOOKUP(N1_MSY,'Escalation Calculator'!$C$8:$BI$67,21,FALSE))),0)) -> 0 | V9: =IF($F9<>"",IFERROR(IF(AND(V$4>=$E9,V$4<=$F9),$G9/($F9+1-$E9),0)*(1+((VLOOKUP(V$4,'Escalation Calculator'!$C$8:$BI$67,21,FALSE)-VLOOKUP(N1_MSY,'Escalation Calculator'!$C$8:$BI$67,21,FALSE))/VLOOKUP(N1_MSY,'Escalation Calculator'!$C$8:$BI$67,21,FALSE))),0),IF(V$4=$E9,$G9*(1+((VLOOKUP(V$4,'Escalation Calculator'!$C$8:$BI$67,21,FALSE)-VLOOKUP(N1_MSY,'Escalation Calculator'!$C$8:$BI$67,21,FALSE))/VLOOKUP(N1_MSY,'Escalation Calculator'!$C$8:$BI$67,21,FALSE))),0)) -> 0 | W9: =IF($F9<>"",IFERROR(IF(AND(W$4>=$E9,W$4<=$F9),$G9/($F9+1-$E9),0)*(1+((VLOOKUP(W$4,'Escalation Calculator'!$C$8:$BI$67,21,FALSE)-VLOOKUP(N1_MSY,'Escalation Calculator'!$C$8:$BI$67,21,FALSE))/VLOOKUP(N1_MSY,'Escalation Calculator'!$C$8:$BI$67,21,FALSE))),0),IF(W$4=$E9,$G9*(1+((VLOOKUP(W$4,'Escalation Calculator'!$C$8:$BI$67,21,FALSE)-VLOOKUP(N1_MSY,'Escalation Calculator'!$C$8:$BI$67,21,FALSE))/VLOOKUP(N1_MSY,'Escalation Calculator'!$C$8:$BI$67,21,FALSE))),0)) -> 0 | X9: =IF($F9<>"",IFERROR(IF(AND(X$4>=$E9,X$4<=$F9),$G9/($F9+1-$E9),0)*(1+((VLOOKUP(X$4,'Escalation Calculator'!$C$8:$BI$67,21,FALSE)-VLOOKUP(N1_MSY,'Escalation Calculator'!$C$8:$BI$67,21,FALSE))/VLOOKUP(N1_MSY,'Escalation Calculator'!$C$8:$BI$67,21,FALSE))),0),IF(X$4=$E9,$G9*(1+((VLOOKUP(X$4,'Escalation Calculator'!$C$8:$BI$67,21,FALSE)-VLOOKUP(N1_MSY,'Escalation Calculator'!$C$8:$BI$67,21,FALSE))/VLOOKUP(N1_MSY,'Escalation Calculator'!$C$8:$BI$67,21,FALSE))),0)) -> 0 | Y9: =IF($F9<>"",IFERROR(IF(AND(Y$4>=$E9,Y$4<=$F9),$G9/($F9+1-$E9),0)*(1+((VLOOKUP(Y$4,'Escalation Calculator'!$C$8:$BI$67,21,FALSE)-VLOOKUP(N1_MSY,'Escalation Calculator'!$C$8:$BI$67,21,FALSE))/VLOOKUP(N1_MSY,'Escalation Calculator'!$C$8:$BI$67,21,FALSE))),0),IF(Y$4=$E9,$G9*(1+((VLOOKUP(Y$4,'Escalation Calculator'!$C$8:$BI$67,21,FALSE)-VLOOKUP(N1_MSY,'Escalation Calculator'!$C$8:$BI$67,21,FALSE))/VLOOKUP(N1_MSY,'Escalation Calculator'!$C$8:$BI$67,21,FALSE))),0)) -> 0 | Z9: =IF($F9<>"",IFERROR(IF(AND(Z$4>=$E9,Z$4<=$F9),$G9/($F9+1-$E9),0)*(1+((VLOOKUP(Z$4,'Escalation Calculator'!$C$8:$BI$67,21,FALSE)-VLOOKUP(N1_MSY,'Escalation Calculator'!$C$8:$BI$67,21,FALSE))/VLOOKUP(N1_MSY,'Escalation Calculator'!$C$8:$BI$67,21,FALSE))),0),IF(Z$4=$E9,$G9*(1+((VLOOKUP(Z$4,'Escalation Calculator'!$C$8:$BI$67,21,FALSE)-VLOOKUP(N1_MSY,'Escalation Calculator'!$C$8:$BI$67,21,FALSE))/VLOOKUP(N1_MSY,'Escalation Calculator'!$C$8:$BI$67,21,FALSE))),0)) -> 0 | AA9: =IF($F9<>"",IFERROR(IF(AND(AA$4>=$E9,AA$4<=$F9),$G9/($F9+1-$E9),0)*(1+((VLOOKUP(AA$4,'Escalation Calculator'!$C$8:$BI$67,21,FALSE)-VLOOKUP(N1_MSY,'Escalation Calculator'!$C$8:$BI$67,21,FALSE))/VLOOKUP(N1_MSY,'Escalation Calculator'!$C$8:$BI$67,21,FALSE))),0),IF(AA$4=$E9,$G9*(1+((VLOOKUP(AA$4,'Escalation Calculator'!$C$8:$BI$67,21,FALSE)-VLOOKUP(N1_MSY,'Escalation Calculator'!$C$8:$BI$67,21,FALSE))/VLOOKUP(N1_MSY,'Escalation Calculator'!$C$8:$BI$67,21,FALSE))),0)) -> 0 | AB9: =IF($F9<>"",IFERROR(IF(AND(AB$4>=$E9,AB$4<=$F9),$G9/($F9+1-$E9),0)*(1+((VLOOKUP(AB$4,'Escalation Calculator'!$C$8:$BI$67,21,FALSE)-VLOOKUP(N1_MSY,'Escalation Calculator'!$C$8:$BI$67,21,FALSE))/VLOOKUP(N1_MSY,'Escalation Calculator'!$C$8:$BI$67,21,FALSE))),0),IF(AB$4=$E9,$G9*(1+((VLOOKUP(AB$4,'Escalation Calculator'!$C$8:$BI$67,21,FALSE)-VLOOKUP(N1_MSY,'Escalation Calculator'!$C$8:$BI$67,21,FALSE))/VLOOKUP(N1_MSY,'Escalation Calculator'!$C$8:$BI$67,21,FALSE))),0)) -> 0 | AC9: =IF($F9<>"",IFERROR(IF(AND(AC$4>=$E9,AC$4<=$F9),$G9/($F9+1-$E9),0)*(1+((VLOOKUP(AC$4,'Escalation Calculator'!$C$8:$BI$67,21,FALSE)-VLOOKUP(N1_MSY,'Escalation Calculator'!$C$8:$BI$67,21,FALSE))/VLOOKUP(N1_MSY,'Escalation Calculator'!$C$8:$BI$67,21,FALSE))),0),IF(AC$4=$E9,$G9*(1+((VLOOKUP(AC$4,'Escalation Calculator'!$C$8:$BI$67,21,FALSE)-VLOOKUP(N1_MSY,'Escalation Calculator'!$C$8:$BI$67,21,FALSE))/VLOOKUP(N1_MSY,'Escalation Calculator'!$C$8:$BI$67,21,FALSE))),0)) -> 0 | AD9: =IF($F9<>"",IFERROR(IF(AND(AD$4>=$E9,AD$4<=$F9),$G9/($F9+1-$E9),0)*(1+((VLOOKUP(AD$4,'Escalation Calculator'!$C$8:$BI$67,21,FALSE)-VLOOKUP(N1_MSY,'Escalation Calculator'!$C$8:$BI$67,21,FALSE))/VLOOKUP(N1_MSY,'Escalation Calculator'!$C$8:$BI$67,21,FALSE))),0),IF(AD$4=$E9,$G9*(1+((VLOOKUP(AD$4,'Escalation Calculator'!$C$8:$BI$67,21,FALSE)-VLOOKUP(N1_MSY,'Escalation Calculator'!$C$8:$BI$67,21,FALSE))/VLOOKUP(N1_MSY,'Escalation Calculator'!$C$8:$BI$67,21,FALSE))),0)) -> 0 | AE9: =IF($F9<>"",IFERROR(IF(AND(AE$4>=$E9,AE$4<=$F9),$G9/($F9+1-$E9),0)*(1+((VLOOKUP(AE$4,'Escalation Calculator'!$C$8:$BI$67,21,FALSE)-VLOOKUP(N1_MSY,'Escalation Calculator'!$C$8:$BI$67,21,FALSE))/VLOOKUP(N1_MSY,'Escalation Calculator'!$C$8:$BI$67,21,FALSE))),0),IF(AE$4=$E9,$G9*(1+((VLOOKUP(AE$4,'Escalation Calculator'!$C$8:$BI$67,21,FALSE)-VLOOKUP(N1_MSY,'Escalation Calculator'!$C$8:$BI$67,21,FALSE))/VLOOKUP(N1_MSY,'Escalation Calculator'!$C$8:$BI$67,21,FALSE))),0)) -> 0 | AF9: =IF($F9<>"",IFERROR(IF(AND(AF$4>=$E9,AF$4<=$F9),$G9/($F9+1-$E9),0)*(1+((VLOOKUP(AF$4,'Escalation Calculator'!$C$8:$BI$67,21,FALSE)-VLOOKUP(N1_MSY,'Escalation Calculator'!$C$8:$BI$67,21,FALSE))/VLOOKUP(N1_MSY,'Escalation Calculator'!$C$8:$BI$67,21,FALSE))),0),IF(AF$4=$E9,$G9*(1+((VLOOKUP(AF$4,'Escalation Calculator'!$C$8:$BI$67,21,FALSE)-VLOOKUP(N1_MSY,'Escalation Calculator'!$C$8:$BI$67,21,FALSE))/VLOOKUP(N1_MSY,'Escalation Calculator'!$C$8:$BI$67,21,FALSE))),0)) -> 0 | AG9: =IF($F9<>"",IFERROR(IF(AND(AG$4>=$E9,AG$4<=$F9),$G9/($F9+1-$E9),0)*(1+((VLOOKUP(AG$4,'Escalation Calculator'!$C$8:$BI$67,21,FALSE)-VLOOKUP(N1_MSY,'Escalation Calculator'!$C$8:$BI$67,21,FALSE))/VLOOKUP(N1_MSY,'Escalation Calculator'!$C$8:$BI$67,21,FALSE))),0),IF(AG$4=$E9,$G9*(1+((VLOOKUP(AG$4,'Escalation Calculator'!$C$8:$BI$67,21,FALSE)-VLOOKUP(N1_MSY,'Escalation Calculator'!$C$8:$BI$67,21,FALSE))/VLOOKUP(N1_MSY,'Escalation Calculator'!$C$8:$BI$67,21,FALSE))),0)) -> 0 | AH9: =IF($F9<>"",IFERROR(IF(AND(AH$4>=$E9,AH$4<=$F9),$G9/($F9+1-$E9),0)*(1+((VLOOKUP(AH$4,'Escalation Calculator'!$C$8:$BI$67,21,FALSE)-VLOOKUP(N1_MSY,'Escalation Calculator'!$C$8:$BI$67,21,FALSE))/VLOOKUP(N1_MSY,'Escalation Calculator'!$C$8:$BI$67,21,FALSE))),0),IF(AH$4=$E9,$G9*(1+((VLOOKUP(AH$4,'Escalation Calculator'!$C$8:$BI$67,21,FALSE)-VLOOKUP(N1_MSY,'Escalation Calculator'!$C$8:$BI$67,21,FALSE))/VLOOKUP(N1_MSY,'Escalation Calculator'!$C$8:$BI$67,21,FALSE))),0)) -> 0 | AI9: =IF($F9<>"",IFERROR(IF(AND(AI$4>=$E9,AI$4<=$F9),$G9/($F9+1-$E9),0)*(1+((VLOOKUP(AI$4,'Escalation Calculator'!$C$8:$BI$67,21,FALSE)-VLOOKUP(N1_MSY,'Escalation Calculator'!$C$8:$BI$67,21,FALSE))/VLOOKUP(N1_MSY,'Escalation Calculator'!$C$8:$BI$67,21,FALSE))),0),IF(AI$4=$E9,$G9*(1+((VLOOKUP(AI$4,'Escalation Calculator'!$C$8:$BI$67,21,FALSE)-VLOOKUP(N1_MSY,'Escalation Calculator'!$C$8:$BI$67,21,FALSE))/VLOOKUP(N1_MSY,'Escalation Calculator'!$C$8:$BI$67,21,FALSE))),0)) -> 0 | AJ9: =IF($F9<>"",IFERROR(IF(AND(AJ$4>=$E9,AJ$4<=$F9),$G9/($F9+1-$E9),0)*(1+((VLOOKUP(AJ$4,'Escalation Calculator'!$C$8:$BI$67,21,FALSE)-VLOOKUP(N1_MSY,'Escalation Calculator'!$C$8:$BI$67,21,FALSE))/VLOOKUP(N1_MSY,'Escalation Calculator'!$C$8:$BI$67,21,FALSE))),0),IF(AJ$4=$E9,$G9*(1+((VLOOKUP(AJ$4,'Escalation Calculator'!$C$8:$BI$67,21,FALSE)-VLOOKUP(N1_MSY,'Escalation Calculator'!$C$8:$BI$67,21,FALSE))/VLOOKUP(N1_MSY,'Escalation Calculator'!$C$8:$BI$67,21,FALSE))),0)) -> 0 | AK9: =IF($F9<>"",IFERROR(IF(AND(AK$4>=$E9,AK$4<=$F9),$G9/($F9+1-$E9),0)*(1+((VLOOKUP(AK$4,'Escalation Calculator'!$C$8:$BI$67,21,FALSE)-VLOOKUP(N1_MSY,'Escalation Calculator'!$C$8:$BI$67,21,FALSE))/VLOOKUP(N1_MSY,'Escalation Calculator'!$C$8:$BI$67,21,FALSE))),0),IF(AK$4=$E9,$G9*(1+((VLOOKUP(AK$4,'Escalation Calculator'!$C$8:$BI$67,21,FALSE)-VLOOKUP(N1_MSY,'Escalation Calculator'!$C$8:$BI$67,21,FALSE))/VLOOKUP(N1_MSY,'Escalation Calculator'!$C$8:$BI$67,21,FALSE))),0)) -> 0 | AL9: =IF($F9<>"",IFERROR(IF(AND(AL$4>=$E9,AL$4<=$F9),$G9/($F9+1-$E9),0)*(1+((VLOOKUP(AL$4,'Escalation Calculator'!$C$8:$BI$67,21,FALSE)-VLOOKUP(N1_MSY,'Escalation Calculator'!$C$8:$BI$67,21,FALSE))/VLOOKUP(N1_MSY,'Escalation Calculator'!$C$8:$BI$67,21,FALSE))),0),IF(AL$4=$E9,$G9*(1+((VLOOKUP(AL$4,'Escalation Calculator'!$C$8:$BI$67,21,FALSE)-VLOOKUP(N1_MSY,'Escalation Calculator'!$C$8:$BI$67,21,FALSE))/VLOOKUP(N1_MSY,'Escalation Calculator'!$C$8:$BI$67,21,FALSE))),0)) -> 0 | AM9: =IF($F9<>"",IFERROR(IF(AND(AM$4>=$E9,AM$4<=$F9),$G9/($F9+1-$E9),0)*(1+((VLOOKUP(AM$4,'Escalation Calculator'!$C$8:$BI$67,21,FALSE)-VLOOKUP(N1_MSY,'Escalation Calculator'!$C$8:$BI$67,21,FALSE))/VLOOKUP(N1_MSY,'Escalation Calculator'!$C$8:$BI$67,21,FALSE))),0),IF(AM$4=$E9,$G9*(1+((VLOOKUP(AM$4,'Escalation Calculator'!$C$8:$BI$67,21,FALSE)-VLOOKUP(N1_MSY,'Escalation Calculator'!$C$8:$BI$67,21,FALSE))/VLOOKUP(N1_MSY,'Escalation Calculator'!$C$8:$BI$67,21,FALSE))),0)) -> 0 | AN9: =IF($F9<>"",IFERROR(IF(AND(AN$4>=$E9,AN$4<=$F9),$G9/($F9+1-$E9),0)*(1+((VLOOKUP(AN$4,'Escalation Calculator'!$C$8:$BI$67,21,FALSE)-VLOOKUP(N1_MSY,'Escalation Calculator'!$C$8:$BI$67,21,FALSE))/VLOOKUP(N1_MSY,'Escalation Calculator'!$C$8:$BI$67,21,FALSE))),0),IF(AN$4=$E9,$G9*(1+((VLOOKUP(AN$4,'Escalation Calculator'!$C$8:$BI$67,21,FALSE)-VLOOKUP(N1_MSY,'Escalation Calculator'!$C$8:$BI$67,21,FALSE))/VLOOKUP(N1_MSY,'Escalation Calculator'!$C$8:$BI$67,21,FALSE))),0)) -> 0 | AO9: =IF($F9<>"",IFERROR(IF(AND(AO$4>=$E9,AO$4<=$F9),$G9/($F9+1-$E9),0)*(1+((VLOOKUP(AO$4,'Escalation Calculator'!$C$8:$BI$67,21,FALSE)-VLOOKUP(N1_MSY,'Escalation Calculator'!$C$8:$BI$67,21,FALSE))/VLOOKUP(N1_MSY,'Escalation Calculator'!$C$8:$BI$67,21,FALSE))),0),IF(AO$4=$E9,$G9*(1+((VLOOKUP(AO$4,'Escalation Calculator'!$C$8:$BI$67,21,FALSE)-VLOOKUP(N1_MSY,'Escalation Calculator'!$C$8:$BI$67,21,FALSE))/VLOOKUP(N1_MSY,'Escalation Calculator'!$C$8:$BI$67,21,FALSE))),0)) -> 0 | AP9: =IF($F9<>"",IFERROR(IF(AND(AP$4>=$E9,AP$4<=$F9),$G9/($F9+1-$E9),0)*(1+((VLOOKUP(AP$4,'Escalation Calculator'!$C$8:$BI$67,21,FALSE)-VLOOKUP(N1_MSY,'Escalation Calculator'!$C$8:$BI$67,21,FALSE))/VLOOKUP(N1_MSY,'Escalation Calculator'!$C$8:$BI$67,21,FALSE))),0),IF(AP$4=$E9,$G9*(1+((VLOOKUP(AP$4,'Escalation Calculator'!$C$8:$BI$67,21,FALSE)-VLOOKUP(N1_MSY,'Escalation Calculator'!$C$8:$BI$67,21,FALSE))/VLOOKUP(N1_MSY,'Escalation Calculator'!$C$8:$BI$67,21,FALSE))),0)) -> 0 | AQ9: =IF($F9<>"",IFERROR(IF(AND(AQ$4>=$E9,AQ$4<=$F9),$G9/($F9+1-$E9),0)*(1+((VLOOKUP(AQ$4,'Escalation Calculator'!$C$8:$BI$67,21,FALSE)-VLOOKUP(N1_MSY,'Escalation Calculator'!$C$8:$BI$67,21,FALSE))/VLOOKUP(N1_MSY,'Escalation Calculator'!$C$8:$BI$67,21,FALSE))),0),IF(AQ$4=$E9,$G9*(1+((VLOOKUP(AQ$4,'Escalation Calculator'!$C$8:$BI$67,21,FALSE)-VLOOKUP(N1_MSY,'Escalation Calculator'!$C$8:$BI$67,21,FALSE))/VLOOKUP(N1_MSY,'Escalation Calculator'!$C$8:$BI$67,21,FALSE))),0)) -> 0 | AR9: =IF($F9<>"",IFERROR(IF(AND(AR$4>=$E9,AR$4<=$F9),$G9/($F9+1-$E9),0)*(1+((VLOOKUP(AR$4,'Escalation Calculator'!$C$8:$BI$67,21,FALSE)-VLOOKUP(N1_MSY,'Escalation Calculator'!$C$8:$BI$67,21,FALSE))/VLOOKUP(N1_MSY,'Escalation Calculator'!$C$8:$BI$67,21,FALSE))),0),IF(AR$4=$E9,$G9*(1+((VLOOKUP(AR$4,'Escalation Calculator'!$C$8:$BI$67,21,FALSE)-VLOOKUP(N1_MSY,'Escalation Calculator'!$C$8:$BI$67,21,FALSE))/VLOOKUP(N1_MSY,'Escalation Calculator'!$C$8:$BI$67,21,FALSE))),0)) -> 0 | AS9: =IF($F9<>"",IFERROR(IF(AND(AS$4>=$E9,AS$4<=$F9),$G9/($F9+1-$E9),0)*(1+((VLOOKUP(AS$4,'Escalation Calculator'!$C$8:$BI$67,21,FALSE)-VLOOKUP(N1_MSY,'Escalation Calculator'!$C$8:$BI$67,21,FALSE))/VLOOKUP(N1_MSY,'Escalation Calculator'!$C$8:$BI$67,21,FALSE))),0),IF(AS$4=$E9,$G9*(1+((VLOOKUP(AS$4,'Escalation Calculator'!$C$8:$BI$67,21,FALSE)-VLOOKUP(N1_MSY,'Escalation Calculator'!$C$8:$BI$67,21,FALSE))/VLOOKUP(N1_MSY,'Escalation Calculator'!$C$8:$BI$67,21,FALSE))),0)) -> 0 | AT9: =IF($F9<>"",IFERROR(IF(AND(AT$4>=$E9,AT$4<=$F9),$G9/($F9+1-$E9),0)*(1+((VLOOKUP(AT$4,'Escalation Calculator'!$C$8:$BI$67,21,FALSE)-VLOOKUP(N1_MSY,'Escalation Calculator'!$C$8:$BI$67,21,FALSE))/VLOOKUP(N1_MSY,'Escalation Calculator'!$C$8:$BI$67,21,FALSE))),0),IF(AT$4=$E9,$G9*(1+((VLOOKUP(AT$4,'Escalation Calculator'!$C$8:$BI$67,21,FALSE)-VLOOKUP(N1_MSY,'Escalation Calculator'!$C$8:$BI$67,21,FALSE))/VLOOKUP(N1_MSY,'Escalation Calculator'!$C$8:$BI$67,21,FALSE))),0)) -> 0 | AU9: =IF($F9<>"",IFERROR(IF(AND(AU$4>=$E9,AU$4<=$F9),$G9/($F9+1-$E9),0)*(1+((VLOOKUP(AU$4,'Escalation Calculator'!$C$8:$BI$67,21,FALSE)-VLOOKUP(N1_MSY,'Escalation Calculator'!$C$8:$BI$67,21,FALSE))/VLOOKUP(N1_MSY,'Escalation Calculator'!$C$8:$BI$67,21,FALSE))),0),IF(AU$4=$E9,$G9*(1+((VLOOKUP(AU$4,'Escalation Calculator'!$C$8:$BI$67,21,FALSE)-VLOOKUP(N1_MSY,'Escalation Calculator'!$C$8:$BI$67,21,FALSE))/VLOOKUP(N1_MSY,'Escalation Calculator'!$C$8:$BI$67,21,FALSE))),0)) -> 0 | AV9: =IF($F9<>"",IFERROR(IF(AND(AV$4>=$E9,AV$4<=$F9),$G9/($F9+1-$E9),0)*(1+((VLOOKUP(AV$4,'Escalation Calculator'!$C$8:$BI$67,21,FALSE)-VLOOKUP(N1_MSY,'Escalation Calculator'!$C$8:$BI$67,21,FALSE))/VLOOKUP(N1_MSY,'Escalation Calculator'!$C$8:$BI$67,21,FALSE))),0),IF(AV$4=$E9,$G9*(1+((VLOOKUP(AV$4,'Escalation Calculator'!$C$8:$BI$67,21,FALSE)-VLOOKUP(N1_MSY,'Escalation Calculator'!$C$8:$BI$67,21,FALSE))/VLOOKUP(N1_MSY,'Escalation Calculator'!$C$8:$BI$67,21,FALSE))),0)) -> 0 | AW9: =IF($F9<>"",IFERROR(IF(AND(AW$4>=$E9,AW$4<=$F9),$G9/($F9+1-$E9),0)*(1+((VLOOKUP(AW$4,'Escalation Calculator'!$C$8:$BI$67,21,FALSE)-VLOOKUP(N1_MSY,'Escalation Calculator'!$C$8:$BI$67,21,FALSE))/VLOOKUP(N1_MSY,'Escalation Calculator'!$C$8:$BI$67,21,FALSE))),0),IF(AW$4=$E9,$G9*(1+((VLOOKUP(AW$4,'Escalation Calculator'!$C$8:$BI$67,21,FALSE)-VLOOKUP(N1_MSY,'Escalation Calculator'!$C$8:$BI$67,21,FALSE))/VLOOKUP(N1_MSY,'Escalation Calculator'!$C$8:$BI$67,21,FALSE))),0)) -> 0 | AX9: =IF($F9<>"",IFERROR(IF(AND(AX$4>=$E9,AX$4<=$F9),$G9/($F9+1-$E9),0)*(1+((VLOOKUP(AX$4,'Escalation Calculator'!$C$8:$BI$67,21,FALSE)-VLOOKUP(N1_MSY,'Escalation Calculator'!$C$8:$BI$67,21,FALSE))/VLOOKUP(N1_MSY,'Escalation Calculator'!$C$8:$BI$67,21,FALSE))),0),IF(AX$4=$E9,$G9*(1+((VLOOKUP(AX$4,'Escalation Calculator'!$C$8:$BI$67,21,FALSE)-VLOOKUP(N1_MSY,'Escalation Calculator'!$C$8:$BI$67,21,FALSE))/VLOOKUP(N1_MSY,'Escalation Calculator'!$C$8:$BI$67,21,FALSE))),0)) -> 0 | AY9: =IF($F9<>"",IFERROR(IF(AND(AY$4>=$E9,AY$4<=$F9),$G9/($F9+1-$E9),0)*(1+((VLOOKUP(AY$4,'Escalation Calculator'!$C$8:$BI$67,21,FALSE)-VLOOKUP(N1_MSY,'Escalation Calculator'!$C$8:$BI$67,21,FALSE))/VLOOKUP(N1_MSY,'Escalation Calculator'!$C$8:$BI$67,21,FALSE))),0),IF(AY$4=$E9,$G9*(1+((VLOOKUP(AY$4,'Escalation Calculator'!$C$8:$BI$67,21,FALSE)-VLOOKUP(N1_MSY,'Escalation Calculator'!$C$8:$BI$67,21,FALSE))/VLOOKUP(N1_MSY,'Escalation Calculator'!$C$8:$BI$67,21,FALSE))),0)) -> 0 | AZ9: =IF($F9<>"",IFERROR(IF(AND(AZ$4>=$E9,AZ$4<=$F9),$G9/($F9+1-$E9),0)*(1+((VLOOKUP(AZ$4,'Escalation Calculator'!$C$8:$BI$67,21,FALSE)-VLOOKUP(N1_MSY,'Escalation Calculator'!$C$8:$BI$67,21,FALSE))/VLOOKUP(N1_MSY,'Escalation Calculator'!$C$8:$BI$67,21,FALSE))),0),IF(AZ$4=$E9,$G9*(1+((VLOOKUP(AZ$4,'Escalation Calculator'!$C$8:$BI$67,21,FALSE)-VLOOKUP(N1_MSY,'Escalation Calculator'!$C$8:$BI$67,21,FALSE))/VLOOKUP(N1_MSY,'Escalation Calculator'!$C$8:$BI$67,21,FALSE))),0)) -> 0 | BA9: =IF($F9<>"",IFERROR(IF(AND(BA$4>=$E9,BA$4<=$F9),$G9/($F9+1-$E9),0)*(1+((VLOOKUP(BA$4,'Escalation Calculator'!$C$8:$BI$67,21,FALSE)-VLOOKUP(N1_MSY,'Escalation Calculator'!$C$8:$BI$67,21,FALSE))/VLOOKUP(N1_MSY,'Escalation Calculator'!$C$8:$BI$67,21,FALSE))),0),IF(BA$4=$E9,$G9*(1+((VLOOKUP(BA$4,'Escalation Calculator'!$C$8:$BI$67,21,FALSE)-VLOOKUP(N1_MSY,'Escalation Calculator'!$C$8:$BI$67,21,FALSE))/VLOOKUP(N1_MSY,'Escalation Calculator'!$C$8:$BI$67,21,FALSE))),0)) -> 0 | BB9: =IF($F9<>"",IFERROR(IF(AND(BB$4>=$E9,BB$4<=$F9),$G9/($F9+1-$E9),0)*(1+((VLOOKUP(BB$4,'Escalation Calculator'!$C$8:$BI$67,21,FALSE)-VLOOKUP(N1_MSY,'Escalation Calculator'!$C$8:$BI$67,21,FALSE))/VLOOKUP(N1_MSY,'Escalation Calculator'!$C$8:$BI$67,21,FALSE))),0),IF(BB$4=$E9,$G9*(1+((VLOOKUP(BB$4,'Escalation Calculator'!$C$8:$BI$67,21,FALSE)-VLOOKUP(N1_MSY,'Escalation Calculator'!$C$8:$BI$67,21,FALSE))/VLOOKUP(N1_MSY,'Escalation Calculator'!$C$8:$BI$67,21,FALSE))),0)) -> 0 | BC9: =IF($F9<>"",IFERROR(IF(AND(BC$4>=$E9,BC$4<=$F9),$G9/($F9+1-$E9),0)*(1+((VLOOKUP(BC$4,'Escalation Calculator'!$C$8:$BI$67,21,FALSE)-VLOOKUP(N1_MSY,'Escalation Calculator'!$C$8:$BI$67,21,FALSE))/VLOOKUP(N1_MSY,'Escalation Calculator'!$C$8:$BI$67,21,FALSE))),0),IF(BC$4=$E9,$G9*(1+((VLOOKUP(BC$4,'Escalation Calculator'!$C$8:$BI$67,21,FALSE)-VLOOKUP(N1_MSY,'Escalation Calculator'!$C$8:$BI$67,21,FALSE))/VLOOKUP(N1_MSY,'Escalation Calculator'!$C$8:$BI$67,21,FALSE))),0)) -> 0 | BD9: =IF($F9<>"",IFERROR(IF(AND(BD$4>=$E9,BD$4<=$F9),$G9/($F9+1-$E9),0)*(1+((VLOOKUP(BD$4,'Escalation Calculator'!$C$8:$BI$67,21,FALSE)-VLOOKUP(N1_MSY,'Escalation Calculator'!$C$8:$BI$67,21,FALSE))/VLOOKUP(N1_MSY,'Escalation Calculator'!$C$8:$BI$67,21,FALSE))),0),IF(BD$4=$E9,$G9*(1+((VLOOKUP(BD$4,'Escalation Calculator'!$C$8:$BI$67,21,FALSE)-VLOOKUP(N1_MSY,'Escalation Calculator'!$C$8:$BI$67,21,FALSE))/VLOOKUP(N1_MSY,'Escalation Calculator'!$C$8:$BI$67,21,FALSE))),0)) -> 0 | BE9: =IF($F9<>"",IFERROR(IF(AND(BE$4>=$E9,BE$4<=$F9),$G9/($F9+1-$E9),0)*(1+((VLOOKUP(BE$4,'Escalation Calculator'!$C$8:$BI$67,21,FALSE)-VLOOKUP(N1_MSY,'Escalation Calculator'!$C$8:$BI$67,21,FALSE))/VLOOKUP(N1_MSY,'Escalation Calculator'!$C$8:$BI$67,21,FALSE))),0),IF(BE$4=$E9,$G9*(1+((VLOOKUP(BE$4,'Escalation Calculator'!$C$8:$BI$67,21,FALSE)-VLOOKUP(N1_MSY,'Escalation Calculator'!$C$8:$BI$67,21,FALSE))/VLOOKUP(N1_MSY,'Escalation Calculator'!$C$8:$BI$67,21,FALSE))),0)) -> 0 | BF9: =IF($F9<>"",IFERROR(IF(AND(BF$4>=$E9,BF$4<=$F9),$G9/($F9+1-$E9),0)*(1+((VLOOKUP(BF$4,'Escalation Calculator'!$C$8:$BI$67,21,FALSE)-VLOOKUP(N1_MSY,'Escalation Calculator'!$C$8:$BI$67,21,FALSE))/VLOOKUP(N1_MSY,'Escalation Calculator'!$C$8:$BI$67,21,FALSE))),0),IF(BF$4=$E9,$G9*(1+((VLOOKUP(BF$4,'Escalation Calculator'!$C$8:$BI$67,21,FALSE)-VLOOKUP(N1_MSY,'Escalation Calculator'!$C$8:$BI$67,21,FALSE))/VLOOKUP(N1_MSY,'Escalation Calculator'!$C$8:$BI$67,21,FALSE))),0)) -> 0 | BG9: =IF($F9<>"",IFERROR(IF(AND(BG$4>=$E9,BG$4<=$F9),$G9/($F9+1-$E9),0)*(1+((VLOOKUP(BG$4,'Escalation Calculator'!$C$8:$BI$67,21,FALSE)-VLOOKUP(N1_MSY,'Escalation Calculator'!$C$8:$BI$67,21,FALSE))/VLOOKUP(N1_MSY,'Escalation Calculator'!$C$8:$BI$67,21,FALSE))),0),IF(BG$4=$E9,$G9*(1+((VLOOKUP(BG$4,'Escalation Calculator'!$C$8:$BI$67,21,FALSE)-VLOOKUP(N1_MSY,'Escalation Calculator'!$C$8:$BI$67,21,FALSE))/VLOOKUP(N1_MSY,'Escalation Calculator'!$C$8:$BI$67,21,FALSE))),0)) -> 0
B10: ='Water Supply - Future'!B11 -> W4-D | C10: =IF('Water Supply - Future'!H11=0,"",'Water Supply - Future'!H11) -> Infrastructure provider | D10: ='Water Supply - Future'!G11 -> Proserpine | E10: ='Water Supply - Future'!J11 -> 2022 | F10: ='Water Supply - Future'!K11 -> 2022 | G10: ='Water Supply - Future'!Z11 -> 115384.6154 | H10: 116915.5722 | I10: =IF($F10<>"",IFERROR(IF(AND(I$4>=$E10,I$4<=$F10),$G10/($F10+1-$E10),0)*(1+((VLOOKUP(I$4,'Escalation Calculator'!$C$8:$BI$67,21,FALSE)-VLOOKUP(N1_MSY,'Escalation Calculator'!$C$8:$BI$67,21,FALSE))/VLOOKUP(N1_MSY,'Escalation Calculator'!$C$8:$BI$67,21,FALSE))),0),IF(I$4=$E10,$G10*(1+((VLOOKUP(I$4,'Escalation Calculator'!$C$8:$BI$67,21,FALSE)-VLOOKUP(N1_MSY,'Escalation Calculator'!$C$8:$BI$67,21,FALSE))/VLOOKUP(N1_MSY,'Escalation Calculator'!$C$8:$BI$67,21,FALSE))),0)) -> 0 | J10: =IF($F10<>"",IFERROR(IF(AND(J$4>=$E10,J$4<=$F10),$G10/($F10+1-$E10),0)*(1+((VLOOKUP(J$4,'Escalation Calculator'!$C$8:$BI$67,21,FALSE)-VLOOKUP(N1_MSY,'Escalation Calculator'!$C$8:$BI$67,21,FALSE))/VLOOKUP(N1_MSY,'Escalation Calculator'!$C$8:$BI$67,21,FALSE))),0),IF(J$4=$E10,$G10*(1+((VLOOKUP(J$4,'Escalation Calculator'!$C$8:$BI$67,21,FALSE)-VLOOKUP(N1_MSY,'Escalation Calculator'!$C$8:$BI$67,21,FALSE))/VLOOKUP(N1_MSY,'Escalation Calculator'!$C$8:$BI$67,21,FALSE))),0)) -> 116915.5722 | K10: =IF($F10<>"",IFERROR(IF(AND(K$4>=$E10,K$4<=$F10),$G10/($F10+1-$E10),0)*(1+((VLOOKUP(K$4,'Escalation Calculator'!$C$8:$BI$67,21,FALSE)-VLOOKUP(N1_MSY,'Escalation Calculator'!$C$8:$BI$67,21,FALSE))/VLOOKUP(N1_MSY,'Escalation Calculator'!$C$8:$BI$67,21,FALSE))),0),IF(K$4=$E10,$G10*(1+((VLOOKUP(K$4,'Escalation Calculator'!$C$8:$BI$67,21,FALSE)-VLOOKUP(N1_MSY,'Escalation Calculator'!$C$8:$BI$67,21,FALSE))/VLOOKUP(N1_MSY,'Escalation Calculator'!$C$8:$BI$67,21,FALSE))),0)) -> 0 | L10: =IF($F10<>"",IFERROR(IF(AND(L$4>=$E10,L$4<=$F10),$G10/($F10+1-$E10),0)*(1+((VLOOKUP(L$4,'Escalation Calculator'!$C$8:$BI$67,21,FALSE)-VLOOKUP(N1_MSY,'Escalation Calculator'!$C$8:$BI$67,21,FALSE))/VLOOKUP(N1_MSY,'Escalation Calculator'!$C$8:$BI$67,21,FALSE))),0),IF(L$4=$E10,$G10*(1+((VLOOKUP(L$4,'Escalation Calculator'!$C$8:$BI$67,21,FALSE)-VLOOKUP(N1_MSY,'Escalation Calculator'!$C$8:$BI$67,21,FALSE))/VLOOKUP(N1_MSY,'Escalation Calculator'!$C$8:$BI$67,21,FALSE))),0)) -> 0 | M10: =IF($F10<>"",IFERROR(IF(AND(M$4>=$E10,M$4<=$F10),$G10/($F10+1-$E10),0)*(1+((VLOOKUP(M$4,'Escalation Calculator'!$C$8:$BI$67,21,FALSE)-VLOOKUP(N1_MSY,'Escalation Calculator'!$C$8:$BI$67,21,FALSE))/VLOOKUP(N1_MSY,'Escalation Calculator'!$C$8:$BI$67,21,FALSE))),0),IF(M$4=$E10,$G10*(1+((VLOOKUP(M$4,'Escalation Calculator'!$C$8:$BI$67,21,FALSE)-VLOOKUP(N1_MSY,'Escalation Calculator'!$C$8:$BI$67,21,FALSE))/VLOOKUP(N1_MSY,'Escalation Calculator'!$C$8:$BI$67,21,FALSE))),0)) -> 0 | N10: =IF($F10<>"",IFERROR(IF(AND(N$4>=$E10,N$4<=$F10),$G10/($F10+1-$E10),0)*(1+((VLOOKUP(N$4,'Escalation Calculator'!$C$8:$BI$67,21,FALSE)-VLOOKUP(N1_MSY,'Escalation Calculator'!$C$8:$BI$67,21,FALSE))/VLOOKUP(N1_MSY,'Escalation Calculator'!$C$8:$BI$67,21,FALSE))),0),IF(N$4=$E10,$G10*(1+((VLOOKUP(N$4,'Escalation Calculator'!$C$8:$BI$67,21,FALSE)-VLOOKUP(N1_MSY,'Escalation Calculator'!$C$8:$BI$67,21,FALSE))/VLOOKUP(N1_MSY,'Escalation Calculator'!$C$8:$BI$67,21,FALSE))),0)) -> 0 | O10: =IF($F10<>"",IFERROR(IF(AND(O$4>=$E10,O$4<=$F10),$G10/($F10+1-$E10),0)*(1+((VLOOKUP(O$4,'Escalation Calculator'!$C$8:$BI$67,21,FALSE)-VLOOKUP(N1_MSY,'Escalation Calculator'!$C$8:$BI$67,21,FALSE))/VLOOKUP(N1_MSY,'Escalation Calculator'!$C$8:$BI$67,21,FALSE))),0),IF(O$4=$E10,$G10*(1+((VLOOKUP(O$4,'Escalation Calculator'!$C$8:$BI$67,21,FALSE)-VLOOKUP(N1_MSY,'Escalation Calculator'!$C$8:$BI$67,21,FALSE))/VLOOKUP(N1_MSY,'Escalation Calculator'!$C$8:$BI$67,21,FALSE))),0)) -> 0 | P10: =IF($F10<>"",IFERROR(IF(AND(P$4>=$E10,P$4<=$F10),$G10/($F10+1-$E10),0)*(1+((VLOOKUP(P$4,'Escalation Calculator'!$C$8:$BI$67,21,FALSE)-VLOOKUP(N1_MSY,'Escalation Calculator'!$C$8:$BI$67,21,FALSE))/VLOOKUP(N1_MSY,'Escalation Calculator'!$C$8:$BI$67,21,FALSE))),0),IF(P$4=$E10,$G10*(1+((VLOOKUP(P$4,'Escalation Calculator'!$C$8:$BI$67,21,FALSE)-VLOOKUP(N1_MSY,'Escalation Calculator'!$C$8:$BI$67,21,FALSE))/VLOOKUP(N1_MSY,'Escalation Calculator'!$C$8:$BI$67,21,FALSE))),0)) -> 0 | Q10: =IF($F10<>"",IFERROR(IF(AND(Q$4>=$E10,Q$4<=$F10),$G10/($F10+1-$E10),0)*(1+((VLOOKUP(Q$4,'Escalation Calculator'!$C$8:$BI$67,21,FALSE)-VLOOKUP(N1_MSY,'Escalation Calculator'!$C$8:$BI$67,21,FALSE))/VLOOKUP(N1_MSY,'Escalation Calculator'!$C$8:$BI$67,21,FALSE))),0),IF(Q$4=$E10,$G10*(1+((VLOOKUP(Q$4,'Escalation Calculator'!$C$8:$BI$67,21,FALSE)-VLOOKUP(N1_MSY,'Escalation Calculator'!$C$8:$BI$67,21,FALSE))/VLOOKUP(N1_MSY,'Escalation Calculator'!$C$8:$BI$67,21,FALSE))),0)) -> 0 | R10: =IF($F10<>"",IFERROR(IF(AND(R$4>=$E10,R$4<=$F10),$G10/($F10+1-$E10),0)*(1+((VLOOKUP(R$4,'Escalation Calculator'!$C$8:$BI$67,21,FALSE)-VLOOKUP(N1_MSY,'Escalation Calculator'!$C$8:$BI$67,21,FALSE))/VLOOKUP(N1_MSY,'Escalation Calculator'!$C$8:$BI$67,21,FALSE))),0),IF(R$4=$E10,$G10*(1+((VLOOKUP(R$4,'Escalation Calculator'!$C$8:$BI$67,21,FALSE)-VLOOKUP(N1_MSY,'Escalation Calculator'!$C$8:$BI$67,21,FALSE))/VLOOKUP(N1_MSY,'Escalation Calculator'!$C$8:$BI$67,21,FALSE))),0)) -> 0 | S10: =IF($F10<>"",IFERROR(IF(AND(S$4>=$E10,S$4<=$F10),$G10/($F10+1-$E10),0)*(1+((VLOOKUP(S$4,'Escalation Calculator'!$C$8:$BI$67,21,FALSE)-VLOOKUP(N1_MSY,'Escalation Calculator'!$C$8:$BI$67,21,FALSE))/VLOOKUP(N1_MSY,'Escalation Calculator'!$C$8:$BI$67,21,FALSE))),0),IF(S$4=$E10,$G10*(1+((VLOOKUP(S$4,'Escalation Calculator'!$C$8:$BI$67,21,FALSE)-VLOOKUP(N1_MSY,'Escalation Calculator'!$C$8:$BI$67,21,FALSE))/VLOOKUP(N1_MSY,'Escalation Calculator'!$C$8:$BI$67,21,FALSE))),0)) -> 0 | T10: =IF($F10<>"",IFERROR(IF(AND(T$4>=$E10,T$4<=$F10),$G10/($F10+1-$E10),0)*(1+((VLOOKUP(T$4,'Escalation Calculator'!$C$8:$BI$67,21,FALSE)-VLOOKUP(N1_MSY,'Escalation Calculator'!$C$8:$BI$67,21,FALSE))/VLOOKUP(N1_MSY,'Escalation Calculator'!$C$8:$BI$67,21,FALSE))),0),IF(T$4=$E10,$G10*(1+((VLOOKUP(T$4,'Escalation Calculator'!$C$8:$BI$67,21,FALSE)-VLOOKUP(N1_MSY,'Escalation Calculator'!$C$8:$BI$67,21,FALSE))/VLOOKUP(N1_MSY,'Escalation Calculator'!$C$8:$BI$67,21,FALSE))),0)) -> 0 | U10: =IF($F10<>"",IFERROR(IF(AND(U$4>=$E10,U$4<=$F10),$G10/($F10+1-$E10),0)*(1+((VLOOKUP(U$4,'Escalation Calculator'!$C$8:$BI$67,21,FALSE)-VLOOKUP(N1_MSY,'Escalation Calculator'!$C$8:$BI$67,21,FALSE))/VLOOKUP(N1_MSY,'Escalation Calculator'!$C$8:$BI$67,21,FALSE))),0),IF(U$4=$E10,$G10*(1+((VLOOKUP(U$4,'Escalation Calculator'!$C$8:$BI$67,21,FALSE)-VLOOKUP(N1_MSY,'Escalation Calculator'!$C$8:$BI$67,21,FALSE))/VLOOKUP(N1_MSY,'Escalation Calculator'!$C$8:$BI$67,21,FALSE))),0)) -> 0 | V10: =IF($F10<>"",IFERROR(IF(AND(V$4>=$E10,V$4<=$F10),$G10/($F10+1-$E10),0)*(1+((VLOOKUP(V$4,'Escalation Calculator'!$C$8:$BI$67,21,FALSE)-VLOOKUP(N1_MSY,'Escalation Calculator'!$C$8:$BI$67,21,FALSE))/VLOOKUP(N1_MSY,'Escalation Calculator'!$C$8:$BI$67,21,FALSE))),0),IF(V$4=$E10,$G10*(1+((VLOOKUP(V$4,'Escalation Calculator'!$C$8:$BI$67,21,FALSE)-VLOOKUP(N1_MSY,'Escalation Calculator'!$C$8:$BI$67,21,FALSE))/VLOOKUP(N1_MSY,'Escalation Calculator'!$C$8:$BI$67,21,FALSE))),0)) -> 0 | W10: =IF($F10<>"",IFERROR(IF(AND(W$4>=$E10,W$4<=$F10),$G10/($F10+1-$E10),0)*(1+((VLOOKUP(W$4,'Escalation Calculator'!$C$8:$BI$67,21,FALSE)-VLOOKUP(N1_MSY,'Escalation Calculator'!$C$8:$BI$67,21,FALSE))/VLOOKUP(N1_MSY,'Escalation Calculator'!$C$8:$BI$67,21,FALSE))),0),IF(W$4=$E10,$G10*(1+((VLOOKUP(W$4,'Escalation Calculator'!$C$8:$BI$67,21,FALSE)-VLOOKUP(N1_MSY,'Escalation Calculator'!$C$8:$BI$67,21,FALSE))/VLOOKUP(N1_MSY,'Escalation Calculator'!$C$8:$BI$67,21,FALSE))),0)) -> 0 | X10: =IF($F10<>"",IFERROR(IF(AND(X$4>=$E10,X$4<=$F10),$G10/($F10+1-$E10),0)*(1+((VLOOKUP(X$4,'Escalation Calculator'!$C$8:$BI$67,21,FALSE)-VLOOKUP(N1_MSY,'Escalation Calculator'!$C$8:$BI$67,21,FALSE))/VLOOKUP(N1_MSY,'Escalation Calculator'!$C$8:$BI$67,21,FALSE))),0),IF(X$4=$E10,$G10*(1+((VLOOKUP(X$4,'Escalation Calculator'!$C$8:$BI$67,21,FALSE)-VLOOKUP(N1_MSY,'Escalation Calculator'!$C$8:$BI$67,21,FALSE))/VLOOKUP(N1_MSY,'Escalation Calculator'!$C$8:$BI$67,21,FALSE))),0)) -> 0 | Y10: =IF($F10<>"",IFERROR(IF(AND(Y$4>=$E10,Y$4<=$F10),$G10/($F10+1-$E10),0)*(1+((VLOOKUP(Y$4,'Escalation Calculator'!$C$8:$BI$67,21,FALSE)-VLOOKUP(N1_MSY,'Escalation Calculator'!$C$8:$BI$67,21,FALSE))/VLOOKUP(N1_MSY,'Escalation Calculator'!$C$8:$BI$67,21,FALSE))),0),IF(Y$4=$E10,$G10*(1+((VLOOKUP(Y$4,'Escalation Calculator'!$C$8:$BI$67,21,FALSE)-VLOOKUP(N1_MSY,'Escalation Calculator'!$C$8:$BI$67,21,FALSE))/VLOOKUP(N1_MSY,'Escalation Calculator'!$C$8:$BI$67,21,FALSE))),0)) -> 0 | Z10: =IF($F10<>"",IFERROR(IF(AND(Z$4>=$E10,Z$4<=$F10),$G10/($F10+1-$E10),0)*(1+((VLOOKUP(Z$4,'Escalation Calculator'!$C$8:$BI$67,21,FALSE)-VLOOKUP(N1_MSY,'Escalation Calculator'!$C$8:$BI$67,21,FALSE))/VLOOKUP(N1_MSY,'Escalation Calculator'!$C$8:$BI$67,21,FALSE))),0),IF(Z$4=$E10,$G10*(1+((VLOOKUP(Z$4,'Escalation Calculator'!$C$8:$BI$67,21,FALSE)-VLOOKUP(N1_MSY,'Escalation Calculator'!$C$8:$BI$67,21,FALSE))/VLOOKUP(N1_MSY,'Escalation Calculator'!$C$8:$BI$67,21,FALSE))),0)) -> 0 | AA10: =IF($F10<>"",IFERROR(IF(AND(AA$4>=$E10,AA$4<=$F10),$G10/($F10+1-$E10),0)*(1+((VLOOKUP(AA$4,'Escalation Calculator'!$C$8:$BI$67,21,FALSE)-VLOOKUP(N1_MSY,'Escalation Calculator'!$C$8:$BI$67,21,FALSE))/VLOOKUP(N1_MSY,'Escalation Calculator'!$C$8:$BI$67,21,FALSE))),0),IF(AA$4=$E10,$G10*(1+((VLOOKUP(AA$4,'Escalation Calculator'!$C$8:$BI$67,21,FALSE)-VLOOKUP(N1_MSY,'Escalation Calculator'!$C$8:$BI$67,21,FALSE))/VLOOKUP(N1_MSY,'Escalation Calculator'!$C$8:$BI$67,21,FALSE))),0)) -> 0 | AB10: =IF($F10<>"",IFERROR(IF(AND(AB$4>=$E10,AB$4<=$F10),$G10/($F10+1-$E10),0)*(1+((VLOOKUP(AB$4,'Escalation Calculator'!$C$8:$BI$67,21,FALSE)-VLOOKUP(N1_MSY,'Escalation Calculator'!$C$8:$BI$67,21,FALSE))/VLOOKUP(N1_MSY,'Escalation Calculator'!$C$8:$BI$67,21,FALSE))),0),IF(AB$4=$E10,$G10*(1+((VLOOKUP(AB$4,'Escalation Calculator'!$C$8:$BI$67,21,FALSE)-VLOOKUP(N1_MSY,'Escalation Calculator'!$C$8:$BI$67,21,FALSE))/VLOOKUP(N1_MSY,'Escalation Calculator'!$C$8:$BI$67,21,FALSE))),0)) -> 0 | AC10: =IF($F10<>"",IFERROR(IF(AND(AC$4>=$E10,AC$4<=$F10),$G10/($F10+1-$E10),0)*(1+((VLOOKUP(AC$4,'Escalation Calculator'!$C$8:$BI$67,21,FALSE)-VLOOKUP(N1_MSY,'Escalation Calculator'!$C$8:$BI$67,21,FALSE))/VLOOKUP(N1_MSY,'Escalation Calculator'!$C$8:$BI$67,21,FALSE))),0),IF(AC$4=$E10,$G10*(1+((VLOOKUP(AC$4,'Escalation Calculator'!$C$8:$BI$67,21,FALSE)-VLOOKUP(N1_MSY,'Escalation Calculator'!$C$8:$BI$67,21,FALSE))/VLOOKUP(N1_MSY,'Escalation Calculator'!$C$8:$BI$67,21,FALSE))),0)) -> 0 | AD10: =IF($F10<>"",IFERROR(IF(AND(AD$4>=$E10,AD$4<=$F10),$G10/($F10+1-$E10),0)*(1+((VLOOKUP(AD$4,'Escalation Calculator'!$C$8:$BI$67,21,FALSE)-VLOOKUP(N1_MSY,'Escalation Calculator'!$C$8:$BI$67,21,FALSE))/VLOOKUP(N1_MSY,'Escalation Calculator'!$C$8:$BI$67,21,FALSE))),0),IF(AD$4=$E10,$G10*(1+((VLOOKUP(AD$4,'Escalation Calculator'!$C$8:$BI$67,21,FALSE)-VLOOKUP(N1_MSY,'Escalation Calculator'!$C$8:$BI$67,21,FALSE))/VLOOKUP(N1_MSY,'Escalation Calculator'!$C$8:$BI$67,21,FALSE))),0)) -> 0 | AE10: =IF($F10<>"",IFERROR(IF(AND(AE$4>=$E10,AE$4<=$F10),$G10/($F10+1-$E10),0)*(1+((VLOOKUP(AE$4,'Escalation Calculator'!$C$8:$BI$67,21,FALSE)-VLOOKUP(N1_MSY,'Escalation Calculator'!$C$8:$BI$67,21,FALSE))/VLOOKUP(N1_MSY,'Escalation Calculator'!$C$8:$BI$67,21,FALSE))),0),IF(AE$4=$E10,$G10*(1+((VLOOKUP(AE$4,'Escalation Calculator'!$C$8:$BI$67,21,FALSE)-VLOOKUP(N1_MSY,'Escalation Calculator'!$C$8:$BI$67,21,FALSE))/VLOOKUP(N1_MSY,'Escalation Calculator'!$C$8:$BI$67,21,FALSE))),0)) -> 0 | AF10: =IF($F10<>"",IFERROR(IF(AND(AF$4>=$E10,AF$4<=$F10),$G10/($F10+1-$E10),0)*(1+((VLOOKUP(AF$4,'Escalation Calculator'!$C$8:$BI$67,21,FALSE)-VLOOKUP(N1_MSY,'Escalation Calculator'!$C$8:$BI$67,21,FALSE))/VLOOKUP(N1_MSY,'Escalation Calculator'!$C$8:$BI$67,21,FALSE))),0),IF(AF$4=$E10,$G10*(1+((VLOOKUP(AF$4,'Escalation Calculator'!$C$8:$BI$67,21,FALSE)-VLOOKUP(N1_MSY,'Escalation Calculator'!$C$8:$BI$67,21,FALSE))/VLOOKUP(N1_MSY,'Escalation Calculator'!$C$8:$BI$67,21,FALSE))),0)) -> 0 | AG10: =IF($F10<>"",IFERROR(IF(AND(AG$4>=$E10,AG$4<=$F10),$G10/($F10+1-$E10),0)*(1+((VLOOKUP(AG$4,'Escalation Calculator'!$C$8:$BI$67,21,FALSE)-VLOOKUP(N1_MSY,'Escalation Calculator'!$C$8:$BI$67,21,FALSE))/VLOOKUP(N1_MSY,'Escalation Calculator'!$C$8:$BI$67,21,FALSE))),0),IF(AG$4=$E10,$G10*(1+((VLOOKUP(AG$4,'Escalation Calculator'!$C$8:$BI$67,21,FALSE)-VLOOKUP(N1_MSY,'Escalation Calculator'!$C$8:$BI$67,21,FALSE))/VLOOKUP(N1_MSY,'Escalation Calculator'!$C$8:$BI$67,21,FALSE))),0)) -> 0 | AH10: =IF($F10<>"",IFERROR(IF(AND(AH$4>=$E10,AH$4<=$F10),$G10/($F10+1-$E10),0)*(1+((VLOOKUP(AH$4,'Escalation Calculator'!$C$8:$BI$67,21,FALSE)-VLOOKUP(N1_MSY,'Escalation Calculator'!$C$8:$BI$67,21,FALSE))/VLOOKUP(N1_MSY,'Escalation Calculator'!$C$8:$BI$67,21,FALSE))),0),IF(AH$4=$E10,$G10*(1+((VLOOKUP(AH$4,'Escalation Calculator'!$C$8:$BI$67,21,FALSE)-VLOOKUP(N1_MSY,'Escalation Calculator'!$C$8:$BI$67,21,FALSE))/VLOOKUP(N1_MSY,'Escalation Calculator'!$C$8:$BI$67,21,FALSE))),0)) -> 0 | AI10: =IF($F10<>"",IFERROR(IF(AND(AI$4>=$E10,AI$4<=$F10),$G10/($F10+1-$E10),0)*(1+((VLOOKUP(AI$4,'Escalation Calculator'!$C$8:$BI$67,21,FALSE)-VLOOKUP(N1_MSY,'Escalation Calculator'!$C$8:$BI$67,21,FALSE))/VLOOKUP(N1_MSY,'Escalation Calculator'!$C$8:$BI$67,21,FALSE))),0),IF(AI$4=$E10,$G10*(1+((VLOOKUP(AI$4,'Escalation Calculator'!$C$8:$BI$67,21,FALSE)-VLOOKUP(N1_MSY,'Escalation Calculator'!$C$8:$BI$67,21,FALSE))/VLOOKUP(N1_MSY,'Escalation Calculator'!$C$8:$BI$67,21,FALSE))),0)) -> 0 | AJ10: =IF($F10<>"",IFERROR(IF(AND(AJ$4>=$E10,AJ$4<=$F10),$G10/($F10+1-$E10),0)*(1+((VLOOKUP(AJ$4,'Escalation Calculator'!$C$8:$BI$67,21,FALSE)-VLOOKUP(N1_MSY,'Escalation Calculator'!$C$8:$BI$67,21,FALSE))/VLOOKUP(N1_MSY,'Escalation Calculator'!$C$8:$BI$67,21,FALSE))),0),IF(AJ$4=$E10,$G10*(1+((VLOOKUP(AJ$4,'Escalation Calculator'!$C$8:$BI$67,21,FALSE)-VLOOKUP(N1_MSY,'Escalation Calculator'!$C$8:$BI$67,21,FALSE))/VLOOKUP(N1_MSY,'Escalation Calculator'!$C$8:$BI$67,21,FALSE))),0)) -> 0 | AK10: =IF($F10<>"",IFERROR(IF(AND(AK$4>=$E10,AK$4<=$F10),$G10/($F10+1-$E10),0)*(1+((VLOOKUP(AK$4,'Escalation Calculator'!$C$8:$BI$67,21,FALSE)-VLOOKUP(N1_MSY,'Escalation Calculator'!$C$8:$BI$67,21,FALSE))/VLOOKUP(N1_MSY,'Escalation Calculator'!$C$8:$BI$67,21,FALSE))),0),IF(AK$4=$E10,$G10*(1+((VLOOKUP(AK$4,'Escalation Calculator'!$C$8:$BI$67,21,FALSE)-VLOOKUP(N1_MSY,'Escalation Calculator'!$C$8:$BI$67,21,FALSE))/VLOOKUP(N1_MSY,'Escalation Calculator'!$C$8:$BI$67,21,FALSE))),0)) -> 0 | AL10: =IF($F10<>"",IFERROR(IF(AND(AL$4>=$E10,AL$4<=$F10),$G10/($F10+1-$E10),0)*(1+((VLOOKUP(AL$4,'Escalation Calculator'!$C$8:$BI$67,21,FALSE)-VLOOKUP(N1_MSY,'Escalation Calculator'!$C$8:$BI$67,21,FALSE))/VLOOKUP(N1_MSY,'Escalation Calculator'!$C$8:$BI$67,21,FALSE))),0),IF(AL$4=$E10,$G10*(1+((VLOOKUP(AL$4,'Escalation Calculator'!$C$8:$BI$67,21,FALSE)-VLOOKUP(N1_MSY,'Escalation Calculator'!$C$8:$BI$67,21,FALSE))/VLOOKUP(N1_MSY,'Escalation Calculator'!$C$8:$BI$67,21,FALSE))),0)) -> 0 | AM10: =IF($F10<>"",IFERROR(IF(AND(AM$4>=$E10,AM$4<=$F10),$G10/($F10+1-$E10),0)*(1+((VLOOKUP(AM$4,'Escalation Calculator'!$C$8:$BI$67,21,FALSE)-VLOOKUP(N1_MSY,'Escalation Calculator'!$C$8:$BI$67,21,FALSE))/VLOOKUP(N1_MSY,'Escalation Calculator'!$C$8:$BI$67,21,FALSE))),0),IF(AM$4=$E10,$G10*(1+((VLOOKUP(AM$4,'Escalation Calculator'!$C$8:$BI$67,21,FALSE)-VLOOKUP(N1_MSY,'Escalation Calculator'!$C$8:$BI$67,21,FALSE))/VLOOKUP(N1_MSY,'Escalation Calculator'!$C$8:$BI$67,21,FALSE))),0)) -> 0 | AN10: =IF($F10<>"",IFERROR(IF(AND(AN$4>=$E10,AN$4<=$F10),$G10/($F10+1-$E10),0)*(1+((VLOOKUP(AN$4,'Escalation Calculator'!$C$8:$BI$67,21,FALSE)-VLOOKUP(N1_MSY,'Escalation Calculator'!$C$8:$BI$67,21,FALSE))/VLOOKUP(N1_MSY,'Escalation Calculator'!$C$8:$BI$67,21,FALSE))),0),IF(AN$4=$E10,$G10*(1+((VLOOKUP(AN$4,'Escalation Calculator'!$C$8:$BI$67,21,FALSE)-VLOOKUP(N1_MSY,'Escalation Calculator'!$C$8:$BI$67,21,FALSE))/VLOOKUP(N1_MSY,'Escalation Calculator'!$C$8:$BI$67,21,FALSE))),0)) -> 0 | AO10: =IF($F10<>"",IFERROR(IF(AND(AO$4>=$E10,AO$4<=$F10),$G10/($F10+1-$E10),0)*(1+((VLOOKUP(AO$4,'Escalation Calculator'!$C$8:$BI$67,21,FALSE)-VLOOKUP(N1_MSY,'Escalation Calculator'!$C$8:$BI$67,21,FALSE))/VLOOKUP(N1_MSY,'Escalation Calculator'!$C$8:$BI$67,21,FALSE))),0),IF(AO$4=$E10,$G10*(1+((VLOOKUP(AO$4,'Escalation Calculator'!$C$8:$BI$67,21,FALSE)-VLOOKUP(N1_MSY,'Escalation Calculator'!$C$8:$BI$67,21,FALSE))/VLOOKUP(N1_MSY,'Escalation Calculator'!$C$8:$BI$67,21,FALSE))),0)) -> 0 | AP10: =IF($F10<>"",IFERROR(IF(AND(AP$4>=$E10,AP$4<=$F10),$G10/($F10+1-$E10),0)*(1+((VLOOKUP(AP$4,'Escalation Calculator'!$C$8:$BI$67,21,FALSE)-VLOOKUP(N1_MSY,'Escalation Calculator'!$C$8:$BI$67,21,FALSE))/VLOOKUP(N1_MSY,'Escalation Calculator'!$C$8:$BI$67,21,FALSE))),0),IF(AP$4=$E10,$G10*(1+((VLOOKUP(AP$4,'Escalation Calculator'!$C$8:$BI$67,21,FALSE)-VLOOKUP(N1_MSY,'Escalation Calculator'!$C$8:$BI$67,21,FALSE))/VLOOKUP(N1_MSY,'Escalation Calculator'!$C$8:$BI$67,21,FALSE))),0)) -> 0 | AQ10: =IF($F10<>"",IFERROR(IF(AND(AQ$4>=$E10,AQ$4<=$F10),$G10/($F10+1-$E10),0)*(1+((VLOOKUP(AQ$4,'Escalation Calculator'!$C$8:$BI$67,21,FALSE)-VLOOKUP(N1_MSY,'Escalation Calculator'!$C$8:$BI$67,21,FALSE))/VLOOKUP(N1_MSY,'Escalation Calculator'!$C$8:$BI$67,21,FALSE))),0),IF(AQ$4=$E10,$G10*(1+((VLOOKUP(AQ$4,'Escalation Calculator'!$C$8:$BI$67,21,FALSE)-VLOOKUP(N1_MSY,'Escalation Calculator'!$C$8:$BI$67,21,FALSE))/VLOOKUP(N1_MSY,'Escalation Calculator'!$C$8:$BI$67,21,FALSE))),0)) -> 0 | AR10: =IF($F10<>"",IFERROR(IF(AND(AR$4>=$E10,AR$4<=$F10),$G10/($F10+1-$E10),0)*(1+((VLOOKUP(AR$4,'Escalation Calculator'!$C$8:$BI$67,21,FALSE)-VLOOKUP(N1_MSY,'Escalation Calculator'!$C$8:$BI$67,21,FALSE))/VLOOKUP(N1_MSY,'Escalation Calculator'!$C$8:$BI$67,21,FALSE))),0),IF(AR$4=$E10,$G10*(1+((VLOOKUP(AR$4,'Escalation Calculator'!$C$8:$BI$67,21,FALSE)-VLOOKUP(N1_MSY,'Escalation Calculator'!$C$8:$BI$67,21,FALSE))/VLOOKUP(N1_MSY,'Escalation Calculator'!$C$8:$BI$67,21,FALSE))),0)) -> 0 | AS10: =IF($F10<>"",IFERROR(IF(AND(AS$4>=$E10,AS$4<=$F10),$G10/($F10+1-$E10),0)*(1+((VLOOKUP(AS$4,'Escalation Calculator'!$C$8:$BI$67,21,FALSE)-VLOOKUP(N1_MSY,'Escalation Calculator'!$C$8:$BI$67,21,FALSE))/VLOOKUP(N1_MSY,'Escalation Calculator'!$C$8:$BI$67,21,FALSE))),0),IF(AS$4=$E10,$G10*(1+((VLOOKUP(AS$4,'Escalation Calculator'!$C$8:$BI$67,21,FALSE)-VLOOKUP(N1_MSY,'Escalation Calculator'!$C$8:$BI$67,21,FALSE))/VLOOKUP(N1_MSY,'Escalation Calculator'!$C$8:$BI$67,21,FALSE))),0)) -> 0 | AT10: =IF($F10<>"",IFERROR(IF(AND(AT$4>=$E10,AT$4<=$F10),$G10/($F10+1-$E10),0)*(1+((VLOOKUP(AT$4,'Escalation Calculator'!$C$8:$BI$67,21,FALSE)-VLOOKUP(N1_MSY,'Escalation Calculator'!$C$8:$BI$67,21,FALSE))/VLOOKUP(N1_MSY,'Escalation Calculator'!$C$8:$BI$67,21,FALSE))),0),IF(AT$4=$E10,$G10*(1+((VLOOKUP(AT$4,'Escalation Calculator'!$C$8:$BI$67,21,FALSE)-VLOOKUP(N1_MSY,'Escalation Calculator'!$C$8:$BI$67,21,FALSE))/VLOOKUP(N1_MSY,'Escalation Calculator'!$C$8:$BI$67,21,FALSE))),0)) -> 0 | AU10: =IF($F10<>"",IFERROR(IF(AND(AU$4>=$E10,AU$4<=$F10),$G10/($F10+1-$E10),0)*(1+((VLOOKUP(AU$4,'Escalation Calculator'!$C$8:$BI$67,21,FALSE)-VLOOKUP(N1_MSY,'Escalation Calculator'!$C$8:$BI$67,21,FALSE))/VLOOKUP(N1_MSY,'Escalation Calculator'!$C$8:$BI$67,21,FALSE))),0),IF(AU$4=$E10,$G10*(1+((VLOOKUP(AU$4,'Escalation Calculator'!$C$8:$BI$67,21,FALSE)-VLOOKUP(N1_MSY,'Escalation Calculator'!$C$8:$BI$67,21,FALSE))/VLOOKUP(N1_MSY,'Escalation Calculator'!$C$8:$BI$67,21,FALSE))),0)) -> 0 | AV10: =IF($F10<>"",IFERROR(IF(AND(AV$4>=$E10,AV$4<=$F10),$G10/($F10+1-$E10),0)*(1+((VLOOKUP(AV$4,'Escalation Calculator'!$C$8:$BI$67,21,FALSE)-VLOOKUP(N1_MSY,'Escalation Calculator'!$C$8:$BI$67,21,FALSE))/VLOOKUP(N1_MSY,'Escalation Calculator'!$C$8:$BI$67,21,FALSE))),0),IF(AV$4=$E10,$G10*(1+((VLOOKUP(AV$4,'Escalation Calculator'!$C$8:$BI$67,21,FALSE)-VLOOKUP(N1_MSY,'Escalation Calculator'!$C$8:$BI$67,21,FALSE))/VLOOKUP(N1_MSY,'Escalation Calculator'!$C$8:$BI$67,21,FALSE))),0)) -> 0 | AW10: =IF($F10<>"",IFERROR(IF(AND(AW$4>=$E10,AW$4<=$F10),$G10/($F10+1-$E10),0)*(1+((VLOOKUP(AW$4,'Escalation Calculator'!$C$8:$BI$67,21,FALSE)-VLOOKUP(N1_MSY,'Escalation Calculator'!$C$8:$BI$67,21,FALSE))/VLOOKUP(N1_MSY,'Escalation Calculator'!$C$8:$BI$67,21,FALSE))),0),IF(AW$4=$E10,$G10*(1+((VLOOKUP(AW$4,'Escalation Calculator'!$C$8:$BI$67,21,FALSE)-VLOOKUP(N1_MSY,'Escalation Calculator'!$C$8:$BI$67,21,FALSE))/VLOOKUP(N1_MSY,'Escalation Calculator'!$C$8:$BI$67,21,FALSE))),0)) -> 0 | AX10: =IF($F10<>"",IFERROR(IF(AND(AX$4>=$E10,AX$4<=$F10),$G10/($F10+1-$E10),0)*(1+((VLOOKUP(AX$4,'Escalation Calculator'!$C$8:$BI$67,21,FALSE)-VLOOKUP(N1_MSY,'Escalation Calculator'!$C$8:$BI$67,21,FALSE))/VLOOKUP(N1_MSY,'Escalation Calculator'!$C$8:$BI$67,21,FALSE))),0),IF(AX$4=$E10,$G10*(1+((VLOOKUP(AX$4,'Escalation Calculator'!$C$8:$BI$67,21,FALSE)-VLOOKUP(N1_MSY,'Escalation Calculator'!$C$8:$BI$67,21,FALSE))/VLOOKUP(N1_MSY,'Escalation Calculator'!$C$8:$BI$67,21,FALSE))),0)) -> 0 | AY10: =IF($F10<>"",IFERROR(IF(AND(AY$4>=$E10,AY$4<=$F10),$G10/($F10+1-$E10),0)*(1+((VLOOKUP(AY$4,'Escalation Calculator'!$C$8:$BI$67,21,FALSE)-VLOOKUP(N1_MSY,'Escalation Calculator'!$C$8:$BI$67,21,FALSE))/VLOOKUP(N1_MSY,'Escalation Calculator'!$C$8:$BI$67,21,FALSE))),0),IF(AY$4=$E10,$G10*(1+((VLOOKUP(AY$4,'Escalation Calculator'!$C$8:$BI$67,21,FALSE)-VLOOKUP(N1_MSY,'Escalation Calculator'!$C$8:$BI$67,21,FALSE))/VLOOKUP(N1_MSY,'Escalation Calculator'!$C$8:$BI$67,21,FALSE))),0)) -> 0 | AZ10: =IF($F10<>"",IFERROR(IF(AND(AZ$4>=$E10,AZ$4<=$F10),$G10/($F10+1-$E10),0)*(1+((VLOOKUP(AZ$4,'Escalation Calculator'!$C$8:$BI$67,21,FALSE)-VLOOKUP(N1_MSY,'Escalation Calculator'!$C$8:$BI$67,21,FALSE))/VLOOKUP(N1_MSY,'Escalation Calculator'!$C$8:$BI$67,21,FALSE))),0),IF(AZ$4=$E10,$G10*(1+((VLOOKUP(AZ$4,'Escalation Calculator'!$C$8:$BI$67,21,FALSE)-VLOOKUP(N1_MSY,'Escalation Calculator'!$C$8:$BI$67,21,FALSE))/VLOOKUP(N1_MSY,'Escalation Calculator'!$C$8:$BI$67,21,FALSE))),0)) -> 0 | BA10: =IF($F10<>"",IFERROR(IF(AND(BA$4>=$E10,BA$4<=$F10),$G10/($F10+1-$E10),0)*(1+((VLOOKUP(BA$4,'Escalation Calculator'!$C$8:$BI$67,21,FALSE)-VLOOKUP(N1_MSY,'Escalation Calculator'!$C$8:$BI$67,21,FALSE))/VLOOKUP(N1_MSY,'Escalation Calculator'!$C$8:$BI$67,21,FALSE))),0),IF(BA$4=$E10,$G10*(1+((VLOOKUP(BA$4,'Escalation Calculator'!$C$8:$BI$67,21,FALSE)-VLOOKUP(N1_MSY,'Escalation Calculator'!$C$8:$BI$67,21,FALSE))/VLOOKUP(N1_MSY,'Escalation Calculator'!$C$8:$BI$67,21,FALSE))),0)) -> 0 | BB10: =IF($F10<>"",IFERROR(IF(AND(BB$4>=$E10,BB$4<=$F10),$G10/($F10+1-$E10),0)*(1+((VLOOKUP(BB$4,'Escalation Calculator'!$C$8:$BI$67,21,FALSE)-VLOOKUP(N1_MSY,'Escalation Calculator'!$C$8:$BI$67,21,FALSE))/VLOOKUP(N1_MSY,'Escalation Calculator'!$C$8:$BI$67,21,FALSE))),0),IF(BB$4=$E10,$G10*(1+((VLOOKUP(BB$4,'Escalation Calculator'!$C$8:$BI$67,21,FALSE)-VLOOKUP(N1_MSY,'Escalation Calculator'!$C$8:$BI$67,21,FALSE))/VLOOKUP(N1_MSY,'Escalation Calculator'!$C$8:$BI$67,21,FALSE))),0)) -> 0 | BC10: =IF($F10<>"",IFERROR(IF(AND(BC$4>=$E10,BC$4<=$F10),$G10/($F10+1-$E10),0)*(1+((VLOOKUP(BC$4,'Escalation Calculator'!$C$8:$BI$67,21,FALSE)-VLOOKUP(N1_MSY,'Escalation Calculator'!$C$8:$BI$67,21,FALSE))/VLOOKUP(N1_MSY,'Escalation Calculator'!$C$8:$BI$67,21,FALSE))),0),IF(BC$4=$E10,$G10*(1+((VLOOKUP(BC$4,'Escalation Calculator'!$C$8:$BI$67,21,FALSE)-VLOOKUP(N1_MSY,'Escalation Calculator'!$C$8:$BI$67,21,FALSE))/VLOOKUP(N1_MSY,'Escalation Calculator'!$C$8:$BI$67,21,FALSE))),0)) -> 0 | BD10: =IF($F10<>"",IFERROR(IF(AND(BD$4>=$E10,BD$4<=$F10),$G10/($F10+1-$E10),0)*(1+((VLOOKUP(BD$4,'Escalation Calculator'!$C$8:$BI$67,21,FALSE)-VLOOKUP(N1_MSY,'Escalation Calculator'!$C$8:$BI$67,21,FALSE))/VLOOKUP(N1_MSY,'Escalation Calculator'!$C$8:$BI$67,21,FALSE))),0),IF(BD$4=$E10,$G10*(1+((VLOOKUP(BD$4,'Escalation Calculator'!$C$8:$BI$67,21,FALSE)-VLOOKUP(N1_MSY,'Escalation Calculator'!$C$8:$BI$67,21,FALSE))/VLOOKUP(N1_MSY,'Escalation Calculator'!$C$8:$BI$67,21,FALSE))),0)) -> 0 | BE10: =IF($F10<>"",IFERROR(IF(AND(BE$4>=$E10,BE$4<=$F10),$G10/($F10+1-$E10),0)*(1+((VLOOKUP(BE$4,'Escalation Calculator'!$C$8:$BI$67,21,FALSE)-VLOOKUP(N1_MSY,'Escalation Calculator'!$C$8:$BI$67,21,FALSE))/VLOOKUP(N1_MSY,'Escalation Calculator'!$C$8:$BI$67,21,FALSE))),0),IF(BE$4=$E10,$G10*(1+((VLOOKUP(BE$4,'Escalation Calculator'!$C$8:$BI$67,21,FALSE)-VLOOKUP(N1_MSY,'Escalation Calculator'!$C$8:$BI$67,21,FALSE))/VLOOKUP(N1_MSY,'Escalation Calculator'!$C$8:$BI$67,21,FALSE))),0)) -> 0 | BF10: =IF($F10<>"",IFERROR(IF(AND(BF$4>=$E10,BF$4<=$F10),$G10/($F10+1-$E10),0)*(1+((VLOOKUP(BF$4,'Escalation Calculator'!$C$8:$BI$67,21,FALSE)-VLOOKUP(N1_MSY,'Escalation Calculator'!$C$8:$BI$67,21,FALSE))/VLOOKUP(N1_MSY,'Escalation Calculator'!$C$8:$BI$67,21,FALSE))),0),IF(BF$4=$E10,$G10*(1+((VLOOKUP(BF$4,'Escalation Calculator'!$C$8:$BI$67,21,FALSE)-VLOOKUP(N1_MSY,'Escalation Calculator'!$C$8:$BI$67,21,FALSE))/VLOOKUP(N1_MSY,'Escalation Calculator'!$C$8:$BI$67,21,FALSE))),0)) -> 0 | BG10: =IF($F10<>"",IFERROR(IF(AND(BG$4>=$E10,BG$4<=$F10),$G10/($F10+1-$E10),0)*(1+((VLOOKUP(BG$4,'Escalation Calculator'!$C$8:$BI$67,21,FALSE)-VLOOKUP(N1_MSY,'Escalation Calculator'!$C$8:$BI$67,21,FALSE))/VLOOKUP(N1_MSY,'Escalation Calculator'!$C$8:$BI$67,21,FALSE))),0),IF(BG$4=$E10,$G10*(1+((VLOOKUP(BG$4,'Escalation Calculator'!$C$8:$BI$67,21,FALSE)-VLOOKUP(N1_MSY,'Escalation Calculator'!$C$8:$BI$67,21,FALSE))/VLOOKUP(N1_MSY,'Escalation Calculator'!$C$8:$BI$67,21,FALSE))),0)) -> 0
B11: ='Water Supply - Future'!B12 -> W4-LW | C11: =IF('Water Supply - Future'!H12=0,"",'Water Supply - Future'!H12) -> Infrastructure provider | D11: ='Water Supply - Future'!G12 -> Proserpine | E11: ='Water Supply - Future'!J12 -> 2023 | F11: ='Water Supply - Future'!K12 -> 2023 | G11: ='Water Supply - Future'!Z12 -> 1269230.769 | H11: 1303135.265 | I11: =IF($F11<>"",IFERROR(IF(AND(I$4>=$E11,I$4<=$F11),$G11/($F11+1-$E11),0)*(1+((VLOOKUP(I$4,'Escalation Calculator'!$C$8:$BI$67,21,FALSE)-VLOOKUP(N1_MSY,'Escalation Calculator'!$C$8:$BI$67,21,FALSE))/VLOOKUP(N1_MSY,'Escalation Calculator'!$C$8:$BI$67,21,FALSE))),0),IF(I$4=$E11,$G11*(1+((VLOOKUP(I$4,'Escalation Calculator'!$C$8:$BI$67,21,FALSE)-VLOOKUP(N1_MSY,'Escalation Calculator'!$C$8:$BI$67,21,FALSE))/VLOOKUP(N1_MSY,'Escalation Calculator'!$C$8:$BI$67,21,FALSE))),0)) -> 0 | J11: =IF($F11<>"",IFERROR(IF(AND(J$4>=$E11,J$4<=$F11),$G11/($F11+1-$E11),0)*(1+((VLOOKUP(J$4,'Escalation Calculator'!$C$8:$BI$67,21,FALSE)-VLOOKUP(N1_MSY,'Escalation Calculator'!$C$8:$BI$67,21,FALSE))/VLOOKUP(N1_MSY,'Escalation Calculator'!$C$8:$BI$67,21,FALSE))),0),IF(J$4=$E11,$G11*(1+((VLOOKUP(J$4,'Escalation Calculator'!$C$8:$BI$67,21,FALSE)-VLOOKUP(N1_MSY,'Escalation Calculator'!$C$8:$BI$67,21,FALSE))/VLOOKUP(N1_MSY,'Escalation Calculator'!$C$8:$BI$67,21,FALSE))),0)) -> 0 | K11: =IF($F11<>"",IFERROR(IF(AND(K$4>=$E11,K$4<=$F11),$G11/($F11+1-$E11),0)*(1+((VLOOKUP(K$4,'Escalation Calculator'!$C$8:$BI$67,21,FALSE)-VLOOKUP(N1_MSY,'Escalation Calculator'!$C$8:$BI$67,21,FALSE))/VLOOKUP(N1_MSY,'Escalation Calculator'!$C$8:$BI$67,21,FALSE))),0),IF(K$4=$E11,$G11*(1+((VLOOKUP(K$4,'Escalation Calculator'!$C$8:$BI$67,21,FALSE)-VLOOKUP(N1_MSY,'Escalation Calculator'!$C$8:$BI$67,21,FALSE))/VLOOKUP(N1_MSY,'Escalation Calculator'!$C$8:$BI$67,21,FALSE))),0)) -> 1303135.265 | L11: =IF($F11<>"",IFERROR(IF(AND(L$4>=$E11,L$4<=$F11),$G11/($F11+1-$E11),0)*(1+((VLOOKUP(L$4,'Escalation Calculator'!$C$8:$BI$67,21,FALSE)-VLOOKUP(N1_MSY,'Escalation Calculator'!$C$8:$BI$67,21,FALSE))/VLOOKUP(N1_MSY,'Escalation Calculator'!$C$8:$BI$67,21,FALSE))),0),IF(L$4=$E11,$G11*(1+((VLOOKUP(L$4,'Escalation Calculator'!$C$8:$BI$67,21,FALSE)-VLOOKUP(N1_MSY,'Escalation Calculator'!$C$8:$BI$67,21,FALSE))/VLOOKUP(N1_MSY,'Escalation Calculator'!$C$8:$BI$67,21,FALSE))),0)) -> 0 | M11: =IF($F11<>"",IFERROR(IF(AND(M$4>=$E11,M$4<=$F11),$G11/($F11+1-$E11),0)*(1+((VLOOKUP(M$4,'Escalation Calculator'!$C$8:$BI$67,21,FALSE)-VLOOKUP(N1_MSY,'Escalation Calculator'!$C$8:$BI$67,21,FALSE))/VLOOKUP(N1_MSY,'Escalation Calculator'!$C$8:$BI$67,21,FALSE))),0),IF(M$4=$E11,$G11*(1+((VLOOKUP(M$4,'Escalation Calculator'!$C$8:$BI$67,21,FALSE)-VLOOKUP(N1_MSY,'Escalation Calculator'!$C$8:$BI$67,21,FALSE))/VLOOKUP(N1_MSY,'Escalation Calculator'!$C$8:$BI$67,21,FALSE))),0)) -> 0 | N11: =IF($F11<>"",IFERROR(IF(AND(N$4>=$E11,N$4<=$F11),$G11/($F11+1-$E11),0)*(1+((VLOOKUP(N$4,'Escalation Calculator'!$C$8:$BI$67,21,FALSE)-VLOOKUP(N1_MSY,'Escalation Calculator'!$C$8:$BI$67,21,FALSE))/VLOOKUP(N1_MSY,'Escalation Calculator'!$C$8:$BI$67,21,FALSE))),0),IF(N$4=$E11,$G11*(1+((VLOOKUP(N$4,'Escalation Calculator'!$C$8:$BI$67,21,FALSE)-VLOOKUP(N1_MSY,'Escalation Calculator'!$C$8:$BI$67,21,FALSE))/VLOOKUP(N1_MSY,'Escalation Calculator'!$C$8:$BI$67,21,FALSE))),0)) -> 0 | O11: =IF($F11<>"",IFERROR(IF(AND(O$4>=$E11,O$4<=$F11),$G11/($F11+1-$E11),0)*(1+((VLOOKUP(O$4,'Escalation Calculator'!$C$8:$BI$67,21,FALSE)-VLOOKUP(N1_MSY,'Escalation Calculator'!$C$8:$BI$67,21,FALSE))/VLOOKUP(N1_MSY,'Escalation Calculator'!$C$8:$BI$67,21,FALSE))),0),IF(O$4=$E11,$G11*(1+((VLOOKUP(O$4,'Escalation Calculator'!$C$8:$BI$67,21,FALSE)-VLOOKUP(N1_MSY,'Escalation Calculator'!$C$8:$BI$67,21,FALSE))/VLOOKUP(N1_MSY,'Escalation Calculator'!$C$8:$BI$67,21,FALSE))),0)) -> 0 | P11: =IF($F11<>"",IFERROR(IF(AND(P$4>=$E11,P$4<=$F11),$G11/($F11+1-$E11),0)*(1+((VLOOKUP(P$4,'Escalation Calculator'!$C$8:$BI$67,21,FALSE)-VLOOKUP(N1_MSY,'Escalation Calculator'!$C$8:$BI$67,21,FALSE))/VLOOKUP(N1_MSY,'Escalation Calculator'!$C$8:$BI$67,21,FALSE))),0),IF(P$4=$E11,$G11*(1+((VLOOKUP(P$4,'Escalation Calculator'!$C$8:$BI$67,21,FALSE)-VLOOKUP(N1_MSY,'Escalation Calculator'!$C$8:$BI$67,21,FALSE))/VLOOKUP(N1_MSY,'Escalation Calculator'!$C$8:$BI$67,21,FALSE))),0)) -> 0 | Q11: =IF($F11<>"",IFERROR(IF(AND(Q$4>=$E11,Q$4<=$F11),$G11/($F11+1-$E11),0)*(1+((VLOOKUP(Q$4,'Escalation Calculator'!$C$8:$BI$67,21,FALSE)-VLOOKUP(N1_MSY,'Escalation Calculator'!$C$8:$BI$67,21,FALSE))/VLOOKUP(N1_MSY,'Escalation Calculator'!$C$8:$BI$67,21,FALSE))),0),IF(Q$4=$E11,$G11*(1+((VLOOKUP(Q$4,'Escalation Calculator'!$C$8:$BI$67,21,FALSE)-VLOOKUP(N1_MSY,'Escalation Calculator'!$C$8:$BI$67,21,FALSE))/VLOOKUP(N1_MSY,'Escalation Calculator'!$C$8:$BI$67,21,FALSE))),0)) -> 0 | R11: =IF($F11<>"",IFERROR(IF(AND(R$4>=$E11,R$4<=$F11),$G11/($F11+1-$E11),0)*(1+((VLOOKUP(R$4,'Escalation Calculator'!$C$8:$BI$67,21,FALSE)-VLOOKUP(N1_MSY,'Escalation Calculator'!$C$8:$BI$67,21,FALSE))/VLOOKUP(N1_MSY,'Escalation Calculator'!$C$8:$BI$67,21,FALSE))),0),IF(R$4=$E11,$G11*(1+((VLOOKUP(R$4,'Escalation Calculator'!$C$8:$BI$67,21,FALSE)-VLOOKUP(N1_MSY,'Escalation Calculator'!$C$8:$BI$67,21,FALSE))/VLOOKUP(N1_MSY,'Escalation Calculator'!$C$8:$BI$67,21,FALSE))),0)) -> 0 | S11: =IF($F11<>"",IFERROR(IF(AND(S$4>=$E11,S$4<=$F11),$G11/($F11+1-$E11),0)*(1+((VLOOKUP(S$4,'Escalation Calculator'!$C$8:$BI$67,21,FALSE)-VLOOKUP(N1_MSY,'Escalation Calculator'!$C$8:$BI$67,21,FALSE))/VLOOKUP(N1_MSY,'Escalation Calculator'!$C$8:$BI$67,21,FALSE))),0),IF(S$4=$E11,$G11*(1+((VLOOKUP(S$4,'Escalation Calculator'!$C$8:$BI$67,21,FALSE)-VLOOKUP(N1_MSY,'Escalation Calculator'!$C$8:$BI$67,21,FALSE))/VLOOKUP(N1_MSY,'Escalation Calculator'!$C$8:$BI$67,21,FALSE))),0)) -> 0 | T11: =IF($F11<>"",IFERROR(IF(AND(T$4>=$E11,T$4<=$F11),$G11/($F11+1-$E11),0)*(1+((VLOOKUP(T$4,'Escalation Calculator'!$C$8:$BI$67,21,FALSE)-VLOOKUP(N1_MSY,'Escalation Calculator'!$C$8:$BI$67,21,FALSE))/VLOOKUP(N1_MSY,'Escalation Calculator'!$C$8:$BI$67,21,FALSE))),0),IF(T$4=$E11,$G11*(1+((VLOOKUP(T$4,'Escalation Calculator'!$C$8:$BI$67,21,FALSE)-VLOOKUP(N1_MSY,'Escalation Calculator'!$C$8:$BI$67,21,FALSE))/VLOOKUP(N1_MSY,'Escalation Calculator'!$C$8:$BI$67,21,FALSE))),0)) -> 0 | U11: =IF($F11<>"",IFERROR(IF(AND(U$4>=$E11,U$4<=$F11),$G11/($F11+1-$E11),0)*(1+((VLOOKUP(U$4,'Escalation Calculator'!$C$8:$BI$67,21,FALSE)-VLOOKUP(N1_MSY,'Escalation Calculator'!$C$8:$BI$67,21,FALSE))/VLOOKUP(N1_MSY,'Escalation Calculator'!$C$8:$BI$67,21,FALSE))),0),IF(U$4=$E11,$G11*(1+((VLOOKUP(U$4,'Escalation Calculator'!$C$8:$BI$67,21,FALSE)-VLOOKUP(N1_MSY,'Escalation Calculator'!$C$8:$BI$67,21,FALSE))/VLOOKUP(N1_MSY,'Escalation Calculator'!$C$8:$BI$67,21,FALSE))),0)) -> 0 | V11: =IF($F11<>"",IFERROR(IF(AND(V$4>=$E11,V$4<=$F11),$G11/($F11+1-$E11),0)*(1+((VLOOKUP(V$4,'Escalation Calculator'!$C$8:$BI$67,21,FALSE)-VLOOKUP(N1_MSY,'Escalation Calculator'!$C$8:$BI$67,21,FALSE))/VLOOKUP(N1_MSY,'Escalation Calculator'!$C$8:$BI$67,21,FALSE))),0),IF(V$4=$E11,$G11*(1+((VLOOKUP(V$4,'Escalation Calculator'!$C$8:$BI$67,21,FALSE)-VLOOKUP(N1_MSY,'Escalation Calculator'!$C$8:$BI$67,21,FALSE))/VLOOKUP(N1_MSY,'Escalation Calculator'!$C$8:$BI$67,21,FALSE))),0)) -> 0 | W11: =IF($F11<>"",IFERROR(IF(AND(W$4>=$E11,W$4<=$F11),$G11/($F11+1-$E11),0)*(1+((VLOOKUP(W$4,'Escalation Calculator'!$C$8:$BI$67,21,FALSE)-VLOOKUP(N1_MSY,'Escalation Calculator'!$C$8:$BI$67,21,FALSE))/VLOOKUP(N1_MSY,'Escalation Calculator'!$C$8:$BI$67,21,FALSE))),0),IF(W$4=$E11,$G11*(1+((VLOOKUP(W$4,'Escalation Calculator'!$C$8:$BI$67,21,FALSE)-VLOOKUP(N1_MSY,'Escalation Calculator'!$C$8:$BI$67,21,FALSE))/VLOOKUP(N1_MSY,'Escalation Calculator'!$C$8:$BI$67,21,FALSE))),0)) -> 0 | X11: =IF($F11<>"",IFERROR(IF(AND(X$4>=$E11,X$4<=$F11),$G11/($F11+1-$E11),0)*(1+((VLOOKUP(X$4,'Escalation Calculator'!$C$8:$BI$67,21,FALSE)-VLOOKUP(N1_MSY,'Escalation Calculator'!$C$8:$BI$67,21,FALSE))/VLOOKUP(N1_MSY,'Escalation Calculator'!$C$8:$BI$67,21,FALSE))),0),IF(X$4=$E11,$G11*(1+((VLOOKUP(X$4,'Escalation Calculator'!$C$8:$BI$67,21,FALSE)-VLOOKUP(N1_MSY,'Escalation Calculator'!$C$8:$BI$67,21,FALSE))/VLOOKUP(N1_MSY,'Escalation Calculator'!$C$8:$BI$67,21,FALSE))),0)) -> 0 | Y11: =IF($F11<>"",IFERROR(IF(AND(Y$4>=$E11,Y$4<=$F11),$G11/($F11+1-$E11),0)*(1+((VLOOKUP(Y$4,'Escalation Calculator'!$C$8:$BI$67,21,FALSE)-VLOOKUP(N1_MSY,'Escalation Calculator'!$C$8:$BI$67,21,FALSE))/VLOOKUP(N1_MSY,'Escalation Calculator'!$C$8:$BI$67,21,FALSE))),0),IF(Y$4=$E11,$G11*(1+((VLOOKUP(Y$4,'Escalation Calculator'!$C$8:$BI$67,21,FALSE)-VLOOKUP(N1_MSY,'Escalation Calculator'!$C$8:$BI$67,21,FALSE))/VLOOKUP(N1_MSY,'Escalation Calculator'!$C$8:$BI$67,21,FALSE))),0)) -> 0 | Z11: =IF($F11<>"",IFERROR(IF(AND(Z$4>=$E11,Z$4<=$F11),$G11/($F11+1-$E11),0)*(1+((VLOOKUP(Z$4,'Escalation Calculator'!$C$8:$BI$67,21,FALSE)-VLOOKUP(N1_MSY,'Escalation Calculator'!$C$8:$BI$67,21,FALSE))/VLOOKUP(N1_MSY,'Escalation Calculator'!$C$8:$BI$67,21,FALSE))),0),IF(Z$4=$E11,$G11*(1+((VLOOKUP(Z$4,'Escalation Calculator'!$C$8:$BI$67,21,FALSE)-VLOOKUP(N1_MSY,'Escalation Calculator'!$C$8:$BI$67,21,FALSE))/VLOOKUP(N1_MSY,'Escalation Calculator'!$C$8:$BI$67,21,FALSE))),0)) -> 0 | AA11: =IF($F11<>"",IFERROR(IF(AND(AA$4>=$E11,AA$4<=$F11),$G11/($F11+1-$E11),0)*(1+((VLOOKUP(AA$4,'Escalation Calculator'!$C$8:$BI$67,21,FALSE)-VLOOKUP(N1_MSY,'Escalation Calculator'!$C$8:$BI$67,21,FALSE))/VLOOKUP(N1_MSY,'Escalation Calculator'!$C$8:$BI$67,21,FALSE))),0),IF(AA$4=$E11,$G11*(1+((VLOOKUP(AA$4,'Escalation Calculator'!$C$8:$BI$67,21,FALSE)-VLOOKUP(N1_MSY,'Escalation Calculator'!$C$8:$BI$67,21,FALSE))/VLOOKUP(N1_MSY,'Escalation Calculator'!$C$8:$BI$67,21,FALSE))),0)) -> 0 | AB11: =IF($F11<>"",IFERROR(IF(AND(AB$4>=$E11,AB$4<=$F11),$G11/($F11+1-$E11),0)*(1+((VLOOKUP(AB$4,'Escalation Calculator'!$C$8:$BI$67,21,FALSE)-VLOOKUP(N1_MSY,'Escalation Calculator'!$C$8:$BI$67,21,FALSE))/VLOOKUP(N1_MSY,'Escalation Calculator'!$C$8:$BI$67,21,FALSE))),0),IF(AB$4=$E11,$G11*(1+((VLOOKUP(AB$4,'Escalation Calculator'!$C$8:$BI$67,21,FALSE)-VLOOKUP(N1_MSY,'Escalation Calculator'!$C$8:$BI$67,21,FALSE))/VLOOKUP(N1_MSY,'Escalation Calculator'!$C$8:$BI$67,21,FALSE))),0)) -> 0 | AC11: =IF($F11<>"",IFERROR(IF(AND(AC$4>=$E11,AC$4<=$F11),$G11/($F11+1-$E11),0)*(1+((VLOOKUP(AC$4,'Escalation Calculator'!$C$8:$BI$67,21,FALSE)-VLOOKUP(N1_MSY,'Escalation Calculator'!$C$8:$BI$67,21,FALSE))/VLOOKUP(N1_MSY,'Escalation Calculator'!$C$8:$BI$67,21,FALSE))),0),IF(AC$4=$E11,$G11*(1+((VLOOKUP(AC$4,'Escalation Calculator'!$C$8:$BI$67,21,FALSE)-VLOOKUP(N1_MSY,'Escalation Calculator'!$C$8:$BI$67,21,FALSE))/VLOOKUP(N1_MSY,'Escalation Calculator'!$C$8:$BI$67,21,FALSE))),0)) -> 0 | AD11: =IF($F11<>"",IFERROR(IF(AND(AD$4>=$E11,AD$4<=$F11),$G11/($F11+1-$E11),0)*(1+((VLOOKUP(AD$4,'Escalation Calculator'!$C$8:$BI$67,21,FALSE)-VLOOKUP(N1_MSY,'Escalation Calculator'!$C$8:$BI$67,21,FALSE))/VLOOKUP(N1_MSY,'Escalation Calculator'!$C$8:$BI$67,21,FALSE))),0),IF(AD$4=$E11,$G11*(1+((VLOOKUP(AD$4,'Escalation Calculator'!$C$8:$BI$67,21,FALSE)-VLOOKUP(N1_MSY,'Escalation Calculator'!$C$8:$BI$67,21,FALSE))/VLOOKUP(N1_MSY,'Escalation Calculator'!$C$8:$BI$67,21,FALSE))),0)) -> 0 | AE11: =IF($F11<>"",IFERROR(IF(AND(AE$4>=$E11,AE$4<=$F11),$G11/($F11+1-$E11),0)*(1+((VLOOKUP(AE$4,'Escalation Calculator'!$C$8:$BI$67,21,FALSE)-VLOOKUP(N1_MSY,'Escalation Calculator'!$C$8:$BI$67,21,FALSE))/VLOOKUP(N1_MSY,'Escalation Calculator'!$C$8:$BI$67,21,FALSE))),0),IF(AE$4=$E11,$G11*(1+((VLOOKUP(AE$4,'Escalation Calculator'!$C$8:$BI$67,21,FALSE)-VLOOKUP(N1_MSY,'Escalation Calculator'!$C$8:$BI$67,21,FALSE))/VLOOKUP(N1_MSY,'Escalation Calculator'!$C$8:$BI$67,21,FALSE))),0)) -> 0 | AF11: =IF($F11<>"",IFERROR(IF(AND(AF$4>=$E11,AF$4<=$F11),$G11/($F11+1-$E11),0)*(1+((VLOOKUP(AF$4,'Escalation Calculator'!$C$8:$BI$67,21,FALSE)-VLOOKUP(N1_MSY,'Escalation Calculator'!$C$8:$BI$67,21,FALSE))/VLOOKUP(N1_MSY,'Escalation Calculator'!$C$8:$BI$67,21,FALSE))),0),IF(AF$4=$E11,$G11*(1+((VLOOKUP(AF$4,'Escalation Calculator'!$C$8:$BI$67,21,FALSE)-VLOOKUP(N1_MSY,'Escalation Calculator'!$C$8:$BI$67,21,FALSE))/VLOOKUP(N1_MSY,'Escalation Calculator'!$C$8:$BI$67,21,FALSE))),0)) -> 0 | AG11: =IF($F11<>"",IFERROR(IF(AND(AG$4>=$E11,AG$4<=$F11),$G11/($F11+1-$E11),0)*(1+((VLOOKUP(AG$4,'Escalation Calculator'!$C$8:$BI$67,21,FALSE)-VLOOKUP(N1_MSY,'Escalation Calculator'!$C$8:$BI$67,21,FALSE))/VLOOKUP(N1_MSY,'Escalation Calculator'!$C$8:$BI$67,21,FALSE))),0),IF(AG$4=$E11,$G11*(1+((VLOOKUP(AG$4,'Escalation Calculator'!$C$8:$BI$67,21,FALSE)-VLOOKUP(N1_MSY,'Escalation Calculator'!$C$8:$BI$67,21,FALSE))/VLOOKUP(N1_MSY,'Escalation Calculator'!$C$8:$BI$67,21,FALSE))),0)) -> 0 | AH11: =IF($F11<>"",IFERROR(IF(AND(AH$4>=$E11,AH$4<=$F11),$G11/($F11+1-$E11),0)*(1+((VLOOKUP(AH$4,'Escalation Calculator'!$C$8:$BI$67,21,FALSE)-VLOOKUP(N1_MSY,'Escalation Calculator'!$C$8:$BI$67,21,FALSE))/VLOOKUP(N1_MSY,'Escalation Calculator'!$C$8:$BI$67,21,FALSE))),0),IF(AH$4=$E11,$G11*(1+((VLOOKUP(AH$4,'Escalation Calculator'!$C$8:$BI$67,21,FALSE)-VLOOKUP(N1_MSY,'Escalation Calculator'!$C$8:$BI$67,21,FALSE))/VLOOKUP(N1_MSY,'Escalation Calculator'!$C$8:$BI$67,21,FALSE))),0)) -> 0 | AI11: =IF($F11<>"",IFERROR(IF(AND(AI$4>=$E11,AI$4<=$F11),$G11/($F11+1-$E11),0)*(1+((VLOOKUP(AI$4,'Escalation Calculator'!$C$8:$BI$67,21,FALSE)-VLOOKUP(N1_MSY,'Escalation Calculator'!$C$8:$BI$67,21,FALSE))/VLOOKUP(N1_MSY,'Escalation Calculator'!$C$8:$BI$67,21,FALSE))),0),IF(AI$4=$E11,$G11*(1+((VLOOKUP(AI$4,'Escalation Calculator'!$C$8:$BI$67,21,FALSE)-VLOOKUP(N1_MSY,'Escalation Calculator'!$C$8:$BI$67,21,FALSE))/VLOOKUP(N1_MSY,'Escalation Calculator'!$C$8:$BI$67,21,FALSE))),0)) -> 0 | AJ11: =IF($F11<>"",IFERROR(IF(AND(AJ$4>=$E11,AJ$4<=$F11),$G11/($F11+1-$E11),0)*(1+((VLOOKUP(AJ$4,'Escalation Calculator'!$C$8:$BI$67,21,FALSE)-VLOOKUP(N1_MSY,'Escalation Calculator'!$C$8:$BI$67,21,FALSE))/VLOOKUP(N1_MSY,'Escalation Calculator'!$C$8:$BI$67,21,FALSE))),0),IF(AJ$4=$E11,$G11*(1+((VLOOKUP(AJ$4,'Escalation Calculator'!$C$8:$BI$67,21,FALSE)-VLOOKUP(N1_MSY,'Escalation Calculator'!$C$8:$BI$67,21,FALSE))/VLOOKUP(N1_MSY,'Escalation Calculator'!$C$8:$BI$67,21,FALSE))),0)) -> 0 | AK11: =IF($F11<>"",IFERROR(IF(AND(AK$4>=$E11,AK$4<=$F11),$G11/($F11+1-$E11),0)*(1+((VLOOKUP(AK$4,'Escalation Calculator'!$C$8:$BI$67,21,FALSE)-VLOOKUP(N1_MSY,'Escalation Calculator'!$C$8:$BI$67,21,FALSE))/VLOOKUP(N1_MSY,'Escalation Calculator'!$C$8:$BI$67,21,FALSE))),0),IF(AK$4=$E11,$G11*(1+((VLOOKUP(AK$4,'Escalation Calculator'!$C$8:$BI$67,21,FALSE)-VLOOKUP(N1_MSY,'Escalation Calculator'!$C$8:$BI$67,21,FALSE))/VLOOKUP(N1_MSY,'Escalation Calculator'!$C$8:$BI$67,21,FALSE))),0)) -> 0 | AL11: =IF($F11<>"",IFERROR(IF(AND(AL$4>=$E11,AL$4<=$F11),$G11/($F11+1-$E11),0)*(1+((VLOOKUP(AL$4,'Escalation Calculator'!$C$8:$BI$67,21,FALSE)-VLOOKUP(N1_MSY,'Escalation Calculator'!$C$8:$BI$67,21,FALSE))/VLOOKUP(N1_MSY,'Escalation Calculator'!$C$8:$BI$67,21,FALSE))),0),IF(AL$4=$E11,$G11*(1+((VLOOKUP(AL$4,'Escalation Calculator'!$C$8:$BI$67,21,FALSE)-VLOOKUP(N1_MSY,'Escalation Calculator'!$C$8:$BI$67,21,FALSE))/VLOOKUP(N1_MSY,'Escalation Calculator'!$C$8:$BI$67,21,FALSE))),0)) -> 0 | AM11: =IF($F11<>"",IFERROR(IF(AND(AM$4>=$E11,AM$4<=$F11),$G11/($F11+1-$E11),0)*(1+((VLOOKUP(AM$4,'Escalation Calculator'!$C$8:$BI$67,21,FALSE)-VLOOKUP(N1_MSY,'Escalation Calculator'!$C$8:$BI$67,21,FALSE))/VLOOKUP(N1_MSY,'Escalation Calculator'!$C$8:$BI$67,21,FALSE))),0),IF(AM$4=$E11,$G11*(1+((VLOOKUP(AM$4,'Escalation Calculator'!$C$8:$BI$67,21,FALSE)-VLOOKUP(N1_MSY,'Escalation Calculator'!$C$8:$BI$67,21,FALSE))/VLOOKUP(N1_MSY,'Escalation Calculator'!$C$8:$BI$67,21,FALSE))),0)) -> 0 | AN11: =IF($F11<>"",IFERROR(IF(AND(AN$4>=$E11,AN$4<=$F11),$G11/($F11+1-$E11),0)*(1+((VLOOKUP(AN$4,'Escalation Calculator'!$C$8:$BI$67,21,FALSE)-VLOOKUP(N1_MSY,'Escalation Calculator'!$C$8:$BI$67,21,FALSE))/VLOOKUP(N1_MSY,'Escalation Calculator'!$C$8:$BI$67,21,FALSE))),0),IF(AN$4=$E11,$G11*(1+((VLOOKUP(AN$4,'Escalation Calculator'!$C$8:$BI$67,21,FALSE)-VLOOKUP(N1_MSY,'Escalation Calculator'!$C$8:$BI$67,21,FALSE))/VLOOKUP(N1_MSY,'Escalation Calculator'!$C$8:$BI$67,21,FALSE))),0)) -> 0 | AO11: =IF($F11<>"",IFERROR(IF(AND(AO$4>=$E11,AO$4<=$F11),$G11/($F11+1-$E11),0)*(1+((VLOOKUP(AO$4,'Escalation Calculator'!$C$8:$BI$67,21,FALSE)-VLOOKUP(N1_MSY,'Escalation Calculator'!$C$8:$BI$67,21,FALSE))/VLOOKUP(N1_MSY,'Escalation Calculator'!$C$8:$BI$67,21,FALSE))),0),IF(AO$4=$E11,$G11*(1+((VLOOKUP(AO$4,'Escalation Calculator'!$C$8:$BI$67,21,FALSE)-VLOOKUP(N1_MSY,'Escalation Calculator'!$C$8:$BI$67,21,FALSE))/VLOOKUP(N1_MSY,'Escalation Calculator'!$C$8:$BI$67,21,FALSE))),0)) -> 0 | AP11: =IF($F11<>"",IFERROR(IF(AND(AP$4>=$E11,AP$4<=$F11),$G11/($F11+1-$E11),0)*(1+((VLOOKUP(AP$4,'Escalation Calculator'!$C$8:$BI$67,21,FALSE)-VLOOKUP(N1_MSY,'Escalation Calculator'!$C$8:$BI$67,21,FALSE))/VLOOKUP(N1_MSY,'Escalation Calculator'!$C$8:$BI$67,21,FALSE))),0),IF(AP$4=$E11,$G11*(1+((VLOOKUP(AP$4,'Escalation Calculator'!$C$8:$BI$67,21,FALSE)-VLOOKUP(N1_MSY,'Escalation Calculator'!$C$8:$BI$67,21,FALSE))/VLOOKUP(N1_MSY,'Escalation Calculator'!$C$8:$BI$67,21,FALSE))),0)) -> 0 | AQ11: =IF($F11<>"",IFERROR(IF(AND(AQ$4>=$E11,AQ$4<=$F11),$G11/($F11+1-$E11),0)*(1+((VLOOKUP(AQ$4,'Escalation Calculator'!$C$8:$BI$67,21,FALSE)-VLOOKUP(N1_MSY,'Escalation Calculator'!$C$8:$BI$67,21,FALSE))/VLOOKUP(N1_MSY,'Escalation Calculator'!$C$8:$BI$67,21,FALSE))),0),IF(AQ$4=$E11,$G11*(1+((VLOOKUP(AQ$4,'Escalation Calculator'!$C$8:$BI$67,21,FALSE)-VLOOKUP(N1_MSY,'Escalation Calculator'!$C$8:$BI$67,21,FALSE))/VLOOKUP(N1_MSY,'Escalation Calculator'!$C$8:$BI$67,21,FALSE))),0)) -> 0 | AR11: =IF($F11<>"",IFERROR(IF(AND(AR$4>=$E11,AR$4<=$F11),$G11/($F11+1-$E11),0)*(1+((VLOOKUP(AR$4,'Escalation Calculator'!$C$8:$BI$67,21,FALSE)-VLOOKUP(N1_MSY,'Escalation Calculator'!$C$8:$BI$67,21,FALSE))/VLOOKUP(N1_MSY,'Escalation Calculator'!$C$8:$BI$67,21,FALSE))),0),IF(AR$4=$E11,$G11*(1+((VLOOKUP(AR$4,'Escalation Calculator'!$C$8:$BI$67,21,FALSE)-VLOOKUP(N1_MSY,'Escalation Calculator'!$C$8:$BI$67,21,FALSE))/VLOOKUP(N1_MSY,'Escalation Calculator'!$C$8:$BI$67,21,FALSE))),0)) -> 0 | AS11: =IF($F11<>"",IFERROR(IF(AND(AS$4>=$E11,AS$4<=$F11),$G11/($F11+1-$E11),0)*(1+((VLOOKUP(AS$4,'Escalation Calculator'!$C$8:$BI$67,21,FALSE)-VLOOKUP(N1_MSY,'Escalation Calculator'!$C$8:$BI$67,21,FALSE))/VLOOKUP(N1_MSY,'Escalation Calculator'!$C$8:$BI$67,21,FALSE))),0),IF(AS$4=$E11,$G11*(1+((VLOOKUP(AS$4,'Escalation Calculator'!$C$8:$BI$67,21,FALSE)-VLOOKUP(N1_MSY,'Escalation Calculator'!$C$8:$BI$67,21,FALSE))/VLOOKUP(N1_MSY,'Escalation Calculator'!$C$8:$BI$67,21,FALSE))),0)) -> 0 | AT11: =IF($F11<>"",IFERROR(IF(AND(AT$4>=$E11,AT$4<=$F11),$G11/($F11+1-$E11),0)*(1+((VLOOKUP(AT$4,'Escalation Calculator'!$C$8:$BI$67,21,FALSE)-VLOOKUP(N1_MSY,'Escalation Calculator'!$C$8:$BI$67,21,FALSE))/VLOOKUP(N1_MSY,'Escalation Calculator'!$C$8:$BI$67,21,FALSE))),0),IF(AT$4=$E11,$G11*(1+((VLOOKUP(AT$4,'Escalation Calculator'!$C$8:$BI$67,21,FALSE)-VLOOKUP(N1_MSY,'Escalation Calculator'!$C$8:$BI$67,21,FALSE))/VLOOKUP(N1_MSY,'Escalation Calculator'!$C$8:$BI$67,21,FALSE))),0)) -> 0 | AU11: =IF($F11<>"",IFERROR(IF(AND(AU$4>=$E11,AU$4<=$F11),$G11/($F11+1-$E11),0)*(1+((VLOOKUP(AU$4,'Escalation Calculator'!$C$8:$BI$67,21,FALSE)-VLOOKUP(N1_MSY,'Escalation Calculator'!$C$8:$BI$67,21,FALSE))/VLOOKUP(N1_MSY,'Escalation Calculator'!$C$8:$BI$67,21,FALSE))),0),IF(AU$4=$E11,$G11*(1+((VLOOKUP(AU$4,'Escalation Calculator'!$C$8:$BI$67,21,FALSE)-VLOOKUP(N1_MSY,'Escalation Calculator'!$C$8:$BI$67,21,FALSE))/VLOOKUP(N1_MSY,'Escalation Calculator'!$C$8:$BI$67,21,FALSE))),0)) -> 0 | AV11: =IF($F11<>"",IFERROR(IF(AND(AV$4>=$E11,AV$4<=$F11),$G11/($F11+1-$E11),0)*(1+((VLOOKUP(AV$4,'Escalation Calculator'!$C$8:$BI$67,21,FALSE)-VLOOKUP(N1_MSY,'Escalation Calculator'!$C$8:$BI$67,21,FALSE))/VLOOKUP(N1_MSY,'Escalation Calculator'!$C$8:$BI$67,21,FALSE))),0),IF(AV$4=$E11,$G11*(1+((VLOOKUP(AV$4,'Escalation Calculator'!$C$8:$BI$67,21,FALSE)-VLOOKUP(N1_MSY,'Escalation Calculator'!$C$8:$BI$67,21,FALSE))/VLOOKUP(N1_MSY,'Escalation Calculator'!$C$8:$BI$67,21,FALSE))),0)) -> 0 | AW11: =IF($F11<>"",IFERROR(IF(AND(AW$4>=$E11,AW$4<=$F11),$G11/($F11+1-$E11),0)*(1+((VLOOKUP(AW$4,'Escalation Calculator'!$C$8:$BI$67,21,FALSE)-VLOOKUP(N1_MSY,'Escalation Calculator'!$C$8:$BI$67,21,FALSE))/VLOOKUP(N1_MSY,'Escalation Calculator'!$C$8:$BI$67,21,FALSE))),0),IF(AW$4=$E11,$G11*(1+((VLOOKUP(AW$4,'Escalation Calculator'!$C$8:$BI$67,21,FALSE)-VLOOKUP(N1_MSY,'Escalation Calculator'!$C$8:$BI$67,21,FALSE))/VLOOKUP(N1_MSY,'Escalation Calculator'!$C$8:$BI$67,21,FALSE))),0)) -> 0 | AX11: =IF($F11<>"",IFERROR(IF(AND(AX$4>=$E11,AX$4<=$F11),$G11/($F11+1-$E11),0)*(1+((VLOOKUP(AX$4,'Escalation Calculator'!$C$8:$BI$67,21,FALSE)-VLOOKUP(N1_MSY,'Escalation Calculator'!$C$8:$BI$67,21,FALSE))/VLOOKUP(N1_MSY,'Escalation Calculator'!$C$8:$BI$67,21,FALSE))),0),IF(AX$4=$E11,$G11*(1+((VLOOKUP(AX$4,'Escalation Calculator'!$C$8:$BI$67,21,FALSE)-VLOOKUP(N1_MSY,'Escalation Calculator'!$C$8:$BI$67,21,FALSE))/VLOOKUP(N1_MSY,'Escalation Calculator'!$C$8:$BI$67,21,FALSE))),0)) -> 0 | AY11: =IF($F11<>"",IFERROR(IF(AND(AY$4>=$E11,AY$4<=$F11),$G11/($F11+1-$E11),0)*(1+((VLOOKUP(AY$4,'Escalation Calculator'!$C$8:$BI$67,21,FALSE)-VLOOKUP(N1_MSY,'Escalation Calculator'!$C$8:$BI$67,21,FALSE))/VLOOKUP(N1_MSY,'Escalation Calculator'!$C$8:$BI$67,21,FALSE))),0),IF(AY$4=$E11,$G11*(1+((VLOOKUP(AY$4,'Escalation Calculator'!$C$8:$BI$67,21,FALSE)-VLOOKUP(N1_MSY,'Escalation Calculator'!$C$8:$BI$67,21,FALSE))/VLOOKUP(N1_MSY,'Escalation Calculator'!$C$8:$BI$67,21,FALSE))),0)) -> 0 | AZ11: =IF($F11<>"",IFERROR(IF(AND(AZ$4>=$E11,AZ$4<=$F11),$G11/($F11+1-$E11),0)*(1+((VLOOKUP(AZ$4,'Escalation Calculator'!$C$8:$BI$67,21,FALSE)-VLOOKUP(N1_MSY,'Escalation Calculator'!$C$8:$BI$67,21,FALSE))/VLOOKUP(N1_MSY,'Escalation Calculator'!$C$8:$BI$67,21,FALSE))),0),IF(AZ$4=$E11,$G11*(1+((VLOOKUP(AZ$4,'Escalation Calculator'!$C$8:$BI$67,21,FALSE)-VLOOKUP(N1_MSY,'Escalation Calculator'!$C$8:$BI$67,21,FALSE))/VLOOKUP(N1_MSY,'Escalation Calculator'!$C$8:$BI$67,21,FALSE))),0)) -> 0 | BA11: =IF($F11<>"",IFERROR(IF(AND(BA$4>=$E11,BA$4<=$F11),$G11/($F11+1-$E11),0)*(1+((VLOOKUP(BA$4,'Escalation Calculator'!$C$8:$BI$67,21,FALSE)-VLOOKUP(N1_MSY,'Escalation Calculator'!$C$8:$BI$67,21,FALSE))/VLOOKUP(N1_MSY,'Escalation Calculator'!$C$8:$BI$67,21,FALSE))),0),IF(BA$4=$E11,$G11*(1+((VLOOKUP(BA$4,'Escalation Calculator'!$C$8:$BI$67,21,FALSE)-VLOOKUP(N1_MSY,'Escalation Calculator'!$C$8:$BI$67,21,FALSE))/VLOOKUP(N1_MSY,'Escalation Calculator'!$C$8:$BI$67,21,FALSE))),0)) -> 0 | BB11: =IF($F11<>"",IFERROR(IF(AND(BB$4>=$E11,BB$4<=$F11),$G11/($F11+1-$E11),0)*(1+((VLOOKUP(BB$4,'Escalation Calculator'!$C$8:$BI$67,21,FALSE)-VLOOKUP(N1_MSY,'Escalation Calculator'!$C$8:$BI$67,21,FALSE))/VLOOKUP(N1_MSY,'Escalation Calculator'!$C$8:$BI$67,21,FALSE))),0),IF(BB$4=$E11,$G11*(1+((VLOOKUP(BB$4,'Escalation Calculator'!$C$8:$BI$67,21,FALSE)-VLOOKUP(N1_MSY,'Escalation Calculator'!$C$8:$BI$67,21,FALSE))/VLOOKUP(N1_MSY,'Escalation Calculator'!$C$8:$BI$67,21,FALSE))),0)) -> 0 | BC11: =IF($F11<>"",IFERROR(IF(AND(BC$4>=$E11,BC$4<=$F11),$G11/($F11+1-$E11),0)*(1+((VLOOKUP(BC$4,'Escalation Calculator'!$C$8:$BI$67,21,FALSE)-VLOOKUP(N1_MSY,'Escalation Calculator'!$C$8:$BI$67,21,FALSE))/VLOOKUP(N1_MSY,'Escalation Calculator'!$C$8:$BI$67,21,FALSE))),0),IF(BC$4=$E11,$G11*(1+((VLOOKUP(BC$4,'Escalation Calculator'!$C$8:$BI$67,21,FALSE)-VLOOKUP(N1_MSY,'Escalation Calculator'!$C$8:$BI$67,21,FALSE))/VLOOKUP(N1_MSY,'Escalation Calculator'!$C$8:$BI$67,21,FALSE))),0)) -> 0 | BD11: =IF($F11<>"",IFERROR(IF(AND(BD$4>=$E11,BD$4<=$F11),$G11/($F11+1-$E11),0)*(1+((VLOOKUP(BD$4,'Escalation Calculator'!$C$8:$BI$67,21,FALSE)-VLOOKUP(N1_MSY,'Escalation Calculator'!$C$8:$BI$67,21,FALSE))/VLOOKUP(N1_MSY,'Escalation Calculator'!$C$8:$BI$67,21,FALSE))),0),IF(BD$4=$E11,$G11*(1+((VLOOKUP(BD$4,'Escalation Calculator'!$C$8:$BI$67,21,FALSE)-VLOOKUP(N1_MSY,'Escalation Calculator'!$C$8:$BI$67,21,FALSE))/VLOOKUP(N1_MSY,'Escalation Calculator'!$C$8:$BI$67,21,FALSE))),0)) -> 0 | BE11: =IF($F11<>"",IFERROR(IF(AND(BE$4>=$E11,BE$4<=$F11),$G11/($F11+1-$E11),0)*(1+((VLOOKUP(BE$4,'Escalation Calculator'!$C$8:$BI$67,21,FALSE)-VLOOKUP(N1_MSY,'Escalation Calculator'!$C$8:$BI$67,21,FALSE))/VLOOKUP(N1_MSY,'Escalation Calculator'!$C$8:$BI$67,21,FALSE))),0),IF(BE$4=$E11,$G11*(1+((VLOOKUP(BE$4,'Escalation Calculator'!$C$8:$BI$67,21,FALSE)-VLOOKUP(N1_MSY,'Escalation Calculator'!$C$8:$BI$67,21,FALSE))/VLOOKUP(N1_MSY,'Escalation Calculator'!$C$8:$BI$67,21,FALSE))),0)) -> 0 | BF11: =IF($F11<>"",IFERROR(IF(AND(BF$4>=$E11,BF$4<=$F11),$G11/($F11+1-$E11),0)*(1+((VLOOKUP(BF$4,'Escalation Calculator'!$C$8:$BI$67,21,FALSE)-VLOOKUP(N1_MSY,'Escalation Calculator'!$C$8:$BI$67,21,FALSE))/VLOOKUP(N1_MSY,'Escalation Calculator'!$C$8:$BI$67,21,FALSE))),0),IF(BF$4=$E11,$G11*(1+((VLOOKUP(BF$4,'Escalation Calculator'!$C$8:$BI$67,21,FALSE)-VLOOKUP(N1_MSY,'Escalation Calculator'!$C$8:$BI$67,21,FALSE))/VLOOKUP(N1_MSY,'Escalation Calculator'!$C$8:$BI$67,21,FALSE))),0)) -> 0 | BG11: =IF($F11<>"",IFERROR(IF(AND(BG$4>=$E11,BG$4<=$F11),$G11/($F11+1-$E11),0)*(1+((VLOOKUP(BG$4,'Escalation Calculator'!$C$8:$BI$67,21,FALSE)-VLOOKUP(N1_MSY,'Escalation Calculator'!$C$8:$BI$67,21,FALSE))/VLOOKUP(N1_MSY,'Escalation Calculator'!$C$8:$BI$67,21,FALSE))),0),IF(BG$4=$E11,$G11*(1+((VLOOKUP(BG$4,'Escalation Calculator'!$C$8:$BI$67,21,FALSE)-VLOOKUP(N1_MSY,'Escalation Calculator'!$C$8:$BI$67,21,FALSE))/VLOOKUP(N1_MSY,'Escalation Calculator'!$C$8:$BI$67,21,FALSE))),0)) -> 0
B12: ='Water Supply - Future'!B13 -> W5-D | C12: =IF('Water Supply - Future'!H13=0,"",'Water Supply - Future'!H13) -> Infrastructure provider | D12: ='Water Supply - Future'!G13 -> Greater Airlie Beach | E12: ='Water Supply - Future'!J13 -> 2022 | F12: ='Water Supply - Future'!K13 -> 2022 | G12: ='Water Supply - Future'!Z13 -> 42269.23077 | H12: 42830.07129 | I12: =IF($F12<>"",IFERROR(IF(AND(I$4>=$E12,I$4<=$F12),$G12/($F12+1-$E12),0)*(1+((VLOOKUP(I$4,'Escalation Calculator'!$C$8:$BI$67,21,FALSE)-VLOOKUP(N1_MSY,'Escalation Calculator'!$C$8:$BI$67,21,FALSE))/VLOOKUP(N1_MSY,'Escalation Calculator'!$C$8:$BI$67,21,FALSE))),0),IF(I$4=$E12,$G12*(1+((VLOOKUP(I$4,'Escalation Calculator'!$C$8:$BI$67,21,FALSE)-VLOOKUP(N1_MSY,'Escalation Calculator'!$C$8:$BI$67,21,FALSE))/VLOOKUP(N1_MSY,'Escalation Calculator'!$C$8:$BI$67,21,FALSE))),0)) -> 0 | J12: =IF($F12<>"",IFERROR(IF(AND(J$4>=$E12,J$4<=$F12),$G12/($F12+1-$E12),0)*(1+((VLOOKUP(J$4,'Escalation Calculator'!$C$8:$BI$67,21,FALSE)-VLOOKUP(N1_MSY,'Escalation Calculator'!$C$8:$BI$67,21,FALSE))/VLOOKUP(N1_MSY,'Escalation Calculator'!$C$8:$BI$67,21,FALSE))),0),IF(J$4=$E12,$G12*(1+((VLOOKUP(J$4,'Escalation Calculator'!$C$8:$BI$67,21,FALSE)-VLOOKUP(N1_MSY,'Escalation Calculator'!$C$8:$BI$67,21,FALSE))/VLOOKUP(N1_MSY,'Escalation Calculator'!$C$8:$BI$67,21,FALSE))),0)) -> 42830.07129 | K12: =IF($F12<>"",IFERROR(IF(AND(K$4>=$E12,K$4<=$F12),$G12/($F12+1-$E12),0)*(1+((VLOOKUP(K$4,'Escalation Calculator'!$C$8:$BI$67,21,FALSE)-VLOOKUP(N1_MSY,'Escalation Calculator'!$C$8:$BI$67,21,FALSE))/VLOOKUP(N1_MSY,'Escalation Calculator'!$C$8:$BI$67,21,FALSE))),0),IF(K$4=$E12,$G12*(1+((VLOOKUP(K$4,'Escalation Calculator'!$C$8:$BI$67,21,FALSE)-VLOOKUP(N1_MSY,'Escalation Calculator'!$C$8:$BI$67,21,FALSE))/VLOOKUP(N1_MSY,'Escalation Calculator'!$C$8:$BI$67,21,FALSE))),0)) -> 0 | L12: =IF($F12<>"",IFERROR(IF(AND(L$4>=$E12,L$4<=$F12),$G12/($F12+1-$E12),0)*(1+((VLOOKUP(L$4,'Escalation Calculator'!$C$8:$BI$67,21,FALSE)-VLOOKUP(N1_MSY,'Escalation Calculator'!$C$8:$BI$67,21,FALSE))/VLOOKUP(N1_MSY,'Escalation Calculator'!$C$8:$BI$67,21,FALSE))),0),IF(L$4=$E12,$G12*(1+((VLOOKUP(L$4,'Escalation Calculator'!$C$8:$BI$67,21,FALSE)-VLOOKUP(N1_MSY,'Escalation Calculator'!$C$8:$BI$67,21,FALSE))/VLOOKUP(N1_MSY,'Escalation Calculator'!$C$8:$BI$67,21,FALSE))),0)) -> 0 | M12: =IF($F12<>"",IFERROR(IF(AND(M$4>=$E12,M$4<=$F12),$G12/($F12+1-$E12),0)*(1+((VLOOKUP(M$4,'Escalation Calculator'!$C$8:$BI$67,21,FALSE)-VLOOKUP(N1_MSY,'Escalation Calculator'!$C$8:$BI$67,21,FALSE))/VLOOKUP(N1_MSY,'Escalation Calculator'!$C$8:$BI$67,21,FALSE))),0),IF(M$4=$E12,$G12*(1+((VLOOKUP(M$4,'Escalation Calculator'!$C$8:$BI$67,21,FALSE)-VLOOKUP(N1_MSY,'Escalation Calculator'!$C$8:$BI$67,21,FALSE))/VLOOKUP(N1_MSY,'Escalation Calculator'!$C$8:$BI$67,21,FALSE))),0)) -> 0 | N12: =IF($F12<>"",IFERROR(IF(AND(N$4>=$E12,N$4<=$F12),$G12/($F12+1-$E12),0)*(1+((VLOOKUP(N$4,'Escalation Calculator'!$C$8:$BI$67,21,FALSE)-VLOOKUP(N1_MSY,'Escalation Calculator'!$C$8:$BI$67,21,FALSE))/VLOOKUP(N1_MSY,'Escalation Calculator'!$C$8:$BI$67,21,FALSE))),0),IF(N$4=$E12,$G12*(1+((VLOOKUP(N$4,'Escalation Calculator'!$C$8:$BI$67,21,FALSE)-VLOOKUP(N1_MSY,'Escalation Calculator'!$C$8:$BI$67,21,FALSE))/VLOOKUP(N1_MSY,'Escalation Calculator'!$C$8:$BI$67,21,FALSE))),0)) -> 0 | O12: =IF($F12<>"",IFERROR(IF(AND(O$4>=$E12,O$4<=$F12),$G12/($F12+1-$E12),0)*(1+((VLOOKUP(O$4,'Escalation Calculator'!$C$8:$BI$67,21,FALSE)-VLOOKUP(N1_MSY,'Escalation Calculator'!$C$8:$BI$67,21,FALSE))/VLOOKUP(N1_MSY,'Escalation Calculator'!$C$8:$BI$67,21,FALSE))),0),IF(O$4=$E12,$G12*(1+((VLOOKUP(O$4,'Escalation Calculator'!$C$8:$BI$67,21,FALSE)-VLOOKUP(N1_MSY,'Escalation Calculator'!$C$8:$BI$67,21,FALSE))/VLOOKUP(N1_MSY,'Escalation Calculator'!$C$8:$BI$67,21,FALSE))),0)) -> 0 | P12: =IF($F12<>"",IFERROR(IF(AND(P$4>=$E12,P$4<=$F12),$G12/($F12+1-$E12),0)*(1+((VLOOKUP(P$4,'Escalation Calculator'!$C$8:$BI$67,21,FALSE)-VLOOKUP(N1_MSY,'Escalation Calculator'!$C$8:$BI$67,21,FALSE))/VLOOKUP(N1_MSY,'Escalation Calculator'!$C$8:$BI$67,21,FALSE))),0),IF(P$4=$E12,$G12*(1+((VLOOKUP(P$4,'Escalation Calculator'!$C$8:$BI$67,21,FALSE)-VLOOKUP(N1_MSY,'Escalation Calculator'!$C$8:$BI$67,21,FALSE))/VLOOKUP(N1_MSY,'Escalation Calculator'!$C$8:$BI$67,21,FALSE))),0)) -> 0 | Q12: =IF($F12<>"",IFERROR(IF(AND(Q$4>=$E12,Q$4<=$F12),$G12/($F12+1-$E12),0)*(1+((VLOOKUP(Q$4,'Escalation Calculator'!$C$8:$BI$67,21,FALSE)-VLOOKUP(N1_MSY,'Escalation Calculator'!$C$8:$BI$67,21,FALSE))/VLOOKUP(N1_MSY,'Escalation Calculator'!$C$8:$BI$67,21,FALSE))),0),IF(Q$4=$E12,$G12*(1+((VLOOKUP(Q$4,'Escalation Calculator'!$C$8:$BI$67,21,FALSE)-VLOOKUP(N1_MSY,'Escalation Calculator'!$C$8:$BI$67,21,FALSE))/VLOOKUP(N1_MSY,'Escalation Calculator'!$C$8:$BI$67,21,FALSE))),0)) -> 0 | R12: =IF($F12<>"",IFERROR(IF(AND(R$4>=$E12,R$4<=$F12),$G12/($F12+1-$E12),0)*(1+((VLOOKUP(R$4,'Escalation Calculator'!$C$8:$BI$67,21,FALSE)-VLOOKUP(N1_MSY,'Escalation Calculator'!$C$8:$BI$67,21,FALSE))/VLOOKUP(N1_MSY,'Escalation Calculator'!$C$8:$BI$67,21,FALSE))),0),IF(R$4=$E12,$G12*(1+((VLOOKUP(R$4,'Escalation Calculator'!$C$8:$BI$67,21,FALSE)-VLOOKUP(N1_MSY,'Escalation Calculator'!$C$8:$BI$67,21,FALSE))/VLOOKUP(N1_MSY,'Escalation Calculator'!$C$8:$BI$67,21,FALSE))),0)) -> 0 | S12: =IF($F12<>"",IFERROR(IF(AND(S$4>=$E12,S$4<=$F12),$G12/($F12+1-$E12),0)*(1+((VLOOKUP(S$4,'Escalation Calculator'!$C$8:$BI$67,21,FALSE)-VLOOKUP(N1_MSY,'Escalation Calculator'!$C$8:$BI$67,21,FALSE))/VLOOKUP(N1_MSY,'Escalation Calculator'!$C$8:$BI$67,21,FALSE))),0),IF(S$4=$E12,$G12*(1+((VLOOKUP(S$4,'Escalation Calculator'!$C$8:$BI$67,21,FALSE)-VLOOKUP(N1_MSY,'Escalation Calculator'!$C$8:$BI$67,21,FALSE))/VLOOKUP(N1_MSY,'Escalation Calculator'!$C$8:$BI$67,21,FALSE))),0)) -> 0 | T12: =IF($F12<>"",IFERROR(IF(AND(T$4>=$E12,T$4<=$F12),$G12/($F12+1-$E12),0)*(1+((VLOOKUP(T$4,'Escalation Calculator'!$C$8:$BI$67,21,FALSE)-VLOOKUP(N1_MSY,'Escalation Calculator'!$C$8:$BI$67,21,FALSE))/VLOOKUP(N1_MSY,'Escalation Calculator'!$C$8:$BI$67,21,FALSE))),0),IF(T$4=$E12,$G12*(1+((VLOOKUP(T$4,'Escalation Calculator'!$C$8:$BI$67,21,FALSE)-VLOOKUP(N1_MSY,'Escalation Calculator'!$C$8:$BI$67,21,FALSE))/VLOOKUP(N1_MSY,'Escalation Calculator'!$C$8:$BI$67,21,FALSE))),0)) -> 0 | U12: =IF($F12<>"",IFERROR(IF(AND(U$4>=$E12,U$4<=$F12),$G12/($F12+1-$E12),0)*(1+((VLOOKUP(U$4,'Escalation Calculator'!$C$8:$BI$67,21,FALSE)-VLOOKUP(N1_MSY,'Escalation Calculator'!$C$8:$BI$67,21,FALSE))/VLOOKUP(N1_MSY,'Escalation Calculator'!$C$8:$BI$67,21,FALSE))),0),IF(U$4=$E12,$G12*(1+((VLOOKUP(U$4,'Escalation Calculator'!$C$8:$BI$67,21,FALSE)-VLOOKUP(N1_MSY,'Escalation Calculator'!$C$8:$BI$67,21,FALSE))/VLOOKUP(N1_MSY,'Escalation Calculator'!$C$8:$BI$67,21,FALSE))),0)) -> 0 | V12: =IF($F12<>"",IFERROR(IF(AND(V$4>=$E12,V$4<=$F12),$G12/($F12+1-$E12),0)*(1+((VLOOKUP(V$4,'Escalation Calculator'!$C$8:$BI$67,21,FALSE)-VLOOKUP(N1_MSY,'Escalation Calculator'!$C$8:$BI$67,21,FALSE))/VLOOKUP(N1_MSY,'Escalation Calculator'!$C$8:$BI$67,21,FALSE))),0),IF(V$4=$E12,$G12*(1+((VLOOKUP(V$4,'Escalation Calculator'!$C$8:$BI$67,21,FALSE)-VLOOKUP(N1_MSY,'Escalation Calculator'!$C$8:$BI$67,21,FALSE))/VLOOKUP(N1_MSY,'Escalation Calculator'!$C$8:$BI$67,21,FALSE))),0)) -> 0 | W12: =IF($F12<>"",IFERROR(IF(AND(W$4>=$E12,W$4<=$F12),$G12/($F12+1-$E12),0)*(1+((VLOOKUP(W$4,'Escalation Calculator'!$C$8:$BI$67,21,FALSE)-VLOOKUP(N1_MSY,'Escalation Calculator'!$C$8:$BI$67,21,FALSE))/VLOOKUP(N1_MSY,'Escalation Calculator'!$C$8:$BI$67,21,FALSE))),0),IF(W$4=$E12,$G12*(1+((VLOOKUP(W$4,'Escalation Calculator'!$C$8:$BI$67,21,FALSE)-VLOOKUP(N1_MSY,'Escalation Calculator'!$C$8:$BI$67,21,FALSE))/VLOOKUP(N1_MSY,'Escalation Calculator'!$C$8:$BI$67,21,FALSE))),0)) -> 0 | X12: =IF($F12<>"",IFERROR(IF(AND(X$4>=$E12,X$4<=$F12),$G12/($F12+1-$E12),0)*(1+((VLOOKUP(X$4,'Escalation Calculator'!$C$8:$BI$67,21,FALSE)-VLOOKUP(N1_MSY,'Escalation Calculator'!$C$8:$BI$67,21,FALSE))/VLOOKUP(N1_MSY,'Escalation Calculator'!$C$8:$BI$67,21,FALSE))),0),IF(X$4=$E12,$G12*(1+((VLOOKUP(X$4,'Escalation Calculator'!$C$8:$BI$67,21,FALSE)-VLOOKUP(N1_MSY,'Escalation Calculator'!$C$8:$BI$67,21,FALSE))/VLOOKUP(N1_MSY,'Escalation Calculator'!$C$8:$BI$67,21,FALSE))),0)) -> 0 | Y12: =IF($F12<>"",IFERROR(IF(AND(Y$4>=$E12,Y$4<=$F12),$G12/($F12+1-$E12),0)*(1+((VLOOKUP(Y$4,'Escalation Calculator'!$C$8:$BI$67,21,FALSE)-VLOOKUP(N1_MSY,'Escalation Calculator'!$C$8:$BI$67,21,FALSE))/VLOOKUP(N1_MSY,'Escalation Calculator'!$C$8:$BI$67,21,FALSE))),0),IF(Y$4=$E12,$G12*(1+((VLOOKUP(Y$4,'Escalation Calculator'!$C$8:$BI$67,21,FALSE)-VLOOKUP(N1_MSY,'Escalation Calculator'!$C$8:$BI$67,21,FALSE))/VLOOKUP(N1_MSY,'Escalation Calculator'!$C$8:$BI$67,21,FALSE))),0)) -> 0 | Z12: =IF($F12<>"",IFERROR(IF(AND(Z$4>=$E12,Z$4<=$F12),$G12/($F12+1-$E12),0)*(1+((VLOOKUP(Z$4,'Escalation Calculator'!$C$8:$BI$67,21,FALSE)-VLOOKUP(N1_MSY,'Escalation Calculator'!$C$8:$BI$67,21,FALSE))/VLOOKUP(N1_MSY,'Escalation Calculator'!$C$8:$BI$67,21,FALSE))),0),IF(Z$4=$E12,$G12*(1+((VLOOKUP(Z$4,'Escalation Calculator'!$C$8:$BI$67,21,FALSE)-VLOOKUP(N1_MSY,'Escalation Calculator'!$C$8:$BI$67,21,FALSE))/VLOOKUP(N1_MSY,'Escalation Calculator'!$C$8:$BI$67,21,FALSE))),0)) -> 0 | AA12: =IF($F12<>"",IFERROR(IF(AND(AA$4>=$E12,AA$4<=$F12),$G12/($F12+1-$E12),0)*(1+((VLOOKUP(AA$4,'Escalation Calculator'!$C$8:$BI$67,21,FALSE)-VLOOKUP(N1_MSY,'Escalation Calculator'!$C$8:$BI$67,21,FALSE))/VLOOKUP(N1_MSY,'Escalation Calculator'!$C$8:$BI$67,21,FALSE))),0),IF(AA$4=$E12,$G12*(1+((VLOOKUP(AA$4,'Escalation Calculator'!$C$8:$BI$67,21,FALSE)-VLOOKUP(N1_MSY,'Escalation Calculator'!$C$8:$BI$67,21,FALSE))/VLOOKUP(N1_MSY,'Escalation Calculator'!$C$8:$BI$67,21,FALSE))),0)) -> 0 | AB12: =IF($F12<>"",IFERROR(IF(AND(AB$4>=$E12,AB$4<=$F12),$G12/($F12+1-$E12),0)*(1+((VLOOKUP(AB$4,'Escalation Calculator'!$C$8:$BI$67,21,FALSE)-VLOOKUP(N1_MSY,'Escalation Calculator'!$C$8:$BI$67,21,FALSE))/VLOOKUP(N1_MSY,'Escalation Calculator'!$C$8:$BI$67,21,FALSE))),0),IF(AB$4=$E12,$G12*(1+((VLOOKUP(AB$4,'Escalation Calculator'!$C$8:$BI$67,21,FALSE)-VLOOKUP(N1_MSY,'Escalation Calculator'!$C$8:$BI$67,21,FALSE))/VLOOKUP(N1_MSY,'Escalation Calculator'!$C$8:$BI$67,21,FALSE))),0)) -> 0 | AC12: =IF($F12<>"",IFERROR(IF(AND(AC$4>=$E12,AC$4<=$F12),$G12/($F12+1-$E12),0)*(1+((VLOOKUP(AC$4,'Escalation Calculator'!$C$8:$BI$67,21,FALSE)-VLOOKUP(N1_MSY,'Escalation Calculator'!$C$8:$BI$67,21,FALSE))/VLOOKUP(N1_MSY,'Escalation Calculator'!$C$8:$BI$67,21,FALSE))),0),IF(AC$4=$E12,$G12*(1+((VLOOKUP(AC$4,'Escalation Calculator'!$C$8:$BI$67,21,FALSE)-VLOOKUP(N1_MSY,'Escalation Calculator'!$C$8:$BI$67,21,FALSE))/VLOOKUP(N1_MSY,'Escalation Calculator'!$C$8:$BI$67,21,FALSE))),0)) -> 0 | AD12: =IF($F12<>"",IFERROR(IF(AND(AD$4>=$E12,AD$4<=$F12),$G12/($F12+1-$E12),0)*(1+((VLOOKUP(AD$4,'Escalation Calculator'!$C$8:$BI$67,21,FALSE)-VLOOKUP(N1_MSY,'Escalation Calculator'!$C$8:$BI$67,21,FALSE))/VLOOKUP(N1_MSY,'Escalation Calculator'!$C$8:$BI$67,21,FALSE))),0),IF(AD$4=$E12,$G12*(1+((VLOOKUP(AD$4,'Escalation Calculator'!$C$8:$BI$67,21,FALSE)-VLOOKUP(N1_MSY,'Escalation Calculator'!$C$8:$BI$67,21,FALSE))/VLOOKUP(N1_MSY,'Escalation Calculator'!$C$8:$BI$67,21,FALSE))),0)) -> 0 | AE12: =IF($F12<>"",IFERROR(IF(AND(AE$4>=$E12,AE$4<=$F12),$G12/($F12+1-$E12),0)*(1+((VLOOKUP(AE$4,'Escalation Calculator'!$C$8:$BI$67,21,FALSE)-VLOOKUP(N1_MSY,'Escalation Calculator'!$C$8:$BI$67,21,FALSE))/VLOOKUP(N1_MSY,'Escalation Calculator'!$C$8:$BI$67,21,FALSE))),0),IF(AE$4=$E12,$G12*(1+((VLOOKUP(AE$4,'Escalation Calculator'!$C$8:$BI$67,21,FALSE)-VLOOKUP(N1_MSY,'Escalation Calculator'!$C$8:$BI$67,21,FALSE))/VLOOKUP(N1_MSY,'Escalation Calculator'!$C$8:$BI$67,21,FALSE))),0)) -> 0 | AF12: =IF($F12<>"",IFERROR(IF(AND(AF$4>=$E12,AF$4<=$F12),$G12/($F12+1-$E12),0)*(1+((VLOOKUP(AF$4,'Escalation Calculator'!$C$8:$BI$67,21,FALSE)-VLOOKUP(N1_MSY,'Escalation Calculator'!$C$8:$BI$67,21,FALSE))/VLOOKUP(N1_MSY,'Escalation Calculator'!$C$8:$BI$67,21,FALSE))),0),IF(AF$4=$E12,$G12*(1+((VLOOKUP(AF$4,'Escalation Calculator'!$C$8:$BI$67,21,FALSE)-VLOOKUP(N1_MSY,'Escalation Calculator'!$C$8:$BI$67,21,FALSE))/VLOOKUP(N1_MSY,'Escalation Calculator'!$C$8:$BI$67,21,FALSE))),0)) -> 0 | AG12: =IF($F12<>"",IFERROR(IF(AND(AG$4>=$E12,AG$4<=$F12),$G12/($F12+1-$E12),0)*(1+((VLOOKUP(AG$4,'Escalation Calculator'!$C$8:$BI$67,21,FALSE)-VLOOKUP(N1_MSY,'Escalation Calculator'!$C$8:$BI$67,21,FALSE))/VLOOKUP(N1_MSY,'Escalation Calculator'!$C$8:$BI$67,21,FALSE))),0),IF(AG$4=$E12,$G12*(1+((VLOOKUP(AG$4,'Escalation Calculator'!$C$8:$BI$67,21,FALSE)-VLOOKUP(N1_MSY,'Escalation Calculator'!$C$8:$BI$67,21,FALSE))/VLOOKUP(N1_MSY,'Escalation Calculator'!$C$8:$BI$67,21,FALSE))),0)) -> 0 | AH12: =IF($F12<>"",IFERROR(IF(AND(AH$4>=$E12,AH$4<=$F12),$G12/($F12+1-$E12),0)*(1+((VLOOKUP(AH$4,'Escalation Calculator'!$C$8:$BI$67,21,FALSE)-VLOOKUP(N1_MSY,'Escalation Calculator'!$C$8:$BI$67,21,FALSE))/VLOOKUP(N1_MSY,'Escalation Calculator'!$C$8:$BI$67,21,FALSE))),0),IF(AH$4=$E12,$G12*(1+((VLOOKUP(AH$4,'Escalation Calculator'!$C$8:$BI$67,21,FALSE)-VLOOKUP(N1_MSY,'Escalation Calculator'!$C$8:$BI$67,21,FALSE))/VLOOKUP(N1_MSY,'Escalation Calculator'!$C$8:$BI$67,21,FALSE))),0)) -> 0 | AI12: =IF($F12<>"",IFERROR(IF(AND(AI$4>=$E12,AI$4<=$F12),$G12/($F12+1-$E12),0)*(1+((VLOOKUP(AI$4,'Escalation Calculator'!$C$8:$BI$67,21,FALSE)-VLOOKUP(N1_MSY,'Escalation Calculator'!$C$8:$BI$67,21,FALSE))/VLOOKUP(N1_MSY,'Escalation Calculator'!$C$8:$BI$67,21,FALSE))),0),IF(AI$4=$E12,$G12*(1+((VLOOKUP(AI$4,'Escalation Calculator'!$C$8:$BI$67,21,FALSE)-VLOOKUP(N1_MSY,'Escalation Calculator'!$C$8:$BI$67,21,FALSE))/VLOOKUP(N1_MSY,'Escalation Calculator'!$C$8:$BI$67,21,FALSE))),0)) -> 0 | AJ12: =IF($F12<>"",IFERROR(IF(AND(AJ$4>=$E12,AJ$4<=$F12),$G12/($F12+1-$E12),0)*(1+((VLOOKUP(AJ$4,'Escalation Calculator'!$C$8:$BI$67,21,FALSE)-VLOOKUP(N1_MSY,'Escalation Calculator'!$C$8:$BI$67,21,FALSE))/VLOOKUP(N1_MSY,'Escalation Calculator'!$C$8:$BI$67,21,FALSE))),0),IF(AJ$4=$E12,$G12*(1+((VLOOKUP(AJ$4,'Escalation Calculator'!$C$8:$BI$67,21,FALSE)-VLOOKUP(N1_MSY,'Escalation Calculator'!$C$8:$BI$67,21,FALSE))/VLOOKUP(N1_MSY,'Escalation Calculator'!$C$8:$BI$67,21,FALSE))),0)) -> 0 | AK12: =IF($F12<>"",IFERROR(IF(AND(AK$4>=$E12,AK$4<=$F12),$G12/($F12+1-$E12),0)*(1+((VLOOKUP(AK$4,'Escalation Calculator'!$C$8:$BI$67,21,FALSE)-VLOOKUP(N1_MSY,'Escalation Calculator'!$C$8:$BI$67,21,FALSE))/VLOOKUP(N1_MSY,'Escalation Calculator'!$C$8:$BI$67,21,FALSE))),0),IF(AK$4=$E12,$G12*(1+((VLOOKUP(AK$4,'Escalation Calculator'!$C$8:$BI$67,21,FALSE)-VLOOKUP(N1_MSY,'Escalation Calculator'!$C$8:$BI$67,21,FALSE))/VLOOKUP(N1_MSY,'Escalation Calculator'!$C$8:$BI$67,21,FALSE))),0)) -> 0 | AL12: =IF($F12<>"",IFERROR(IF(AND(AL$4>=$E12,AL$4<=$F12),$G12/($F12+1-$E12),0)*(1+((VLOOKUP(AL$4,'Escalation Calculator'!$C$8:$BI$67,21,FALSE)-VLOOKUP(N1_MSY,'Escalation Calculator'!$C$8:$BI$67,21,FALSE))/VLOOKUP(N1_MSY,'Escalation Calculator'!$C$8:$BI$67,21,FALSE))),0),IF(AL$4=$E12,$G12*(1+((VLOOKUP(AL$4,'Escalation Calculator'!$C$8:$BI$67,21,FALSE)-VLOOKUP(N1_MSY,'Escalation Calculator'!$C$8:$BI$67,21,FALSE))/VLOOKUP(N1_MSY,'Escalation Calculator'!$C$8:$BI$67,21,FALSE))),0)) -> 0 | AM12: =IF($F12<>"",IFERROR(IF(AND(AM$4>=$E12,AM$4<=$F12),$G12/($F12+1-$E12),0)*(1+((VLOOKUP(AM$4,'Escalation Calculator'!$C$8:$BI$67,21,FALSE)-VLOOKUP(N1_MSY,'Escalation Calculator'!$C$8:$BI$67,21,FALSE))/VLOOKUP(N1_MSY,'Escalation Calculator'!$C$8:$BI$67,21,FALSE))),0),IF(AM$4=$E12,$G12*(1+((VLOOKUP(AM$4,'Escalation Calculator'!$C$8:$BI$67,21,FALSE)-VLOOKUP(N1_MSY,'Escalation Calculator'!$C$8:$BI$67,21,FALSE))/VLOOKUP(N1_MSY,'Escalation Calculator'!$C$8:$BI$67,21,FALSE))),0)) -> 0 | AN12: =IF($F12<>"",IFERROR(IF(AND(AN$4>=$E12,AN$4<=$F12),$G12/($F12+1-$E12),0)*(1+((VLOOKUP(AN$4,'Escalation Calculator'!$C$8:$BI$67,21,FALSE)-VLOOKUP(N1_MSY,'Escalation Calculator'!$C$8:$BI$67,21,FALSE))/VLOOKUP(N1_MSY,'Escalation Calculator'!$C$8:$BI$67,21,FALSE))),0),IF(AN$4=$E12,$G12*(1+((VLOOKUP(AN$4,'Escalation Calculator'!$C$8:$BI$67,21,FALSE)-VLOOKUP(N1_MSY,'Escalation Calculator'!$C$8:$BI$67,21,FALSE))/VLOOKUP(N1_MSY,'Escalation Calculator'!$C$8:$BI$67,21,FALSE))),0)) -> 0 | AO12: =IF($F12<>"",IFERROR(IF(AND(AO$4>=$E12,AO$4<=$F12),$G12/($F12+1-$E12),0)*(1+((VLOOKUP(AO$4,'Escalation Calculator'!$C$8:$BI$67,21,FALSE)-VLOOKUP(N1_MSY,'Escalation Calculator'!$C$8:$BI$67,21,FALSE))/VLOOKUP(N1_MSY,'Escalation Calculator'!$C$8:$BI$67,21,FALSE))),0),IF(AO$4=$E12,$G12*(1+((VLOOKUP(AO$4,'Escalation Calculator'!$C$8:$BI$67,21,FALSE)-VLOOKUP(N1_MSY,'Escalation Calculator'!$C$8:$BI$67,21,FALSE))/VLOOKUP(N1_MSY,'Escalation Calculator'!$C$8:$BI$67,21,FALSE))),0)) -> 0 | AP12: =IF($F12<>"",IFERROR(IF(AND(AP$4>=$E12,AP$4<=$F12),$G12/($F12+1-$E12),0)*(1+((VLOOKUP(AP$4,'Escalation Calculator'!$C$8:$BI$67,21,FALSE)-VLOOKUP(N1_MSY,'Escalation Calculator'!$C$8:$BI$67,21,FALSE))/VLOOKUP(N1_MSY,'Escalation Calculator'!$C$8:$BI$67,21,FALSE))),0),IF(AP$4=$E12,$G12*(1+((VLOOKUP(AP$4,'Escalation Calculator'!$C$8:$BI$67,21,FALSE)-VLOOKUP(N1_MSY,'Escalation Calculator'!$C$8:$BI$67,21,FALSE))/VLOOKUP(N1_MSY,'Escalation Calculator'!$C$8:$BI$67,21,FALSE))),0)) -> 0 | AQ12: =IF($F12<>"",IFERROR(IF(AND(AQ$4>=$E12,AQ$4<=$F12),$G12/($F12+1-$E12),0)*(1+((VLOOKUP(AQ$4,'Escalation Calculator'!$C$8:$BI$67,21,FALSE)-VLOOKUP(N1_MSY,'Escalation Calculator'!$C$8:$BI$67,21,FALSE))/VLOOKUP(N1_MSY,'Escalation Calculator'!$C$8:$BI$67,21,FALSE))),0),IF(AQ$4=$E12,$G12*(1+((VLOOKUP(AQ$4,'Escalation Calculator'!$C$8:$BI$67,21,FALSE)-VLOOKUP(N1_MSY,'Escalation Calculator'!$C$8:$BI$67,21,FALSE))/VLOOKUP(N1_MSY,'Escalation Calculator'!$C$8:$BI$67,21,FALSE))),0)) -> 0 | AR12: =IF($F12<>"",IFERROR(IF(AND(AR$4>=$E12,AR$4<=$F12),$G12/($F12+1-$E12),0)*(1+((VLOOKUP(AR$4,'Escalation Calculator'!$C$8:$BI$67,21,FALSE)-VLOOKUP(N1_MSY,'Escalation Calculator'!$C$8:$BI$67,21,FALSE))/VLOOKUP(N1_MSY,'Escalation Calculator'!$C$8:$BI$67,21,FALSE))),0),IF(AR$4=$E12,$G12*(1+((VLOOKUP(AR$4,'Escalation Calculator'!$C$8:$BI$67,21,FALSE)-VLOOKUP(N1_MSY,'Escalation Calculator'!$C$8:$BI$67,21,FALSE))/VLOOKUP(N1_MSY,'Escalation Calculator'!$C$8:$BI$67,21,FALSE))),0)) -> 0 | AS12: =IF($F12<>"",IFERROR(IF(AND(AS$4>=$E12,AS$4<=$F12),$G12/($F12+1-$E12),0)*(1+((VLOOKUP(AS$4,'Escalation Calculator'!$C$8:$BI$67,21,FALSE)-VLOOKUP(N1_MSY,'Escalation Calculator'!$C$8:$BI$67,21,FALSE))/VLOOKUP(N1_MSY,'Escalation Calculator'!$C$8:$BI$67,21,FALSE))),0),IF(AS$4=$E12,$G12*(1+((VLOOKUP(AS$4,'Escalation Calculator'!$C$8:$BI$67,21,FALSE)-VLOOKUP(N1_MSY,'Escalation Calculator'!$C$8:$BI$67,21,FALSE))/VLOOKUP(N1_MSY,'Escalation Calculator'!$C$8:$BI$67,21,FALSE))),0)) -> 0 | AT12: =IF($F12<>"",IFERROR(IF(AND(AT$4>=$E12,AT$4<=$F12),$G12/($F12+1-$E12),0)*(1+((VLOOKUP(AT$4,'Escalation Calculator'!$C$8:$BI$67,21,FALSE)-VLOOKUP(N1_MSY,'Escalation Calculator'!$C$8:$BI$67,21,FALSE))/VLOOKUP(N1_MSY,'Escalation Calculator'!$C$8:$BI$67,21,FALSE))),0),IF(AT$4=$E12,$G12*(1+((VLOOKUP(AT$4,'Escalation Calculator'!$C$8:$BI$67,21,FALSE)-VLOOKUP(N1_MSY,'Escalation Calculator'!$C$8:$BI$67,21,FALSE))/VLOOKUP(N1_MSY,'Escalation Calculator'!$C$8:$BI$67,21,FALSE))),0)) -> 0 | AU12: =IF($F12<>"",IFERROR(IF(AND(AU$4>=$E12,AU$4<=$F12),$G12/($F12+1-$E12),0)*(1+((VLOOKUP(AU$4,'Escalation Calculator'!$C$8:$BI$67,21,FALSE)-VLOOKUP(N1_MSY,'Escalation Calculator'!$C$8:$BI$67,21,FALSE))/VLOOKUP(N1_MSY,'Escalation Calculator'!$C$8:$BI$67,21,FALSE))),0),IF(AU$4=$E12,$G12*(1+((VLOOKUP(AU$4,'Escalation Calculator'!$C$8:$BI$67,21,FALSE)-VLOOKUP(N1_MSY,'Escalation Calculator'!$C$8:$BI$67,21,FALSE))/VLOOKUP(N1_MSY,'Escalation Calculator'!$C$8:$BI$67,21,FALSE))),0)) -> 0 | AV12: =IF($F12<>"",IFERROR(IF(AND(AV$4>=$E12,AV$4<=$F12),$G12/($F12+1-$E12),0)*(1+((VLOOKUP(AV$4,'Escalation Calculator'!$C$8:$BI$67,21,FALSE)-VLOOKUP(N1_MSY,'Escalation Calculator'!$C$8:$BI$67,21,FALSE))/VLOOKUP(N1_MSY,'Escalation Calculator'!$C$8:$BI$67,21,FALSE))),0),IF(AV$4=$E12,$G12*(1+((VLOOKUP(AV$4,'Escalation Calculator'!$C$8:$BI$67,21,FALSE)-VLOOKUP(N1_MSY,'Escalation Calculator'!$C$8:$BI$67,21,FALSE))/VLOOKUP(N1_MSY,'Escalation Calculator'!$C$8:$BI$67,21,FALSE))),0)) -> 0 | AW12: =IF($F12<>"",IFERROR(IF(AND(AW$4>=$E12,AW$4<=$F12),$G12/($F12+1-$E12),0)*(1+((VLOOKUP(AW$4,'Escalation Calculator'!$C$8:$BI$67,21,FALSE)-VLOOKUP(N1_MSY,'Escalation Calculator'!$C$8:$BI$67,21,FALSE))/VLOOKUP(N1_MSY,'Escalation Calculator'!$C$8:$BI$67,21,FALSE))),0),IF(AW$4=$E12,$G12*(1+((VLOOKUP(AW$4,'Escalation Calculator'!$C$8:$BI$67,21,FALSE)-VLOOKUP(N1_MSY,'Escalation Calculator'!$C$8:$BI$67,21,FALSE))/VLOOKUP(N1_MSY,'Escalation Calculator'!$C$8:$BI$67,21,FALSE))),0)) -> 0 | AX12: =IF($F12<>"",IFERROR(IF(AND(AX$4>=$E12,AX$4<=$F12),$G12/($F12+1-$E12),0)*(1+((VLOOKUP(AX$4,'Escalation Calculator'!$C$8:$BI$67,21,FALSE)-VLOOKUP(N1_MSY,'Escalation Calculator'!$C$8:$BI$67,21,FALSE))/VLOOKUP(N1_MSY,'Escalation Calculator'!$C$8:$BI$67,21,FALSE))),0),IF(AX$4=$E12,$G12*(1+((VLOOKUP(AX$4,'Escalation Calculator'!$C$8:$BI$67,21,FALSE)-VLOOKUP(N1_MSY,'Escalation Calculator'!$C$8:$BI$67,21,FALSE))/VLOOKUP(N1_MSY,'Escalation Calculator'!$C$8:$BI$67,21,FALSE))),0)) -> 0 | AY12: =IF($F12<>"",IFERROR(IF(AND(AY$4>=$E12,AY$4<=$F12),$G12/($F12+1-$E12),0)*(1+((VLOOKUP(AY$4,'Escalation Calculator'!$C$8:$BI$67,21,FALSE)-VLOOKUP(N1_MSY,'Escalation Calculator'!$C$8:$BI$67,21,FALSE))/VLOOKUP(N1_MSY,'Escalation Calculator'!$C$8:$BI$67,21,FALSE))),0),IF(AY$4=$E12,$G12*(1+((VLOOKUP(AY$4,'Escalation Calculator'!$C$8:$BI$67,21,FALSE)-VLOOKUP(N1_MSY,'Escalation Calculator'!$C$8:$BI$67,21,FALSE))/VLOOKUP(N1_MSY,'Escalation Calculator'!$C$8:$BI$67,21,FALSE))),0)) -> 0 | AZ12: =IF($F12<>"",IFERROR(IF(AND(AZ$4>=$E12,AZ$4<=$F12),$G12/($F12+1-$E12),0)*(1+((VLOOKUP(AZ$4,'Escalation Calculator'!$C$8:$BI$67,21,FALSE)-VLOOKUP(N1_MSY,'Escalation Calculator'!$C$8:$BI$67,21,FALSE))/VLOOKUP(N1_MSY,'Escalation Calculator'!$C$8:$BI$67,21,FALSE))),0),IF(AZ$4=$E12,$G12*(1+((VLOOKUP(AZ$4,'Escalation Calculator'!$C$8:$BI$67,21,FALSE)-VLOOKUP(N1_MSY,'Escalation Calculator'!$C$8:$BI$67,21,FALSE))/VLOOKUP(N1_MSY,'Escalation Calculator'!$C$8:$BI$67,21,FALSE))),0)) -> 0 | BA12: =IF($F12<>"",IFERROR(IF(AND(BA$4>=$E12,BA$4<=$F12),$G12/($F12+1-$E12),0)*(1+((VLOOKUP(BA$4,'Escalation Calculator'!$C$8:$BI$67,21,FALSE)-VLOOKUP(N1_MSY,'Escalation Calculator'!$C$8:$BI$67,21,FALSE))/VLOOKUP(N1_MSY,'Escalation Calculator'!$C$8:$BI$67,21,FALSE))),0),IF(BA$4=$E12,$G12*(1+((VLOOKUP(BA$4,'Escalation Calculator'!$C$8:$BI$67,21,FALSE)-VLOOKUP(N1_MSY,'Escalation Calculator'!$C$8:$BI$67,21,FALSE))/VLOOKUP(N1_MSY,'Escalation Calculator'!$C$8:$BI$67,21,FALSE))),0)) -> 0 | BB12: =IF($F12<>"",IFERROR(IF(AND(BB$4>=$E12,BB$4<=$F12),$G12/($F12+1-$E12),0)*(1+((VLOOKUP(BB$4,'Escalation Calculator'!$C$8:$BI$67,21,FALSE)-VLOOKUP(N1_MSY,'Escalation Calculator'!$C$8:$BI$67,21,FALSE))/VLOOKUP(N1_MSY,'Escalation Calculator'!$C$8:$BI$67,21,FALSE))),0),IF(BB$4=$E12,$G12*(1+((VLOOKUP(BB$4,'Escalation Calculator'!$C$8:$BI$67,21,FALSE)-VLOOKUP(N1_MSY,'Escalation Calculator'!$C$8:$BI$67,21,FALSE))/VLOOKUP(N1_MSY,'Escalation Calculator'!$C$8:$BI$67,21,FALSE))),0)) -> 0 | BC12: =IF($F12<>"",IFERROR(IF(AND(BC$4>=$E12,BC$4<=$F12),$G12/($F12+1-$E12),0)*(1+((VLOOKUP(BC$4,'Escalation Calculator'!$C$8:$BI$67,21,FALSE)-VLOOKUP(N1_MSY,'Escalation Calculator'!$C$8:$BI$67,21,FALSE))/VLOOKUP(N1_MSY,'Escalation Calculator'!$C$8:$BI$67,21,FALSE))),0),IF(BC$4=$E12,$G12*(1+((VLOOKUP(BC$4,'Escalation Calculator'!$C$8:$BI$67,21,FALSE)-VLOOKUP(N1_MSY,'Escalation Calculator'!$C$8:$BI$67,21,FALSE))/VLOOKUP(N1_MSY,'Escalation Calculator'!$C$8:$BI$67,21,FALSE))),0)) -> 0 | BD12: =IF($F12<>"",IFERROR(IF(AND(BD$4>=$E12,BD$4<=$F12),$G12/($F12+1-$E12),0)*(1+((VLOOKUP(BD$4,'Escalation Calculator'!$C$8:$BI$67,21,FALSE)-VLOOKUP(N1_MSY,'Escalation Calculator'!$C$8:$BI$67,21,FALSE))/VLOOKUP(N1_MSY,'Escalation Calculator'!$C$8:$BI$67,21,FALSE))),0),IF(BD$4=$E12,$G12*(1+((VLOOKUP(BD$4,'Escalation Calculator'!$C$8:$BI$67,21,FALSE)-VLOOKUP(N1_MSY,'Escalation Calculator'!$C$8:$BI$67,21,FALSE))/VLOOKUP(N1_MSY,'Escalation Calculator'!$C$8:$BI$67,21,FALSE))),0)) -> 0 | BE12: =IF($F12<>"",IFERROR(IF(AND(BE$4>=$E12,BE$4<=$F12),$G12/($F12+1-$E12),0)*(1+((VLOOKUP(BE$4,'Escalation Calculator'!$C$8:$BI$67,21,FALSE)-VLOOKUP(N1_MSY,'Escalation Calculator'!$C$8:$BI$67,21,FALSE))/VLOOKUP(N1_MSY,'Escalation Calculator'!$C$8:$BI$67,21,FALSE))),0),IF(BE$4=$E12,$G12*(1+((VLOOKUP(BE$4,'Escalation Calculator'!$C$8:$BI$67,21,FALSE)-VLOOKUP(N1_MSY,'Escalation Calculator'!$C$8:$BI$67,21,FALSE))/VLOOKUP(N1_MSY,'Escalation Calculator'!$C$8:$BI$67,21,FALSE))),0)) -> 0 | BF12: =IF($F12<>"",IFERROR(IF(AND(BF$4>=$E12,BF$4<=$F12),$G12/($F12+1-$E12),0)*(1+((VLOOKUP(BF$4,'Escalation Calculator'!$C$8:$BI$67,21,FALSE)-VLOOKUP(N1_MSY,'Escalation Calculator'!$C$8:$BI$67,21,FALSE))/VLOOKUP(N1_MSY,'Escalation Calculator'!$C$8:$BI$67,21,FALSE))),0),IF(BF$4=$E12,$G12*(1+((VLOOKUP(BF$4,'Escalation Calculator'!$C$8:$BI$67,21,FALSE)-VLOOKUP(N1_MSY,'Escalation Calculator'!$C$8:$BI$67,21,FALSE))/VLOOKUP(N1_MSY,'Escalation Calculator'!$C$8:$BI$67,21,FALSE))),0)) -> 0 | BG12: =IF($F12<>"",IFERROR(IF(AND(BG$4>=$E12,BG$4<=$F12),$G12/($F12+1-$E12),0)*(1+((VLOOKUP(BG$4,'Escalation Calculator'!$C$8:$BI$67,21,FALSE)-VLOOKUP(N1_MSY,'Escalation Calculator'!$C$8:$BI$67,21,FALSE))/VLOOKUP(N1_MSY,'Escalation Calculator'!$C$8:$BI$67,21,FALSE))),0),IF(BG$4=$E12,$G12*(1+((VLOOKUP(BG$4,'Escalation Calculator'!$C$8:$BI$67,21,FALSE)-VLOOKUP(N1_MSY,'Escalation Calculator'!$C$8:$BI$67,21,FALSE))/VLOOKUP(N1_MSY,'Escalation Calculator'!$C$8:$BI$67,21,FALSE))),0)) -> 0
B13: ='Water Supply - Future'!B14 -> W5-LW | C13: =IF('Water Supply - Future'!H14=0,"",'Water Supply - Future'!H14) -> Infrastructure provider | D13: ='Water Supply - Future'!G14 -> Greater Airlie Beach | E13: ='Water Supply - Future'!J14 -> 2023 | F13: ='Water Supply - Future'!K14 -> 2023 | G13: ='Water Supply - Future'!Z14 -> 464961.3077 | H13: 477381.6484 | I13: =IF($F13<>"",IFERROR(IF(AND(I$4>=$E13,I$4<=$F13),$G13/($F13+1-$E13),0)*(1+((VLOOKUP(I$4,'Escalation Calculator'!$C$8:$BI$67,21,FALSE)-VLOOKUP(N1_MSY,'Escalation Calculator'!$C$8:$BI$67,21,FALSE))/VLOOKUP(N1_MSY,'Escalation Calculator'!$C$8:$BI$67,21,FALSE))),0),IF(I$4=$E13,$G13*(1+((VLOOKUP(I$4,'Escalation Calculator'!$C$8:$BI$67,21,FALSE)-VLOOKUP(N1_MSY,'Escalation Calculator'!$C$8:$BI$67,21,FALSE))/VLOOKUP(N1_MSY,'Escalation Calculator'!$C$8:$BI$67,21,FALSE))),0)) -> 0 | J13: =IF($F13<>"",IFERROR(IF(AND(J$4>=$E13,J$4<=$F13),$G13/($F13+1-$E13),0)*(1+((VLOOKUP(J$4,'Escalation Calculator'!$C$8:$BI$67,21,FALSE)-VLOOKUP(N1_MSY,'Escalation Calculator'!$C$8:$BI$67,21,FALSE))/VLOOKUP(N1_MSY,'Escalation Calculator'!$C$8:$BI$67,21,FALSE))),0),IF(J$4=$E13,$G13*(1+((VLOOKUP(J$4,'Escalation Calculator'!$C$8:$BI$67,21,FALSE)-VLOOKUP(N1_MSY,'Escalation Calculator'!$C$8:$BI$67,21,FALSE))/VLOOKUP(N1_MSY,'Escalation Calculator'!$C$8:$BI$67,21,FALSE))),0)) -> 0 | K13: =IF($F13<>"",IFERROR(IF(AND(K$4>=$E13,K$4<=$F13),$G13/($F13+1-$E13),0)*(1+((VLOOKUP(K$4,'Escalation Calculator'!$C$8:$BI$67,21,FALSE)-VLOOKUP(N1_MSY,'Escalation Calculator'!$C$8:$BI$67,21,FALSE))/VLOOKUP(N1_MSY,'Escalation Calculator'!$C$8:$BI$67,21,FALSE))),0),IF(K$4=$E13,$G13*(1+((VLOOKUP(K$4,'Escalation Calculator'!$C$8:$BI$67,21,FALSE)-VLOOKUP(N1_MSY,'Escalation Calculator'!$C$8:$BI$67,21,FALSE))/VLOOKUP(N1_MSY,'Escalation Calculator'!$C$8:$BI$67,21,FALSE))),0)) -> 477381.6484 | L13: =IF($F13<>"",IFERROR(IF(AND(L$4>=$E13,L$4<=$F13),$G13/($F13+1-$E13),0)*(1+((VLOOKUP(L$4,'Escalation Calculator'!$C$8:$BI$67,21,FALSE)-VLOOKUP(N1_MSY,'Escalation Calculator'!$C$8:$BI$67,21,FALSE))/VLOOKUP(N1_MSY,'Escalation Calculator'!$C$8:$BI$67,21,FALSE))),0),IF(L$4=$E13,$G13*(1+((VLOOKUP(L$4,'Escalation Calculator'!$C$8:$BI$67,21,FALSE)-VLOOKUP(N1_MSY,'Escalation Calculator'!$C$8:$BI$67,21,FALSE))/VLOOKUP(N1_MSY,'Escalation Calculator'!$C$8:$BI$67,21,FALSE))),0)) -> 0 | M13: =IF($F13<>"",IFERROR(IF(AND(M$4>=$E13,M$4<=$F13),$G13/($F13+1-$E13),0)*(1+((VLOOKUP(M$4,'Escalation Calculator'!$C$8:$BI$67,21,FALSE)-VLOOKUP(N1_MSY,'Escalation Calculator'!$C$8:$BI$67,21,FALSE))/VLOOKUP(N1_MSY,'Escalation Calculator'!$C$8:$BI$67,21,FALSE))),0),IF(M$4=$E13,$G13*(1+((VLOOKUP(M$4,'Escalation Calculator'!$C$8:$BI$67,21,FALSE)-VLOOKUP(N1_MSY,'Escalation Calculator'!$C$8:$BI$67,21,FALSE))/VLOOKUP(N1_MSY,'Escalation Calculator'!$C$8:$BI$67,21,FALSE))),0)) -> 0 | N13: =IF($F13<>"",IFERROR(IF(AND(N$4>=$E13,N$4<=$F13),$G13/($F13+1-$E13),0)*(1+((VLOOKUP(N$4,'Escalation Calculator'!$C$8:$BI$67,21,FALSE)-VLOOKUP(N1_MSY,'Escalation Calculator'!$C$8:$BI$67,21,FALSE))/VLOOKUP(N1_MSY,'Escalation Calculator'!$C$8:$BI$67,21,FALSE))),0),IF(N$4=$E13,$G13*(1+((VLOOKUP(N$4,'Escalation Calculator'!$C$8:$BI$67,21,FALSE)-VLOOKUP(N1_MSY,'Escalation Calculator'!$C$8:$BI$67,21,FALSE))/VLOOKUP(N1_MSY,'Escalation Calculator'!$C$8:$BI$67,21,FALSE))),0)) -> 0 | O13: =IF($F13<>"",IFERROR(IF(AND(O$4>=$E13,O$4<=$F13),$G13/($F13+1-$E13),0)*(1+((VLOOKUP(O$4,'Escalation Calculator'!$C$8:$BI$67,21,FALSE)-VLOOKUP(N1_MSY,'Escalation Calculator'!$C$8:$BI$67,21,FALSE))/VLOOKUP(N1_MSY,'Escalation Calculator'!$C$8:$BI$67,21,FALSE))),0),IF(O$4=$E13,$G13*(1+((VLOOKUP(O$4,'Escalation Calculator'!$C$8:$BI$67,21,FALSE)-VLOOKUP(N1_MSY,'Escalation Calculator'!$C$8:$BI$67,21,FALSE))/VLOOKUP(N1_MSY,'Escalation Calculator'!$C$8:$BI$67,21,FALSE))),0)) -> 0 | P13: =IF($F13<>"",IFERROR(IF(AND(P$4>=$E13,P$4<=$F13),$G13/($F13+1-$E13),0)*(1+((VLOOKUP(P$4,'Escalation Calculator'!$C$8:$BI$67,21,FALSE)-VLOOKUP(N1_MSY,'Escalation Calculator'!$C$8:$BI$67,21,FALSE))/VLOOKUP(N1_MSY,'Escalation Calculator'!$C$8:$BI$67,21,FALSE))),0),IF(P$4=$E13,$G13*(1+((VLOOKUP(P$4,'Escalation Calculator'!$C$8:$BI$67,21,FALSE)-VLOOKUP(N1_MSY,'Escalation Calculator'!$C$8:$BI$67,21,FALSE))/VLOOKUP(N1_MSY,'Escalation Calculator'!$C$8:$BI$67,21,FALSE))),0)) -> 0 | Q13: =IF($F13<>"",IFERROR(IF(AND(Q$4>=$E13,Q$4<=$F13),$G13/($F13+1-$E13),0)*(1+((VLOOKUP(Q$4,'Escalation Calculator'!$C$8:$BI$67,21,FALSE)-VLOOKUP(N1_MSY,'Escalation Calculator'!$C$8:$BI$67,21,FALSE))/VLOOKUP(N1_MSY,'Escalation Calculator'!$C$8:$BI$67,21,FALSE))),0),IF(Q$4=$E13,$G13*(1+((VLOOKUP(Q$4,'Escalation Calculator'!$C$8:$BI$67,21,FALSE)-VLOOKUP(N1_MSY,'Escalation Calculator'!$C$8:$BI$67,21,FALSE))/VLOOKUP(N1_MSY,'Escalation Calculator'!$C$8:$BI$67,21,FALSE))),0)) -> 0 | R13: =IF($F13<>"",IFERROR(IF(AND(R$4>=$E13,R$4<=$F13),$G13/($F13+1-$E13),0)*(1+((VLOOKUP(R$4,'Escalation Calculator'!$C$8:$BI$67,21,FALSE)-VLOOKUP(N1_MSY,'Escalation Calculator'!$C$8:$BI$67,21,FALSE))/VLOOKUP(N1_MSY,'Escalation Calculator'!$C$8:$BI$67,21,FALSE))),0),IF(R$4=$E13,$G13*(1+((VLOOKUP(R$4,'Escalation Calculator'!$C$8:$BI$67,21,FALSE)-VLOOKUP(N1_MSY,'Escalation Calculator'!$C$8:$BI$67,21,FALSE))/VLOOKUP(N1_MSY,'Escalation Calculator'!$C$8:$BI$67,21,FALSE))),0)) -> 0 | S13: =IF($F13<>"",IFERROR(IF(AND(S$4>=$E13,S$4<=$F13),$G13/($F13+1-$E13),0)*(1+((VLOOKUP(S$4,'Escalation Calculator'!$C$8:$BI$67,21,FALSE)-VLOOKUP(N1_MSY,'Escalation Calculator'!$C$8:$BI$67,21,FALSE))/VLOOKUP(N1_MSY,'Escalation Calculator'!$C$8:$BI$67,21,FALSE))),0),IF(S$4=$E13,$G13*(1+((VLOOKUP(S$4,'Escalation Calculator'!$C$8:$BI$67,21,FALSE)-VLOOKUP(N1_MSY,'Escalation Calculator'!$C$8:$BI$67,21,FALSE))/VLOOKUP(N1_MSY,'Escalation Calculator'!$C$8:$BI$67,21,FALSE))),0)) -> 0 | T13: =IF($F13<>"",IFERROR(IF(AND(T$4>=$E13,T$4<=$F13),$G13/($F13+1-$E13),0)*(1+((VLOOKUP(T$4,'Escalation Calculator'!$C$8:$BI$67,21,FALSE)-VLOOKUP(N1_MSY,'Escalation Calculator'!$C$8:$BI$67,21,FALSE))/VLOOKUP(N1_MSY,'Escalation Calculator'!$C$8:$BI$67,21,FALSE))),0),IF(T$4=$E13,$G13*(1+((VLOOKUP(T$4,'Escalation Calculator'!$C$8:$BI$67,21,FALSE)-VLOOKUP(N1_MSY,'Escalation Calculator'!$C$8:$BI$67,21,FALSE))/VLOOKUP(N1_MSY,'Escalation Calculator'!$C$8:$BI$67,21,FALSE))),0)) -> 0 | U13: =IF($F13<>"",IFERROR(IF(AND(U$4>=$E13,U$4<=$F13),$G13/($F13+1-$E13),0)*(1+((VLOOKUP(U$4,'Escalation Calculator'!$C$8:$BI$67,21,FALSE)-VLOOKUP(N1_MSY,'Escalation Calculator'!$C$8:$BI$67,21,FALSE))/VLOOKUP(N1_MSY,'Escalation Calculator'!$C$8:$BI$67,21,FALSE))),0),IF(U$4=$E13,$G13*(1+((VLOOKUP(U$4,'Escalation Calculator'!$C$8:$BI$67,21,FALSE)-VLOOKUP(N1_MSY,'Escalation Calculator'!$C$8:$BI$67,21,FALSE))/VLOOKUP(N1_MSY,'Escalation Calculator'!$C$8:$BI$67,21,FALSE))),0)) -> 0 | V13: =IF($F13<>"",IFERROR(IF(AND(V$4>=$E13,V$4<=$F13),$G13/($F13+1-$E13),0)*(1+((VLOOKUP(V$4,'Escalation Calculator'!$C$8:$BI$67,21,FALSE)-VLOOKUP(N1_MSY,'Escalation Calculator'!$C$8:$BI$67,21,FALSE))/VLOOKUP(N1_MSY,'Escalation Calculator'!$C$8:$BI$67,21,FALSE))),0),IF(V$4=$E13,$G13*(1+((VLOOKUP(V$4,'Escalation Calculator'!$C$8:$BI$67,21,FALSE)-VLOOKUP(N1_MSY,'Escalation Calculator'!$C$8:$BI$67,21,FALSE))/VLOOKUP(N1_MSY,'Escalation Calculator'!$C$8:$BI$67,21,FALSE))),0)) -> 0 | W13: =IF($F13<>"",IFERROR(IF(AND(W$4>=$E13,W$4<=$F13),$G13/($F13+1-$E13),0)*(1+((VLOOKUP(W$4,'Escalation Calculator'!$C$8:$BI$67,21,FALSE)-VLOOKUP(N1_MSY,'Escalation Calculator'!$C$8:$BI$67,21,FALSE))/VLOOKUP(N1_MSY,'Escalation Calculator'!$C$8:$BI$67,21,FALSE))),0),IF(W$4=$E13,$G13*(1+((VLOOKUP(W$4,'Escalation Calculator'!$C$8:$BI$67,21,FALSE)-VLOOKUP(N1_MSY,'Escalation Calculator'!$C$8:$BI$67,21,FALSE))/VLOOKUP(N1_MSY,'Escalation Calculator'!$C$8:$BI$67,21,FALSE))),0)) -> 0 | X13: =IF($F13<>"",IFERROR(IF(AND(X$4>=$E13,X$4<=$F13),$G13/($F13+1-$E13),0)*(1+((VLOOKUP(X$4,'Escalation Calculator'!$C$8:$BI$67,21,FALSE)-VLOOKUP(N1_MSY,'Escalation Calculator'!$C$8:$BI$67,21,FALSE))/VLOOKUP(N1_MSY,'Escalation Calculator'!$C$8:$BI$67,21,FALSE))),0),IF(X$4=$E13,$G13*(1+((VLOOKUP(X$4,'Escalation Calculator'!$C$8:$BI$67,21,FALSE)-VLOOKUP(N1_MSY,'Escalation Calculator'!$C$8:$BI$67,21,FALSE))/VLOOKUP(N1_MSY,'Escalation Calculator'!$C$8:$BI$67,21,FALSE))),0)) -> 0 | Y13: =IF($F13<>"",IFERROR(IF(AND(Y$4>=$E13,Y$4<=$F13),$G13/($F13+1-$E13),0)*(1+((VLOOKUP(Y$4,'Escalation Calculator'!$C$8:$BI$67,21,FALSE)-VLOOKUP(N1_MSY,'Escalation Calculator'!$C$8:$BI$67,21,FALSE))/VLOOKUP(N1_MSY,'Escalation Calculator'!$C$8:$BI$67,21,FALSE))),0),IF(Y$4=$E13,$G13*(1+((VLOOKUP(Y$4,'Escalation Calculator'!$C$8:$BI$67,21,FALSE)-VLOOKUP(N1_MSY,'Escalation Calculator'!$C$8:$BI$67,21,FALSE))/VLOOKUP(N1_MSY,'Escalation Calculator'!$C$8:$BI$67,21,FALSE))),0)) -> 0 | Z13: =IF($F13<>"",IFERROR(IF(AND(Z$4>=$E13,Z$4<=$F13),$G13/($F13+1-$E13),0)*(1+((VLOOKUP(Z$4,'Escalation Calculator'!$C$8:$BI$67,21,FALSE)-VLOOKUP(N1_MSY,'Escalation Calculator'!$C$8:$BI$67,21,FALSE))/VLOOKUP(N1_MSY,'Escalation Calculator'!$C$8:$BI$67,21,FALSE))),0),IF(Z$4=$E13,$G13*(1+((VLOOKUP(Z$4,'Escalation Calculator'!$C$8:$BI$67,21,FALSE)-VLOOKUP(N1_MSY,'Escalation Calculator'!$C$8:$BI$67,21,FALSE))/VLOOKUP(N1_MSY,'Escalation Calculator'!$C$8:$BI$67,21,FALSE))),0)) -> 0 | AA13: =IF($F13<>"",IFERROR(IF(AND(AA$4>=$E13,AA$4<=$F13),$G13/($F13+1-$E13),0)*(1+((VLOOKUP(AA$4,'Escalation Calculator'!$C$8:$BI$67,21,FALSE)-VLOOKUP(N1_MSY,'Escalation Calculator'!$C$8:$BI$67,21,FALSE))/VLOOKUP(N1_MSY,'Escalation Calculator'!$C$8:$BI$67,21,FALSE))),0),IF(AA$4=$E13,$G13*(1+((VLOOKUP(AA$4,'Escalation Calculator'!$C$8:$BI$67,21,FALSE)-VLOOKUP(N1_MSY,'Escalation Calculator'!$C$8:$BI$67,21,FALSE))/VLOOKUP(N1_MSY,'Escalation Calculator'!$C$8:$BI$67,21,FALSE))),0)) -> 0 | AB13: =IF($F13<>"",IFERROR(IF(AND(AB$4>=$E13,AB$4<=$F13),$G13/($F13+1-$E13),0)*(1+((VLOOKUP(AB$4,'Escalation Calculator'!$C$8:$BI$67,21,FALSE)-VLOOKUP(N1_MSY,'Escalation Calculator'!$C$8:$BI$67,21,FALSE))/VLOOKUP(N1_MSY,'Escalation Calculator'!$C$8:$BI$67,21,FALSE))),0),IF(AB$4=$E13,$G13*(1+((VLOOKUP(AB$4,'Escalation Calculator'!$C$8:$BI$67,21,FALSE)-VLOOKUP(N1_MSY,'Escalation Calculator'!$C$8:$BI$67,21,FALSE))/VLOOKUP(N1_MSY,'Escalation Calculator'!$C$8:$BI$67,21,FALSE))),0)) -> 0 | AC13: =IF($F13<>"",IFERROR(IF(AND(AC$4>=$E13,AC$4<=$F13),$G13/($F13+1-$E13),0)*(1+((VLOOKUP(AC$4,'Escalation Calculator'!$C$8:$BI$67,21,FALSE)-VLOOKUP(N1_MSY,'Escalation Calculator'!$C$8:$BI$67,21,FALSE))/VLOOKUP(N1_MSY,'Escalation Calculator'!$C$8:$BI$67,21,FALSE))),0),IF(AC$4=$E13,$G13*(1+((VLOOKUP(AC$4,'Escalation Calculator'!$C$8:$BI$67,21,FALSE)-VLOOKUP(N1_MSY,'Escalation Calculator'!$C$8:$BI$67,21,FALSE))/VLOOKUP(N1_MSY,'Escalation Calculator'!$C$8:$BI$67,21,FALSE))),0)) -> 0 | AD13: =IF($F13<>"",IFERROR(IF(AND(AD$4>=$E13,AD$4<=$F13),$G13/($F13+1-$E13),0)*(1+((VLOOKUP(AD$4,'Escalation Calculator'!$C$8:$BI$67,21,FALSE)-VLOOKUP(N1_MSY,'Escalation Calculator'!$C$8:$BI$67,21,FALSE))/VLOOKUP(N1_MSY,'Escalation Calculator'!$C$8:$BI$67,21,FALSE))),0),IF(AD$4=$E13,$G13*(1+((VLOOKUP(AD$4,'Escalation Calculator'!$C$8:$BI$67,21,FALSE)-VLOOKUP(N1_MSY,'Escalation Calculator'!$C$8:$BI$67,21,FALSE))/VLOOKUP(N1_MSY,'Escalation Calculator'!$C$8:$BI$67,21,FALSE))),0)) -> 0 | AE13: =IF($F13<>"",IFERROR(IF(AND(AE$4>=$E13,AE$4<=$F13),$G13/($F13+1-$E13),0)*(1+((VLOOKUP(AE$4,'Escalation Calculator'!$C$8:$BI$67,21,FALSE)-VLOOKUP(N1_MSY,'Escalation Calculator'!$C$8:$BI$67,21,FALSE))/VLOOKUP(N1_MSY,'Escalation Calculator'!$C$8:$BI$67,21,FALSE))),0),IF(AE$4=$E13,$G13*(1+((VLOOKUP(AE$4,'Escalation Calculator'!$C$8:$BI$67,21,FALSE)-VLOOKUP(N1_MSY,'Escalation Calculator'!$C$8:$BI$67,21,FALSE))/VLOOKUP(N1_MSY,'Escalation Calculator'!$C$8:$BI$67,21,FALSE))),0)) -> 0 | AF13: =IF($F13<>"",IFERROR(IF(AND(AF$4>=$E13,AF$4<=$F13),$G13/($F13+1-$E13),0)*(1+((VLOOKUP(AF$4,'Escalation Calculator'!$C$8:$BI$67,21,FALSE)-VLOOKUP(N1_MSY,'Escalation Calculator'!$C$8:$BI$67,21,FALSE))/VLOOKUP(N1_MSY,'Escalation Calculator'!$C$8:$BI$67,21,FALSE))),0),IF(AF$4=$E13,$G13*(1+((VLOOKUP(AF$4,'Escalation Calculator'!$C$8:$BI$67,21,FALSE)-VLOOKUP(N1_MSY,'Escalation Calculator'!$C$8:$BI$67,21,FALSE))/VLOOKUP(N1_MSY,'Escalation Calculator'!$C$8:$BI$67,21,FALSE))),0)) -> 0 | AG13: =IF($F13<>"",IFERROR(IF(AND(AG$4>=$E13,AG$4<=$F13),$G13/($F13+1-$E13),0)*(1+((VLOOKUP(AG$4,'Escalation Calculator'!$C$8:$BI$67,21,FALSE)-VLOOKUP(N1_MSY,'Escalation Calculator'!$C$8:$BI$67,21,FALSE))/VLOOKUP(N1_MSY,'Escalation Calculator'!$C$8:$BI$67,21,FALSE))),0),IF(AG$4=$E13,$G13*(1+((VLOOKUP(AG$4,'Escalation Calculator'!$C$8:$BI$67,21,FALSE)-VLOOKUP(N1_MSY,'Escalation Calculator'!$C$8:$BI$67,21,FALSE))/VLOOKUP(N1_MSY,'Escalation Calculator'!$C$8:$BI$67,21,FALSE))),0)) -> 0 | AH13: =IF($F13<>"",IFERROR(IF(AND(AH$4>=$E13,AH$4<=$F13),$G13/($F13+1-$E13),0)*(1+((VLOOKUP(AH$4,'Escalation Calculator'!$C$8:$BI$67,21,FALSE)-VLOOKUP(N1_MSY,'Escalation Calculator'!$C$8:$BI$67,21,FALSE))/VLOOKUP(N1_MSY,'Escalation Calculator'!$C$8:$BI$67,21,FALSE))),0),IF(AH$4=$E13,$G13*(1+((VLOOKUP(AH$4,'Escalation Calculator'!$C$8:$BI$67,21,FALSE)-VLOOKUP(N1_MSY,'Escalation Calculator'!$C$8:$BI$67,21,FALSE))/VLOOKUP(N1_MSY,'Escalation Calculator'!$C$8:$BI$67,21,FALSE))),0)) -> 0 | AI13: =IF($F13<>"",IFERROR(IF(AND(AI$4>=$E13,AI$4<=$F13),$G13/($F13+1-$E13),0)*(1+((VLOOKUP(AI$4,'Escalation Calculator'!$C$8:$BI$67,21,FALSE)-VLOOKUP(N1_MSY,'Escalation Calculator'!$C$8:$BI$67,21,FALSE))/VLOOKUP(N1_MSY,'Escalation Calculator'!$C$8:$BI$67,21,FALSE))),0),IF(AI$4=$E13,$G13*(1+((VLOOKUP(AI$4,'Escalation Calculator'!$C$8:$BI$67,21,FALSE)-VLOOKUP(N1_MSY,'Escalation Calculator'!$C$8:$BI$67,21,FALSE))/VLOOKUP(N1_MSY,'Escalation Calculator'!$C$8:$BI$67,21,FALSE))),0)) -> 0 | AJ13: =IF($F13<>"",IFERROR(IF(AND(AJ$4>=$E13,AJ$4<=$F13),$G13/($F13+1-$E13),0)*(1+((VLOOKUP(AJ$4,'Escalation Calculator'!$C$8:$BI$67,21,FALSE)-VLOOKUP(N1_MSY,'Escalation Calculator'!$C$8:$BI$67,21,FALSE))/VLOOKUP(N1_MSY,'Escalation Calculator'!$C$8:$BI$67,21,FALSE))),0),IF(AJ$4=$E13,$G13*(1+((VLOOKUP(AJ$4,'Escalation Calculator'!$C$8:$BI$67,21,FALSE)-VLOOKUP(N1_MSY,'Escalation Calculator'!$C$8:$BI$67,21,FALSE))/VLOOKUP(N1_MSY,'Escalation Calculator'!$C$8:$BI$67,21,FALSE))),0)) -> 0 | AK13: =IF($F13<>"",IFERROR(IF(AND(AK$4>=$E13,AK$4<=$F13),$G13/($F13+1-$E13),0)*(1+((VLOOKUP(AK$4,'Escalation Calculator'!$C$8:$BI$67,21,FALSE)-VLOOKUP(N1_MSY,'Escalation Calculator'!$C$8:$BI$67,21,FALSE))/VLOOKUP(N1_MSY,'Escalation Calculator'!$C$8:$BI$67,21,FALSE))),0),IF(AK$4=$E13,$G13*(1+((VLOOKUP(AK$4,'Escalation Calculator'!$C$8:$BI$67,21,FALSE)-VLOOKUP(N1_MSY,'Escalation Calculator'!$C$8:$BI$67,21,FALSE))/VLOOKUP(N1_MSY,'Escalation Calculator'!$C$8:$BI$67,21,FALSE))),0)) -> 0 | AL13: =IF($F13<>"",IFERROR(IF(AND(AL$4>=$E13,AL$4<=$F13),$G13/($F13+1-$E13),0)*(1+((VLOOKUP(AL$4,'Escalation Calculator'!$C$8:$BI$67,21,FALSE)-VLOOKUP(N1_MSY,'Escalation Calculator'!$C$8:$BI$67,21,FALSE))/VLOOKUP(N1_MSY,'Escalation Calculator'!$C$8:$BI$67,21,FALSE))),0),IF(AL$4=$E13,$G13*(1+((VLOOKUP(AL$4,'Escalation Calculator'!$C$8:$BI$67,21,FALSE)-VLOOKUP(N1_MSY,'Escalation Calculator'!$C$8:$BI$67,21,FALSE))/VLOOKUP(N1_MSY,'Escalation Calculator'!$C$8:$BI$67,21,FALSE))),0)) -> 0 | AM13: =IF($F13<>"",IFERROR(IF(AND(AM$4>=$E13,AM$4<=$F13),$G13/($F13+1-$E13),0)*(1+((VLOOKUP(AM$4,'Escalation Calculator'!$C$8:$BI$67,21,FALSE)-VLOOKUP(N1_MSY,'Escalation Calculator'!$C$8:$BI$67,21,FALSE))/VLOOKUP(N1_MSY,'Escalation Calculator'!$C$8:$BI$67,21,FALSE))),0),IF(AM$4=$E13,$G13*(1+((VLOOKUP(AM$4,'Escalation Calculator'!$C$8:$BI$67,21,FALSE)-VLOOKUP(N1_MSY,'Escalation Calculator'!$C$8:$BI$67,21,FALSE))/VLOOKUP(N1_MSY,'Escalation Calculator'!$C$8:$BI$67,21,FALSE))),0)) -> 0 | AN13: =IF($F13<>"",IFERROR(IF(AND(AN$4>=$E13,AN$4<=$F13),$G13/($F13+1-$E13),0)*(1+((VLOOKUP(AN$4,'Escalation Calculator'!$C$8:$BI$67,21,FALSE)-VLOOKUP(N1_MSY,'Escalation Calculator'!$C$8:$BI$67,21,FALSE))/VLOOKUP(N1_MSY,'Escalation Calculator'!$C$8:$BI$67,21,FALSE))),0),IF(AN$4=$E13,$G13*(1+((VLOOKUP(AN$4,'Escalation Calculator'!$C$8:$BI$67,21,FALSE)-VLOOKUP(N1_MSY,'Escalation Calculator'!$C$8:$BI$67,21,FALSE))/VLOOKUP(N1_MSY,'Escalation Calculator'!$C$8:$BI$67,21,FALSE))),0)) -> 0 | AO13: =IF($F13<>"",IFERROR(IF(AND(AO$4>=$E13,AO$4<=$F13),$G13/($F13+1-$E13),0)*(1+((VLOOKUP(AO$4,'Escalation Calculator'!$C$8:$BI$67,21,FALSE)-VLOOKUP(N1_MSY,'Escalation Calculator'!$C$8:$BI$67,21,FALSE))/VLOOKUP(N1_MSY,'Escalation Calculator'!$C$8:$BI$67,21,FALSE))),0),IF(AO$4=$E13,$G13*(1+((VLOOKUP(AO$4,'Escalation Calculator'!$C$8:$BI$67,21,FALSE)-VLOOKUP(N1_MSY,'Escalation Calculator'!$C$8:$BI$67,21,FALSE))/VLOOKUP(N1_MSY,'Escalation Calculator'!$C$8:$BI$67,21,FALSE))),0)) -> 0 | AP13: =IF($F13<>"",IFERROR(IF(AND(AP$4>=$E13,AP$4<=$F13),$G13/($F13+1-$E13),0)*(1+((VLOOKUP(AP$4,'Escalation Calculator'!$C$8:$BI$67,21,FALSE)-VLOOKUP(N1_MSY,'Escalation Calculator'!$C$8:$BI$67,21,FALSE))/VLOOKUP(N1_MSY,'Escalation Calculator'!$C$8:$BI$67,21,FALSE))),0),IF(AP$4=$E13,$G13*(1+((VLOOKUP(AP$4,'Escalation Calculator'!$C$8:$BI$67,21,FALSE)-VLOOKUP(N1_MSY,'Escalation Calculator'!$C$8:$BI$67,21,FALSE))/VLOOKUP(N1_MSY,'Escalation Calculator'!$C$8:$BI$67,21,FALSE))),0)) -> 0 | AQ13: =IF($F13<>"",IFERROR(IF(AND(AQ$4>=$E13,AQ$4<=$F13),$G13/($F13+1-$E13),0)*(1+((VLOOKUP(AQ$4,'Escalation Calculator'!$C$8:$BI$67,21,FALSE)-VLOOKUP(N1_MSY,'Escalation Calculator'!$C$8:$BI$67,21,FALSE))/VLOOKUP(N1_MSY,'Escalation Calculator'!$C$8:$BI$67,21,FALSE))),0),IF(AQ$4=$E13,$G13*(1+((VLOOKUP(AQ$4,'Escalation Calculator'!$C$8:$BI$67,21,FALSE)-VLOOKUP(N1_MSY,'Escalation Calculator'!$C$8:$BI$67,21,FALSE))/VLOOKUP(N1_MSY,'Escalation Calculator'!$C$8:$BI$67,21,FALSE))),0)) -> 0 | AR13: =IF($F13<>"",IFERROR(IF(AND(AR$4>=$E13,AR$4<=$F13),$G13/($F13+1-$E13),0)*(1+((VLOOKUP(AR$4,'Escalation Calculator'!$C$8:$BI$67,21,FALSE)-VLOOKUP(N1_MSY,'Escalation Calculator'!$C$8:$BI$67,21,FALSE))/VLOOKUP(N1_MSY,'Escalation Calculator'!$C$8:$BI$67,21,FALSE))),0),IF(AR$4=$E13,$G13*(1+((VLOOKUP(AR$4,'Escalation Calculator'!$C$8:$BI$67,21,FALSE)-VLOOKUP(N1_MSY,'Escalation Calculator'!$C$8:$BI$67,21,FALSE))/VLOOKUP(N1_MSY,'Escalation Calculator'!$C$8:$BI$67,21,FALSE))),0)) -> 0 | AS13: =IF($F13<>"",IFERROR(IF(AND(AS$4>=$E13,AS$4<=$F13),$G13/($F13+1-$E13),0)*(1+((VLOOKUP(AS$4,'Escalation Calculator'!$C$8:$BI$67,21,FALSE)-VLOOKUP(N1_MSY,'Escalation Calculator'!$C$8:$BI$67,21,FALSE))/VLOOKUP(N1_MSY,'Escalation Calculator'!$C$8:$BI$67,21,FALSE))),0),IF(AS$4=$E13,$G13*(1+((VLOOKUP(AS$4,'Escalation Calculator'!$C$8:$BI$67,21,FALSE)-VLOOKUP(N1_MSY,'Escalation Calculator'!$C$8:$BI$67,21,FALSE))/VLOOKUP(N1_MSY,'Escalation Calculator'!$C$8:$BI$67,21,FALSE))),0)) -> 0 | AT13: =IF($F13<>"",IFERROR(IF(AND(AT$4>=$E13,AT$4<=$F13),$G13/($F13+1-$E13),0)*(1+((VLOOKUP(AT$4,'Escalation Calculator'!$C$8:$BI$67,21,FALSE)-VLOOKUP(N1_MSY,'Escalation Calculator'!$C$8:$BI$67,21,FALSE))/VLOOKUP(N1_MSY,'Escalation Calculator'!$C$8:$BI$67,21,FALSE))),0),IF(AT$4=$E13,$G13*(1+((VLOOKUP(AT$4,'Escalation Calculator'!$C$8:$BI$67,21,FALSE)-VLOOKUP(N1_MSY,'Escalation Calculator'!$C$8:$BI$67,21,FALSE))/VLOOKUP(N1_MSY,'Escalation Calculator'!$C$8:$BI$67,21,FALSE))),0)) -> 0 | AU13: =IF($F13<>"",IFERROR(IF(AND(AU$4>=$E13,AU$4<=$F13),$G13/($F13+1-$E13),0)*(1+((VLOOKUP(AU$4,'Escalation Calculator'!$C$8:$BI$67,21,FALSE)-VLOOKUP(N1_MSY,'Escalation Calculator'!$C$8:$BI$67,21,FALSE))/VLOOKUP(N1_MSY,'Escalation Calculator'!$C$8:$BI$67,21,FALSE))),0),IF(AU$4=$E13,$G13*(1+((VLOOKUP(AU$4,'Escalation Calculator'!$C$8:$BI$67,21,FALSE)-VLOOKUP(N1_MSY,'Escalation Calculator'!$C$8:$BI$67,21,FALSE))/VLOOKUP(N1_MSY,'Escalation Calculator'!$C$8:$BI$67,21,FALSE))),0)) -> 0 | AV13: =IF($F13<>"",IFERROR(IF(AND(AV$4>=$E13,AV$4<=$F13),$G13/($F13+1-$E13),0)*(1+((VLOOKUP(AV$4,'Escalation Calculator'!$C$8:$BI$67,21,FALSE)-VLOOKUP(N1_MSY,'Escalation Calculator'!$C$8:$BI$67,21,FALSE))/VLOOKUP(N1_MSY,'Escalation Calculator'!$C$8:$BI$67,21,FALSE))),0),IF(AV$4=$E13,$G13*(1+((VLOOKUP(AV$4,'Escalation Calculator'!$C$8:$BI$67,21,FALSE)-VLOOKUP(N1_MSY,'Escalation Calculator'!$C$8:$BI$67,21,FALSE))/VLOOKUP(N1_MSY,'Escalation Calculator'!$C$8:$BI$67,21,FALSE))),0)) -> 0 | AW13: =IF($F13<>"",IFERROR(IF(AND(AW$4>=$E13,AW$4<=$F13),$G13/($F13+1-$E13),0)*(1+((VLOOKUP(AW$4,'Escalation Calculator'!$C$8:$BI$67,21,FALSE)-VLOOKUP(N1_MSY,'Escalation Calculator'!$C$8:$BI$67,21,FALSE))/VLOOKUP(N1_MSY,'Escalation Calculator'!$C$8:$BI$67,21,FALSE))),0),IF(AW$4=$E13,$G13*(1+((VLOOKUP(AW$4,'Escalation Calculator'!$C$8:$BI$67,21,FALSE)-VLOOKUP(N1_MSY,'Escalation Calculator'!$C$8:$BI$67,21,FALSE))/VLOOKUP(N1_MSY,'Escalation Calculator'!$C$8:$BI$67,21,FALSE))),0)) -> 0 | AX13: =IF($F13<>"",IFERROR(IF(AND(AX$4>=$E13,AX$4<=$F13),$G13/($F13+1-$E13),0)*(1+((VLOOKUP(AX$4,'Escalation Calculator'!$C$8:$BI$67,21,FALSE)-VLOOKUP(N1_MSY,'Escalation Calculator'!$C$8:$BI$67,21,FALSE))/VLOOKUP(N1_MSY,'Escalation Calculator'!$C$8:$BI$67,21,FALSE))),0),IF(AX$4=$E13,$G13*(1+((VLOOKUP(AX$4,'Escalation Calculator'!$C$8:$BI$67,21,FALSE)-VLOOKUP(N1_MSY,'Escalation Calculator'!$C$8:$BI$67,21,FALSE))/VLOOKUP(N1_MSY,'Escalation Calculator'!$C$8:$BI$67,21,FALSE))),0)) -> 0 | AY13: =IF($F13<>"",IFERROR(IF(AND(AY$4>=$E13,AY$4<=$F13),$G13/($F13+1-$E13),0)*(1+((VLOOKUP(AY$4,'Escalation Calculator'!$C$8:$BI$67,21,FALSE)-VLOOKUP(N1_MSY,'Escalation Calculator'!$C$8:$BI$67,21,FALSE))/VLOOKUP(N1_MSY,'Escalation Calculator'!$C$8:$BI$67,21,FALSE))),0),IF(AY$4=$E13,$G13*(1+((VLOOKUP(AY$4,'Escalation Calculator'!$C$8:$BI$67,21,FALSE)-VLOOKUP(N1_MSY,'Escalation Calculator'!$C$8:$BI$67,21,FALSE))/VLOOKUP(N1_MSY,'Escalation Calculator'!$C$8:$BI$67,21,FALSE))),0)) -> 0 | AZ13: =IF($F13<>"",IFERROR(IF(AND(AZ$4>=$E13,AZ$4<=$F13),$G13/($F13+1-$E13),0)*(1+((VLOOKUP(AZ$4,'Escalation Calculator'!$C$8:$BI$67,21,FALSE)-VLOOKUP(N1_MSY,'Escalation Calculator'!$C$8:$BI$67,21,FALSE))/VLOOKUP(N1_MSY,'Escalation Calculator'!$C$8:$BI$67,21,FALSE))),0),IF(AZ$4=$E13,$G13*(1+((VLOOKUP(AZ$4,'Escalation Calculator'!$C$8:$BI$67,21,FALSE)-VLOOKUP(N1_MSY,'Escalation Calculator'!$C$8:$BI$67,21,FALSE))/VLOOKUP(N1_MSY,'Escalation Calculator'!$C$8:$BI$67,21,FALSE))),0)) -> 0 | BA13: =IF($F13<>"",IFERROR(IF(AND(BA$4>=$E13,BA$4<=$F13),$G13/($F13+1-$E13),0)*(1+((VLOOKUP(BA$4,'Escalation Calculator'!$C$8:$BI$67,21,FALSE)-VLOOKUP(N1_MSY,'Escalation Calculator'!$C$8:$BI$67,21,FALSE))/VLOOKUP(N1_MSY,'Escalation Calculator'!$C$8:$BI$67,21,FALSE))),0),IF(BA$4=$E13,$G13*(1+((VLOOKUP(BA$4,'Escalation Calculator'!$C$8:$BI$67,21,FALSE)-VLOOKUP(N1_MSY,'Escalation Calculator'!$C$8:$BI$67,21,FALSE))/VLOOKUP(N1_MSY,'Escalation Calculator'!$C$8:$BI$67,21,FALSE))),0)) -> 0 | BB13: =IF($F13<>"",IFERROR(IF(AND(BB$4>=$E13,BB$4<=$F13),$G13/($F13+1-$E13),0)*(1+((VLOOKUP(BB$4,'Escalation Calculator'!$C$8:$BI$67,21,FALSE)-VLOOKUP(N1_MSY,'Escalation Calculator'!$C$8:$BI$67,21,FALSE))/VLOOKUP(N1_MSY,'Escalation Calculator'!$C$8:$BI$67,21,FALSE))),0),IF(BB$4=$E13,$G13*(1+((VLOOKUP(BB$4,'Escalation Calculator'!$C$8:$BI$67,21,FALSE)-VLOOKUP(N1_MSY,'Escalation Calculator'!$C$8:$BI$67,21,FALSE))/VLOOKUP(N1_MSY,'Escalation Calculator'!$C$8:$BI$67,21,FALSE))),0)) -> 0 | BC13: =IF($F13<>"",IFERROR(IF(AND(BC$4>=$E13,BC$4<=$F13),$G13/($F13+1-$E13),0)*(1+((VLOOKUP(BC$4,'Escalation Calculator'!$C$8:$BI$67,21,FALSE)-VLOOKUP(N1_MSY,'Escalation Calculator'!$C$8:$BI$67,21,FALSE))/VLOOKUP(N1_MSY,'Escalation Calculator'!$C$8:$BI$67,21,FALSE))),0),IF(BC$4=$E13,$G13*(1+((VLOOKUP(BC$4,'Escalation Calculator'!$C$8:$BI$67,21,FALSE)-VLOOKUP(N1_MSY,'Escalation Calculator'!$C$8:$BI$67,21,FALSE))/VLOOKUP(N1_MSY,'Escalation Calculator'!$C$8:$BI$67,21,FALSE))),0)) -> 0 | BD13: =IF($F13<>"",IFERROR(IF(AND(BD$4>=$E13,BD$4<=$F13),$G13/($F13+1-$E13),0)*(1+((VLOOKUP(BD$4,'Escalation Calculator'!$C$8:$BI$67,21,FALSE)-VLOOKUP(N1_MSY,'Escalation Calculator'!$C$8:$BI$67,21,FALSE))/VLOOKUP(N1_MSY,'Escalation Calculator'!$C$8:$BI$67,21,FALSE))),0),IF(BD$4=$E13,$G13*(1+((VLOOKUP(BD$4,'Escalation Calculator'!$C$8:$BI$67,21,FALSE)-VLOOKUP(N1_MSY,'Escalation Calculator'!$C$8:$BI$67,21,FALSE))/VLOOKUP(N1_MSY,'Escalation Calculator'!$C$8:$BI$67,21,FALSE))),0)) -> 0 | BE13: =IF($F13<>"",IFERROR(IF(AND(BE$4>=$E13,BE$4<=$F13),$G13/($F13+1-$E13),0)*(1+((VLOOKUP(BE$4,'Escalation Calculator'!$C$8:$BI$67,21,FALSE)-VLOOKUP(N1_MSY,'Escalation Calculator'!$C$8:$BI$67,21,FALSE))/VLOOKUP(N1_MSY,'Escalation Calculator'!$C$8:$BI$67,21,FALSE))),0),IF(BE$4=$E13,$G13*(1+((VLOOKUP(BE$4,'Escalation Calculator'!$C$8:$BI$67,21,FALSE)-VLOOKUP(N1_MSY,'Escalation Calculator'!$C$8:$BI$67,21,FALSE))/VLOOKUP(N1_MSY,'Escalation Calculator'!$C$8:$BI$67,21,FALSE))),0)) -> 0 | BF13: =IF($F13<>"",IFERROR(IF(AND(BF$4>=$E13,BF$4<=$F13),$G13/($F13+1-$E13),0)*(1+((VLOOKUP(BF$4,'Escalation Calculator'!$C$8:$BI$67,21,FALSE)-VLOOKUP(N1_MSY,'Escalation Calculator'!$C$8:$BI$67,21,FALSE))/VLOOKUP(N1_MSY,'Escalation Calculator'!$C$8:$BI$67,21,FALSE))),0),IF(BF$4=$E13,$G13*(1+((VLOOKUP(BF$4,'Escalation Calculator'!$C$8:$BI$67,21,FALSE)-VLOOKUP(N1_MSY,'Escalation Calculator'!$C$8:$BI$67,21,FALSE))/VLOOKUP(N1_MSY,'Escalation Calculator'!$C$8:$BI$67,21,FALSE))),0)) -> 0 | BG13: =IF($F13<>"",IFERROR(IF(AND(BG$4>=$E13,BG$4<=$F13),$G13/($F13+1-$E13),0)*(1+((VLOOKUP(BG$4,'Escalation Calculator'!$C$8:$BI$67,21,FALSE)-VLOOKUP(N1_MSY,'Escalation Calculator'!$C$8:$BI$67,21,FALSE))/VLOOKUP(N1_MSY,'Escalation Calculator'!$C$8:$BI$67,21,FALSE))),0),IF(BG$4=$E13,$G13*(1+((VLOOKUP(BG$4,'Escalation Calculator'!$C$8:$BI$67,21,FALSE)-VLOOKUP(N1_MSY,'Escalation Calculator'!$C$8:$BI$67,21,FALSE))/VLOOKUP(N1_MSY,'Escalation Calculator'!$C$8:$BI$67,21,FALSE))),0)) -> 0
